Workbook

Sheet Model Choice
C3: Transport Emissions Evaluation Model for Projects (TEEMP) - BRT

Sheet Home
C1: TEEMP BRT - Full Model

Sheet Shortcut
C1: Sketch Analysis Tool
E6: Inputs
F8: Project Name
F9: Location
F10: Details
F12: Base Year | H12: =IF(G12="","",G12+9) ->  | I12: =IF(H12="","",H12+10) -> 
F13: Cumulative length of BRTS Constructed (km)
F15: BRT Ridership | R15: =IF(F16=R16,1,0) -> 0
F16: Ridership figures are not available. I would like to estimate the figures using the ridership estimator | R16: I have the ridership figures/day ('000). I would like to input it directly
F17: =IF(R15=1," BRT Ridership ('000)/day","") ->  | G17: =IF(G12="","",G12) ->  | H17: =H12 ->  | I17: =I12 ->  | R17: Ridership figures are not available. I would like to estimate the figures using the ridership estimator
F20: Existing Public Transport Ridership in the Corridor/day ('000s) | G20: =G12 -> 0 | H20: =H12 ->  | I20: =I12 -> 
F23: Annual population growth | G23: =CONCATENATE(G20,"-",G20+4) -> 0-4 | H23: =CONCATENATE(H20-4,"-",H20) ->  | I23: =CONCATENATE(H20+1,"-",I20-5) ->  | J23: =CONCATENATE(H20+6,"-",I20) -> 
F26: =IF(R15=0,"Mode shift to BRT","Mode share in the corridor if the BRT is not implemented") -> Mode shift to BRT | G26: =IF(G12="","",G12) ->  | H26: =H20 -> 
E27: private | F27: Car
F28: 2-wheeler
F29: Taxi
E32: public | F32: 3-wheeler
F33: Bus
F34: Mini-bus
F37: TOTAL | G37: =SUM(G27:G36) -> 0 | H37: =SUM(H27:H36) -> 0 | I37: =SUM(I27:I36) -> 0
F41: BRT Scorecard
F42: Click here for BRT Standard write-up and Scoring Instructions
F43: Component | G43: Existing System | H43: BRT System | I43: Score per component | O43: =G43 -> Existing System | P43: =H43 -> BRT System | S43: Year | T43: % Increase | U43: Ridership
F44: BRT Basics
F45: Busway Alignment | I45: 8 | O45: =G45 -> 0 | P45: =H45 -> 0 | R45: 1 | S45: =G26 ->  | T45: =$G$24 -> 0 | U45: =G21*1000 -> 0
F46: Dedicated right-of-way | I46: 8 | O46: =G46 -> 0 | P46: 0 | R46: 2 | S46: =S45+1 ->  | T46: =$G$24 -> 0 | U46: =U45+(U45*T46) -> 0
F47: Off-board fare collection | I47: 8 | O47: 0 | P47: 0 | R47: 3 | S47: =S46+1 ->  | T47: =$G$24 -> 0 | U47: =U46+(U46*T47) -> 0
F48: Intersection treatments | I48: 7 | O48: 0 | P48: 0 | R48: 4 | T48: =$G$24 -> 0 | U48: 0
F49: Platform-level boarding | I49: 7 | O49: 0 | P49: 0 | R49: 5 | T49: =$G$24 -> 0 | U49: 0
F50: Service Planning | R50: 6 | T50: =$H$24 -> 0 | U50: 0
F51: Multiple routes | I51: 4 | O51: =G51 -> 0 | P51: 0 | R51: 7 | T51: 0 | U51: 0
F52: Express, limited and local services | I52: 3 | O52: =G52 -> 0 | P52: 0 | R52: 8 | S52: =S51+1 ->  | T52: 0 | U52: 0
F53: Control center | I53: 3 | O53: 0 | P53: 0 | R53: 9 | T53: 0 | U53: 0
F54: Located in top-ten corridors | I54: 2 | O54: 0 | P54: 0 | R54: 10 | T54: 0 | U54: 0
F55: Demand Profile | I55: 2 | O55: 0 | P55: 0 | R55: 11 | T55: =$I$24 -> 0 | U55: 0
F56: Hours of Operations | I56: 3 | O56: 0 | P56: 0 | R56: 12 | T56: =$I$24 -> 0 | U56: 0
F57: Multi-corridor network | I57: 2 | O57: 0 | P57: 0 | R57: 13 | T57: =$I$24 -> 0 | U57: 0
F58: Infrastructure | R58: 14 | T58: =$I$24 -> 0 | U58: 0
F59: Passing lanes at stations | I59: 4 | O59: =G59 -> 0 | P59: =H59 -> 0 | R59: 15 | T59: =$I$24 -> 0 | U59: 0
F60: Minimizing bus emissions | I60: 3 | O60: =G60 -> 0 | P60: =H60 -> 0 | R60: 16 | T60: =$J$24 -> 0 | U60: 0
F61: Stations set back from intersections | I61: 3 | O61: 0 | P61: 0 | R61: 17 | S61: =#REF!+1 ->  | T61: =$J$24 -> 0 | U61: 0
F62: Center stations | I62: 2 | O62: 0 | P62: 0 | R62: 18 | T62: =$J$24 -> 0 | U62: 0
F63: Pavement quality | I63: 2 | O63: 0 | P63: 0 | R63: 19 | T63: =$J$24 -> 0 | U63: 0
F64: Station Design and Station-Bus Interface | R64: 20 | T64: 0 | U64: 0
F65: Distance between stations | I65: 2 | O65: =G65 -> 0 | P65: =H65 -> 0 | R65: 21 | T65: 0 | U65: 0
F66: Safe and comfortable stations | I66: 3 | O66: =G66 -> 0 | P66: =H66 -> 0 | R66: 22 | T66: 0 | U66: 0
F67: Number of doors on bus | I67: 3 | O67: 0 | P67: 0 | R67: 23 | S67: =#REF!+1 ->  | T67: 0 | U67: 0
F68: Docking bays and sub-stops | I68: 1 | O68: 0 | P68: 0
F69: Sliding doors in BRT stations | I69: 1 | O69: 0 | P69: 0 | R69: Score before improvement | S69: =G89 -> 0
F70: Quality of Service and Passenger information Systems | R70: Score after improvement | S70: =H89 -> 0
F71: Branding | I71: 3 | O71: =G71 -> 0 | P71: =H71 -> 0 | R71: Bonus factor
F72: Passenger information | I72: 2 | O72: =G72 -> 0 | P72: =H72 -> 0
F73: Integration and Access
F74: Universal access | I74: 3 | O74: =G74 -> 0 | P74: =H74 -> 0
F75: Integration with other public transport | I75: 3 | O75: =G75 -> 0 | P75: =H75 -> 0
F76: Pedestrian access | I76: 3 | O76: 0 | P76: 0
F77: Secure bicycle parking | I77: 2 | O77: 0 | P77: 0
F78: Bicycle lanes | I78: 2 | O78: 0 | P78: 0
F79: Bicycle sharing integration | I79: 1 | O79: 0 | P79: 0
F80: Point Deduction
F81: Commercial speeds | I81: -10 | O81: =G81 -> 0 | P81: =H81 -> 0
F82: Peak passengers per hour per direction (pphpd) below 1,000 | I82: -5 | O82: =G82 -> 0 | P82: =H82 -> 0
F83: Lack of enforcement of right-of-way | I83: -5 | O83: 0 | P83: 0
F84: Significant gap between bus floor and station platform | I84: -5 | O84: 0 | P84: 0
F85: Overcrowding | I85: -5 | O85: 0 | P85: 0
F86: Poorly maintained busways, buses, stations, and technology systems | I86: -10 | O86: 0 | P86: 0
F87: Low Peak frequency | I87: -3 | O87: 0 | P87: 0
F88: Low Off-peak frequency | I88: -2 | O88: 0 | P88: 0
F89: TOTAL SCORE | G89: =IF(SUM(O44:O88)>0,SUM(O44:O88),0) -> 0 | H89: =IF(SUM(P44:P88)>0,SUM(P44:P88),0) -> 0 | I89: =(SUM(I45:I57)+SUM(I59:I63)+SUM(I65:I69)+SUM(I71:I72)+SUM(I74:I79)) -> 100
F90: ASSESSMENT | H90: =VLOOKUP(H89,D607:E707,2,FALSE) -> Not BRT
F91: Ridership Bonus Factor | H91: =IF((((H89-G89)*0.01/5)+1)>1,((H89-G89)*0.01/5)+1,1) -> 1
O94: Ridership (thousands)
F95: Emissions indicators | G95: =G103 ->  | H95: =H103 ->  | I95: =I103 ->  | O95: Direct Input | P95: =G18*1000*$H$91 -> 0 | Q95: =H18*1000*$H$91 -> 0 | R95: =I18*1000*$H$91 -> 0
F96: ton CO2/ kilometer | G96: =annual_tCO2_per_km -> 1468.541196 | H96: =G96 -> 1468.541196 | I96: =H96 -> 1468.541196 | O96: Calculated | P96: =G104*$H$91 -> 0 | Q96: =H104*$H$91 -> 0 | R96: =I104*$H$91 -> 0
F97: ton CO2/ daily passenger | G97: =annual_tCO2_per_daily_pax -> 0.1310520264 | H97: =G97 -> 0.1310520264 | I97: =H97 -> 0.1310520264
E100: Outputs
E102: Ridership, Trips and Mode Shift
G103: =G26 ->  | H103: =H26 ->  | I103: =I26 -> 
E104: Ridership | F104: Public Transport Ridership | G104: =U45 -> 0 | H104: =U59 -> 0 | I104: =U66 -> 0
F105: Adjusted Ridership of BRT | G105: =IF($R$15=1,P95,P96) -> 0 | H105: =IF($R$15=1,Q95,Q96) -> 0 | I105: 0
F106: New Riders to BRT | G106: =G105-G104 -> 0 | H106: =H105-H104 -> 0 | I106: 0
E108: Trips | F108: Car | G108: =IF($R$15=1,G$105*G120,G$106*T120) ->  | S108: =G95 ->  | T108: =H95 ->  | U108: =I95 -> 
F109: 2-wheeler | R109: km based | S109: =G96*G13 -> 0 | T109: =H96*H13 -> 0 | U109: =I96*I13 -> 0
F110: Taxi | R110: passenger based | S110: =G97*G105 -> 0 | T110: =H97*H105 -> 0 | U110: =I97*I105 -> 0
F111: =IF(F30="","",F30) ->  | R111: average | S111: =AVERAGE(S109:S110) -> 0 | T111: =AVERAGE(T109:T110) -> 0 | U111: 0
F112: =IF(F31="","",F31) -> 
F113: 3-wheeler | G113: =IF($R$15=1,G$105*G125,G$104*T125) -> 
F114: Bus
F115: Mini-bus
F116: =IF(F35="","",F35) -> 
F117: =IF(F36="","",F36) -> 
F118: TOTAL | G118: =SUM(G108:G117) ->  | H118: =SUM(H108:H117) ->  | T118: Revised
E120: Final Mode Shift | F120: =F108 -> Car | G120: =IF($R$15=1,G27,G108/G$118) ->  | O120: =F120 -> Car | P120: =G27 -> 0 | Q120: =H27 -> 0 | R120: 0 | T120: =P120/P$131 ->  | U120: =Q120/Q$131 ->  | V120: =R120/R$131 -> 
F121: =F109 -> 2-wheeler | O121: =F121 -> 2-wheeler | P121: =G28 -> 0 | Q121: 0 | R121: 0 | T121: =P121/P$131 -> 
F122: Taxi | O122: Taxi | P122: =G29 -> 0 | Q122: 0 | R122: 0
P123: =G30 -> 0 | Q123: 0 | R123: 0
P124: =G31 -> 0 | Q124: 0 | R124: 0
F125: 3-wheeler | O125: 3-wheeler | P125: =G32 -> 0 | Q125: 0 | R125: 0 | T125: =P125/P$132 ->  | U125: =Q125/Q$132 ->  | V125: =R125/R$132 -> 
F126: Bus | O126: Bus | P126: =G33 -> 0 | Q126: 0 | R126: 0 | T126: =P126/P$132 -> 
F127: Mini-bus | O127: Mini-bus | P127: =G34 -> 0 | Q127: 0 | R127: 0
P128: =G35 -> 0 | Q128: 0 | R128: 0
P129: =G36 -> 0 | Q129: 0 | R129: 0
F130: TOTAL | G130: =SUM(G120:G129) ->  | H130: =SUM(H120:H129) ->  | O130: Total | P130: =BM1 -> 0 | Q130: 0 | R130: 0
O131: Total Private | P131: =SUM(P120:P124) -> 0 | Q131: =SUM(Q120:Q124) -> 0 | R131: 0
G132: =G95 ->  | H132: =H95 ->  | I132: =I95 ->  | O132: Total Public | P132: =SUM(P125:P129) -> 0 | Q132: =SUM(Q125:Q129) -> 0 | R132: 0
F133: CO2 Reductions (tons) | G133: =S111 -> 0 | H133: =T111 -> 0 | I133: =U111 -> 0 | J133: =H133/56 -> 0
D607: 0 | E607: Not BRT
D608: 1 | E608: Not BRT
D609: 2 | E609: Not BRT
D610: 3 | E610: Not BRT
D611: 4 | E611: Not BRT
D612: 5 | E612: Not BRT
D613: 6 | E613: Not BRT
D614: 7 | E614: Not BRT
D615: 8 | E615: Not BRT
D616: 9 | E616: Not BRT
D617: 10 | E617: Not BRT
D618: 11 | E618: Not BRT
D619: 12 | E619: Not BRT
D620: 13 | E620: Not BRT
D621: 14 | E621: Not BRT
D622: 15 | E622: Not BRT
D623: 16 | E623: Not BRT
D624: 17 | E624: Not BRT
D625: 18 | E625: Not BRT
D626: 19 | E626: Not BRT
D627: 20 | E627: Not BRT
D628: 21 | E628: Not BRT
D629: 22 | E629: Not BRT
D630: 23 | E630: Not BRT
D631: 24 | E631: Not BRT
D632: 25 | E632: Not BRT
D633: 26 | E633: Not BRT
D634: 27 | E634: Not BRT
D635: 28 | E635: Not BRT
D636: 29 | E636: Not BRT
D637: 30 | E637: Not BRT
D638: 31 | E638: Not BRT
D639: 32 | E639: Not BRT
D640: 33 | E640: Not BRT
D641: 34 | E641: Not BRT
D642: 35 | E642: Not BRT
D643: 36 | E643: Not BRT
D644: 37 | E644: Not BRT
D645: 38 | E645: Not BRT
D646: 39 | E646: Not BRT
D647: 40 | E647: Not BRT
D648: 41 | E648: Not BRT
D649: 42 | E649: Not BRT
D650: 43 | E650: Not BRT
D651: 44 | E651: Not BRT
D652: 45 | E652: Not BRT
D653: 46 | E653: Not BRT
D654: 47 | E654: Not BRT
D655: 48 | E655: Not BRT
D656: 49 | E656: Not BRT
D657: 50 | E657: Bronze
D658: 51 | E658: Bronze
D659: 52 | E659: Bronze
D660: 53 | E660: Bronze
D661: 54 | E661: Bronze
D662: 55 | E662: Bronze
D663: 56 | E663: Bronze
D664: 57 | E664: Bronze
D665: 58 | E665: Bronze
D666: 59 | E666: Bronze
D667: 60 | E667: Bronze
D668: 61 | E668: Bronze
D669: 62 | E669: Bronze
D670: 63 | E670: Bronze
D671: 64 | E671: Bronze
D672: 65 | E672: Bronze
D673: 66 | E673: Bronze
D674: 67 | E674: Bronze
D675: 68 | E675: Bronze
D676: 69 | E676: Bronze
D677: 70 | E677: Silver
D678: 71 | E678: Silver
D679: 72 | E679: Silver
D680: 73 | E680: Silver
D681: 74 | E681: Silver
D682: 75 | E682: Silver
D683: 76 | E683: Silver
D684: 77 | E684: Silver
D685: 78 | E685: Silver
D686: 79 | E686: Silver
D687: 80 | E687: Silver
D688: 81 | E688: Silver
D689: 82 | E689: Silver
D690: 83 | E690: Silver
D691: 84 | E691: Silver
D692: 85 | E692: Gold
D693: 86 | E693: Gold
D694: 87 | E694: Gold
D695: 88 | E695: Gold
D696: 89 | E696: Gold
D697: 90 | E697: Gold
D698: 91 | E698: Gold
D699: 92 | E699: Gold
D700: 93 | E700: Gold
... 7 more rows

Sheet Full
C1: Full Model | AI1: Full Model
D8: Project Name:
D9: Location:
D10: Other Details:
D12: Base Year:
D13: Intermediate Year: | F13: =F12+9 -> 9
D14: Horizon Year: | F14: =F13+10 -> 19
D16: Days in Operation/year
F42: Cumulative Length of BRTS Constructed (km) | G42: =F12 -> 0 | H42: =F13 -> 9 | I42: =F14 -> 19 | N42: I have the ridership figures/day ('000). I would like to input it directly
N43: Ridership figures are not available.
N46: Direct Input ridership? | W46: Total Ridership ('000)/day | X46: =IF(Full!$N$47=1,Full!AM54,Full!G171) -> 0 | Y46: =IF(Full!$N$47=1,Full!AN54,Full!H171) -> 0 | Z46: =IF(Full!$N$47=1,Full!AO54,Full!I171) -> 0
F47: BRT Ridership | N47: =IF(F48=N42,1,0) -> 0 | S47: =G42 -> 0 | T47: =H42 -> 9 | U47: =I42 -> 19 | BL47: Ridership Estimator
F48: Ridership figures are not available.
AL50: Direct Input - Ridership | BL50: Existing public transport ridership in the corridor/day ('000s) | BM50: =AM53 -> 0 | BN50: =AN53 -> 9 | BO50: =AO53 -> 19
AL53: BRT Ridership - ('000)/day | AM53: =G42 -> 0 | AN53: =H42 -> 9 | AO53: =I42 -> 19 | BL53: Population growth rate | BM53: =CONCATENATE(BM50,"-",BM50+4) -> 0-4 | BN53: =CONCATENATE(BN50-4,"-",BN50) -> 5-9 | BO53: =CONCATENATE(BN50+1,"-",BO50-5) -> 10-14 | BP53: =CONCATENATE(BN50+6,"-",BO50) -> 15-19
BL54: Click here to see Population Growth Estimates for Brasil
AL56: Modeshift to BRT | AM56: =AM53 -> 0 | AN56: =AN53 -> 9 | AO56: =AO53 -> 19 | BL56: Mode share in the corridor if the BRT is not implemented | BM56: =BM50 -> 0 | BN56: =BN50 -> 9 | BO56: 19
AK57: private | AL57: Car | BK57: private | BL57: Car
AL58: 2-wheeler | BL58: 2-wheeler
AL59: Taxi | BL59: Taxi
AK62: public | AL62: 3-wheeler | BK62: public | BL62: 3-wheeler
AL63: Bus | BL63: Bus
AL64: Mini-bus | BL64: Mini-bus
AL67: TOTAL | AM67: =SUM(AM57:AM66) -> 0 | AN67: =SUM(AN57:AN66) -> 0 | AO67: 0 | BL67: TOTAL | BM67: =SUM(BM57:BM66) -> 0 | BN67: =SUM(BN57:BN66) -> 0 | BO67: 0
AL69: To proceed, please click the home button and move to the next section (BRT Scorecard) | BL69: To proceed, please click the home button and move to the next section
F107: BRT Scorecard (BROWSE OVER THE PARAMETERS TO SEE GUIDANCE ON HOW TO SCORE)
F108: Click here for BRT Standard write-up and Scoring Instructions
F109: Component | G109: Existing System | H109: BRT System | I109: Score per component | O109: =G109 -> Existing System | P109: =H109 -> BRT System | Q109: Speed Scaling Factor | T109: Year | U109: % Increase | V109: Ridership
F110: BRT Basics
F111: Dedicated right-of-way | I111: 8 | O111: =G111 -> 0 | P111: =H111 -> 0 | Q111: =IF(P111>0,10,0) -> 0 | S111: 1 | T111: =F12 -> 0 | U111: =$BM$54 -> 0 | V111: =BM51*1000 -> 0
F112: Busway Alignment | I112: 8 | O112: =G112 -> 0 | P112: =H112 -> 0 | Q112: =IF(P112>0,10,0) -> 0 | S112: 2 | T112: =T111+1 -> 1 | U112: =$BM$54 -> 0 | V112: =V111+(V111*U112) -> 0
F113: Off-board fare collection | I113: 8 | O113: 0 | P113: 0 | Q113: 0 | S113: 3 | T113: 2 | U113: =$BM$54 -> 0 | V113: 0
F114: Intersection treatments | I114: 7 | O114: 0 | P114: 0 | Q114: 0 | S114: 4 | T114: 3 | U114: =$BM$54 -> 0 | V114: 0
F115: Platform-level boarding | I115: 7 | O115: 0 | P115: 0 | Q115: 0 | S115: 5 | T115: 4 | U115: =$BM$54 -> 0 | V115: 0
F116: Service Planning | S116: 6 | T116: 5 | U116: =$BN$54 -> 0 | V116: 0
F117: Multiple routes | I117: 4 | O117: =G117 -> 0 | P117: =H117 -> 0 | Q117: =IF(P117>0,10,0) -> 0 | S117: 7 | T117: 6 | U117: 0 | V117: 0
F118: Express, limited and local services | I118: 3 | O118: 0 | P118: =H118 -> 0 | Q118: =IF(P118>0,10,0) -> 0 | S118: 8 | T118: 7 | U118: 0 | V118: 0
F119: Control center | I119: 3 | O119: 0 | P119: 0 | Q119: 0 | S119: 9 | T119: 8 | U119: 0 | V119: 0
F120: Located in top-ten corridors | I120: 2 | O120: 0 | P120: 0 | Q120: 0 | S120: 10 | T120: 9 | U120: 0 | V120: 0
F121: Demand Profile | I121: 3 | O121: 0 | P121: 0 | Q121: 0 | S121: 11 | T121: 10 | U121: =$BO$54 -> 0 | V121: 0
F122: Hours of Operation | I122: 2 | O122: 0 | P122: 0 | Q122: 0 | S122: 12 | T122: 11 | U122: =$BO$54 -> 0 | V122: 0
F123: Multi-corridor network | I123: 2 | O123: 0 | P123: 0 | Q123: 0 | S123: 13 | T123: 12 | U123: =$BO$54 -> 0 | V123: 0
F124: Infrastructure | S124: 14 | T124: 13 | U124: =$BO$54 -> 0 | V124: 0
F125: Passing lanes at stations | I125: 4 | O125: =G125 -> 0 | P125: =H125 -> 0 | Q125: =IF(P125>0,10,0) -> 0 | S125: 15 | T125: 14 | U125: =$BO$54 -> 0 | V125: 0
F126: Minimizing bus emissions | I126: 3 | O126: =G126 -> 0 | P126: =H126 -> 0 | Q126: =IF(P126>0,10,0) -> 0 | S126: 16 | T126: 15 | U126: =$BP$54 -> 0 | V126: 0
F127: Stations set back from intersections | I127: 3 | O127: 0 | P127: 0 | Q127: 0 | S127: 17 | T127: 16 | U127: =$BP$54 -> 0 | V127: 0
F128: Center stations | I128: 2 | O128: 0 | P128: 0 | Q128: 0 | S128: 18 | T128: 17 | U128: 0 | V128: 0
F129: Pavement quality | I129: 2 | O129: 0 | P129: 0 | Q129: 0 | S129: 19 | T129: 18 | U129: 0 | V129: 0
F130: Stations | S130: 20 | T130: 19 | U130: 0 | V130: 0
F131: Distance between stations | I131: 2 | O131: =G131 -> 0 | P131: =H131 -> 0 | Q131: =IF(P131>0,10,0) -> 0 | S131: 21 | T131: =T130+1 -> 20 | U131: 0 | V131: =V130+(V130*U131) -> 0
F132: Safe and comfortable stations | I132: 3 | O132: =G132 -> 0 | P132: =H132 -> 0 | Q132: =IF(P132>0,10,0) -> 0 | S132: 22 | T132: 21 | U132: 0 | V132: =V131+(V131*U132) -> 0
F133: Number of doors on bus | I133: 3 | O133: 0 | P133: 0 | Q133: 0
F134: Docking bays and sub-stops | I134: 1 | O134: 0 | P134: 0 | Q134: 0 | S134: Score before improvement | T134: =G155 -> 0
F135: Sliding doors in BRT stations | I135: 1 | O135: 0 | P135: 0 | Q135: 0 | S135: Score after improvement | T135: =H155 -> 0
F136: Communications | S136: Bonus
F137: Branding | I137: 3 | O137: =G137 -> 0 | P137: =H137 -> 0 | Q137: 0
F138: Passenger information | I138: 2 | O138: 0 | P138: 0 | Q138: 0
F139: Integration and Access
F140: Universal access | I140: 3 | O140: =G140 -> 0 | P140: =H140 -> 0 | Q140: 0
F141: Integration with other public transport | I141: 3 | O141: =G141 -> 0 | P141: =H141 -> 0 | Q141: 0
F142: Pedestrian access | I142: 3 | O142: 0 | P142: 0 | Q142: 0
F143: Secure bicycle parking | I143: 2 | O143: 0 | P143: 0 | Q143: 0
F144: Bicycle lanes | I144: 2 | O144: 0 | P144: 0 | Q144: 0
F145: Bicycle sharing integration | I145: 1 | O145: 0 | P145: 0 | Q145: 0
F146: Point Deduction
F147: Commercial speeds | I147: -10 | O147: =G147 -> 0 | P147: =H147 -> 0 | Q147: 0
F148: Peak passengers per hour per direction (pphpd) below 1,000 | I148: -5 | O148: =G148 -> 0 | P148: =H148 -> 0 | Q148: 0
F149: Lack of enforcement of right-of-way | I149: -5 | O149: 0 | P149: 0 | Q149: 0
F150: Significant gap between bus floor and station platform | I150: -5 | O150: 0 | P150: 0 | Q150: 0
F151: Overcrowding | I151: -5 | O151: 0 | P151: 0 | Q151: 0
F152: Poorly maintained busways, buses, stations, and technology systems | I152: -10 | O152: 0 | P152: 0 | Q152: 0
F153: Low Peak frequency | I153: -3 | O153: 0 | P153: 0 | Q153: 0
F154: Low Off-peak frequency | I154: -2 | O154: 0 | P154: 0 | Q154: 0
F155: TOTAL SCORE | G155: =IF(SUM(O110:O157)>0,SUM(O110:O157),0) -> 0 | H155: =IF(SUM(P110:P157)>0,SUM(P110:P157),0) -> 0 | I155: =(SUM(I111:I123)+SUM(I125:I129)+SUM(I131:I135)+SUM(I137:I138)+SUM(I140:I145)) -> 100 | Q155: =SUM(Q111:Q154)/100 -> 0
F156: ASSESSMENT | H156: =VLOOKUP(H155,E1612:H1712,4,FALSE) -> Not BRT
F157: Ridership Bonus Factor | H157: =IF((((H155-G155)*0.01/5)+1)>1,((H155-G155)*0.01/5)+1,1) -> 1
F161: Scaling factor for Land Use | G161: =H155/100 -> 0 | P161: =O161 -> 0 | Q161: =P161 -> 0
F162: Scaling Factor for demand | G162: =H157 -> 1 | P162: =O162 -> 0 | Q162: =P162 -> 0
F163: Maximum speed w/ optimal station stop distance | G163: =O163 -> 0 | O163: ='IF Factors'!E243 -> 0 | P163: ='IF Factors'!F243 -> 0 | Q163: ='IF Factors'!G243 -> 0
F164: Speed Scaling Factor | G164: =O164 -> 0 | O164: =Q155 -> 0 | P164: =O164 -> 0 | Q164: =P164 -> 0
F165: Projected Speed | G165: =O165 -> 0 | O165: =IF(S165>=$G$163,$G$163,S165) -> 0 | P165: =IF(T165>=$G$163,$G$163,T165) -> 0 | Q165: =IF(U165>=$G$163,$G$163,U165) -> 0 | S165: =IF((O163*O164)>15,O163*O164,15) -> 15 | T165: =IF((P163*P164)>15,P163*P164,15) -> 15 | U165: =IF((Q163*Q164)>15,Q163*Q164,15) -> 15
F166: Scaling factor for dissemination | G166: =IF(H155>80,G161,0) -> 0
F169: Ridership, Trips and Mode Shift | G169: =Full!F12 -> 0 | H169: =Full!F13 -> 9 | I169: =Full!F14 -> 19
E170: Ridership | F170: Ridership of Existing System | G170: =V111 -> 0 | H170: =V120 -> 0 | I170: =V130 -> 0 | O170: Ridership (thousands)
F171: Adjusted Ridership of BRT | G171: =IF($N$47=1,P171,P172) -> 0 | H171: =IF($N$47=1,Q171,Q172) -> 0 | I171: 0 | O171: Direct Input | P171: =Full!AM54*1000*$H$157 -> 0 | Q171: =Full!AN54*1000*$H$157 -> 0 | R171: =Full!AO54*1000*$H$157 -> 0
F172: New Riders to BRT | G172: =G171-G170 -> 0 | H172: =H171-H170 -> 0 | I172: 0 | O172: Calculated | P172: =G170*$H$157 -> 0 | Q172: =H170*$H$157 -> 0 | R172: =I170*$H$157 -> 0
E174: Trips | F174: Car | G174: =IF($N$47=1,G$171*G186,G$172*T186) ->  | O174: =IF($N$47=1,AL57,BL57) -> Car
F175: 2-wheeler | O175: =IF($N$47=1,AL58,BL58) -> 2-wheeler
F176: Taxi | O176: Taxi
F177: =IF(O177=0,"",O177) ->  | O177: 0
F178: =IF(O178=0,"",O178) ->  | O178: 0
F179: 3-wheeler | G179: =IF($N$47=1,G$171*G191,G$170*T191) ->  | O179: 3-wheeler
F180: Bus | O180: Bus
F181: Mini-bus | O181: Mini-bus
F182: =IF(O182=0,"",O182) ->  | O182: 0
F183: =IF(O183=0,"",O183) ->  | O183: 0
F184: TOTAL | G184: =SUM(G174:G183) ->  | H184: =SUM(H174:H183) ->  | I184: =SUM(I174:I183) ->  | J184: =G171*2 -> 0 | T184: Revised
E186: Final Mode Shift | F186: =F174 -> Car | G186: =IF($N$47=1,AM57,G174/G$184) ->  | H186: =IF($N$47=1,AN57,H174/H$184) ->  | I186: =IF($N$47=1,AO57,I174/I$184) ->  | O186: =F186 -> Car | P186: =BM57 -> 0 | Q186: =BN57 -> 0 | R186: 0 | T186: =P186/P$197 ->  | U186: =Q186/Q$197 -> 
F187: =F175 -> 2-wheeler | O187: =F187 -> 2-wheeler | P187: =BM58 -> 0 | Q187: 0 | R187: 0 | T187: =P187/P$197 -> 
F188: Taxi | O188: Taxi | P188: =BM59 -> 0 | Q188: 0 | R188: 0
P189: =BM60 -> 0 | Q189: 0 | R189: 0
P190: =BM61 -> 0 | Q190: 0 | R190: 0
F191: 3-wheeler | O191: 3-wheeler | P191: =BM62 -> 0 | Q191: 0 | R191: 0 | T191: =P191/P$198 ->  | U191: =Q191/Q$198 ->  | V191: =R191/R$198 -> 
F192: Bus | O192: Bus | P192: =BM63 -> 0 | Q192: 0 | R192: 0 | T192: =P192/P$198 -> 
F193: Mini-bus | O193: Mini-bus | P193: =BM64 -> 0 | Q193: 0 | R193: 0
P194: =BM65 -> 0 | Q194: 0 | R194: 0
P195: =BM66 -> 0 | Q195: 0 | R195: 0
F196: TOTAL | G196: =SUM(G186:G195) ->  | H196: =SUM(H186:H195) ->  | I196: =SUM(I186:I195) ->  | O196: Total | P196: =BM67 -> 0 | Q196: 0 | R196: 0
O197: Total Private | P197: =SUM(P186:P190) -> 0 | Q197: =SUM(Q186:Q190) -> 0 | R197: 0
O198: Total Public | P198: =SUM(P191:P195) -> 0 | Q198: =SUM(Q191:Q195) -> 0 | R198: 0
F215: Construction
G216: Quantity (tons/kilometer) | J216: (tonCO2/ ton of material)
G218: =G42 -> 0 | H218: =H42 -> 9 | I218: 19 | J218: =G218 -> 0
F219: Cement | G219: 737.8 | H219: 737.8 | I219: 737.8 | J219: 0.99 | O219: 0.99 | P219: 0.99 | Q219: 0.99
F220: Bitumen | G220: 403.5 | H220: 403.5 | I220: 403.5 | J220: 0.03 | O220: 0.03 | P220: 0.03 | Q220: 0.03
F221: Steel | G221: 143.2 | H221: 143.2 | I221: 143.2 | J221: 2.5 | O221: 2.5 | P221: 2.5 | Q221: 2.5
G279: Gasoline | H279: ='IF Factors'!F8 -> Diesel | I279: ='IF Factors'!G8 -> LPG | J279: ='IF Factors'!H8 -> CNG | K279: ='IF Factors'!I8 -> Electric | L279: =IF('IF Factors'!J8="","",'IF Factors'!J8) -> Ethanol
F280: unit of consumption | G280: =IF('IF Factors'!E22="","",'IF Factors'!E22) -> liter | H280: =IF('IF Factors'!F22="","",'IF Factors'!F22) -> liter | I280: =IF('IF Factors'!G22="","",'IF Factors'!G22) -> liter | J280: =IF('IF Factors'!H22="","",'IF Factors'!H22) -> kg | K280: =IF('IF Factors'!I22="","",'IF Factors'!I22) -> kwh | L280: =IF('IF Factors'!J22="","",'IF Factors'!J22) -> liter
F281: price/unit (USD)
F283: Project Construction Cost (USD)
F284: Cost of CO2 (USD)/Ton
F285: Cost of PM (USD)/ton
F286: Cost of Nox (USD)/ton
F287: Cost of Time (USD/hour)
F288: Cost of fatality (USD/person)
F289: Cost of Injury (USD/person)
F290: Annual inflation (%)
F291: Discount Rate (%)
F292: Annual Maintenance (% of construction)
F332: Land Use Impact Factor | G332: 1
F552: Factors used for the calculation of savings from fatality reduction
F554: Traffic Fatality rates
F555: (per billion km) | G555: 2000 | H555: 2010 | I555: 2020 | J555: 2030 | K555: 2040 | L555: 2050
F556: OECD Regions - Reference Case | G556: 19.6 | H556: 12.3 | I556: 7.5 | J556: 4.6 | K556: 2.8 | L556: 1.7
F557: Non OECD Regions - Reference Case | G557: 251.4 | H557: 193.6 | I557: 141.2 | J557: 99.6 | K557: 66.6 | L557: 44
F558: City Traffic Fatality rates (per billion vehicle km) | G558: =G557 -> 251.4 | H558: 193.6 | I558: 141.2 | J558: 99.6 | K558: 66.6 | L558: 44
F559: Growth rate | H559: =(((H558/G558)^(1/(H555-G555)))-1)*100 -> -2.578680391 | I559: =(((I558/H558)^(1/(I555-H555)))-1)*100 -> -3.106881389 | J559: =(((J558/I558)^(1/(J555-I555)))-1)*100 -> -3.429948242 | K559: =(((K558/J558)^(1/(K555-J555)))-1)*100 -> -3.94466542 | L559: =(((L558/K558)^(1/(L555-K555)))-1)*100 -> -4.060412968
F560: Growth rate % | H560: =H559/100 -> -0.02578680391 | I560: =I559/100 -> -0.03106881389 | J560: -0.03429948242 | K560: -0.0394466542 | L560: -0.04060412968
F561: Source: Koornstra Reference Model as proposed in SMP
E1612: 0 | H1612: Not BRT
E1613: 1 | H1613: Not BRT
E1614: 2 | H1614: Not BRT
E1615: 3 | H1615: Not BRT
E1616: 4 | H1616: Not BRT
E1617: 5 | H1617: Not BRT
E1618: 6 | H1618: Not BRT
E1619: 7 | H1619: Not BRT
E1620: 8 | H1620: Not BRT
E1621: 9 | H1621: Not BRT
E1622: 10 | H1622: Not BRT
E1623: 11 | H1623: Not BRT
E1624: 12 | H1624: Not BRT
E1625: 13 | H1625: Not BRT
E1626: 14 | H1626: Not BRT
E1627: 15 | H1627: Not BRT
E1628: 16 | H1628: Not BRT
E1629: 17 | H1629: Not BRT
E1630: 18 | H1630: Not BRT
E1631: 19 | H1631: Not BRT
E1632: 20 | H1632: Not BRT
E1633: 21 | H1633: Not BRT
E1634: 22 | H1634: Not BRT
E1635: 23 | H1635: Not BRT
E1636: 24 | H1636: Not BRT
E1637: 25 | H1637: Not BRT
E1638: 26 | H1638: Not BRT
E1639: 27 | H1639: Not BRT
E1640: 28 | H1640: Not BRT
E1641: 29 | H1641: Not BRT
E1642: 30 | H1642: Not BRT
E1643: 31 | H1643: Not BRT
E1644: 32 | H1644: Not BRT
E1645: 33 | H1645: Not BRT
E1646: 34 | H1646: Not BRT
E1647: 35 | H1647: Not BRT
E1648: 36 | H1648: Not BRT
E1649: 37 | H1649: Not BRT
E1650: 38 | H1650: Not BRT
E1651: 39 | H1651: Not BRT
E1652: 40 | H1652: Not BRT
E1653: 41 | H1653: Not BRT
E1654: 42 | H1654: Not BRT
E1655: 43 | H1655: Not BRT
E1656: 44 | H1656: Not BRT
E1657: 45 | H1657: Not BRT
E1658: 46 | H1658: Not BRT
E1659: 47 | H1659: Not BRT
E1660: 48 | H1660: Not BRT
E1661: 49 | H1661: Not BRT
E1662: 50 | H1662: Bronze
E1663: 51 | H1663: Bronze
E1664: 52 | H1664: Bronze
E1665: 53 | H1665: Bronze
E1666: 54 | H1666: Bronze
E1667: 55 | H1667: Bronze
E1668: 56 | H1668: Bronze
E1669: 57 | H1669: Bronze
E1670: 58 | H1670: Bronze
E1671: 59 | H1671: Bronze
E1672: 60 | H1672: Bronze
... 40 more rows

Sheet IF Factors
D1: Full Model | AD1: Activity, Intensity and Emission Factors
BD2: Activity, Intensity and Emission Factors | CE2: Activity, Intensity and Emission Factors
D6: Fuel Type (%)
D7: Vehicle Type | E7: ='IF Factors'!E29 -> Base Year | L7: ='IF Factors'!J29 -> 9 | S7: ='IF Factors'!O29 -> 19
E8: Petrol | F8: Diesel | G8: LPG | H8: CNG | I8: Electric | J8: Ethanol | K8: sum | L8: Petrol | M8: Diesel | N8: LPG | O8: CNG | P8: Electric | Q8: Ethanol | R8: sum | S8: Petrol | T8: Diesel | U8: LPG | V8: CNG | W8: Electric | X8: Ethanol | Y8: sum
B9: No Project | C9: Private | D9: =Full!F174 -> Car | K9: =SUM(E9:J9) -> 0 | R9: =SUM(L9:Q9) -> 0 | Y9: =SUM(S9:X9) -> 0
D10: =Full!F175 -> 2-wheeler | K10: =SUM(E10:J10) -> 0 | R10: =SUM(L10:Q10) -> 0 | Y10: =SUM(S10:X10) -> 0
D11: =Full!F176 -> Taxi | K11: 0 | R11: 0 | Y11: 0
D12: =Full!F177 ->  | K12: 0 | R12: 0 | Y12: 0
D13: =Full!F178 ->  | K13: 0 | R13: 0 | Y13: 0
C14: Public | D14: =Full!F179 -> 3-wheeler | K14: 0 | R14: 0 | Y14: 0
D15: =Full!F180 -> Bus | K15: 0 | R15: 0 | Y15: 0
D16: =Full!F181 -> Mini-bus | K16: 0 | R16: 0 | Y16: 0
D17: =Full!F182 ->  | K17: 0 | R17: 0 | Y17: 0
D18: =Full!F183 ->  | K18: 0 | R18: 0 | Y18: 0
C19: BRT | K19: 0 | R19: 0 | Y19: 0
E21: =E8 -> Petrol | F21: =F8 -> Diesel | G21: LPG | H21: CNG | I21: Electric | J21: =IF(J8="","",J8) -> Ethanol
D22: unit of consumption | E22: liter | F22: liter | G22: liter | H22: kg | I22: kwh | J22: liter
D28: Technology Split (%) - Gasoline | AD28: PM Emission Factor (g/vkm) - Gasoline | BE28: Nox Emission Factor (g/vkm) - Gasoline | CF28: =CONCATENATE("CO2 Emission Factor - Gasoline - (kg/",E22,")") -> CO2 Emission Factor - Gasoline - (kg/liter)
D29: Vehicle Type | E29: ='IF Factors'!E231 -> Base Year | J29: ='IF Factors'!F231 -> 9 | O29: ='IF Factors'!G231 -> 19 | AD29: Vehicle Type | AE29: =E29 -> Base Year | AJ29: =J29 -> 9 | AO29: =O29 -> 19 | BE29: Vehicle Type | BF29: =AE29 -> Base Year | BK29: =AJ29 -> 9 | BP29: =AO29 -> 19 | CF29: Vehicle Type | CG29: =BF29 -> Base Year | CL29: =BK29 -> 9 | CQ29: =BP29 -> 19
E30: Pre-Euro IV | F30: Euro IV | G30: Euro V | H30: Euro VI | I30: sum | J30: =E30 -> Pre-Euro IV | K30: =F30 -> Euro IV | L30: Euro V | M30: Euro VI | N30: sum | O30: =J30 -> Pre-Euro IV | P30: Euro IV | Q30: Euro V | R30: Euro VI | S30: sum | AE30: =E30 -> Pre-Euro IV | AF30: =F30 -> Euro IV | AG30: Euro V | AH30: Euro VI | AI30: Average | AJ30: =J30 -> Pre-Euro IV | AK30: =K30 -> Euro IV | AL30: =L30 -> Euro V | AM30: =M30 -> Euro VI | AN30: Average | AO30: =O30 -> Pre-Euro IV | AP30: =P30 -> Euro IV | AQ30: =Q30 -> Euro V | AR30: =R30 -> Euro VI | AS30: Average | BF30: =AE30 -> Pre-Euro IV | BG30: Euro IV | BH30: Euro V | BI30: Euro VI | BJ30: Average | BK30: =AJ30 -> Pre-Euro IV | BL30: Euro IV | BM30: Euro V | BN30: Euro VI | BO30: Average | BP30: =AO30 -> Pre-Euro IV | BQ30: Euro IV | BR30: Euro V | BS30: Euro VI | BT30: Average | CG30: =BF30 -> Pre-Euro IV | CH30: =BG30 -> Euro IV | CI30: Euro V | CJ30: Euro VI | CK30: Average | CL30: =BK30 -> Pre-Euro IV | CM30: =BL30 -> Euro IV | CN30: =BM30 -> Euro V | CO30: =BN30 -> Euro VI | CP30: Average | CQ30: =BP30 -> Pre-Euro IV | CR30: =BQ30 -> Euro IV | CS30: =BR30 -> Euro V | CT30: =BS30 -> Euro VI | CU30: Average
B31: No Project | C31: Private | D31: =D9 -> Car | I31: =SUM(E31:H31) -> 0 | N31: =SUM(J31:M31) -> 0 | S31: =SUM(O31:R31) -> 0 | AC31: Private | AD31: =D31 -> Car | AI31: =(E31*AE31)+(F31*AF31)+(G31*AG31)+(H31*AH31) -> 0 | AN31: =(J31*AJ31)+(K31*AK31)+(L31*AL31)+(M31*AM31) -> 0 | AS31: =(O31*AO31)+(P31*AP31)+(Q31*AQ31)+(R31*AR31) -> 0 | BD31: Private | BE31: =AD31 -> Car | BJ31: =(E31*BF31)+(F31*BG31)+(G31*BH31)+(H31*BI31) -> 0 | BO31: =(J31*BK31)+(K31*BL31)+(L31*BM31)+(M31*BN31) -> 0 | BT31: =(O31*BP31)+(P31*BQ31)+(Q31*BR31)+(R31*BS31) -> 0 | CE31: Private | CF31: =BE31 -> Car | CK31: =(E31*CG31)+(F31*CH31)+(G31*CI31)+(H31*CJ31) -> 0 | CP31: =(J31*CL31)+(K31*CM31)+(L31*CN31)+(M31*CO31) -> 0 | CU31: =(O31*CQ31)+(P31*CR31)+(Q31*CS31)+(R31*CT31) -> 0
D32: =D10 -> 2-wheeler | I32: 0 | N32: 0 | S32: 0 | AD32: =D32 -> 2-wheeler | AI32: =(E32*AE32)+(F32*AF32)+(G32*AG32)+(H32*AH32) -> 0 | AN32: =(J32*AJ32)+(K32*AK32)+(L32*AL32)+(M32*AM32) -> 0 | AS32: =(O32*AO32)+(P32*AP32)+(Q32*AQ32)+(R32*AR32) -> 0 | BE32: =AD32 -> 2-wheeler | BJ32: =(E32*BF32)+(F32*BG32)+(G32*BH32)+(H32*BI32) -> 0 | BO32: =(J32*BK32)+(K32*BL32)+(L32*BM32)+(M32*BN32) -> 0 | BT32: =(O32*BP32)+(P32*BQ32)+(Q32*BR32)+(R32*BS32) -> 0 | CF32: =BE32 -> 2-wheeler | CK32: =(E32*CG32)+(F32*CH32)+(G32*CI32)+(H32*CJ32) -> 0 | CP32: =(J32*CL32)+(K32*CM32)+(L32*CN32)+(M32*CO32) -> 0 | CU32: =(O32*CQ32)+(P32*CR32)+(Q32*CS32)+(R32*CT32) -> 0
D33: Taxi | I33: 0 | N33: 0 | S33: 0 | AD33: Taxi | AI33: 0 | AN33: 0 | AS33: 0 | BE33: Taxi | BJ33: 0 | BO33: 0 | BT33: 0 | CF33: Taxi | CK33: 0 | CP33: 0 | CU33: 0
I34: 0 | N34: 0 | S34: 0 | AI34: 0 | AN34: 0 | AS34: 0 | BJ34: 0 | BO34: 0 | BT34: 0 | CK34: 0 | CP34: 0 | CU34: 0
I35: 0 | N35: 0 | S35: 0 | AI35: 0 | AN35: 0 | AS35: 0 | BJ35: 0 | BO35: 0 | BT35: 0 | CK35: 0 | CP35: 0 | CU35: 0
C36: Public | D36: 3-wheeler | I36: 0 | N36: 0 | S36: 0 | AC36: Public | AD36: 3-wheeler | AI36: 0 | AN36: 0 | AS36: 0 | BD36: Public | BE36: 3-wheeler | BJ36: 0 | BO36: 0 | BT36: 0 | CE36: Public | CF36: 3-wheeler | CK36: 0 | CP36: 0 | CU36: 0
D37: Bus | I37: 0 | N37: 0 | S37: 0 | AD37: Bus | AI37: 0 | AN37: 0 | AS37: 0 | BE37: Bus | BJ37: 0 | BO37: 0 | BT37: 0 | CF37: Bus | CK37: 0 | CP37: 0 | CU37: 0
D38: Mini-bus | I38: 0 | N38: 0 | S38: 0 | AD38: Mini-bus | AI38: 0 | AN38: 0 | AS38: 0 | BE38: Mini-bus | BJ38: 0 | BO38: 0 | BT38: 0 | CF38: Mini-bus | CK38: 0 | CP38: 0 | CU38: 0
I39: 0 | N39: 0 | S39: 0 | AI39: 0 | AN39: 0 | AS39: 0 | BJ39: 0 | BO39: 0 | BT39: 0 | CK39: 0 | CP39: 0 | CU39: 0
I40: 0 | N40: 0 | S40: 0 | AI40: 0 | AN40: 0 | AS40: 0 | BJ40: 0 | BO40: 0 | BT40: 0 | CK40: 0 | CP40: 0 | CU40: 0
C41: =$C$19 -> BRT | D41: =C19 -> BRT | I41: 0 | N41: 0 | S41: 0 | AD41: =$D$41 -> BRT | AI41: 0 | AN41: 0 | AS41: 0 | BE41: BRT | BJ41: 0 | BO41: 0 | BT41: 0 | CF41: BRT | CK41: 0 | CP41: 0 | CU41: 0
D43: Technology Split (%) - Diesel | AD43: PM Emission Factor (g/vkm) - Diesel | BE43: NOx Emission Factor (g/vkm) - Diesel | CF43: =CONCATENATE("CO2 Emission Factor - Diesel - (kg/",F22,")") -> CO2 Emission Factor - Diesel - (kg/liter)
D44: Vehicle Type | E44: =E29 -> Base Year | J44: =J29 -> 9 | O44: =O29 -> 19 | AD44: Vehicle Type | AE44: =E44 -> Base Year | AJ44: =J44 -> 9 | AO44: =O44 -> 19 | BE44: Vehicle Type | BF44: =BF29 -> Base Year | BK44: =BK29 -> 9 | BP44: =BP29 -> 19 | CF44: Vehicle Type | CG44: =CG29 -> Base Year | CL44: =CL29 -> 9 | CQ44: =CQ29 -> 19
E45: =E30 -> Pre-Euro IV | F45: =F30 -> Euro IV | G45: Euro V | H45: Euro VI | I45: sum | J45: =J30 -> Pre-Euro IV | K45: Euro IV | L45: Euro V | M45: Euro VI | N45: sum | O45: =O30 -> Pre-Euro IV | P45: Euro IV | Q45: Euro V | R45: Euro VI | S45: sum | AE45: =AE30 -> Pre-Euro IV | AF45: =AF30 -> Euro IV | AG45: Euro V | AH45: Euro VI | AI45: Average | AJ45: Pre-Euro IV | AK45: Euro IV | AL45: Euro V | AM45: Euro VI | AN45: Average | AO45: Pre-Euro IV | AP45: Euro IV | AQ45: Euro V | AR45: Euro VI | AS45: Average | BF45: =AE45 -> Pre-Euro IV | BG45: =AF45 -> Euro IV | BH45: =AG45 -> Euro V | BI45: =AH45 -> Euro VI | BJ45: =AI45 -> Average | BK45: =AJ45 -> Pre-Euro IV | BL45: =AK45 -> Euro IV | BM45: =AL45 -> Euro V | BN45: =AM45 -> Euro VI | BO45: =AN45 -> Average | BP45: =AO45 -> Pre-Euro IV | BQ45: =AP45 -> Euro IV | BR45: =AQ45 -> Euro V | BS45: =AR45 -> Euro VI | BT45: =AS45 -> Average | CG45: =CG30 -> Pre-Euro IV | CH45: =CH30 -> Euro IV | CI45: Euro V | CJ45: Euro VI | CK45: Average | CL45: Pre-Euro IV | CM45: Euro IV | CN45: Euro V | CO45: Euro VI | CP45: Average | CQ45: Pre-Euro IV | CR45: Euro IV | CS45: Euro V | CT45: Euro VI | CU45: Average
B46: No Project | C46: Private | D46: =D31 -> Car | I46: =SUM(E46:H46) -> 0 | N46: =SUM(J46:M46) -> 0 | S46: =SUM(O46:R46) -> 0 | AC46: Private | AD46: =D46 -> Car | AI46: =(E46*AE46)+(F46*AF46)+(G46*AG46)+(H46*AH46) -> 0 | AN46: =(J46*AJ46)+(K46*AK46)+(L46*AL46)+(M46*AM46) -> 0 | AS46: =(O46*AO46)+(P46*AP46)+(Q46*AQ46)+(R46*AR46) -> 0 | BD46: Private | BE46: =AD46 -> Car | BJ46: =(E46*BF46)+(F46*BG46)+(G46*BH46)+(H46*BI46) -> 0 | BO46: =(J46*BK46)+(K46*BL46)+(L46*BM46)+(M46*BN46) -> 0 | BT46: =(O46*BP46)+(P46*BQ46)+(Q46*BR46)+(R46*BS46) -> 0 | CE46: Private | CF46: =BE46 -> Car | CK46: =(E46*CG46)+(F46*CH46)+(G46*CI46)+(H46*CJ46) -> 0 | CP46: =(J46*CL46)+(K46*CM46)+(L46*CN46)+(M46*CO46) -> 0 | CU46: =(O46*CQ46)+(P46*CR46)+(Q46*CS46)+(R46*CT46) -> 0
D47: =D32 -> 2-wheeler | I47: 0 | N47: 0 | S47: 0 | AD47: =D47 -> 2-wheeler | AI47: =(E47*AE47)+(F47*AF47)+(G47*AG47)+(H47*AH47) -> 0 | AN47: =(J47*AJ47)+(K47*AK47)+(L47*AL47)+(M47*AM47) -> 0 | AS47: =(O47*AO47)+(P47*AP47)+(Q47*AQ47)+(R47*AR47) -> 0 | BE47: =AD47 -> 2-wheeler | BJ47: =(E47*BF47)+(F47*BG47)+(G47*BH47)+(H47*BI47) -> 0 | BO47: =(J47*BK47)+(K47*BL47)+(L47*BM47)+(M47*BN47) -> 0 | BT47: =(O47*BP47)+(P47*BQ47)+(Q47*BR47)+(R47*BS47) -> 0 | CF47: =BE47 -> 2-wheeler | CK47: =(E47*CG47)+(F47*CH47)+(G47*CI47)+(H47*CJ47) -> 0 | CP47: =(J47*CL47)+(K47*CM47)+(L47*CN47)+(M47*CO47) -> 0 | CU47: =(O47*CQ47)+(P47*CR47)+(Q47*CS47)+(R47*CT47) -> 0
D48: Taxi | I48: 0 | N48: 0 | S48: 0 | AD48: Taxi | AI48: 0 | AN48: 0 | AS48: 0 | BE48: Taxi | BJ48: 0 | BO48: 0 | BT48: 0 | CF48: Taxi | CK48: 0 | CP48: 0 | CU48: 0
I49: 0 | N49: 0 | S49: 0 | AI49: 0 | AN49: 0 | AS49: 0 | BJ49: 0 | BO49: 0 | BT49: 0 | CK49: 0 | CP49: 0 | CU49: 0
I50: 0 | N50: 0 | S50: 0 | AI50: 0 | AN50: 0 | AS50: 0 | BJ50: 0 | BO50: 0 | BT50: 0 | CK50: 0 | CP50: 0 | CU50: 0
C51: Public | D51: 3-wheeler | I51: 0 | N51: 0 | S51: 0 | AC51: Public | AD51: 3-wheeler | AI51: 0 | AN51: 0 | AS51: 0 | BD51: Public | BE51: 3-wheeler | BJ51: 0 | BO51: 0 | BT51: 0 | CE51: Public | CF51: 3-wheeler | CK51: 0 | CP51: 0 | CU51: 0
D52: Bus | I52: 0 | N52: 0 | S52: 0 | AD52: Bus | AI52: 0 | AN52: 0 | AS52: 0 | BE52: Bus | BJ52: 0 | BO52: 0 | BT52: 0 | CF52: Bus | CK52: 0 | CP52: 0 | CU52: 0
D53: Mini-bus | I53: 0 | N53: 0 | S53: 0 | AD53: Mini-bus | AI53: 0 | AN53: 0 | AS53: 0 | BE53: Mini-bus | BJ53: 0 | BO53: 0 | BT53: 0 | CF53: Mini-bus | CK53: 0 | CP53: 0 | CU53: 0
I54: 0 | N54: 0 | S54: 0 | AI54: 0 | AN54: 0 | AS54: 0 | BJ54: 0 | BO54: 0 | BT54: 0 | CK54: 0 | CP54: 0 | CU54: 0
I55: 0 | N55: 0 | S55: 0 | AI55: 0 | AN55: 0 | AS55: 0 | BJ55: 0 | BO55: 0 | BT55: 0 | CK55: 0 | CP55: 0 | CU55: 0
C56: =$C$19 -> BRT | D56: =C34 -> 0 | I56: 0 | N56: 0 | S56: 0 | AD56: =$D$41 -> BRT | AI56: 0 | AN56: 0 | AS56: 0 | BE56: BRT | BJ56: 0 | BO56: 0 | BT56: 0 | CF56: BRT | CK56: 0 | CP56: 0 | CU56: 0
D58: Technology Split (%) - LPG | AD58: PM Emission Factor (g/vkm) - LPG | BE58: NOx Emission Factor (g/vkm) - LPG | CF58: =CONCATENATE("CO2 Emission Factor - LPG - (kg/",G22,")") -> CO2 Emission Factor - LPG - (kg/liter)
D59: Vehicle Type | E59: =E44 -> Base Year | J59: =J44 -> 9 | O59: =O44 -> 19 | AD59: Vehicle Type | AE59: =E59 -> Base Year | AJ59: =J59 -> 9 | AO59: =O59 -> 19 | BE59: Vehicle Type | BF59: =BF44 -> Base Year | BK59: =BK44 -> 9 | BP59: =BP44 -> 19 | CF59: Vehicle Type | CG59: =CG44 -> Base Year | CL59: =CL44 -> 9 | CQ59: =CQ44 -> 19
E60: =E45 -> Pre-Euro IV | F60: =F45 -> Euro IV | G60: Euro V | H60: Euro VI | I60: sum | J60: =J45 -> Pre-Euro IV | K60: Euro IV | L60: Euro V | M60: Euro VI | N60: sum | O60: =O45 -> Pre-Euro IV | P60: Euro IV | Q60: Euro V | R60: Euro VI | S60: sum | AE60: =AE45 -> Pre-Euro IV | AF60: =AF45 -> Euro IV | AG60: Euro V | AH60: Euro VI | AI60: Average | AJ60: Pre-Euro IV | AK60: Euro IV | AL60: Euro V | AM60: Euro VI | AN60: Average | AO60: Pre-Euro IV | AP60: Euro IV | AQ60: Euro V | AR60: Euro VI | AS60: Average | BF60: =AE60 -> Pre-Euro IV | BG60: =AF60 -> Euro IV | BH60: =AG60 -> Euro V | BI60: =AH60 -> Euro VI | BJ60: =AI60 -> Average | BK60: =AJ60 -> Pre-Euro IV | BL60: =AK60 -> Euro IV | BM60: =AL60 -> Euro V | BN60: =AM60 -> Euro VI | BO60: =AN60 -> Average | BP60: =AO60 -> Pre-Euro IV | BQ60: =AP60 -> Euro IV | BR60: =AQ60 -> Euro V | BS60: =AR60 -> Euro VI | BT60: =AS60 -> Average | CG60: =CG45 -> Pre-Euro IV | CH60: =CH45 -> Euro IV | CI60: Euro V | CJ60: Euro VI | CK60: Average | CL60: Pre-Euro IV | CM60: Euro IV | CN60: Euro V | CO60: Euro VI | CP60: Average | CQ60: Pre-Euro IV | CR60: Euro IV | CS60: Euro V | CT60: Euro VI | CU60: Average
B61: No Project | C61: Private | D61: =D46 -> Car | I61: =SUM(E61:H61) -> 0 | N61: =SUM(J61:M61) -> 0 | S61: =SUM(O61:R61) -> 0 | AC61: Private | AD61: =D61 -> Car | AI61: =(E61*AE61)+(F61*AF61)+(G61*AG61)+(H61*AH61) -> 0 | AN61: =(J61*AJ61)+(K61*AK61)+(L61*AL61)+(M61*AM61) -> 0 | AS61: =(O61*AO61)+(P61*AP61)+(Q61*AQ61)+(R61*AR61) -> 0 | BD61: Private | BE61: =AD61 -> Car | BJ61: =(E61*BF61)+(F61*BG61)+(G61*BH61)+(H61*BI61) -> 0 | BO61: =(J61*BK61)+(K61*BL61)+(L61*BM61)+(M61*BN61) -> 0 | BT61: =(O61*BP61)+(P61*BQ61)+(Q61*BR61)+(R61*BS61) -> 0 | CE61: Private | CF61: =BE61 -> Car | CK61: =(E61*CG61)+(F61*CH61)+(G61*CI61)+(H61*CJ61) -> 0 | CP61: =(J61*CL61)+(K61*CM61)+(L61*CN61)+(M61*CO61) -> 0 | CU61: =(O61*CQ61)+(P61*CR61)+(Q61*CS61)+(R61*CT61) -> 0
D62: =D47 -> 2-wheeler | I62: 0 | N62: 0 | S62: 0 | AD62: =D62 -> 2-wheeler | AI62: =(E62*AE62)+(F62*AF62)+(G62*AG62)+(H62*AH62) -> 0 | AN62: =(J62*AJ62)+(K62*AK62)+(L62*AL62)+(M62*AM62) -> 0 | AS62: =(O62*AO62)+(P62*AP62)+(Q62*AQ62)+(R62*AR62) -> 0 | BE62: =AD62 -> 2-wheeler | BJ62: =(E62*BF62)+(F62*BG62)+(G62*BH62)+(H62*BI62) -> 0 | BO62: =(J62*BK62)+(K62*BL62)+(L62*BM62)+(M62*BN62) -> 0 | BT62: =(O62*BP62)+(P62*BQ62)+(Q62*BR62)+(R62*BS62) -> 0 | CF62: =BE62 -> 2-wheeler | CK62: =(E62*CG62)+(F62*CH62)+(G62*CI62)+(H62*CJ62) -> 0 | CP62: =(J62*CL62)+(K62*CM62)+(L62*CN62)+(M62*CO62) -> 0 | CU62: =(O62*CQ62)+(P62*CR62)+(Q62*CS62)+(R62*CT62) -> 0
D63: Taxi | I63: 0 | N63: 0 | S63: 0 | AD63: Taxi | AI63: 0 | AN63: 0 | AS63: 0 | BE63: Taxi | BJ63: 0 | BO63: 0 | BT63: 0 | CF63: Taxi | CK63: 0 | CP63: 0 | CU63: 0
I64: 0 | N64: 0 | S64: 0 | AI64: 0 | AN64: 0 | AS64: 0 | BJ64: 0 | BO64: 0 | BT64: 0 | CK64: 0 | CP64: 0 | CU64: 0
I65: 0 | N65: 0 | S65: 0 | AI65: 0 | AN65: 0 | AS65: 0 | BJ65: 0 | BO65: 0 | BT65: 0 | CK65: 0 | CP65: 0 | CU65: 0
C66: Public | D66: 3-wheeler | I66: 0 | N66: 0 | S66: 0 | AC66: Public | AD66: 3-wheeler | AI66: 0 | AN66: 0 | AS66: 0 | BD66: Public | BE66: 3-wheeler | BJ66: 0 | BO66: 0 | BT66: 0 | CE66: Public | CF66: 3-wheeler | CK66: 0 | CP66: 0 | CU66: 0
D67: Bus | I67: 0 | N67: 0 | S67: 0 | AD67: Bus | AI67: 0 | AN67: 0 | AS67: 0 | BE67: Bus | BJ67: 0 | BO67: 0 | BT67: 0 | CF67: Bus | CK67: 0 | CP67: 0 | CU67: 0
D68: Mini-bus | I68: 0 | N68: 0 | S68: 0 | AD68: Mini-bus | AI68: 0 | AN68: 0 | AS68: 0 | BE68: Mini-bus | BJ68: 0 | BO68: 0 | BT68: 0 | CF68: Mini-bus | CK68: 0 | CP68: 0 | CU68: 0
I69: 0 | N69: 0 | S69: 0 | AI69: 0 | AN69: 0 | AS69: 0 | BJ69: 0 | BO69: 0 | BT69: 0 | CK69: 0 | CP69: 0 | CU69: 0
I70: 0 | N70: 0 | S70: 0 | AI70: 0 | AN70: 0 | AS70: 0 | BJ70: 0 | BO70: 0 | BT70: 0 | CK70: 0 | CP70: 0 | CU70: 0
C71: =$C$19 -> BRT | D71: =C49 -> 0 | I71: 0 | N71: 0 | S71: 0 | AD71: =$D$41 -> BRT | AI71: 0 | AN71: 0 | AS71: 0 | BE71: BRT | BJ71: 0 | BO71: 0 | BT71: 0 | CF71: BRT | CK71: 0 | CP71: 0 | CU71: 0
D73: Technology Split (%) - CNG | AD73: PM Emission Factor (g/vkm) - CNG | BE73: NOx Emission Factor (g/vkm) - CNG | CF73: =CONCATENATE("CO2 Emission Factor - CNG - (kg/",H22,")") -> CO2 Emission Factor - CNG - (kg/kg)
D74: Vehicle Type | E74: =E59 -> Base Year | J74: =J59 -> 9 | O74: =O59 -> 19 | AD74: Vehicle Type | AE74: =E74 -> Base Year | AJ74: =J74 -> 9 | AO74: =O74 -> 19 | BE74: Vehicle Type | BF74: =BF59 -> Base Year | BK74: =BK59 -> 9 | BP74: =BP59 -> 19 | CF74: Vehicle Type | CG74: =CG59 -> Base Year | CL74: =CL59 -> 9 | CQ74: =CQ59 -> 19
E75: =E60 -> Pre-Euro IV | F75: Euro IV | G75: Euro V | H75: Euro VI | I75: sum | J75: =J60 -> Pre-Euro IV | K75: Euro IV | L75: Euro V | M75: Euro VI | N75: sum | O75: =O60 -> Pre-Euro IV | P75: Euro IV | Q75: Euro V | R75: Euro VI | S75: sum | AE75: =AE60 -> Pre-Euro IV | AF75: =AF60 -> Euro IV | AG75: Euro V | AH75: Euro VI | AI75: Average | AJ75: Pre-Euro IV | AK75: Euro IV | AL75: Euro V | AM75: Euro VI | AN75: Average | AO75: Pre-Euro IV | AP75: Euro IV | AQ75: Euro V | AR75: Euro VI | AS75: Average | BF75: =AE75 -> Pre-Euro IV | BG75: =AF75 -> Euro IV | BH75: =AG75 -> Euro V | BI75: =AH75 -> Euro VI | BJ75: =AI75 -> Average | BK75: =AJ75 -> Pre-Euro IV | BL75: =AK75 -> Euro IV | BM75: =AL75 -> Euro V | BN75: =AM75 -> Euro VI | BO75: =AN75 -> Average | BP75: =AO75 -> Pre-Euro IV | BQ75: =AP75 -> Euro IV | BR75: =AQ75 -> Euro V | BS75: =AR75 -> Euro VI | BT75: =AS75 -> Average | CG75: =CG60 -> Pre-Euro IV | CH75: =CH60 -> Euro IV | CI75: Euro V | CJ75: Euro VI | CK75: Average | CL75: Pre-Euro IV | CM75: Euro IV | CN75: Euro V | CO75: Euro VI | CP75: Average | CQ75: Pre-Euro IV | CR75: Euro IV | CS75: Euro V | CT75: Euro VI | CU75: Average
B76: No Project | C76: Private | D76: =D61 -> Car | I76: =SUM(E76:H76) -> 0 | N76: =SUM(J76:M76) -> 0 | S76: =SUM(O76:R76) -> 0 | AC76: Private | AD76: =D76 -> Car | AI76: =(E76*AE76)+(F76*AF76)+(G76*AG76)+(H76*AH76) -> 0 | AN76: =(J76*AJ76)+(K76*AK76)+(L76*AL76)+(M76*AM76) -> 0 | AS76: =(O76*AO76)+(P76*AP76)+(Q76*AQ76)+(R76*AR76) -> 0 | BD76: Private | BE76: =AD76 -> Car | BJ76: =(E76*BF76)+(F76*BG76)+(G76*BH76)+(H76*BI76) -> 0 | BO76: =(J76*BK76)+(K76*BL76)+(L76*BM76)+(M76*BN76) -> 0 | BT76: =(O76*BP76)+(P76*BQ76)+(Q76*BR76)+(R76*BS76) -> 0 | CE76: Private | CF76: =BE76 -> Car | CK76: =(E76*CG76)+(F76*CH76)+(G76*CI76)+(H76*CJ76) -> 0 | CP76: =(J76*CL76)+(K76*CM76)+(L76*CN76)+(M76*CO76) -> 0 | CU76: =(O76*CQ76)+(P76*CR76)+(Q76*CS76)+(R76*CT76) -> 0
D77: =D62 -> 2-wheeler | I77: 0 | N77: 0 | S77: 0 | AD77: =D77 -> 2-wheeler | AI77: =(E77*AE77)+(F77*AF77)+(G77*AG77)+(H77*AH77) -> 0 | AN77: =(J77*AJ77)+(K77*AK77)+(L77*AL77)+(M77*AM77) -> 0 | AS77: =(O77*AO77)+(P77*AP77)+(Q77*AQ77)+(R77*AR77) -> 0 | BE77: =AD77 -> 2-wheeler | BJ77: =(E77*BF77)+(F77*BG77)+(G77*BH77)+(H77*BI77) -> 0 | BO77: =(J77*BK77)+(K77*BL77)+(L77*BM77)+(M77*BN77) -> 0 | BT77: =(O77*BP77)+(P77*BQ77)+(Q77*BR77)+(R77*BS77) -> 0 | CF77: =BE77 -> 2-wheeler | CK77: =(E77*CG77)+(F77*CH77)+(G77*CI77)+(H77*CJ77) -> 0 | CP77: =(J77*CL77)+(K77*CM77)+(L77*CN77)+(M77*CO77) -> 0 | CU77: =(O77*CQ77)+(P77*CR77)+(Q77*CS77)+(R77*CT77) -> 0
D78: Taxi | I78: 0 | N78: 0 | S78: 0 | AD78: Taxi | AI78: 0 | AN78: 0 | AS78: 0 | BE78: Taxi | BJ78: 0 | BO78: 0 | BT78: 0 | CF78: Taxi | CK78: 0 | CP78: 0 | CU78: 0
I79: 0 | N79: 0 | S79: 0 | AI79: 0 | AN79: 0 | AS79: 0 | BJ79: 0 | BO79: 0 | BT79: 0 | CK79: 0 | CP79: 0 | CU79: 0
I80: 0 | N80: 0 | S80: 0 | AI80: 0 | AN80: 0 | AS80: 0 | BJ80: 0 | BO80: 0 | BT80: 0 | CK80: 0 | CP80: 0 | CU80: 0
C81: Public | D81: 3-wheeler | I81: 0 | N81: 0 | S81: 0 | AC81: Public | AD81: 3-wheeler | AI81: 0 | AN81: 0 | AS81: 0 | BD81: Public | BE81: 3-wheeler | BJ81: 0 | BO81: 0 | BT81: 0 | CE81: Public | CF81: 3-wheeler | CK81: 0 | CP81: 0 | CU81: 0
D82: Bus | I82: 0 | N82: 0 | S82: 0 | AD82: Bus | AI82: 0 | AN82: 0 | AS82: 0 | BE82: Bus | BJ82: 0 | BO82: 0 | BT82: 0 | CF82: Bus | CK82: 0 | CP82: 0 | CU82: 0
D83: Mini-bus | I83: 0 | N83: 0 | S83: 0 | AD83: Mini-bus | AI83: 0 | AN83: 0 | AS83: 0 | BE83: Mini-bus | BJ83: 0 | BO83: 0 | BT83: 0 | CF83: Mini-bus | CK83: 0 | CP83: 0 | CU83: 0
I84: 0 | N84: 0 | S84: 0 | AI84: 0 | AN84: 0 | AS84: 0 | BJ84: 0 | BO84: 0 | BT84: 0 | CK84: 0 | CP84: 0 | CU84: 0
I85: 0 | N85: 0 | S85: 0 | AI85: 0 | AN85: 0 | AS85: 0 | BJ85: 0 | BO85: 0 | BT85: 0 | CK85: 0 | CP85: 0 | CU85: 0
C86: =$C$19 -> BRT | D86: =C64 -> 0 | I86: 0 | N86: 0 | S86: 0 | AD86: =$D$41 -> BRT | AI86: 0 | AN86: 0 | AS86: 0 | BE86: BRT | BJ86: 0 | BO86: 0 | BT86: 0 | CF86: BRT | CK86: 0 | CP86: 0 | CU86: 0
D88: Technology Split (%) - Electric | AD88: PM Emission Factor (g/vkm) - Electric | BE88: NOx Emission Factor (g/vkm) - Electric | CF88: =CONCATENATE("CO2 Emission Factor - Electric - (kg/",I22,")") -> CO2 Emission Factor - Electric - (kg/kwh)
D89: Vehicle Type | E89: =E74 -> Base Year | J89: =J74 -> 9 | O89: =O74 -> 19 | AD89: Vehicle Type | AE89: =E89 -> Base Year | AJ89: =J89 -> 9 | AO89: =O89 -> 19 | BE89: Vehicle Type | BF89: =BF74 -> Base Year | BK89: =BK74 -> 9 | BP89: =BP74 -> 19 | CF89: Vehicle Type | CG89: =CG74 -> Base Year | CL89: =CL74 -> 9 | CQ89: =CQ74 -> 19
E90: =E75 -> Pre-Euro IV | F90: Euro IV | G90: Euro V | H90: Euro VI | I90: sum | J90: =J75 -> Pre-Euro IV | K90: Euro IV | L90: Euro V | M90: Euro VI | N90: sum | O90: =O75 -> Pre-Euro IV | P90: Euro IV | Q90: Euro V | R90: Euro VI | S90: sum | AE90: =AE75 -> Pre-Euro IV | AF90: =AF75 -> Euro IV | AG90: Euro V | AH90: Euro VI | AI90: Average | AJ90: Pre-Euro IV | AK90: Euro IV | AL90: Euro V | AM90: Euro VI | AN90: Average | AO90: Pre-Euro IV | AP90: Euro IV | AQ90: Euro V | AR90: Euro VI | AS90: Average | BF90: =AE90 -> Pre-Euro IV | BG90: =AF90 -> Euro IV | BH90: =AG90 -> Euro V | BI90: =AH90 -> Euro VI | BJ90: =AI90 -> Average | BK90: =AJ90 -> Pre-Euro IV | BL90: =AK90 -> Euro IV | BM90: =AL90 -> Euro V | BN90: =AM90 -> Euro VI | BO90: =AN90 -> Average | BP90: =AO90 -> Pre-Euro IV | BQ90: =AP90 -> Euro IV | BR90: =AQ90 -> Euro V | BS90: =AR90 -> Euro VI | BT90: =AS90 -> Average | CG90: =CG75 -> Pre-Euro IV | CH90: =CH75 -> Euro IV | CI90: Euro V | CJ90: Euro VI | CK90: Average | CL90: Pre-Euro IV | CM90: Euro IV | CN90: Euro V | CO90: Euro VI | CP90: Average | CQ90: Pre-Euro IV | CR90: Euro IV | CS90: Euro V | CT90: Euro VI | CU90: Average
B91: No Project | C91: Private | D91: =D76 -> Car | I91: =SUM(E91:H91) -> 0 | N91: =SUM(J91:M91) -> 0 | S91: =SUM(O91:R91) -> 0 | AC91: Private | AD91: =D91 -> Car | AI91: =(E91*AE91)+(F91*AF91)+(G91*AG91)+(H91*AH91) -> 0 | AN91: =(J91*AJ91)+(K91*AK91)+(L91*AL91)+(M91*AM91) -> 0 | AS91: =(O91*AO91)+(P91*AP91)+(Q91*AQ91)+(R91*AR91) -> 0 | BD91: Private | BE91: =AD91 -> Car | BJ91: =(E91*BF91)+(F91*BG91)+(G91*BH91)+(H91*BI91) -> 0 | BO91: =(J91*BK91)+(K91*BL91)+(L91*BM91)+(M91*BN91) -> 0 | BT91: =(O91*BP91)+(P91*BQ91)+(Q91*BR91)+(R91*BS91) -> 0 | CE91: Private | CF91: =BE91 -> Car | CK91: =(E91*CG91)+(F91*CH91)+(G91*CI91)+(H91*CJ91) -> 0 | CP91: =(J91*CL91)+(K91*CM91)+(L91*CN91)+(M91*CO91) -> 0 | CU91: =(O91*CQ91)+(P91*CR91)+(Q91*CS91)+(R91*CT91) -> 0
D92: =D77 -> 2-wheeler | I92: 0 | N92: 0 | S92: 0 | AD92: =D92 -> 2-wheeler | AI92: =(E92*AE92)+(F92*AF92)+(G92*AG92)+(H92*AH92) -> 0 | AN92: =(J92*AJ92)+(K92*AK92)+(L92*AL92)+(M92*AM92) -> 0 | AS92: =(O92*AO92)+(P92*AP92)+(Q92*AQ92)+(R92*AR92) -> 0 | BE92: =AD92 -> 2-wheeler | BJ92: =(E92*BF92)+(F92*BG92)+(G92*BH92)+(H92*BI92) -> 0 | BO92: =(J92*BK92)+(K92*BL92)+(L92*BM92)+(M92*BN92) -> 0 | BT92: =(O92*BP92)+(P92*BQ92)+(Q92*BR92)+(R92*BS92) -> 0 | CF92: =BE92 -> 2-wheeler | CK92: =(E92*CG92)+(F92*CH92)+(G92*CI92)+(H92*CJ92) -> 0 | CP92: =(J92*CL92)+(K92*CM92)+(L92*CN92)+(M92*CO92) -> 0 | CU92: =(O92*CQ92)+(P92*CR92)+(Q92*CS92)+(R92*CT92) -> 0
D93: Taxi | I93: 0 | N93: 0 | S93: 0 | AD93: Taxi | AI93: 0 | AN93: 0 | AS93: 0 | BE93: Taxi | BJ93: 0 | BO93: 0 | BT93: 0 | CF93: Taxi | CK93: 0 | CP93: 0 | CU93: 0
I94: 0 | N94: 0 | S94: 0 | AI94: 0 | AN94: 0 | AS94: 0 | BJ94: 0 | BO94: 0 | BT94: 0 | CK94: 0 | CP94: 0 | CU94: 0
I95: 0 | N95: 0 | S95: 0 | AI95: 0 | AN95: 0 | AS95: 0 | BJ95: 0 | BO95: 0 | BT95: 0 | CK95: 0 | CP95: 0 | CU95: 0
C96: Public | D96: 3-wheeler | I96: 0 | N96: 0 | S96: 0 | AC96: Public | AD96: 3-wheeler | AI96: 0 | AN96: 0 | AS96: 0 | BD96: Public | BE96: 3-wheeler | BJ96: 0 | BO96: 0 | BT96: 0 | CE96: Public | CF96: 3-wheeler | CK96: 0 | CP96: 0 | CU96: 0
D97: Bus | I97: 0 | N97: 0 | S97: 0 | AD97: Bus | AI97: 0 | AN97: 0 | AS97: 0 | BE97: Bus | BJ97: 0 | BO97: 0 | BT97: 0 | CF97: Bus | CK97: 0 | CP97: 0 | CU97: 0
D98: Mini-bus | I98: 0 | N98: 0 | S98: 0 | AD98: Mini-bus | AI98: 0 | AN98: 0 | AS98: 0 | BE98: Mini-bus | BJ98: 0 | BO98: 0 | BT98: 0 | CF98: Mini-bus | CK98: 0 | CP98: 0 | CU98: 0
I99: 0 | N99: 0 | S99: 0 | AI99: 0 | AN99: 0 | AS99: 0 | BJ99: 0 | BO99: 0 | BT99: 0 | CK99: 0 | CP99: 0 | CU99: 0
I100: 0 | N100: 0 | S100: 0 | AI100: 0 | AN100: 0 | AS100: 0 | BJ100: 0 | BO100: 0 | BT100: 0 | CK100: 0 | CP100: 0 | CU100: 0
C101: =$C$19 -> BRT | D101: =C79 -> 0 | I101: 0 | N101: 0 | S101: 0 | AD101: =$D$41 -> BRT | AI101: 0 | AN101: 0 | AS101: 0 | BE101: BRT | BJ101: 0 | BO101: 0 | BT101: 0 | CF101: BRT | CK101: 0 | CP101: 0 | CU101: 0
D103: =CONCATENATE("Technology Split (%) - ",J8) -> Technology Split (%) - Ethanol | AD103: =CONCATENATE("PM Emission Factor (g/vkm) - ",J8) -> PM Emission Factor (g/vkm) - Ethanol | BE103: =CONCATENATE("NOx Emission Factor (g/vkm) - ",J8) -> NOx Emission Factor (g/vkm) - Ethanol | CF103: =CONCATENATE("CO2 Emission Factor -",J8," - (kg/",J22,")") -> CO2 Emission Factor -Ethanol - (kg/liter)
D104: Vehicle Type | E104: =E89 -> Base Year | J104: =J89 -> 9 | O104: =O89 -> 19 | AD104: Vehicle Type | AE104: =E104 -> Base Year | AJ104: =J104 -> 9 | AO104: =O104 -> 19 | BE104: Vehicle Type | BF104: =BF89 -> Base Year | BK104: =BK89 -> 9 | BP104: =BP89 -> 19 | CF104: Vehicle Type | CG104: =CG89 -> Base Year | CL104: =CL89 -> 9 | CQ104: =CQ89 -> 19
E105: =E90 -> Pre-Euro IV | F105: Euro IV | G105: Euro V | H105: Euro VI | I105: sum | J105: =J90 -> Pre-Euro IV | K105: Euro IV | L105: Euro V | M105: Euro VI | N105: sum | O105: =O90 -> Pre-Euro IV | P105: Euro IV | Q105: Euro V | R105: Euro VI | S105: sum | AE105: =AE90 -> Pre-Euro IV | AF105: =AF90 -> Euro IV | AG105: Euro V | AH105: Euro VI | AI105: Average | AJ105: Pre-Euro IV | AK105: Euro IV | AL105: Euro V | AM105: Euro VI | AN105: Average | AO105: Pre-Euro IV | AP105: Euro IV | AQ105: Euro V | AR105: Euro VI | AS105: Average | BF105: =AE105 -> Pre-Euro IV | BG105: =AF105 -> Euro IV | BH105: =AG105 -> Euro V | BI105: =AH105 -> Euro VI | BJ105: =AI105 -> Average | BK105: =AJ105 -> Pre-Euro IV | BL105: =AK105 -> Euro IV | BM105: =AL105 -> Euro V | BN105: =AM105 -> Euro VI | BO105: =AN105 -> Average | BP105: =AO105 -> Pre-Euro IV | BQ105: =AP105 -> Euro IV | BR105: =AQ105 -> Euro V | BS105: =AR105 -> Euro VI | BT105: =AS105 -> Average | CG105: =CG90 -> Pre-Euro IV | CH105: =CH90 -> Euro IV | CI105: Euro V | CJ105: Euro VI | CK105: Average | CL105: Pre-Euro IV | CM105: Euro IV | CN105: Euro V | CO105: Euro VI | CP105: Average | CQ105: Pre-Euro IV | CR105: Euro IV | CS105: Euro V | CT105: Euro VI | CU105: Average
B106: No Project | C106: Private | D106: =D91 -> Car | I106: =SUM(E106:H106) -> 0 | N106: =SUM(J106:M106) -> 0 | S106: =SUM(O106:R106) -> 0 | AC106: Private | AD106: =D106 -> Car | AI106: =(E106*AE106)+(F106*AF106)+(G106*AG106)+(H106*AH106) -> 0 | AN106: =(J106*AJ106)+(K106*AK106)+(L106*AL106)+(M106*AM106) -> 0 | AS106: =(O106*AO106)+(P106*AP106)+(Q106*AQ106)+(R106*AR106) -> 0 | BD106: Private | BE106: =AD106 -> Car | BJ106: =(E106*BF106)+(F106*BG106)+(G106*BH106)+(H106*BI106) -> 0 | BO106: =(J106*BK106)+(K106*BL106)+(L106*BM106)+(M106*BN106) -> 0 | BT106: =(O106*BP106)+(P106*BQ106)+(Q106*BR106)+(R106*BS106) -> 0 | CE106: Private | CF106: =BE106 -> Car | CG106: 1.56 | CH106: =$CG$106 -> 1.56 | CI106: 1.56 | CJ106: 1.56 | CK106: =(E106*CG106)+(F106*CH106)+(G106*CI106)+(H106*CJ106) -> 0 | CL106: =$CG$106 -> 1.56 | CM106: 1.56 | CN106: 1.56 | CO106: 1.56 | CP106: =(J106*CL106)+(K106*CM106)+(L106*CN106)+(M106*CO106) -> 0 | CQ106: =$CG$106 -> 1.56 | CR106: 1.56 | CS106: 1.56 | CT106: 1.56 | CU106: =(O106*CQ106)+(P106*CR106)+(Q106*CS106)+(R106*CT106) -> 0
D107: =D92 -> 2-wheeler | I107: 0 | N107: 0 | S107: 0 | AD107: =D107 -> 2-wheeler | AI107: =(E107*AE107)+(F107*AF107)+(G107*AG107)+(H107*AH107) -> 0 | AN107: =(J107*AJ107)+(K107*AK107)+(L107*AL107)+(M107*AM107) -> 0 | AS107: =(O107*AO107)+(P107*AP107)+(Q107*AQ107)+(R107*AR107) -> 0 | BE107: =AD107 -> 2-wheeler | BJ107: =(E107*BF107)+(F107*BG107)+(G107*BH107)+(H107*BI107) -> 0 | BO107: =(J107*BK107)+(K107*BL107)+(L107*BM107)+(M107*BN107) -> 0 | BT107: =(O107*BP107)+(P107*BQ107)+(Q107*BR107)+(R107*BS107) -> 0 | CF107: =BE107 -> 2-wheeler | CG107: =$CG$106 -> 1.56 | CH107: 1.56 | CI107: 1.56 | CJ107: 1.56 | CK107: =(E107*CG107)+(F107*CH107)+(G107*CI107)+(H107*CJ107) -> 0 | CL107: 1.56 | CM107: 1.56 | CN107: 1.56 | CO107: 1.56 | CP107: =(J107*CL107)+(K107*CM107)+(L107*CN107)+(M107*CO107) -> 0 | CQ107: 1.56 | CR107: 1.56 | CS107: 1.56 | CT107: 1.56 | CU107: =(O107*CQ107)+(P107*CR107)+(Q107*CS107)+(R107*CT107) -> 0
D108: Taxi | I108: 0 | N108: 0 | S108: 0 | AD108: Taxi | AI108: 0 | AN108: 0 | AS108: 0 | BE108: Taxi | BJ108: 0 | BO108: 0 | BT108: 0 | CF108: Taxi | CG108: 1.56 | CH108: 1.56 | CI108: 1.56 | CJ108: 1.56 | CK108: 0 | CL108: 1.56 | CM108: 1.56 | CN108: 1.56 | CO108: 1.56 | CP108: 0 | CQ108: 1.56 | CR108: 1.56 | CS108: 1.56 | CT108: 1.56 | CU108: 0
I109: 0 | N109: 0 | S109: 0 | AI109: 0 | AN109: 0 | AS109: 0 | BJ109: 0 | BO109: 0 | BT109: 0 | CG109: 1.56 | CH109: 1.56 | CI109: 1.56 | CJ109: 1.56 | CK109: 0 | CL109: 1.56 | CM109: 1.56 | CN109: 1.56 | CO109: 1.56 | CP109: 0 | CQ109: 1.56 | CR109: 1.56 | CS109: 1.56 | CT109: 1.56 | CU109: 0
I110: 0 | N110: 0 | S110: 0 | AI110: 0 | AN110: 0 | AS110: 0 | BJ110: 0 | BO110: 0 | BT110: 0 | CG110: 1.56 | CH110: 1.56 | CI110: 1.56 | CJ110: 1.56 | CK110: 0 | CL110: 1.56 | CM110: 1.56 | CN110: 1.56 | CO110: 1.56 | CP110: 0 | CQ110: 1.56 | CR110: 1.56 | CS110: 1.56 | CT110: 1.56 | CU110: 0
C111: Public | D111: 3-wheeler | I111: 0 | N111: 0 | S111: 0 | AC111: Public | AD111: 3-wheeler | AI111: 0 | AN111: 0 | AS111: 0 | BD111: Public | BE111: 3-wheeler | BJ111: 0 | BO111: 0 | BT111: 0 | CE111: Public | CF111: 3-wheeler | CG111: 1.56 | CH111: 1.56 | CI111: 1.56 | CJ111: 1.56 | CK111: 0 | CL111: 1.56 | CM111: 1.56 | CN111: 1.56 | CO111: 1.56 | CP111: 0 | CQ111: 1.56 | CR111: 1.56 | CS111: 1.56 | CT111: 1.56 | CU111: 0
D112: Bus | I112: 0 | N112: 0 | S112: 0 | AD112: Bus | AI112: 0 | AN112: 0 | AS112: 0 | BE112: Bus | BJ112: 0 | BO112: 0 | BT112: 0 | CF112: Bus | CG112: 1.56 | CH112: 1.56 | CI112: 1.56 | CJ112: 1.56 | CK112: 0 | CL112: 1.56 | CM112: 1.56 | CN112: 1.56 | CO112: 1.56 | CP112: 0 | CQ112: 1.56 | CR112: 1.56 | CS112: 1.56 | CT112: 1.56 | CU112: 0
D113: Mini-bus | I113: 0 | N113: 0 | S113: 0 | AD113: Mini-bus | AI113: 0 | AN113: 0 | AS113: 0 | BE113: Mini-bus | BJ113: 0 | BO113: 0 | BT113: 0 | CF113: Mini-bus | CG113: 1.56 | CH113: 1.56 | CI113: 1.56 | CJ113: 1.56 | CK113: 0 | CL113: 1.56 | CM113: 1.56 | CN113: 1.56 | CO113: 1.56 | CP113: 0 | CQ113: 1.56 | CR113: 1.56 | CS113: 1.56 | CT113: 1.56 | CU113: 0
I114: 0 | N114: 0 | S114: 0 | AI114: 0 | AN114: 0 | AS114: 0 | BJ114: 0 | BO114: 0 | BT114: 0 | CG114: 1.56 | CH114: 1.56 | CI114: 1.56 | CJ114: 1.56 | CK114: 0 | CL114: 1.56 | CM114: 1.56 | CN114: 1.56 | CO114: 1.56 | CP114: 0 | CQ114: 1.56 | CR114: 1.56 | CS114: 1.56 | CT114: 1.56 | CU114: 0
I115: 0 | N115: 0 | S115: 0 | AI115: 0 | AN115: 0 | AS115: 0 | BJ115: 0 | BO115: 0 | BT115: 0 | CG115: 1.56 | CH115: 1.56 | CI115: 1.56 | CJ115: 1.56 | CK115: 0 | CL115: 1.56 | CM115: 1.56 | CN115: 1.56 | CO115: 1.56 | CP115: 0 | CQ115: 1.56 | CR115: 1.56 | CS115: 1.56 | CT115: 1.56 | CU115: 0
C116: =$C$19 -> BRT | D116: =C94 -> 0 | I116: 0 | N116: 0 | S116: 0 | AD116: =$D$41 -> BRT | AI116: 0 | AN116: 0 | AS116: 0 | BE116: BRT | BJ116: 0 | BO116: 0 | BT116: 0 | CF116: BRT | CG116: 1.56 | CH116: 1.56 | CI116: 1.56 | CJ116: 1.56 | CK116: 0 | CL116: 1.56 | CM116: 1.56 | CN116: 1.56 | CO116: 1.56 | CP116: 0 | CQ116: 1.56 | CR116: 1.56 | CS116: 1.56 | CT116: 1.56 | CU116: 0
AD120: Average PM Emission Factor (g/vkm) | BE120: Average NOx Emission Factor (g/vkm) | CF120: Average CO2 Emission Factor (kg/vkm)
AD121: Vehicle Type | AE121: =AE29 -> Base Year | AF121: =AJ29 -> 9 | AG121: =AO29 -> 19 | BE121: Vehicle Type | BF121: =BF29 -> Base Year | BG121: =BK29 -> 9 | BH121: =BP29 -> 19 | CF121: Vehicle Type | CG121: =CG29 -> Base Year | CH121: =CL29 -> 9 | CI121: =CQ29 -> 19
AC122: Private | AD122: =AD106 -> Car | AE122: =(AI31*$E9)+(AI46*$F9)+(AI61*$G9)+(AI76*$H9)+(AI91*$I9)+(AI106*$J9) -> 0 | AF122: =(AN31*$L9)+(AN46*$M9)+(AN61*$N9)+(AN76*$O9)+(AN91*$P9)+(AN106*$Q9) -> 0 | AG122: =(AO31*$S9)+(AO46*$T9)+(AO61*$U9)+(AO76*$V9)+(AO91*$W9)+(AO106*$X9) -> 0 | BD122: Private | BE122: =BE106 -> Car | BF122: =(BJ31*$E9)+(BJ46*$F9)+(BJ61*$G9)+(BJ76*$H9)+(BJ91*$I9)+(BJ106*$J9) -> 0 | BG122: =(BO31*$L9)+(BO46*$M9)+(BO61*$N9)+(BO76*$O9)+(BO91*$P9)+(BO106*$Q9) -> 0 | BH122: =(BP31*$S9)+(BP46*$T9)+(BP61*$U9)+(BP76*$V9)+(BP91*$W9)+(BP106*$X9) -> 0 | CE122: Private | CF122: =CF106 -> Car | CG122: =(CK31*$E9)+(CK46*$F9)+(CK61*$G9)+(CK76*$H9)+(CK91*$I9)+(CK106*$J9) -> 0 | CH122: =(CP31*$L9)+(CP46*$M9)+(CP61*$N9)+(CP76*$O9)+(CP91*$P9)+(CP106*$Q9) -> 0 | CI122: =(CU31*$S9)+(CU46*$T9)+(CU61*$U9)+(CU76*$V9)+(CU91*$W9)+(CU106*$X9) -> 0
AD123: =AD107 -> 2-wheeler | AE123: =(AI32*$E10)+(AI47*$F10)+(AI62*$G10)+(AI77*$H10)+(AI92*$I10)+(AI107*$J10) -> 0 | AF123: =(AN32*$L10)+(AN47*$M10)+(AN62*$N10)+(AN77*$O10)+(AN92*$P10)+(AN107*$Q10) -> 0 | AG123: =(AO32*$S10)+(AO47*$T10)+(AO62*$U10)+(AO77*$V10)+(AO92*$W10)+(AO107*$X10) -> 0 | BE123: =BE107 -> 2-wheeler | BF123: =(BJ32*$E10)+(BJ47*$F10)+(BJ62*$G10)+(BJ77*$H10)+(BJ92*$I10)+(BJ107*$J10) -> 0 | BG123: =(BO32*$L10)+(BO47*$M10)+(BO62*$N10)+(BO77*$O10)+(BO92*$P10)+(BO107*$Q10) -> 0 | BH123: =(BP32*$S10)+(BP47*$T10)+(BP62*$U10)+(BP77*$V10)+(BP92*$W10)+(BP107*$X10) -> 0 | CF123: =CF107 -> 2-wheeler | CG123: =(CK32*$E10)+(CK47*$F10)+(CK62*$G10)+(CK77*$H10)+(CK92*$I10)+(CK107*$J10) -> 0 | CH123: =(CP32*$L10)+(CP47*$M10)+(CP62*$N10)+(CP77*$O10)+(CP92*$P10)+(CP107*$Q10) -> 0 | CI123: 0
AD124: Taxi | AE124: 0 | AF124: 0 | AG124: 0 | BE124: Taxi | BF124: 0 | BG124: 0 | BH124: 0 | CF124: Taxi | CG124: 0 | CH124: 0 | CI124: 0
AE125: 0 | AF125: 0 | AG125: 0 | BF125: 0 | BG125: 0 | BH125: 0 | CG125: 0 | CH125: 0 | CI125: 0
AE126: 0 | AF126: 0 | AG126: 0 | BF126: 0 | BG126: 0 | BH126: 0 | CG126: 0 | CH126: 0 | CI126: 0
AC127: Public | AD127: 3-wheeler | AE127: 0 | AF127: 0 | AG127: 0 | BD127: Public | BE127: 3-wheeler | BF127: 0 | BG127: 0 | BH127: 0 | CE127: Public | CF127: 3-wheeler | CG127: 0 | CH127: 0 | CI127: 0
AD128: Bus | AE128: 0 | AF128: 0 | AG128: 0 | BE128: Bus | BF128: 0 | BG128: 0 | BH128: 0 | CF128: Bus | CG128: 0 | CH128: 0 | CI128: 0
AD129: Mini-bus | AE129: 0 | AF129: 0 | AG129: 0 | BE129: Mini-bus | BF129: 0 | BG129: 0 | BH129: 0 | CF129: Mini-bus | CG129: 0 | CH129: 0 | CI129: 0
AE130: 0 | AF130: 0 | AG130: 0 | BF130: 0 | BG130: 0 | BH130: 0 | CG130: 0 | CH130: 0 | CI130: 0
AE131: 0 | AF131: 0 | AG131: 0 | BF131: 0 | BG131: 0 | BH131: 0 | CG131: 0 | CH131: 0 | CI131: 0
AD132: BRT | AE132: 0 | AF132: 0 | AG132: 0 | BE132: BRT | BF132: =(BJ41*$E19)+(BJ56*$F19)+(BJ71*$G19)+(BJ86*$H19)+(BJ101*$I19)+(BJ116*$J19) -> 0 | BG132: 0 | BH132: 0 | CF132: BRT | CG132: =(CK41*$E19)+(CK56*$F19)+(CK71*$G19)+(CK86*$H19)+(CK101*$I19)+(CK116*$J19) -> 0 | CH132: 0 | CI132: 0
D192: Fuel Efficiency @ 50 kmph
D193: Vehicle Type | E193: =E7 -> Base Year | L193: =L7 -> 9 | S193: =S7 -> 19
E194: =CONCATENATE(E8," (km/",E22,")") -> Petrol (km/liter) | F194: =CONCATENATE(F8," (km/",F22,")") -> Diesel (km/liter) | G194: =CONCATENATE(G8," (km/",G22,")") -> LPG (km/liter) | H194: =CONCATENATE(H8," (km/",H22,")") -> CNG (km/kg) | I194: =CONCATENATE(I8," (km/",I22,")") -> Electric (km/kwh) | J194: =IF(J8="","",CONCATENATE(J8," (km/",J22,")")) -> Ethanol (km/liter) | K194: Average | L194: =E194 -> Petrol (km/liter) | M194: =F194 -> Diesel (km/liter) | N194: LPG (km/liter) | O194: CNG (km/kg) | P194: Electric (km/kwh) | Q194: Ethanol (km/liter) | R194: Average | S194: =L194 -> Petrol (km/liter) | T194: =M194 -> Diesel (km/liter) | U194: LPG (km/liter) | V194: CNG (km/kg) | W194: Electric (km/kwh) | X194: Ethanol (km/liter) | Y194: Average
B195: No Project | C195: Private | D195: =D9 -> Car | K195: =(E9*E195)+(F9*F195)+(G9*G195)+(H9*H195)+(I9*I195)+(J9*J195) -> 0 | R195: =(L9*L195)+(M9*M195)+(N9*N195)+(O9*O195)+(P9*P195)+(Q9*Q195) -> 0 | Y195: =(S9*S195)+(T9*T195)+(U9*U195)+(V9*V195)+(W9*W195)+(X9*X195) -> 0
D196: =D10 -> 2-wheeler | K196: =(E10*E196)+(F10*F196)+(G10*G196)+(H10*H196)+(I10*I196)+(J10*J196) -> 0 | R196: =(L10*L196)+(M10*M196)+(N10*N196)+(O10*O196)+(P10*P196)+(Q10*Q196) -> 0 | Y196: =(S10*S196)+(T10*T196)+(U10*U196)+(V10*V196)+(W10*W196)+(X10*X196) -> 0
D197: Taxi | K197: 0 | R197: 0 | Y197: 0
K198: 0 | R198: 0 | Y198: 0
K199: 0 | R199: 0 | Y199: 0
C200: Public | D200: 3-wheeler | K200: 0 | R200: 0 | Y200: 0
D201: Bus | K201: 0 | R201: 0 | Y201: 0
D202: Mini-bus | K202: 0 | R202: 0 | Y202: 0
K203: 0 | R203: 0 | Y203: 0
K204: 0 | R204: 0 | Y204: 0
C205: =$C$19 -> BRT | D205: =C183 -> 0 | K205: 0 | R205: 0 | Y205: 0
E230: Average Speed (kilometer/hour) | H230: Occupancy | K230: Average Trip Length (km) | N230: Speed Impact | S230: pct of Travel | T230: Car Speed | W230: Bus
D231: Vehicle Type | E231: =IF(Full!F12="","Base Year",Full!F12) -> Base Year | F231: =IF(Full!F13="","Middle Year",Full!F13) -> 9 | G231: =IF(Full!F14="","Horizon Year",Full!F14) -> 19 | H231: =E231 -> Base Year | I231: 9 | J231: 19 | K231: Base Year | L231: 9 | M231: 19 | R231: Time | T231: 2012 | U231: 2022 | V231: 2032 | W231: 2012 | X231: 2022 | Y231: 2032
R232: Rush | S232: 0.375 | T232: 20 | U232: 18 | V232: 16 | W232: =T232*0.8 -> 16 | X232: 14 | Y232: 12
B233: No Project | C233: Private | D233: Cars | N233: Cars | R233: Off Pk | S233: 0.625 | T233: 60 | U233: 60 | V233: 60 | W233: 30 | X233: 30 | Y233: 30
D234: 2-Wheeler | N234: 2-wheeler | R234: BLEND | T234: =T232*$S$232+T233*$S$233 -> 45 | U234: =U232*$S$232+U233*$S$233 -> 44.25 | V234: =V232*$S$232+V233*$S$233 -> 43.5 | W234: =W232*$S$232+W233*$S$233 -> 24.75 | X234: =X232*$S$232+X233*$S$233 -> 24 | Y234: 23.25
D235: Taxi | N235: Cars
D236: =IF(Full!O177=0,"",Full!O177) -> 
D237: =IF(Full!O178=0,"",Full!O178) -> 
C238: Public | D238: 3-Wheeler
D239: Bus | N239: Bus
D240: Mini bus | N240: Bus
D241: =IF(Full!O182=0,"",Full!O182) -> 
D242: =IF(Full!O183=0,"",Full!O183) -> 
C243: =$C$19 -> BRT | D243: =C221 -> 0 | N243: Bus

Sheet Grid Calc
B1: Electricity Grid Emission Factor Calculator
B6: Use the calculator to estimate the emission factor of the electricity grid. Copy and paste (paste values) the results into the next section
B8: Summary | C8: Emission Factor
C9: kg/kwh
B10: CO2 | C10: =M23 -> 0.5758800412
B11: NOx | C11: =SUM(F38:F41)/($D$33) -> 0.001622756579
B12: PM10 | C12: =SUM(H46:H49)/($D$33) -> 4.942046103e-05
B15: CO2
B16: Item | D16: Electricity Generation | E16: Heat Rate | F16: Fuel Consumption Impact | H16: Carbon Emission Factor | I16: Unadjusted Annual Carbon Emission Impact | J16: % Efficiency of Oxidation | K16: Actual Carbon Emission Impact | L16: Annual Carbon Dioxide Emission Impact | M16: CO2 Emission Factor
C17: Unit | D17: MWh/yr | E17: BTU/kwh | F17: BTU/yr | G17: TJ/yr | H17: tC/TJ | I17: tC/yr | J17: % | K17: tC/yr | L17: tCO2/yr | M17: tCO2/MWh
B18: Oil-based | C18: Diesel | D18: 2000 | E18: 8900 | F18: =D18*1000*E18 -> 17800000000 | G18: =F18*1055.559/10^12 -> 18.7889502 | H18: 20.2 | I18: =G18*H18 -> 379.536794 | J18: 0.99 | K18: =I18*(J18) -> 375.7414261 | L18: =K18*(44/12) -> 1377.718562 | M18: =L18/(D18) -> 0.6888592812
C19: Oil Thermal | D19: 3000 | E19: 8600 | F19: =D19*1000*E19 -> 25800000000 | G19: 27.2334222 | H19: 21.1 | I19: 574.6252084 | J19: 0.99 | K19: =I19*(J19) -> 568.8789563 | L19: 2085.889507 | M19: =L19/(D19) -> 0.6952965022
B20: Coal | D20: 4000 | E20: 8900 | F20: =D20*1000*E20 -> 35600000000 | G20: 37.5779004 | H20: 26.8 | I20: 1007.087731 | J20: 0.98 | K20: 986.9459761 | L20: 3618.801912 | M20: =L20/(D20) -> 0.9047004781
B21: Natural Gas | D21: 10000 | E21: 6550 | F21: =D21*1000*E21 -> 65500000000 | G21: 69.1391145 | H21: 15.3 | I21: 1057.828452 | J21: 0.995 | K21: 1052.53931 | L21: 3859.310802 | M21: =L21/(D21) -> 0.3859310802
B22: OTHER (renewables)
B23: Total | D23: =SUM(D18:D22) -> 19000 | L23: =SUM(L18:L21) -> 10941.72078 | M23: =L23/(D23) -> 0.5758800412
B26: Unit | D26: Electricity Generation | E26: Heat Rate | F26: Energy Generated
D27: MWh | E27: BTU/kwh | F27: BTU | G27: TJ
B28: Oil-based | C28: Diesel | D28: =D18 -> 2000 | E28: =E18 -> 8900 | F28: =D28*1000*E28 -> 17800000000 | G28: =F28*1055/10^12 -> 18.779
C29: Oil Thermal | D29: =D19 -> 3000 | E29: =E19 -> 8600 | F29: =D29*1000*E29 -> 25800000000 | G29: 27.219
B30: Coal | D30: =D20 -> 4000 | E30: 8900 | F30: 35600000000 | G30: 37.558
B31: Natural Gas | D31: =D21 -> 10000 | E31: 6550 | F31: 65500000000 | G31: 69.1025
B32: OTHER | D32: =D22 -> 0 | F32: 0
B33: Total | D33: =SUM(D28:D32) -> 19000 | F33: 0
B35: NOx
B36: Unit | D36: Fuel Consumption | E36: EF | F36: Total Emissions
D37: TJ | E37: kg/TJ | F37: tons NOx
B38: Oil-based | C38: Diesel | D38: =G28 -> 18.779 | E38: 200 | F38: =(D38*E38)/1000 -> 3.7558
C39: Oil Thermal | D39: =G29 -> 27.219 | E39: 200 | F39: =(D39*E39)/1000 -> 5.4438
B40: Coal | D40: =G30 -> 37.558 | E40: 300 | F40: =(D40*E40)/1000 -> 11.2674
B41: Natural Gas | D41: =G31 -> 69.1025 | E41: 150 | F41: =(D41*E41)/1000 -> 10.365375
B43: PM10
B44: Unit | D44: Fuel Consumption | E44: Calorific Value | G44: PM10 | H44: Total Emissions
D45: TJ | E45: TJ/kt | F45: tons of fuel | G45: kg/ton fuel | H45: ton
B46: Oil-based | C46: Diesel | D46: =G28 -> 18.779 | E46: 43 | F46: =D46/E46*1000 -> 436.7209302 | G46: 0.333 | H46: =F46*G46/1000 -> 0.1454280698
C47: Oil Thermal | D47: =G29 -> 27.219 | E47: 43 | F47: =D47/E47*1000 -> 633 | G47: 0.9 | H47: =F47*G47/1000 -> 0.5697
B48: Coal | D48: =G30 -> 37.558 | E48: 25.8 | F48: =D48/E48*1000 -> 1455.736434 | G48: =1.23*1.85/100 -> 0.022755 | H48: =F48*G48/1000 -> 0.03312528256
B49: Natural Gas | D49: =G31 -> 69.1025 | E49: 44.2 | F49: =D49/E49*1000 -> 1563.404977 | G49: 0.122 | H49: =F49*G49/1000 -> 0.1907354072
C51: Notes:
C52: 1. It is assumed that there are no emissions control technologies that are being used in the power plant because of the difficulty in gathering such data for the period of this project
B73: Grid EF | C73: =Full!F12 -> 0 | D73: =Full!F13 -> 9 | E73: =Full!F14 -> 19
C74: kg/kwh | D74: kg/kwh | E74: kg/kwh
B75: CO2 | C75: 0.5 | D75: 0.5 | E75: 0.5
B76: NOx | C76: 0.001622756579 | D76: 0.001622756579 | E76: 0.001622756579
B77: PM10 | C77: 4.942046103e-05 | D77: 4.942046103e-05 | E77: 4.942046103e-05
C79: Copy the applicable values from the table below to the emission factor input sheets
C80: =C73 -> 0 | F80: =D73 -> 9 | I80: =E73 -> 19
C81: CO2 | D81: PM | E81: Nox | F81: CO2 | G81: PM | H81: Nox | I81: CO2 | J81: PM | K81: Nox
C82: kg/kwh | D82: g/vkm | E82: g/vkm | F82: kg/kwh | G82: g/vkm | H82: g/vkm | I82: kg/kwh | J82: g/vkm | K82: g/vkm
B83: ='IF Factors'!D195 -> Car | C83: =$C$75 -> 0.5 | D83: =IF(ISERROR($C$77/'IF Factors'!I195),"error!",C$77/'IF Factors'!I195*1000) -> error! | E83: =IF(ISERROR($C$76/'IF Factors'!I195),"error!",C$76/'IF Factors'!I195*1000) -> error! | F83: =$D$75 -> 0.5 | G83: =IF(ISERROR($D$77/'IF Factors'!P195),"error!",D$77/'IF Factors'!P195*1000) -> error! | H83: =IF(ISERROR($D$76/'IF Factors'!P195),"error!",D$76/'IF Factors'!P195*1000) -> error! | I83: =$E$75 -> 0.5 | J83: =IF(ISERROR($E$77/'IF Factors'!W195),"error!",E$77/'IF Factors'!W195*1000) -> error! | K83: =IF(ISERROR($E$76/'IF Factors'!W195),"error!",E$76/'IF Factors'!W195*1000) -> error!
B84: ='IF Factors'!D196 -> 2-wheeler | C84: =$C$75 -> 0.5 | D84: =IF(ISERROR($C$77/'IF Factors'!I196),"error!",C$77/'IF Factors'!I196*1000) -> error! | E84: =IF(ISERROR($C$76/'IF Factors'!I196),"error!",C$76/'IF Factors'!I196*1000) -> error! | F84: =$D$75 -> 0.5 | G84: =IF(ISERROR($D$77/'IF Factors'!P196),"error!",D$77/'IF Factors'!P196*1000) -> error! | H84: =IF(ISERROR($D$76/'IF Factors'!P196),"error!",D$76/'IF Factors'!P196*1000) -> error! | I84: =$E$75 -> 0.5 | J84: =IF(ISERROR($E$77/'IF Factors'!W196),"error!",E$77/'IF Factors'!W196*1000) -> error! | K84: =IF(ISERROR($E$76/'IF Factors'!W196),"error!",E$76/'IF Factors'!W196*1000) -> error!
B85: ='IF Factors'!D197 -> Taxi | C85: 0.5 | D85: =IF(ISERROR($C$77/'IF Factors'!I197),"error!",C$77/'IF Factors'!I197*1000) -> error! | E85: =IF(ISERROR($C$76/'IF Factors'!I197),"error!",C$76/'IF Factors'!I197*1000) -> error! | F85: 0.5 | G85: =IF(ISERROR($D$77/'IF Factors'!P197),"error!",D$77/'IF Factors'!P197*1000) -> error! | H85: =IF(ISERROR($D$76/'IF Factors'!P197),"error!",D$76/'IF Factors'!P197*1000) -> error! | I85: 0.5 | J85: =IF(ISERROR($E$77/'IF Factors'!W197),"error!",E$77/'IF Factors'!W197*1000) -> error! | K85: =IF(ISERROR($E$76/'IF Factors'!W197),"error!",E$76/'IF Factors'!W197*1000) -> error!
B86: ='IF Factors'!D198 ->  | C86: 0.5 | D86: =IF(ISERROR($C$77/'IF Factors'!I198),"error!",C$77/'IF Factors'!I198*1000) -> error! | E86: =IF(ISERROR($C$76/'IF Factors'!I198),"error!",C$76/'IF Factors'!I198*1000) -> error! | F86: 0.5 | G86: =IF(ISERROR($D$77/'IF Factors'!P198),"error!",D$77/'IF Factors'!P198*1000) -> error! | H86: =IF(ISERROR($D$76/'IF Factors'!P198),"error!",D$76/'IF Factors'!P198*1000) -> error! | I86: 0.5 | J86: =IF(ISERROR($E$77/'IF Factors'!W198),"error!",E$77/'IF Factors'!W198*1000) -> error! | K86: =IF(ISERROR($E$76/'IF Factors'!W198),"error!",E$76/'IF Factors'!W198*1000) -> error!
B87: ='IF Factors'!D199 ->  | C87: 0.5 | D87: =IF(ISERROR($C$77/'IF Factors'!I199),"error!",C$77/'IF Factors'!I199*1000) -> error! | E87: =IF(ISERROR($C$76/'IF Factors'!I199),"error!",C$76/'IF Factors'!I199*1000) -> error! | F87: 0.5 | G87: =IF(ISERROR($D$77/'IF Factors'!P199),"error!",D$77/'IF Factors'!P199*1000) -> error! | H87: =IF(ISERROR($D$76/'IF Factors'!P199),"error!",D$76/'IF Factors'!P199*1000) -> error! | I87: 0.5 | J87: =IF(ISERROR($E$77/'IF Factors'!W199),"error!",E$77/'IF Factors'!W199*1000) -> error! | K87: =IF(ISERROR($E$76/'IF Factors'!W199),"error!",E$76/'IF Factors'!W199*1000) -> error!
B88: ='IF Factors'!D200 -> 3-wheeler | C88: 0.5 | D88: =IF(ISERROR($C$77/'IF Factors'!I200),"error!",C$77/'IF Factors'!I200*1000) -> error! | E88: =IF(ISERROR($C$76/'IF Factors'!I200),"error!",C$76/'IF Factors'!I200*1000) -> error! | F88: 0.5 | G88: =IF(ISERROR($D$77/'IF Factors'!P200),"error!",D$77/'IF Factors'!P200*1000) -> error! | H88: =IF(ISERROR($D$76/'IF Factors'!P200),"error!",D$76/'IF Factors'!P200*1000) -> error! | I88: 0.5 | J88: =IF(ISERROR($E$77/'IF Factors'!W200),"error!",E$77/'IF Factors'!W200*1000) -> error! | K88: =IF(ISERROR($E$76/'IF Factors'!W200),"error!",E$76/'IF Factors'!W200*1000) -> error!
B89: ='IF Factors'!D201 -> Bus | C89: 0.5 | D89: =IF(ISERROR($C$77/'IF Factors'!I201),"error!",C$77/'IF Factors'!I201*1000) -> error! | E89: =IF(ISERROR($C$76/'IF Factors'!I201),"error!",C$76/'IF Factors'!I201*1000) -> error! | F89: 0.5 | G89: =IF(ISERROR($D$77/'IF Factors'!P201),"error!",D$77/'IF Factors'!P201*1000) -> error! | H89: =IF(ISERROR($D$76/'IF Factors'!P201),"error!",D$76/'IF Factors'!P201*1000) -> error! | I89: 0.5 | J89: =IF(ISERROR($E$77/'IF Factors'!W201),"error!",E$77/'IF Factors'!W201*1000) -> error! | K89: =IF(ISERROR($E$76/'IF Factors'!W201),"error!",E$76/'IF Factors'!W201*1000) -> error!
B90: ='IF Factors'!D202 -> Mini-bus | C90: 0.5 | D90: =IF(ISERROR($C$77/'IF Factors'!I202),"error!",C$77/'IF Factors'!I202*1000) -> error! | E90: =IF(ISERROR($C$76/'IF Factors'!I202),"error!",C$76/'IF Factors'!I202*1000) -> error! | F90: 0.5 | G90: =IF(ISERROR($D$77/'IF Factors'!P202),"error!",D$77/'IF Factors'!P202*1000) -> error! | H90: =IF(ISERROR($D$76/'IF Factors'!P202),"error!",D$76/'IF Factors'!P202*1000) -> error! | I90: 0.5 | J90: =IF(ISERROR($E$77/'IF Factors'!W202),"error!",E$77/'IF Factors'!W202*1000) -> error! | K90: =IF(ISERROR($E$76/'IF Factors'!W202),"error!",E$76/'IF Factors'!W202*1000) -> error!
B91: ='IF Factors'!D203 ->  | C91: 0.5 | D91: =IF(ISERROR($C$77/'IF Factors'!I203),"error!",C$77/'IF Factors'!I203*1000) -> error! | E91: =IF(ISERROR($C$76/'IF Factors'!I203),"error!",C$76/'IF Factors'!I203*1000) -> error! | F91: 0.5 | G91: =IF(ISERROR($D$77/'IF Factors'!P203),"error!",D$77/'IF Factors'!P203*1000) -> error! | H91: =IF(ISERROR($D$76/'IF Factors'!P203),"error!",D$76/'IF Factors'!P203*1000) -> error! | I91: 0.5 | J91: =IF(ISERROR($E$77/'IF Factors'!W203),"error!",E$77/'IF Factors'!W203*1000) -> error! | K91: =IF(ISERROR($E$76/'IF Factors'!W203),"error!",E$76/'IF Factors'!W203*1000) -> error!
B92: ='IF Factors'!D204 ->  | C92: 0.5 | D92: =IF(ISERROR($C$77/'IF Factors'!I204),"error!",C$77/'IF Factors'!I204*1000) -> error! | E92: =IF(ISERROR($C$76/'IF Factors'!I204),"error!",C$76/'IF Factors'!I204*1000) -> error! | F92: 0.5 | G92: =IF(ISERROR($D$77/'IF Factors'!P204),"error!",D$77/'IF Factors'!P204*1000) -> error! | H92: =IF(ISERROR($D$76/'IF Factors'!P204),"error!",D$76/'IF Factors'!P204*1000) -> error! | I92: 0.5 | J92: =IF(ISERROR($E$77/'IF Factors'!W204),"error!",E$77/'IF Factors'!W204*1000) -> error! | K92: =IF(ISERROR($E$76/'IF Factors'!W204),"error!",E$76/'IF Factors'!W204*1000) -> error!
B93: ='IF Factors'!C205 -> BRT | C93: 0.5 | D93: =IF(ISERROR($C$77/'IF Factors'!I205),"error!",C$77/'IF Factors'!I205*1000) -> error! | E93: =IF(ISERROR($C$76/'IF Factors'!I205),"error!",C$76/'IF Factors'!I205*1000) -> error! | F93: 0.5 | G93: =IF(ISERROR($D$77/'IF Factors'!P205),"error!",D$77/'IF Factors'!P205*1000) -> error! | H93: =IF(ISERROR($D$76/'IF Factors'!P205),"error!",D$76/'IF Factors'!P205*1000) -> error! | I93: 0.5 | J93: =IF(ISERROR($E$77/'IF Factors'!W205),"error!",E$77/'IF Factors'!W205*1000) -> error! | K93: =IF(ISERROR($E$76/'IF Factors'!W205),"error!",E$76/'IF Factors'!W205*1000) -> error!
B95: *If "error!" appears, please check the km/kwh values
B97: Click the boxes on the right to go to the emission factor sheets

Sheet Calculations
G6: No. of Trips | K6: No. of trips | O6: 1st | Q6: 2nd
K7: =H23 -> 0 | L7: =Q23 -> 9 | M7: =AA23 -> 19 | O7: intercept | P7: slope | Q7: intercept | R7: slope | T7: =K7 -> 0 | U7: =L7 -> 9 | V7: =M7 -> 19 | X7: 1st | Y7: 2nd
F8: NO BRT | G8: ='IF Factors'!D9 -> Car | K8: =Full!G174 ->  | L8: =Full!H174 ->  | M8: =Full!I174 ->  | O8: =INTERCEPT(K8:L8,$K$7:$L$7) ->  | P8: =SLOPE(K8:L8,$K$7:$L$7) ->  | Q8: =INTERCEPT(L8:M8,$L$7:$M$7) ->  | R8: =SLOPE(L8:M8,$L$7:$M$7) ->  | T8: =IF(K8<>0,0,1) ->  | U8: =IF(L8<>0,0,1) ->  | V8: =IF(M8<>0,0,1) ->  | X8: =IF(T8+U8=1,1,0) ->  | Y8: =IF(U8+V8=1,1,0) -> 
G9: ='IF Factors'!D10 -> 2-wheeler | K9: =Full!G175 ->  | L9: =Full!H175 ->  | M9: =Full!I175 ->  | O9: =INTERCEPT(K9:L9,$K$7:$L$7) ->  | P9: =SLOPE(K9:L9,$K$7:$L$7) ->  | Q9: =INTERCEPT(L9:M9,$L$7:$M$7) ->  | R9: =SLOPE(L9:M9,$L$7:$M$7) ->  | T9: =IF(K9<>0,0,1) ->  | U9: =IF(L9<>0,0,1) ->  | V9: =IF(M9<>0,0,1) ->  | X9: =IF(T9+U9=1,1,0) -> 
G10: ='IF Factors'!D11 -> Taxi | K10: =Full!G176 ->  | L10: =Full!H176 ->  | M10: =Full!I176 -> 
G11: ='IF Factors'!D12 ->  | K11: =Full!G177 ->  | L11: =Full!H177 ->  | M11: =Full!I177 -> 
G12: ='IF Factors'!D13 ->  | K12: =Full!G178 ->  | L12: =Full!H178 ->  | M12: =Full!I178 -> 
G13: ='IF Factors'!D14 -> 3-wheeler | K13: =Full!G179 ->  | L13: =Full!H179 ->  | M13: =Full!I179 -> 
G14: ='IF Factors'!D15 -> Bus | K14: =Full!G180 ->  | L14: =Full!H180 ->  | M14: =Full!I180 -> 
G15: ='IF Factors'!D16 -> Mini-bus | K15: =Full!G181 ->  | L15: =Full!H181 ->  | M15: =Full!I181 -> 
G16: ='IF Factors'!D17 ->  | K16: =Full!G182 ->  | L16: =Full!H182 ->  | M16: =Full!I182 -> 
G17: ='IF Factors'!D18 ->  | K17: =Full!G183 ->  | L17: =Full!H183 ->  | M17: =Full!I183 -> 
G18: BRT | K18: =Full!G171 -> 0 | L18: =Full!H171 -> 0 | M18: =Full!I171 -> 0 | O18: 0 | P18: 0 | Q18: 0 | R18: 0 | T18: 1 | U18: 1 | V18: 1 | X18: 0 | Y18: 0
H23: =Full!F12 -> 0 | I23: =H23+1 -> 1 | J23: 2 | K23: 3 | L23: 4 | M23: 5 | N23: 6 | O23: 7 | P23: 8 | Q23: =Full!F13 -> 9 | R23: =Q23+1 -> 10 | S23: 11 | T23: 12 | U23: 13 | V23: 14 | W23: 15 | X23: 16 | Y23: 17 | Z23: 18 | AA23: =Full!F14 -> 19 | AB23: Annual Average
F24: NO BRT | G24: =G8 -> Car | H24: =K8 ->  | I24: =(I$23*$P8)+$O8 ->  | J24: =(J$23*$P8)+$O8 ->  | Q24: =L8 ->  | R24: =(R$23*$R8)+$Q8 ->  | S24: =(S$23*$R8)+$Q8 ->  | AA24: =M8 ->  | AB24: =AVERAGE(H24:AA24) -> 
G25: 2-wheeler | H25: =K9 ->  | I25: =(I$23*$P9)+$O9 ->  | Q25: =L9 ->  | R25: =(R$23*$R9)+$Q9 ->  | AA25: =M9 ->  | AB25: =AVERAGE(H25:AA25) -> 
G26: Taxi | I26: =(I$23*$P10)+$O10 ->  | R26: =(R$23*$R10)+$Q10 -> 
I27: =(I$23*$P11)+$O11 ->  | R27: =(R$23*$R11)+$Q11 -> 
I28: =(I$23*$P12)+$O12 ->  | R28: =(R$23*$R12)+$Q12 -> 
G29: 3-wheeler | I29: =(I$23*$P13)+$O13 ->  | R29: =(R$23*$R13)+$Q13 -> 
G30: Bus | I30: =(I$23*$P14)+$O14 ->  | R30: =(R$23*$R14)+$Q14 -> 
G31: Mini-bus | I31: =(I$23*$P15)+$O15 ->  | R31: =(R$23*$R15)+$Q15 -> 
I32: =(I$23*$P16)+$O16 ->  | R32: =(R$23*$R16)+$Q16 -> 
I33: =(I$23*$P17)+$O17 ->  | R33: =(R$23*$R17)+$Q17 -> 
G34: =G18 -> BRT | H34: =K18 -> 0 | I34: =(I$23*$P18)+$O18 -> 0 | J34: 0 | K34: 0 | L34: 0 | M34: 0 | N34: 0 | O34: 0 | P34: 0 | Q34: 0 | R34: =(R$23*$R18)+$Q18 -> 0 | S34: 0 | T34: 0 | U34: 0 | V34: 0 | W34: 0 | X34: 0 | Y34: 0 | Z34: 0 | AA34: 0 | AB34: 0
AA35: Baseline Scenario | AB35: =SUM(AB24:AB33) -> 
AA36: delta | AB36: =AB35-avg_ridership -> 
G39: Average Trip Length | K39: No. of trips | O39: 1st | Q39: 2nd
K40: =H56 -> 0 | L40: =Q56 -> 9 | M40: =AA56 -> 19 | O40: intercept | P40: slope | Q40: intercept | R40: slope | T40: =K40 -> 0 | U40: =L40 -> 9 | V40: =M40 -> 19 | X40: 1st | Y40: 2nd
F41: NO BRT | G41: =G8 -> Car | K41: ='IF Factors'!K233 -> 0 | L41: ='IF Factors'!L233 -> 0 | M41: ='IF Factors'!M233 -> 0 | O41: =INTERCEPT(K41:L41,$K$7:$L$7) -> 0 | P41: =SLOPE(K41:L41,$K$7:$L$7) -> 0 | Q41: =INTERCEPT(L41:M41,$L$7:$M$7) -> 0 | R41: =SLOPE(L41:M41,$L$7:$M$7) -> 0 | T41: =IF(K41<>0,0,1) -> 1 | U41: =IF(L41<>0,0,1) -> 1 | V41: =IF(M41<>0,0,1) -> 1 | X41: =IF(T41+U41=1,1,0) -> 0 | Y41: =IF(U41+V41=1,1,0) -> 0
G42: 2-wheeler | K42: ='IF Factors'!K234 -> 0 | L42: ='IF Factors'!L234 -> 0 | M42: ='IF Factors'!M234 -> 0 | O42: =INTERCEPT(K42:L42,$K$7:$L$7) -> 0 | P42: =SLOPE(K42:L42,$K$7:$L$7) -> 0 | Q42: =INTERCEPT(L42:M42,$L$7:$M$7) -> 0 | R42: =SLOPE(L42:M42,$L$7:$M$7) -> 0 | T42: =IF(K42<>0,0,1) -> 1 | U42: =IF(L42<>0,0,1) -> 1 | V42: =IF(M42<>0,0,1) -> 1 | X42: =IF(T42+U42=1,1,0) -> 0 | Y42: 0
G43: Taxi | K43: ='IF Factors'!K235 -> 0 | L43: ='IF Factors'!L235 -> 0 | M43: ='IF Factors'!M235 -> 0 | O43: 0 | P43: 0 | Q43: 0 | R43: 0 | T43: 1 | U43: 1 | V43: 1 | X43: 0 | Y43: 0
K44: ='IF Factors'!K236 -> 0 | L44: ='IF Factors'!L236 -> 0 | M44: ='IF Factors'!M236 -> 0 | O44: 0 | P44: 0 | Q44: 0 | R44: 0 | T44: 1 | U44: 1 | V44: 1 | X44: 0 | Y44: 0
K45: ='IF Factors'!K237 -> 0 | L45: ='IF Factors'!L237 -> 0 | M45: ='IF Factors'!M237 -> 0 | O45: 0 | P45: 0 | Q45: 0 | R45: 0 | T45: 1 | U45: 1 | V45: 1 | X45: 0 | Y45: 0
G46: 3-wheeler | K46: ='IF Factors'!K238 -> 0 | L46: ='IF Factors'!L238 -> 0 | M46: ='IF Factors'!M238 -> 0 | O46: 0 | P46: 0 | Q46: 0 | R46: 0 | T46: 1 | U46: 1 | V46: 1 | X46: 0 | Y46: 0
G47: Bus | K47: ='IF Factors'!K239 -> 0 | L47: ='IF Factors'!L239 -> 0 | M47: ='IF Factors'!M239 -> 0 | O47: 0 | P47: 0 | Q47: 0 | R47: 0 | T47: 1 | U47: 1 | V47: 1 | X47: 0 | Y47: 0
G48: Mini-bus | K48: ='IF Factors'!K240 -> 0 | L48: ='IF Factors'!L240 -> 0 | M48: ='IF Factors'!M240 -> 0 | O48: 0 | P48: 0 | Q48: 0 | R48: 0 | T48: 1 | U48: 1 | V48: 1 | X48: 0 | Y48: 0
K49: ='IF Factors'!K241 -> 0 | L49: ='IF Factors'!L241 -> 0 | M49: ='IF Factors'!M241 -> 0 | O49: 0 | P49: 0 | Q49: 0 | R49: 0 | T49: 1 | U49: 1 | V49: 1 | X49: 0 | Y49: 0
K50: ='IF Factors'!K242 -> 0 | L50: ='IF Factors'!L242 -> 0 | M50: ='IF Factors'!M242 -> 0 | O50: 0 | P50: 0 | Q50: 0 | R50: 0 | T50: 1 | U50: 1 | V50: 1 | X50: 0 | Y50: 0
G51: BRT | K51: ='IF Factors'!K243 -> 0 | L51: ='IF Factors'!L243 -> 0 | M51: ='IF Factors'!M243 -> 0 | O51: 0 | P51: 0 | Q51: 0 | R51: 0 | T51: 1 | U51: 1 | V51: 1 | X51: 0 | Y51: 0
H56: =H23 -> 0 | I56: =I23 -> 1 | J56: 2 | K56: 3 | L56: 4 | M56: 5 | N56: 6 | O56: 7 | P56: 8 | Q56: 9 | R56: 10 | S56: 11 | T56: 12 | U56: 13 | V56: 14 | W56: 15 | X56: 16 | Y56: 17 | Z56: 18 | AA56: 19
F57: NO BRT | G57: ='IF Factors'!D233 -> Cars | H57: =K41 -> 0 | I57: =(I$23*$P41)+$O41 -> 0 | J57: =(J$23*$P41)+$O41 -> 0 | K57: 0 | L57: 0 | M57: 0 | N57: 0 | O57: 0 | P57: 0 | Q57: =L41 -> 0 | R57: =(R$23*$R41)+$Q41 -> 0 | S57: =(S$23*$R41)+$Q41 -> 0 | T57: 0 | U57: 0 | V57: 0 | W57: 0 | X57: 0 | Y57: 0 | Z57: 0 | AA57: =M41 -> 0
G58: =Full!F187 -> 2-wheeler | H58: =K42 -> 0 | I58: =(I$23*$P42)+$O42 -> 0 | J58: 0 | K58: 0 | L58: 0 | M58: 0 | N58: 0 | O58: 0 | P58: 0 | Q58: =L42 -> 0 | R58: =(R$23*$R42)+$Q42 -> 0 | S58: 0 | T58: 0 | U58: 0 | V58: 0 | W58: 0 | X58: 0 | Y58: 0 | Z58: 0 | AA58: =M42 -> 0
G59: =Full!F188 -> Taxi | H59: 0 | I59: =(I$23*$P43)+$O43 -> 0 | J59: 0 | K59: 0 | L59: 0 | M59: 0 | N59: 0 | O59: 0 | P59: 0 | Q59: 0 | R59: =(R$23*$R43)+$Q43 -> 0 | S59: 0 | T59: 0 | U59: 0 | V59: 0 | W59: 0 | X59: 0 | Y59: 0 | Z59: 0 | AA59: 0
G60: =Full!F189 ->  | H60: 0 | I60: =(I$23*$P44)+$O44 -> 0 | J60: 0 | K60: 0 | L60: 0 | M60: 0 | N60: 0 | O60: 0 | P60: 0 | Q60: 0 | R60: =(R$23*$R44)+$Q44 -> 0 | S60: 0 | T60: 0 | U60: 0 | V60: 0 | W60: 0 | X60: 0 | Y60: 0 | Z60: 0 | AA60: 0
G61: =Full!F190 ->  | H61: 0 | I61: =(I$23*$P45)+$O45 -> 0 | J61: 0 | K61: 0 | L61: 0 | M61: 0 | N61: 0 | O61: 0 | P61: 0 | Q61: 0 | R61: =(R$23*$R45)+$Q45 -> 0 | S61: 0 | T61: 0 | U61: 0 | V61: 0 | W61: 0 | X61: 0 | Y61: 0 | Z61: 0 | AA61: 0
G62: =Full!F191 -> 3-wheeler | H62: 0 | I62: =(I$23*$P46)+$O46 -> 0 | J62: 0 | K62: 0 | L62: 0 | M62: 0 | N62: 0 | O62: 0 | P62: 0 | Q62: 0 | R62: =(R$23*$R46)+$Q46 -> 0 | S62: 0 | T62: 0 | U62: 0 | V62: 0 | W62: 0 | X62: 0 | Y62: 0 | Z62: 0 | AA62: 0
G63: =Full!F192 -> Bus | H63: 0 | I63: =(I$23*$P47)+$O47 -> 0 | J63: 0 | K63: 0 | L63: 0 | M63: 0 | N63: 0 | O63: 0 | P63: 0 | Q63: 0 | R63: =(R$23*$R47)+$Q47 -> 0 | S63: 0 | T63: 0 | U63: 0 | V63: 0 | W63: 0 | X63: 0 | Y63: 0 | Z63: 0 | AA63: 0
G64: =Full!F193 -> Mini-bus | H64: 0 | I64: =(I$23*$P48)+$O48 -> 0 | J64: 0 | K64: 0 | L64: 0 | M64: 0 | N64: 0 | O64: 0 | P64: 0 | Q64: 0 | R64: =(R$23*$R48)+$Q48 -> 0 | S64: 0 | T64: 0 | U64: 0 | V64: 0 | W64: 0 | X64: 0 | Y64: 0 | Z64: 0 | AA64: 0
G65: =Full!F194 ->  | H65: 0 | I65: =(I$23*$P49)+$O49 -> 0 | J65: 0 | K65: 0 | L65: 0 | M65: 0 | N65: 0 | O65: 0 | P65: 0 | Q65: 0 | R65: =(R$23*$R49)+$Q49 -> 0 | S65: 0 | T65: 0 | U65: 0 | V65: 0 | W65: 0 | X65: 0 | Y65: 0 | Z65: 0 | AA65: 0
G66: =Full!F195 ->  | H66: 0 | I66: =(I$23*$P50)+$O50 -> 0 | J66: 0 | K66: 0 | L66: 0 | M66: 0 | N66: 0 | O66: 0 | P66: 0 | Q66: 0 | R66: =(R$23*$R50)+$Q50 -> 0 | S66: 0 | T66: 0 | U66: 0 | V66: 0 | W66: 0 | X66: 0 | Y66: 0 | Z66: 0 | AA66: 0
G67: BRT | H67: 0 | I67: =(I$23*$P51)+$O51 -> 0 | J67: 0 | K67: 0 | L67: 0 | M67: 0 | N67: 0 | O67: 0 | P67: 0 | Q67: 0 | R67: =(R$23*$R51)+$Q51 -> 0 | S67: 0 | T67: 0 | U67: 0 | V67: 0 | W67: 0 | X67: 0 | Y67: 0 | Z67: 0 | AA67: 0
G72: Average Occupancy | O72: 1st | Q72: 2nd
K73: =H89 -> 0 | L73: =Q89 -> 9 | M73: =AA89 -> 19 | O73: intercept | P73: slope | Q73: intercept | R73: slope | T73: =K73 -> 0 | U73: =L73 -> 9 | V73: =M73 -> 19 | X73: 1st | Y73: 2nd
F74: NO BRT | G74: =G41 -> Car | K74: ='IF Factors'!H233 -> 0 | L74: ='IF Factors'!I233 -> 0 | M74: ='IF Factors'!J233 -> 0 | O74: =INTERCEPT(K74:L74,$K$7:$L$7) -> 0 | P74: =SLOPE(K74:L74,$K$7:$L$7) -> 0 | Q74: =INTERCEPT(L74:M74,$L$7:$M$7) -> 0 | R74: =SLOPE(L74:M74,$L$7:$M$7) -> 0 | T74: =IF(K74<>0,0,1) -> 1 | U74: =IF(L74<>0,0,1) -> 1 | V74: =IF(M74<>0,0,1) -> 1 | X74: =IF(T74+U74=1,1,0) -> 0 | Y74: =IF(U74+V74=1,1,0) -> 0
G75: =G42 -> 2-wheeler | K75: ='IF Factors'!H234 -> 0 | L75: ='IF Factors'!I234 -> 0 | M75: ='IF Factors'!J234 -> 0 | O75: =INTERCEPT(K75:L75,$K$7:$L$7) -> 0 | P75: =SLOPE(K75:L75,$K$7:$L$7) -> 0 | Q75: =INTERCEPT(L75:M75,$L$7:$M$7) -> 0 | R75: =SLOPE(L75:M75,$L$7:$M$7) -> 0 | T75: =IF(K75<>0,0,1) -> 1 | U75: =IF(L75<>0,0,1) -> 1 | V75: =IF(M75<>0,0,1) -> 1 | X75: =IF(T75+U75=1,1,0) -> 0 | Y75: 0
G76: Taxi | K76: ='IF Factors'!H235 -> 0 | L76: ='IF Factors'!I235 -> 0 | M76: ='IF Factors'!J235 -> 0 | O76: 0 | P76: 0 | Q76: 0 | R76: 0 | T76: 1 | U76: 1 | V76: 1 | X76: 0 | Y76: 0
K77: ='IF Factors'!H236 -> 0 | L77: ='IF Factors'!I236 -> 0 | M77: ='IF Factors'!J236 -> 0 | O77: 0 | P77: 0 | Q77: 0 | R77: 0 | T77: 1 | U77: 1 | V77: 1 | X77: 0 | Y77: 0
K78: ='IF Factors'!H237 -> 0 | L78: ='IF Factors'!I237 -> 0 | M78: ='IF Factors'!J237 -> 0 | O78: 0 | P78: 0 | Q78: 0 | R78: 0 | T78: 1 | U78: 1 | V78: 1 | X78: 0 | Y78: 0
G79: 3-wheeler | K79: ='IF Factors'!H238 -> 0 | L79: ='IF Factors'!I238 -> 0 | M79: ='IF Factors'!J238 -> 0 | O79: 0 | P79: 0 | Q79: 0 | R79: 0 | T79: 1 | U79: 1 | V79: 1 | X79: 0 | Y79: 0
G80: Bus | K80: ='IF Factors'!H239 -> 0 | L80: ='IF Factors'!I239 -> 0 | M80: ='IF Factors'!J239 -> 0 | O80: 0 | P80: 0 | Q80: 0 | R80: 0 | T80: 1 | U80: 1 | V80: 1 | X80: 0 | Y80: 0
G81: Mini-bus | K81: ='IF Factors'!H240 -> 0 | L81: ='IF Factors'!I240 -> 0 | M81: ='IF Factors'!J240 -> 0 | O81: 0 | P81: 0 | Q81: 0 | R81: 0 | T81: 1 | U81: 1 | V81: 1 | X81: 0 | Y81: 0
K82: ='IF Factors'!H241 -> 0 | L82: ='IF Factors'!I241 -> 0 | M82: ='IF Factors'!J241 -> 0 | O82: 0 | P82: 0 | Q82: 0 | R82: 0 | T82: 1 | U82: 1 | V82: 1 | X82: 0 | Y82: 0
K83: ='IF Factors'!H242 -> 0 | L83: ='IF Factors'!I242 -> 0 | M83: ='IF Factors'!J242 -> 0 | O83: 0 | P83: 0 | Q83: 0 | R83: 0 | T83: 1 | U83: 1 | V83: 1 | X83: 0 | Y83: 0
G84: BRT | K84: ='IF Factors'!H243 -> 0 | L84: ='IF Factors'!I243 -> 0 | M84: ='IF Factors'!J243 -> 0 | O84: 0 | P84: 0 | Q84: 0 | R84: 0 | T84: 1 | U84: 1 | V84: 1 | X84: 0 | Y84: 0
H89: =H56 -> 0 | I89: =I56 -> 1 | J89: 2 | K89: 3 | L89: 4 | M89: 5 | N89: 6 | O89: 7 | P89: 8 | Q89: 9 | R89: 10 | S89: 11 | T89: 12 | U89: 13 | V89: 14 | W89: 15 | X89: 16 | Y89: 17 | Z89: 18 | AA89: 19
F90: NO BRT | G90: =G57 -> Cars | H90: =K74 -> 0 | I90: =(I$23*$P74)+$O74 -> 0 | J90: =(J$23*$P74)+$O74 -> 0 | K90: 0 | L90: 0 | M90: 0 | N90: 0 | O90: 0 | P90: 0 | Q90: =L74 -> 0 | R90: =(R$23*$R74)+$Q74 -> 0 | S90: =(S$23*$R74)+$Q74 -> 0 | T90: 0 | U90: 0 | V90: 0 | W90: 0 | X90: 0 | Y90: 0 | Z90: 0 | AA90: =M74 -> 0
G91: =G58 -> 2-wheeler | H91: =K75 -> 0 | I91: =(I$23*$P75)+$O75 -> 0 | J91: 0 | K91: 0 | L91: 0 | M91: 0 | N91: 0 | O91: 0 | P91: 0 | Q91: =L75 -> 0 | R91: =(R$23*$R75)+$Q75 -> 0 | S91: 0 | T91: 0 | U91: 0 | V91: 0 | W91: 0 | X91: 0 | Y91: 0 | Z91: 0 | AA91: =M75 -> 0
G92: Taxi | H92: 0 | I92: =(I$23*$P76)+$O76 -> 0 | J92: 0 | K92: 0 | L92: 0 | M92: 0 | N92: 0 | O92: 0 | P92: 0 | Q92: 0 | R92: =(R$23*$R76)+$Q76 -> 0 | S92: 0 | T92: 0 | U92: 0 | V92: 0 | W92: 0 | X92: 0 | Y92: 0 | Z92: 0 | AA92: 0
H93: 0 | I93: =(I$23*$P77)+$O77 -> 0 | J93: 0 | K93: 0 | L93: 0 | M93: 0 | N93: 0 | O93: 0 | P93: 0 | Q93: 0 | R93: =(R$23*$R77)+$Q77 -> 0 | S93: 0 | T93: 0 | U93: 0 | V93: 0 | W93: 0 | X93: 0 | Y93: 0 | Z93: 0 | AA93: 0
H94: 0 | I94: =(I$23*$P78)+$O78 -> 0 | J94: 0 | K94: 0 | L94: 0 | M94: 0 | N94: 0 | O94: 0 | P94: 0 | Q94: 0 | R94: =(R$23*$R78)+$Q78 -> 0 | S94: 0 | T94: 0 | U94: 0 | V94: 0 | W94: 0 | X94: 0 | Y94: 0 | Z94: 0 | AA94: 0
G95: 3-wheeler | H95: 0 | I95: =(I$23*$P79)+$O79 -> 0 | J95: 0 | K95: 0 | L95: 0 | M95: 0 | N95: 0 | O95: 0 | P95: 0 | Q95: 0 | R95: =(R$23*$R79)+$Q79 -> 0 | S95: 0 | T95: 0 | U95: 0 | V95: 0 | W95: 0 | X95: 0 | Y95: 0 | Z95: 0 | AA95: 0
G96: Bus | H96: 0 | I96: =(I$23*$P80)+$O80 -> 0 | J96: 0 | K96: 0 | L96: 0 | M96: 0 | N96: 0 | O96: 0 | P96: 0 | Q96: 0 | R96: =(R$23*$R80)+$Q80 -> 0 | S96: 0 | T96: 0 | U96: 0 | V96: 0 | W96: 0 | X96: 0 | Y96: 0 | Z96: 0 | AA96: 0
G97: Mini-bus | H97: 0 | I97: =(I$23*$P81)+$O81 -> 0 | J97: 0 | K97: 0 | L97: 0 | M97: 0 | N97: 0 | O97: 0 | P97: 0 | Q97: 0 | R97: =(R$23*$R81)+$Q81 -> 0 | S97: 0 | T97: 0 | U97: 0 | V97: 0 | W97: 0 | X97: 0 | Y97: 0 | Z97: 0 | AA97: 0
H98: 0 | I98: =(I$23*$P82)+$O82 -> 0 | J98: 0 | K98: 0 | L98: 0 | M98: 0 | N98: 0 | O98: 0 | P98: 0 | Q98: 0 | R98: =(R$23*$R82)+$Q82 -> 0 | S98: 0 | T98: 0 | U98: 0 | V98: 0 | W98: 0 | X98: 0 | Y98: 0 | Z98: 0 | AA98: 0
H99: 0 | I99: =(I$23*$P83)+$O83 -> 0 | J99: 0 | K99: 0 | L99: 0 | M99: 0 | N99: 0 | O99: 0 | P99: 0 | Q99: 0 | R99: =(R$23*$R83)+$Q83 -> 0 | S99: 0 | T99: 0 | U99: 0 | V99: 0 | W99: 0 | X99: 0 | Y99: 0 | Z99: 0 | AA99: 0
G100: BRT | H100: 0 | I100: =(I$23*$P84)+$O84 -> 0 | J100: 0 | K100: 0 | L100: 0 | M100: 0 | N100: 0 | O100: 0 | P100: 0 | Q100: 0 | R100: =(R$23*$R84)+$Q84 -> 0 | S100: 0 | T100: 0 | U100: 0 | V100: 0 | W100: 0 | X100: 0 | Y100: 0 | Z100: 0 | AA100: 0
G105: VKT/Day
F107: NO BRT | G107: =G74 -> Car
G108: =G75 -> 2-wheeler
G109: Taxi
G112: 3-wheeler
G113: Bus
G114: Mini-bus
G117: BRT
H122: =H89 -> 0 | I122: =I89 -> 1 | J122: 2 | K122: 3 | L122: 4 | M122: 5 | N122: 6 | O122: 7 | P122: 8 | Q122: 9 | R122: 10 | S122: 11 | T122: 12 | U122: 13 | V122: 14 | W122: 15 | X122: 16 | Y122: 17 | Z122: 18 | AA122: 19
F123: NO BRT | G123: =G90 -> Cars | H123: =IF(ISERROR(H24*H57/H90),0,(H24*H57/H90)) -> 0 | I123: =IF(ISERROR(I24*I57/I90),0,(I24*I57/I90)) -> 0 | J123: 0 | K123: 0 | L123: 0 | M123: 0 | N123: 0 | O123: 0 | P123: 0 | Q123: 0 | R123: 0 | S123: 0 | T123: 0 | U123: 0 | V123: 0 | W123: 0 | X123: 0 | Y123: 0 | Z123: 0 | AA123: 0
G124: =G91 -> 2-wheeler | H124: =IF(ISERROR(H25*H58/H91),0,(H25*H58/H91)) -> 0 | I124: 0 | J124: 0 | K124: 0 | L124: 0 | M124: 0 | N124: 0 | O124: 0 | P124: 0 | Q124: 0 | R124: 0 | S124: 0 | T124: 0 | U124: 0 | V124: 0 | W124: 0 | X124: 0 | Y124: 0 | Z124: 0 | AA124: 0
G125: Taxi | H125: =IF(ISERROR(H26*H59/H92),0,(H26*H59/H92)) -> 0 | I125: 0 | J125: 0 | K125: 0 | L125: 0 | M125: 0 | N125: 0 | O125: 0 | P125: 0 | Q125: 0 | R125: 0 | S125: 0 | T125: 0 | U125: 0 | V125: 0 | W125: 0 | X125: 0 | Y125: 0 | Z125: 0 | AA125: 0
H126: =IF(ISERROR(H27*H60/H93),0,(H27*H60/H93)) -> 0 | I126: 0 | J126: 0 | K126: 0 | L126: 0 | M126: 0 | N126: 0 | O126: 0 | P126: 0 | Q126: 0 | R126: 0 | S126: 0 | T126: 0 | U126: 0 | V126: 0 | W126: 0 | X126: 0 | Y126: 0 | Z126: 0 | AA126: 0
H127: =IF(ISERROR(H28*H61/H94),0,(H28*H61/H94)) -> 0 | I127: 0 | J127: 0 | K127: 0 | L127: 0 | M127: 0 | N127: 0 | O127: 0 | P127: 0 | Q127: 0 | R127: 0 | S127: 0 | T127: 0 | U127: 0 | V127: 0 | W127: 0 | X127: 0 | Y127: 0 | Z127: 0 | AA127: 0
G128: 3-wheeler | H128: =IF(ISERROR(H29*H62/H95),0,(H29*H62/H95)) -> 0 | I128: 0 | J128: 0 | K128: 0 | L128: 0 | M128: 0 | N128: 0 | O128: 0 | P128: 0 | Q128: 0 | R128: 0 | S128: 0 | T128: 0 | U128: 0 | V128: 0 | W128: 0 | X128: 0 | Y128: 0 | Z128: 0 | AA128: 0
G129: Bus | H129: =IF(ISERROR(H30*H63/H96),0,(H30*H63/H96)) -> 0 | I129: 0 | J129: 0 | K129: 0 | L129: 0 | M129: 0 | N129: 0 | O129: 0 | P129: 0 | Q129: 0 | R129: 0 | S129: 0 | T129: 0 | U129: 0 | V129: 0 | W129: 0 | X129: 0 | Y129: 0 | Z129: 0 | AA129: 0
G130: Mini-bus | H130: =IF(ISERROR(H31*H64/H97),0,(H31*H64/H97)) -> 0 | I130: 0 | J130: 0 | K130: 0 | L130: 0 | M130: 0 | N130: 0 | O130: 0 | P130: 0 | Q130: 0 | R130: 0 | S130: 0 | T130: 0 | U130: 0 | V130: 0 | W130: 0 | X130: 0 | Y130: 0 | Z130: 0 | AA130: 0
H131: =IF(ISERROR(H32*H65/H98),0,(H32*H65/H98)) -> 0 | I131: 0 | J131: 0 | K131: 0 | L131: 0 | M131: 0 | N131: 0 | O131: 0 | P131: 0 | Q131: 0 | R131: 0 | S131: 0 | T131: 0 | U131: 0 | V131: 0 | W131: 0 | X131: 0 | Y131: 0 | Z131: 0 | AA131: 0
H132: =IF(ISERROR(H33*H66/H99),0,(H33*H66/H99)) -> 0 | I132: 0 | J132: 0 | K132: 0 | L132: 0 | M132: 0 | N132: 0 | O132: 0 | P132: 0 | Q132: 0 | R132: 0 | S132: 0 | T132: 0 | U132: 0 | V132: 0 | W132: 0 | X132: 0 | Y132: 0 | Z132: 0 | AA132: 0
G133: BRT | H133: =IF(ISERROR(H34*H67/H100),0,(H34*H67/H100)) -> 0 | I133: =IF(ISERROR(I34*I67/I100),0,(I34*I67/I100)) -> 0 | J133: 0 | K133: 0 | L133: 0 | M133: 0 | N133: 0 | O133: 0 | P133: 0 | Q133: 0 | R133: 0 | S133: 0 | T133: 0 | U133: 0 | V133: 0 | W133: 0 | X133: 0 | Y133: 0 | Z133: 0 | AA133: 0
G138: PKT/Day
F140: NO BRT | G140: =G107 -> Car
G141: =G108 -> 2-wheeler
G142: Taxi
G145: 3-wheeler
G146: Bus
G147: Mini-bus
G150: BRT
H155: =H122 -> 0 | I155: =I122 -> 1 | J155: 2 | K155: 3 | L155: 4 | M155: 5 | N155: 6 | O155: 7 | P155: 8 | Q155: 9 | R155: 10 | S155: 11 | T155: 12 | U155: 13 | V155: 14 | W155: 15 | X155: 16 | Y155: 17 | Z155: 18 | AA155: 19
F156: NO BRT | G156: =G123 -> Cars | H156: =H123*H90 -> 0 | I156: =I123*I90 -> 0 | J156: 0 | K156: 0 | L156: 0 | M156: 0 | N156: 0 | O156: 0 | P156: 0 | Q156: 0 | R156: 0 | S156: 0 | T156: 0 | U156: 0 | V156: 0 | W156: 0 | X156: 0 | Y156: 0 | Z156: 0 | AA156: 0
G157: =G124 -> 2-wheeler | H157: =H124*H91 -> 0 | I157: 0 | J157: 0 | K157: 0 | L157: 0 | M157: 0 | N157: 0 | O157: 0 | P157: 0 | Q157: 0 | R157: 0 | S157: 0 | T157: 0 | U157: 0 | V157: 0 | W157: 0 | X157: 0 | Y157: 0 | Z157: 0 | AA157: 0
G158: Taxi | H158: 0 | I158: 0 | J158: 0 | K158: 0 | L158: 0 | M158: 0 | N158: 0 | O158: 0 | P158: 0 | Q158: 0 | R158: 0 | S158: 0 | T158: 0 | U158: 0 | V158: 0 | W158: 0 | X158: 0 | Y158: 0 | Z158: 0 | AA158: 0
H159: 0 | I159: 0 | J159: 0 | K159: 0 | L159: 0 | M159: 0 | N159: 0 | O159: 0 | P159: 0 | Q159: 0 | R159: 0 | S159: 0 | T159: 0 | U159: 0 | V159: 0 | W159: 0 | X159: 0 | Y159: 0 | Z159: 0 | AA159: 0
H160: 0 | I160: 0 | J160: 0 | K160: 0 | L160: 0 | M160: 0 | N160: 0 | O160: 0 | P160: 0 | Q160: 0 | R160: 0 | S160: 0 | T160: 0 | U160: 0 | V160: 0 | W160: 0 | X160: 0 | Y160: 0 | Z160: 0 | AA160: 0
G161: 3-wheeler | H161: 0 | I161: 0 | J161: 0 | K161: 0 | L161: 0 | M161: 0 | N161: 0 | O161: 0 | P161: 0 | Q161: 0 | R161: 0 | S161: 0 | T161: 0 | U161: 0 | V161: 0 | W161: 0 | X161: 0 | Y161: 0 | Z161: 0 | AA161: 0
G162: Bus | H162: 0 | I162: 0 | J162: 0 | K162: 0 | L162: 0 | M162: 0 | N162: 0 | O162: 0 | P162: 0 | Q162: 0 | R162: 0 | S162: 0 | T162: 0 | U162: 0 | V162: 0 | W162: 0 | X162: 0 | Y162: 0 | Z162: 0 | AA162: 0
G163: Mini-bus | H163: 0 | I163: 0 | J163: 0 | K163: 0 | L163: 0 | M163: 0 | N163: 0 | O163: 0 | P163: 0 | Q163: 0 | R163: 0 | S163: 0 | T163: 0 | U163: 0 | V163: 0 | W163: 0 | X163: 0 | Y163: 0 | Z163: 0 | AA163: 0
H164: 0 | I164: 0 | J164: 0 | K164: 0 | L164: 0 | M164: 0 | N164: 0 | O164: 0 | P164: 0 | Q164: 0 | R164: 0 | S164: 0 | T164: 0 | U164: 0 | V164: 0 | W164: 0 | X164: 0 | Y164: 0 | Z164: 0 | AA164: 0
H165: 0 | I165: 0 | J165: 0 | K165: 0 | L165: 0 | M165: 0 | N165: 0 | O165: 0 | P165: 0 | Q165: 0 | R165: 0 | S165: 0 | T165: 0 | U165: 0 | V165: 0 | W165: 0 | X165: 0 | Y165: 0 | Z165: 0 | AA165: 0
G166: BRT | H166: =H133*H100 -> 0 | I166: 0 | J166: 0 | K166: 0 | L166: 0 | M166: 0 | N166: 0 | O166: 0 | P166: 0 | Q166: 0 | R166: 0 | S166: 0 | T166: 0 | U166: 0 | V166: 0 | W166: 0 | X166: 0 | Y166: 0 | Z166: 0 | AA166: 0
G169: Gasoline VKT
K170: Fuel Split
K171: Column | L171: 7 | M171: 14 | O171: 1st | Q171: 2nd
K172: =H188 -> 0 | L172: =Q188 -> 9 | M172: =AA188 -> 19 | O172: intercept | P172: slope | Q172: intercept | R172: slope | T172: =K172 -> 0 | U172: =L172 -> 9 | V172: =M172 -> 19 | X172: 1st | Y172: 2nd
F173: NO BRT | G173: =G140 -> Car | K173: ='IF Factors'!E9 -> 0 | L173: =OFFSET('IF Factors'!E9,0,$L$171) -> 0 | M173: =OFFSET('IF Factors'!E9,0,$M$171) -> 0 | O173: =INTERCEPT(K173:L173,$K$7:$L$7) -> 0 | P173: =SLOPE(K173:L173,$K$7:$L$7) -> 0 | Q173: =INTERCEPT(L173:M173,$L$7:$M$7) -> 0 | R173: =SLOPE(L173:M173,$L$7:$M$7) -> 0 | T173: =IF(K173<>0,0,1) -> 1 | U173: =IF(L173<>0,0,1) -> 1 | V173: =IF(M173<>0,0,1) -> 1 | X173: =IF(T173+U173=1,1,0) -> 0 | Y173: =IF(U173+V173=1,1,0) -> 0
G174: =G141 -> 2-wheeler | K174: ='IF Factors'!E10 -> 0 | L174: =OFFSET('IF Factors'!E10,0,$L$171) -> 0 | M174: =OFFSET('IF Factors'!E10,0,$M$171) -> 0 | O174: =INTERCEPT(K174:L174,$K$7:$L$7) -> 0 | P174: =SLOPE(K174:L174,$K$7:$L$7) -> 0 | Q174: =INTERCEPT(L174:M174,$L$7:$M$7) -> 0 | R174: =SLOPE(L174:M174,$L$7:$M$7) -> 0 | T174: =IF(K174<>0,0,1) -> 1 | U174: =IF(L174<>0,0,1) -> 1 | V174: =IF(M174<>0,0,1) -> 1 | X174: =IF(T174+U174=1,1,0) -> 0 | Y174: 0
G175: Taxi | K175: ='IF Factors'!E11 -> 0 | L175: =OFFSET('IF Factors'!E11,0,$L$171) -> 0 | M175: =OFFSET('IF Factors'!E11,0,$M$171) -> 0 | O175: 0 | P175: 0 | Q175: 0 | R175: 0 | T175: 1 | U175: 1 | V175: 1 | X175: 0 | Y175: 0
K176: ='IF Factors'!E12 -> 0 | L176: =OFFSET('IF Factors'!E12,0,$L$171) -> 0 | M176: =OFFSET('IF Factors'!E12,0,$M$171) -> 0 | O176: 0 | P176: 0 | Q176: 0 | R176: 0 | T176: 1 | U176: 1 | V176: 1 | X176: 0 | Y176: 0
K177: ='IF Factors'!E13 -> 0 | L177: =OFFSET('IF Factors'!E13,0,$L$171) -> 0 | M177: =OFFSET('IF Factors'!E13,0,$M$171) -> 0 | O177: 0 | P177: 0 | Q177: 0 | R177: 0 | T177: 1 | U177: 1 | V177: 1 | X177: 0 | Y177: 0
G178: 3-wheeler | K178: ='IF Factors'!E14 -> 0 | L178: =OFFSET('IF Factors'!E14,0,$L$171) -> 0 | M178: =OFFSET('IF Factors'!E14,0,$M$171) -> 0 | O178: 0 | P178: 0 | Q178: 0 | R178: 0 | T178: 1 | U178: 1 | V178: 1 | X178: 0 | Y178: 0
G179: Bus | K179: ='IF Factors'!E15 -> 0 | L179: =OFFSET('IF Factors'!E15,0,$L$171) -> 0 | M179: =OFFSET('IF Factors'!E15,0,$M$171) -> 0 | O179: 0 | P179: 0 | Q179: 0 | R179: 0 | T179: 1 | U179: 1 | V179: 1 | X179: 0 | Y179: 0
G180: Mini-bus | K180: ='IF Factors'!E16 -> 0 | L180: =OFFSET('IF Factors'!E16,0,$L$171) -> 0 | M180: =OFFSET('IF Factors'!E16,0,$M$171) -> 0 | O180: 0 | P180: 0 | Q180: 0 | R180: 0 | T180: 1 | U180: 1 | V180: 1 | X180: 0 | Y180: 0
K181: ='IF Factors'!E17 -> 0 | L181: =OFFSET('IF Factors'!E17,0,$L$171) -> 0 | M181: =OFFSET('IF Factors'!E17,0,$M$171) -> 0 | O181: 0 | P181: 0 | Q181: 0 | R181: 0 | T181: 1 | U181: 1 | V181: 1 | X181: 0 | Y181: 0
K182: ='IF Factors'!E18 -> 0 | L182: =OFFSET('IF Factors'!E18,0,$L$171) -> 0 | M182: =OFFSET('IF Factors'!E18,0,$M$171) -> 0 | O182: 0 | P182: 0 | Q182: 0 | R182: 0 | T182: 1 | U182: 1 | V182: 1 | X182: 0 | Y182: 0
G183: BRT | K183: ='IF Factors'!E19 -> 0 | L183: =OFFSET('IF Factors'!E19,0,$L$171) -> 0 | M183: =OFFSET('IF Factors'!E19,0,$M$171) -> 0 | O183: 0 | P183: 0 | Q183: 0 | R183: 0 | T183: 1 | U183: 1 | V183: 1 | X183: 0 | Y183: 0
G187: %
H188: =H155 -> 0 | I188: =I155 -> 1 | J188: 2 | K188: 3 | L188: 4 | M188: 5 | N188: 6 | O188: 7 | P188: 8 | Q188: 9 | R188: 10 | S188: 11 | T188: 12 | U188: 13 | V188: 14 | W188: 15 | X188: 16 | Y188: 17 | Z188: 18 | AA188: 19
F189: NO BRT | G189: =G156 -> Cars | H189: =K173 -> 0 | I189: =(I$23*$P173)+$O173 -> 0 | J189: =(J$23*$P173)+$O173 -> 0 | K189: 0 | L189: 0 | M189: 0 | N189: 0 | O189: 0 | P189: 0 | Q189: =L173 -> 0 | R189: =(R$23*$R173)+$Q173 -> 0 | S189: =(S$23*$R173)+$Q173 -> 0 | T189: 0 | U189: 0 | V189: 0 | W189: 0 | X189: 0 | Y189: 0 | Z189: 0 | AA189: =M173 -> 0
G190: =G157 -> 2-wheeler | H190: =K174 -> 0 | I190: =(I$23*$P174)+$O174 -> 0 | J190: 0 | K190: 0 | L190: 0 | M190: 0 | N190: 0 | O190: 0 | P190: 0 | Q190: =L174 -> 0 | R190: =(R$23*$R174)+$Q174 -> 0 | S190: 0 | T190: 0 | U190: 0 | V190: 0 | W190: 0 | X190: 0 | Y190: 0 | Z190: 0 | AA190: =M174 -> 0
G191: Taxi | H191: 0 | I191: =(I$23*$P175)+$O175 -> 0 | J191: 0 | K191: 0 | L191: 0 | M191: 0 | N191: 0 | O191: 0 | P191: 0 | Q191: 0 | R191: =(R$23*$R175)+$Q175 -> 0 | S191: 0 | T191: 0 | U191: 0 | V191: 0 | W191: 0 | X191: 0 | Y191: 0 | Z191: 0 | AA191: 0
H192: 0 | I192: =(I$23*$P176)+$O176 -> 0 | J192: 0 | K192: 0 | L192: 0 | M192: 0 | N192: 0 | O192: 0 | P192: 0 | Q192: 0 | R192: =(R$23*$R176)+$Q176 -> 0 | S192: 0 | T192: 0 | U192: 0 | V192: 0 | W192: 0 | X192: 0 | Y192: 0 | Z192: 0 | AA192: 0
H193: 0 | I193: =(I$23*$P177)+$O177 -> 0 | J193: 0 | K193: 0 | L193: 0 | M193: 0 | N193: 0 | O193: 0 | P193: 0 | Q193: 0 | R193: =(R$23*$R177)+$Q177 -> 0 | S193: 0 | T193: 0 | U193: 0 | V193: 0 | W193: 0 | X193: 0 | Y193: 0 | Z193: 0 | AA193: 0
G194: 3-wheeler | H194: 0 | I194: =(I$23*$P178)+$O178 -> 0 | J194: 0 | K194: 0 | L194: 0 | M194: 0 | N194: 0 | O194: 0 | P194: 0 | Q194: 0 | R194: =(R$23*$R178)+$Q178 -> 0 | S194: 0 | T194: 0 | U194: 0 | V194: 0 | W194: 0 | X194: 0 | Y194: 0 | Z194: 0 | AA194: 0
G195: Bus | H195: 0 | I195: =(I$23*$P179)+$O179 -> 0 | J195: 0 | K195: 0 | L195: 0 | M195: 0 | N195: 0 | O195: 0 | P195: 0 | Q195: 0 | R195: =(R$23*$R179)+$Q179 -> 0 | S195: 0 | T195: 0 | U195: 0 | V195: 0 | W195: 0 | X195: 0 | Y195: 0 | Z195: 0 | AA195: 0
G196: Mini-bus | H196: 0 | I196: =(I$23*$P180)+$O180 -> 0 | J196: 0 | K196: 0 | L196: 0 | M196: 0 | N196: 0 | O196: 0 | P196: 0 | Q196: 0 | R196: =(R$23*$R180)+$Q180 -> 0 | S196: 0 | T196: 0 | U196: 0 | V196: 0 | W196: 0 | X196: 0 | Y196: 0 | Z196: 0 | AA196: 0
H197: 0 | I197: =(I$23*$P181)+$O181 -> 0 | J197: 0 | K197: 0 | L197: 0 | M197: 0 | N197: 0 | O197: 0 | P197: 0 | Q197: 0 | R197: =(R$23*$R181)+$Q181 -> 0 | S197: 0 | T197: 0 | U197: 0 | V197: 0 | W197: 0 | X197: 0 | Y197: 0 | Z197: 0 | AA197: 0
H198: 0 | I198: =(I$23*$P182)+$O182 -> 0 | J198: 0 | K198: 0 | L198: 0 | M198: 0 | N198: 0 | O198: 0 | P198: 0 | Q198: 0 | R198: =(R$23*$R182)+$Q182 -> 0 | S198: 0 | T198: 0 | U198: 0 | V198: 0 | W198: 0 | X198: 0 | Y198: 0 | Z198: 0 | AA198: 0
G199: BRT | H199: 0 | I199: =(I$23*$P183)+$O183 -> 0 | J199: 0 | K199: 0 | L199: 0 | M199: 0 | N199: 0 | O199: 0 | P199: 0 | Q199: 0 | R199: =(R$23*$R183)+$Q183 -> 0 | S199: 0 | T199: 0 | U199: 0 | V199: 0 | W199: 0 | X199: 0 | Y199: 0 | Z199: 0 | AA199: 0
G201: Gasoline VKT
H202: =H188 -> 0 | I202: =I188 -> 1 | J202: 2 | K202: 3 | L202: 4 | M202: 5 | N202: 6 | O202: 7 | P202: 8 | Q202: 9 | R202: 10 | S202: 11 | T202: 12 | U202: 13 | V202: 14 | W202: 15 | X202: 16 | Y202: 17 | Z202: 18 | AA202: 19
F203: NO BRT | G203: =G189 -> Cars | H203: =H123*H189 -> 0 | I203: =I123*I189 -> 0 | J203: 0 | K203: 0 | L203: 0 | M203: 0 | N203: 0 | O203: 0 | P203: 0 | Q203: 0 | R203: 0 | S203: 0 | T203: 0 | U203: 0 | V203: 0 | W203: 0 | X203: 0 | Y203: 0 | Z203: 0 | AA203: 0
G204: =G190 -> 2-wheeler | H204: =H124*H190 -> 0 | I204: 0 | J204: 0 | K204: 0 | L204: 0 | M204: 0 | N204: 0 | O204: 0 | P204: 0 | Q204: 0 | R204: 0 | S204: 0 | T204: 0 | U204: 0 | V204: 0 | W204: 0 | X204: 0 | Y204: 0 | Z204: 0 | AA204: 0
G205: Taxi | H205: 0 | I205: 0 | J205: 0 | K205: 0 | L205: 0 | M205: 0 | N205: 0 | O205: 0 | P205: 0 | Q205: 0 | R205: 0 | S205: 0 | T205: 0 | U205: 0 | V205: 0 | W205: 0 | X205: 0 | Y205: 0 | Z205: 0 | AA205: 0
H206: 0 | I206: 0 | J206: 0 | K206: 0 | L206: 0 | M206: 0 | N206: 0 | O206: 0 | P206: 0 | Q206: 0 | R206: 0 | S206: 0 | T206: 0 | U206: 0 | V206: 0 | W206: 0 | X206: 0 | Y206: 0 | Z206: 0 | AA206: 0
H207: 0 | I207: 0 | J207: 0 | K207: 0 | L207: 0 | M207: 0 | N207: 0 | O207: 0 | P207: 0 | Q207: 0 | R207: 0 | S207: 0 | T207: 0 | U207: 0 | V207: 0 | W207: 0 | X207: 0 | Y207: 0 | Z207: 0 | AA207: 0
G208: 3-wheeler | H208: 0 | I208: 0 | J208: 0 | K208: 0 | L208: 0 | M208: 0 | N208: 0 | O208: 0 | P208: 0 | Q208: 0 | R208: 0 | S208: 0 | T208: 0 | U208: 0 | V208: 0 | W208: 0 | X208: 0 | Y208: 0 | Z208: 0 | AA208: 0
G209: Bus | H209: 0 | I209: 0 | J209: 0 | K209: 0 | L209: 0 | M209: 0 | N209: 0 | O209: 0 | P209: 0 | Q209: 0 | R209: 0 | S209: 0 | T209: 0 | U209: 0 | V209: 0 | W209: 0 | X209: 0 | Y209: 0 | Z209: 0 | AA209: 0
G210: Mini-bus | H210: 0 | I210: 0 | J210: 0 | K210: 0 | L210: 0 | M210: 0 | N210: 0 | O210: 0 | P210: 0 | Q210: 0 | R210: 0 | S210: 0 | T210: 0 | U210: 0 | V210: 0 | W210: 0 | X210: 0 | Y210: 0 | Z210: 0 | AA210: 0
H211: 0 | I211: 0 | J211: 0 | K211: 0 | L211: 0 | M211: 0 | N211: 0 | O211: 0 | P211: 0 | Q211: 0 | R211: 0 | S211: 0 | T211: 0 | U211: 0 | V211: 0 | W211: 0 | X211: 0 | Y211: 0 | Z211: 0 | AA211: 0
H212: 0 | I212: 0 | J212: 0 | K212: 0 | L212: 0 | M212: 0 | N212: 0 | O212: 0 | P212: 0 | Q212: 0 | R212: 0 | S212: 0 | T212: 0 | U212: 0 | V212: 0 | W212: 0 | X212: 0 | Y212: 0 | Z212: 0 | AA212: 0
G213: BRT | H213: 0 | I213: 0 | J213: 0 | K213: 0 | L213: 0 | M213: 0 | N213: 0 | O213: 0 | P213: 0 | Q213: 0 | R213: 0 | S213: 0 | T213: 0 | U213: 0 | V213: 0 | W213: 0 | X213: 0 | Y213: 0 | Z213: 0 | AA213: 0
G216: Diesel VKT
K217: Fuel Split
K218: Column | L218: 7 | M218: 14 | O218: 1st | Q218: 2nd
K219: =H235 -> 0 | L219: =Q235 -> 9 | M219: =AA235 -> 19 | O219: intercept | P219: slope | Q219: intercept | R219: slope | T219: =K219 -> 0 | U219: =L219 -> 9 | V219: =M219 -> 19 | X219: 1st | Y219: 2nd
F220: NO BRT | G220: =G173 -> Car | K220: ='IF Factors'!F9 -> 0 | L220: =OFFSET('IF Factors'!F9,0,$L$171) -> 0 | M220: =OFFSET('IF Factors'!F9,0,$M$171) -> 0 | O220: =INTERCEPT(K220:L220,$K$7:$L$7) -> 0 | P220: =SLOPE(K220:L220,$K$7:$L$7) -> 0 | Q220: =INTERCEPT(L220:M220,$L$7:$M$7) -> 0 | R220: =SLOPE(L220:M220,$L$7:$M$7) -> 0 | T220: =IF(K220<>0,0,1) -> 1 | U220: =IF(L220<>0,0,1) -> 1 | V220: =IF(M220<>0,0,1) -> 1 | X220: =IF(T220+U220=1,1,0) -> 0 | Y220: =IF(U220+V220=1,1,0) -> 0
G221: =G174 -> 2-wheeler | K221: ='IF Factors'!F10 -> 0 | L221: =OFFSET('IF Factors'!F10,0,$L$171) -> 0 | M221: =OFFSET('IF Factors'!F10,0,$M$171) -> 0 | O221: =INTERCEPT(K221:L221,$K$7:$L$7) -> 0 | P221: =SLOPE(K221:L221,$K$7:$L$7) -> 0 | Q221: =INTERCEPT(L221:M221,$L$7:$M$7) -> 0 | R221: =SLOPE(L221:M221,$L$7:$M$7) -> 0 | T221: =IF(K221<>0,0,1) -> 1 | U221: =IF(L221<>0,0,1) -> 1 | V221: =IF(M221<>0,0,1) -> 1 | X221: =IF(T221+U221=1,1,0) -> 0 | Y221: 0
G222: Taxi | K222: ='IF Factors'!F11 -> 0 | L222: =OFFSET('IF Factors'!F11,0,$L$171) -> 0 | M222: =OFFSET('IF Factors'!F11,0,$M$171) -> 0 | O222: 0 | P222: 0 | Q222: 0 | R222: 0 | T222: 1 | U222: 1 | V222: 1 | X222: 0 | Y222: 0
K223: ='IF Factors'!F12 -> 0 | L223: =OFFSET('IF Factors'!F12,0,$L$171) -> 0 | M223: =OFFSET('IF Factors'!F12,0,$M$171) -> 0 | O223: 0 | P223: 0 | Q223: 0 | R223: 0 | T223: 1 | U223: 1 | V223: 1 | X223: 0 | Y223: 0
K224: ='IF Factors'!F13 -> 0 | L224: =OFFSET('IF Factors'!F13,0,$L$171) -> 0 | M224: =OFFSET('IF Factors'!F13,0,$M$171) -> 0 | O224: 0 | P224: 0 | Q224: 0 | R224: 0 | T224: 1 | U224: 1 | V224: 1 | X224: 0 | Y224: 0
G225: 3-wheeler | K225: ='IF Factors'!F14 -> 0 | L225: =OFFSET('IF Factors'!F14,0,$L$171) -> 0 | M225: =OFFSET('IF Factors'!F14,0,$M$171) -> 0 | O225: 0 | P225: 0 | Q225: 0 | R225: 0 | T225: 1 | U225: 1 | V225: 1 | X225: 0 | Y225: 0
G226: Bus | K226: ='IF Factors'!F15 -> 0 | L226: =OFFSET('IF Factors'!F15,0,$L$171) -> 0 | M226: =OFFSET('IF Factors'!F15,0,$M$171) -> 0 | O226: 0 | P226: 0 | Q226: 0 | R226: 0 | T226: 1 | U226: 1 | V226: 1 | X226: 0 | Y226: 0
G227: Mini-bus | K227: ='IF Factors'!F16 -> 0 | L227: =OFFSET('IF Factors'!F16,0,$L$171) -> 0 | M227: =OFFSET('IF Factors'!F16,0,$M$171) -> 0 | O227: 0 | P227: 0 | Q227: 0 | R227: 0 | T227: 1 | U227: 1 | V227: 1 | X227: 0 | Y227: 0
K228: ='IF Factors'!F17 -> 0 | L228: =OFFSET('IF Factors'!F17,0,$L$171) -> 0 | M228: =OFFSET('IF Factors'!F17,0,$M$171) -> 0 | O228: 0 | P228: 0 | Q228: 0 | R228: 0 | T228: 1 | U228: 1 | V228: 1 | X228: 0 | Y228: 0
K229: ='IF Factors'!F18 -> 0 | L229: =OFFSET('IF Factors'!F18,0,$L$171) -> 0 | M229: =OFFSET('IF Factors'!F18,0,$M$171) -> 0 | O229: 0 | P229: 0 | Q229: 0 | R229: 0 | T229: 1 | U229: 1 | V229: 1 | X229: 0 | Y229: 0
G230: BRT | K230: ='IF Factors'!F19 -> 0 | L230: =OFFSET('IF Factors'!F19,0,$L$171) -> 0 | M230: =OFFSET('IF Factors'!F19,0,$M$171) -> 0 | O230: 0 | P230: 0 | Q230: 0 | R230: 0 | T230: 1 | U230: 1 | V230: 1 | X230: 0 | Y230: 0
G234: %
H235: =H202 -> 0 | I235: =I202 -> 1 | J235: 2 | K235: 3 | L235: 4 | M235: 5 | N235: 6 | O235: 7 | P235: 8 | Q235: 9 | R235: 10 | S235: 11 | T235: 12 | U235: 13 | V235: 14 | W235: 15 | X235: 16 | Y235: 17 | Z235: 18 | AA235: 19
F236: NO BRT | G236: =G203 -> Cars | H236: =K220 -> 0 | I236: =(I$23*$P220)+$O220 -> 0 | J236: =(J$23*$P220)+$O220 -> 0 | K236: 0 | L236: 0 | M236: 0 | N236: 0 | O236: 0 | P236: 0 | Q236: =L220 -> 0 | R236: =(R$23*$R220)+$Q220 -> 0 | S236: =(S$23*$R220)+$Q220 -> 0 | T236: 0 | U236: 0 | V236: 0 | W236: 0 | X236: 0 | Y236: 0 | Z236: 0 | AA236: =M220 -> 0
G237: =G204 -> 2-wheeler | H237: =K221 -> 0 | I237: =(I$23*$P221)+$O221 -> 0 | J237: 0 | K237: 0 | L237: 0 | M237: 0 | N237: 0 | O237: 0 | P237: 0 | Q237: =L221 -> 0 | R237: =(R$23*$R221)+$Q221 -> 0 | S237: 0 | T237: 0 | U237: 0 | V237: 0 | W237: 0 | X237: 0 | Y237: 0 | Z237: 0 | AA237: =M221 -> 0
G238: Taxi | H238: 0 | I238: =(I$23*$P222)+$O222 -> 0 | J238: 0 | K238: 0 | L238: 0 | M238: 0 | N238: 0 | O238: 0 | P238: 0 | Q238: 0 | R238: =(R$23*$R222)+$Q222 -> 0 | S238: 0 | T238: 0 | U238: 0 | V238: 0 | W238: 0 | X238: 0 | Y238: 0 | Z238: 0 | AA238: 0
H239: 0 | I239: =(I$23*$P223)+$O223 -> 0 | J239: 0 | K239: 0 | L239: 0 | M239: 0 | N239: 0 | O239: 0 | P239: 0 | Q239: 0 | R239: =(R$23*$R223)+$Q223 -> 0 | S239: 0 | T239: 0 | U239: 0 | V239: 0 | W239: 0 | X239: 0 | Y239: 0 | Z239: 0 | AA239: 0
H240: 0 | I240: =(I$23*$P224)+$O224 -> 0 | J240: 0 | K240: 0 | L240: 0 | M240: 0 | N240: 0 | O240: 0 | P240: 0 | Q240: 0 | R240: =(R$23*$R224)+$Q224 -> 0 | S240: 0 | T240: 0 | U240: 0 | V240: 0 | W240: 0 | X240: 0 | Y240: 0 | Z240: 0 | AA240: 0
G241: 3-wheeler | H241: 0 | I241: =(I$23*$P225)+$O225 -> 0 | J241: 0 | K241: 0 | L241: 0 | M241: 0 | N241: 0 | O241: 0 | P241: 0 | Q241: 0 | R241: =(R$23*$R225)+$Q225 -> 0 | S241: 0 | T241: 0 | U241: 0 | V241: 0 | W241: 0 | X241: 0 | Y241: 0 | Z241: 0 | AA241: 0
G242: Bus | H242: 0 | I242: =(I$23*$P226)+$O226 -> 0 | J242: 0 | K242: 0 | L242: 0 | M242: 0 | N242: 0 | O242: 0 | P242: 0 | Q242: 0 | R242: =(R$23*$R226)+$Q226 -> 0 | S242: 0 | T242: 0 | U242: 0 | V242: 0 | W242: 0 | X242: 0 | Y242: 0 | Z242: 0 | AA242: 0
G243: Mini-bus | H243: 0 | I243: =(I$23*$P227)+$O227 -> 0 | J243: 0 | K243: 0 | L243: 0 | M243: 0 | N243: 0 | O243: 0 | P243: 0 | Q243: 0 | R243: =(R$23*$R227)+$Q227 -> 0 | S243: 0 | T243: 0 | U243: 0 | V243: 0 | W243: 0 | X243: 0 | Y243: 0 | Z243: 0 | AA243: 0
H244: 0 | I244: =(I$23*$P228)+$O228 -> 0 | J244: 0 | K244: 0 | L244: 0 | M244: 0 | N244: 0 | O244: 0 | P244: 0 | Q244: 0 | R244: =(R$23*$R228)+$Q228 -> 0 | S244: 0 | T244: 0 | U244: 0 | V244: 0 | W244: 0 | X244: 0 | Y244: 0 | Z244: 0 | AA244: 0
H245: 0 | I245: =(I$23*$P229)+$O229 -> 0 | J245: 0 | K245: 0 | L245: 0 | M245: 0 | N245: 0 | O245: 0 | P245: 0 | Q245: 0 | R245: =(R$23*$R229)+$Q229 -> 0 | S245: 0 | T245: 0 | U245: 0 | V245: 0 | W245: 0 | X245: 0 | Y245: 0 | Z245: 0 | AA245: 0
G246: BRT | H246: 0 | I246: =(I$23*$P230)+$O230 -> 0 | J246: 0 | K246: 0 | L246: 0 | M246: 0 | N246: 0 | O246: 0 | P246: 0 | Q246: 0 | R246: =(R$23*$R230)+$Q230 -> 0 | S246: 0 | T246: 0 | U246: 0 | V246: 0 | W246: 0 | X246: 0 | Y246: 0 | Z246: 0 | AA246: 0
G248: Diesel VKT
H249: =H235 -> 0 | I249: =I235 -> 1 | J249: 2 | K249: 3 | L249: 4 | M249: 5 | N249: 6 | O249: 7 | P249: 8 | Q249: 9 | R249: 10 | S249: 11 | T249: 12 | U249: 13 | V249: 14 | W249: 15 | X249: 16 | Y249: 17 | Z249: 18 | AA249: 19
F250: NO BRT | G250: =G236 -> Cars | H250: =H123*H236 -> 0 | I250: =I123*I236 -> 0 | J250: 0 | K250: 0 | L250: 0 | M250: 0 | N250: 0 | O250: 0 | P250: 0 | Q250: 0 | R250: 0 | S250: 0 | T250: 0 | U250: 0 | V250: 0 | W250: 0 | X250: 0 | Y250: 0 | Z250: 0 | AA250: 0
G251: =G237 -> 2-wheeler | H251: =H124*H237 -> 0 | I251: 0 | J251: 0 | K251: 0 | L251: 0 | M251: 0 | N251: 0 | O251: 0 | P251: 0 | Q251: 0 | R251: 0 | S251: 0 | T251: 0 | U251: 0 | V251: 0 | W251: 0 | X251: 0 | Y251: 0 | Z251: 0 | AA251: 0
G252: Taxi | H252: 0 | I252: 0 | J252: 0 | K252: 0 | L252: 0 | M252: 0 | N252: 0 | O252: 0 | P252: 0 | Q252: 0 | R252: 0 | S252: 0 | T252: 0 | U252: 0 | V252: 0 | W252: 0 | X252: 0 | Y252: 0 | Z252: 0 | AA252: 0
H253: 0 | I253: 0 | J253: 0 | K253: 0 | L253: 0 | M253: 0 | N253: 0 | O253: 0 | P253: 0 | Q253: 0 | R253: 0 | S253: 0 | T253: 0 | U253: 0 | V253: 0 | W253: 0 | X253: 0 | Y253: 0 | Z253: 0 | AA253: 0
H254: 0 | I254: 0 | J254: 0 | K254: 0 | L254: 0 | M254: 0 | N254: 0 | O254: 0 | P254: 0 | Q254: 0 | R254: 0 | S254: 0 | T254: 0 | U254: 0 | V254: 0 | W254: 0 | X254: 0 | Y254: 0 | Z254: 0 | AA254: 0
G255: 3-wheeler | H255: 0 | I255: 0 | J255: 0 | K255: 0 | L255: 0 | M255: 0 | N255: 0 | O255: 0 | P255: 0 | Q255: 0 | R255: 0 | S255: 0 | T255: 0 | U255: 0 | V255: 0 | W255: 0 | X255: 0 | Y255: 0 | Z255: 0 | AA255: 0
G256: Bus | H256: 0 | I256: 0 | J256: 0 | K256: 0 | L256: 0 | M256: 0 | N256: 0 | O256: 0 | P256: 0 | Q256: 0 | R256: 0 | S256: 0 | T256: 0 | U256: 0 | V256: 0 | W256: 0 | X256: 0 | Y256: 0 | Z256: 0 | AA256: 0
G257: Mini-bus | H257: 0 | I257: 0 | J257: 0 | K257: 0 | L257: 0 | M257: 0 | N257: 0 | O257: 0 | P257: 0 | Q257: 0 | R257: 0 | S257: 0 | T257: 0 | U257: 0 | V257: 0 | W257: 0 | X257: 0 | Y257: 0 | Z257: 0 | AA257: 0
H258: 0 | I258: 0 | J258: 0 | K258: 0 | L258: 0 | M258: 0 | N258: 0 | O258: 0 | P258: 0 | Q258: 0 | R258: 0 | S258: 0 | T258: 0 | U258: 0 | V258: 0 | W258: 0 | X258: 0 | Y258: 0 | Z258: 0 | AA258: 0
H259: 0 | I259: 0 | J259: 0 | K259: 0 | L259: 0 | M259: 0 | N259: 0 | O259: 0 | P259: 0 | Q259: 0 | R259: 0 | S259: 0 | T259: 0 | U259: 0 | V259: 0 | W259: 0 | X259: 0 | Y259: 0 | Z259: 0 | AA259: 0
G260: BRT | H260: 0 | I260: 0 | J260: 0 | K260: 0 | L260: 0 | M260: 0 | N260: 0 | O260: 0 | P260: 0 | Q260: 0 | R260: 0 | S260: 0 | T260: 0 | U260: 0 | V260: 0 | W260: 0 | X260: 0 | Y260: 0 | Z260: 0 | AA260: 0
G263: LPG VKT
... 1603 more rows

Sheet ridership calculator (hidden)
C2: Year | D2: 2012 | T2: Scorecard
C3: Existing Bus (+IPT) Ridership in the Corridor/day | D3: 50000 | U3: Max | V3: Score of Existing System say Ahmedabad | W3: Score of Ahmedabad BRT
C4: Annual growth rates in PT ridership | D4: % | T4: Service Planning | V4: 0 | W4: 4
C5: Next 5 years | D5: 5 | T5: Off-vehicle fare collection and fare verification | U5: 7 | V5: 0 | W5: 0
C6: Next 5- 10 years | D6: 6 | T6: Multiple routes use same BRT infrastructure | U6: 4 | V6: 1 | W6: 3
C7: Next 10-15 Years | D7: 8 | T7: Peak period frequency | U7: 4 | V7: 1 | W7: 1
C8: Next - 15-20 Years | D8: 9 | T8: Off-peak frequency | U8: 3 | V8: 1 | W8: 1
T9: Limited and local stop services | U9: 3 | V9: 0 | W9: 7
C10: Score before improvement | D10: =V40 -> 7 | T10: System control center | U10: 3 | V10: 0 | W10: 1
C11: Score after improvement | D11: =W40 -> 79 | T11: Routes in top 10 demand corridors | U11: 2 | V11: 0 | W11: 2
C12: Bonus factor | D12: =((D11-D10)*0.01/5)+1 -> 1.144 | T12: Operates late nights and weekends | U12: 2 | V12: 0 | W12: 2
T13: Part of (planned) multi-corridor BRT network | U13: 2 | V13: 0 | W13: 1
T14: infrastructure | V14: 0 | W14: 0
B15: Year | C15: Existing Ridership | D15: Proposed Ridership | E15: New Riders to BRT | F15: Modesplit (%) | L15: Trips/day | T15: Bus lanes in central verge of the road | U15: 7 | V15: 4 | W15: 4
F16: New Ridership | I16: Existing Ridership | T16: Physically-separated right-of-way | U16: 7 | V16: 0 | W16: 3
F17: Cars | G17: 2-Wheeler | H17: Taxi | I17: 3-Wheeler | J17: Bus | K17: Mini Bus | L17: Cars | M17: 2-Wheeler | N17: Taxi | O17: 3-Wheeler | P17: Bus | Q17: Mini Bus | R17: Total | T17: Intersection treatments | U17: 6 | V17: 0 | W17: 7
A18: 1 | B18: =D2 -> 2012 | C18: =D3 -> 50000 | D18: =C18*D$12 -> 57200 | E18: =D18-C18 -> 7200 | F18: 30 | G18: 50 | H18: 20 | I18: 10 | J18: 90 | K18: 0 | L18: =F18*E18/100 -> 2160 | M18: =G18*E18/100 -> 3600 | N18: =H18*E18/100 -> 1440 | O18: =I18*C18/100 -> 5000 | P18: =J18*C18/100 -> 45000 | Q18: =K18*D18/100 -> 0 | R18: =SUM(L18:Q18) -> 57200 | T18: Physically-separated passing lanes at station stops | U18: 4 | V18: 0 | W18: 7
A19: 10 | B19: =C50 -> 2021 | C19: =D50 -> 81331.07767 | D19: =C19*D$12 -> 93042.75286 | E19: =D19-C19 -> 11711.67519 | F19: 30 | G19: 50 | H19: 20 | I19: 10 | J19: 90 | K19: 0 | L19: =F19*E19/100 -> 3513.502556 | M19: =G19*E19/100 -> 5855.837593 | N19: =H19*E19/100 -> 2342.335037 | O19: =I19*D19/100 -> 9304.275286 | P19: =J19*D19/100 -> 83738.47757 | Q19: =K19*D19/100 -> 0 | R19: =SUM(L19:Q19) -> 104754.428 | T19: Stations set back from intersections | U19: 3 | V19: 0 | W19: 2
A20: 20 | B20: =C60 -> 2031 | C20: =D60 -> 183868.6952 | D20: =C20*D$12 -> 210345.7873 | E20: =D20-C20 -> 26477.0921 | F20: 30 | G20: 50 | H20: 20 | I20: 10 | J20: 90 | K20: 0 | L20: =F20*E20/100 -> 7943.127631 | M20: =G20*E20/100 -> 13238.54605 | N20: =H20*E20/100 -> 5295.418421 | O20: =I20*D20/100 -> 21034.57873 | P20: =J20*D20/100 -> 189311.2085 | Q20: =K20*D20/100 -> 0 | R20: =SUM(L20:Q20) -> 236822.8794 | T20: Stations are in center and shared by both directions of service | U20: 3 | V20: 0 | W20: 4
T21: Emissions standards | U21: 3 | V21: 0 | W21: 3
T22: Pavement quality | U22: 2 | V22: 0 | W22: 4
T23: Station Design and Station-Bus interface | V23: 0 | W23: 3
D24: Final Mode Share | T24: Platform-level boarding | U24: 6
E25: =B18 -> 2012 | F25: =C50 -> 2021 | G25: =C60 -> 2031 | J25: =B18 -> 2012 | K25: =B19 -> 2021 | L25: =B20 -> 2031 | T25: Safe, wide, attractive weather-protected stations | U25: 4
D26: Cars | E26: =L18*100/R18 -> 3.776223776 | F26: =L19*100/R19 -> 3.354037267 | G26: =L20*100/R20 -> 3.354037267 | I26: Proposed Ridership | J26: =D18 -> 57200 | K26: =D19 -> 93042.75286 | L26: =D20 -> 210345.7873 | T26: 3+ doors on articulated buses or 2+ very wide doors on standard buses | U26: 3
D27: 2-Wheeler | E27: =M18*100/R18 -> 6.293706294 | F27: =M19*100/R19 -> 5.590062112 | G27: =M20*100/R20 -> 5.590062112 | T27: Multiple docking bays and sub-stops | U27: 2
D28: 3-Wheeler | E28: =O18*100/R18 -> 8.741258741 | F28: =O19*100/R19 -> 8.881987578 | G28: =O20*100/R20 -> 8.881987578 | T28: Sliding doors at BRT stations | U28: 1
D29: Taxi | E29: =N18*100/R18 -> 2.517482517 | F29: =N19*100/R19 -> 2.236024845 | G29: =N20*100/R20 -> 2.236024845 | T29: Quality of Service and Passenger information Systems
D30: Bus | E30: =P18*100/R18 -> 78.67132867 | F30: =P19*100/R19 -> 79.9378882 | G30: =P20*100/R20 -> 79.9378882 | T30: Branding of vehicles and system | U30: 3
D31: Mini Bus | E31: =Q18*100/R18 -> 0 | F31: =Q19*100/R19 -> 0 | G31: =Q20*100/R20 -> 0 | T31: Passenger information at stops and on vehicles | U31: 2
T32: integration and access | V32: 0 | W32: 3
T33: Universal access | U33: 3 | V33: 0 | W33: 4
T34: Integration with other public transport | U34: 3 | V34: 0 | W34: 5
T35: Improved safe and attractive pedestrian access system and corridor environment | U35: 2 | V35: 0 | W35: 1
T36: Secure bicycle parking at station stops | U36: 2 | V36: 0 | W36: 3
T37: Bike lanes on corridor or on parallel streets | U37: 2 | V37: 0 | W37: 3
T38: Bicycles permitted on vehicles | U38: 1 | V38: 0 | W38: 1
T39: Bicycle sharing systems at BRT stations | U39: 1 | V39: 0 | W39: 0
U40: =(SUM(U5:U13)+SUM(U15:U22)+SUM(U24:U28)+SUM(U30:U31)+SUM(U33:U39)) -> 100 | V40: =SUM(V4:V39) -> 7 | W40: =SUM(W4:W39) -> 79
B41: 1 | C41: 2012 | D41: =C18 -> 50000
B42: 2 | C42: =C41+1 -> 2013 | D42: =D41+0.01*D$5*D41 -> 52500 | T42: Gold = 85-100
B43: 3 | C43: =C42+1 -> 2014 | D43: =D42+0.01*D$5*D42 -> 55125 | T43: Silver = 70-84
B44: 4 | C44: 2015 | D44: 57881.25 | T44: Bronze = 50-69
B45: 5 | C45: 2016 | D45: =D44+0.01*D$5*D44 -> 60775.3125 | T45: Not BRT = 0-49
B46: 6 | C46: 2017 | D46: =D45+0.01*D$6*D45 -> 64421.83125
B47: 7 | C47: 2018 | D47: =D46+0.01*D$6*D46 -> 68287.14113
B48: 8 | C48: 2019 | D48: 72384.36959
B49: 9 | C49: 2020 | D49: 76727.43177
B50: 10 | C50: 2021 | D50: 81331.07767
B51: 11 | C51: 2022 | D51: =D50+0.01*D$7*D50 -> 87837.56389
B52: 12 | C52: 2023 | D52: =D51+0.01*D$7*D51 -> 94864.569
B53: 13 | C53: 2024 | D53: 102453.7345
B54: 14 | C54: 2025 | D54: 110650.0333
B55: 15 | C55: 2026 | D55: 119502.0359
B56: 16 | C56: 2027 | D56: =D55+0.01*D$8*D55 -> 130257.2192
B57: 17 | C57: 2028 | D57: =D56+0.01*D$8*D56 -> 141980.3689
B58: 18 | C58: 2029 | D58: 154758.6021
B59: 19 | C59: 2030 | D59: 168686.8763
B60: 20 | C60: 2031 | D60: =D59+0.01*D$8*D59 -> 183868.6952

Sheet Calculations2
G6: No. of Trips | K6: No. of trips | O6: 1st | Q6: 2nd
K7: =H23 -> 0 | L7: =Q23 -> 9 | M7: =AA23 -> 19 | O7: intercept | P7: slope | Q7: intercept | R7: slope | T7: =K7 -> 0 | U7: =L7 -> 9 | V7: =M7 -> 19 | X7: 1st | Y7: 2nd
F8: NO BRT | G8: ='IF Factors'!D9 -> Car | K8: =Full!G174 ->  | L8: =Full!H174 ->  | M8: =Full!I174 ->  | O8: =INTERCEPT(K8:L8,$K$7:$L$7) ->  | P8: =SLOPE(K8:L8,$K$7:$L$7) ->  | Q8: =INTERCEPT(L8:M8,$L$7:$M$7) ->  | R8: =SLOPE(L8:M8,$L$7:$M$7) ->  | T8: =IF(K8<>0,0,1) ->  | U8: =IF(L8<>0,0,1) ->  | V8: =IF(M8<>0,0,1) ->  | X8: =IF(T8+U8=1,1,0) ->  | Y8: =IF(U8+V8=1,1,0) -> 
G9: ='IF Factors'!D10 -> 2-wheeler | K9: =Full!G175 ->  | L9: =Full!H175 ->  | M9: =Full!I175 ->  | O9: =INTERCEPT(K9:L9,$K$7:$L$7) ->  | P9: =SLOPE(K9:L9,$K$7:$L$7) ->  | Q9: =INTERCEPT(L9:M9,$L$7:$M$7) ->  | R9: =SLOPE(L9:M9,$L$7:$M$7) ->  | T9: =IF(K9<>0,0,1) ->  | X9: =IF(T9+U9=1,1,0) -> 
G10: ='IF Factors'!D11 -> Taxi | K10: =Full!G176 ->  | L10: =Full!H176 ->  | M10: =Full!I176 -> 
G11: ='IF Factors'!D12 ->  | K11: =Full!G177 ->  | L11: =Full!H177 ->  | M11: =Full!I177 -> 
G12: ='IF Factors'!D13 ->  | K12: =Full!G178 ->  | L12: =Full!H178 ->  | M12: =Full!I178 -> 
G13: ='IF Factors'!D14 -> 3-wheeler | K13: =Full!G179 ->  | L13: =Full!H179 ->  | M13: =Full!I179 -> 
G14: ='IF Factors'!D15 -> Bus | K14: =Full!G180 ->  | L14: =Full!H180 ->  | M14: =Full!I180 -> 
G15: ='IF Factors'!D16 -> Mini-bus | K15: =Full!G181 ->  | L15: =Full!H181 ->  | M15: =Full!I181 -> 
G16: ='IF Factors'!D17 ->  | K16: =Full!G182 ->  | L16: =Full!H182 ->  | M16: =Full!I182 -> 
G17: ='IF Factors'!D18 ->  | K17: =Full!G183 ->  | L17: =Full!H183 ->  | M17: =Full!I183 -> 
G18: BRT | K18: =Full!G171 -> 0 | L18: =Full!H171 -> 0 | M18: =Full!I171 -> 0 | O18: 0 | P18: 0 | Q18: 0 | R18: 0 | T18: 1 | U18: 1 | V18: 1 | X18: 0 | Y18: 0
H23: =Full!F12 -> 0 | I23: =H23+1 -> 1 | J23: 2 | K23: 3 | L23: 4 | M23: 5 | N23: 6 | O23: 7 | P23: 8 | Q23: =Full!F13 -> 9 | R23: =Q23+1 -> 10 | S23: 11 | T23: 12 | U23: 13 | V23: 14 | W23: 15 | X23: 16 | Y23: 17 | Z23: 18 | AA23: =Full!F14 -> 19 | AB23: Annual Average
F24: NO BRT | G24: =G8 -> Car | H24: =K8 ->  | I24: =(I$23*$P8)+$O8 ->  | J24: =(J$23*$P8)+$O8 ->  | Q24: =L8 ->  | R24: =(R$23*$R8)+$Q8 ->  | S24: =(S$23*$R8)+$Q8 ->  | AA24: =M8 ->  | AB24: =AVERAGE(H24:AA24) -> 
G25: 2-wheeler | H25: =K9 ->  | I25: =(I$23*$P9)+$O9 ->  | Q25: =L9 ->  | R25: =(R$23*$R9)+$Q9 ->  | AA25: =M9 ->  | AB25: =AVERAGE(H25:AA25) -> 
G26: Taxi
G29: 3-wheeler
G30: Bus
G31: Mini-bus
G34: BRT | H34: 0 | I34: 0 | J34: 0 | K34: 0 | L34: 0 | M34: 0 | N34: 0 | O34: 0 | P34: 0 | Q34: 0 | R34: 0 | S34: 0 | T34: 0 | U34: 0 | V34: 0 | W34: 0 | X34: 0 | Y34: 0 | Z34: 0 | AA34: 0 | AB34: 0
AA35: Baseline Scenario | AB35: =SUM(AB24:AB33) -> 
AA36: delta | AB36: =AB35-avg_ridership -> 
G39: Average Trip Length | K39: No. of trips | O39: 1st | Q39: 2nd
K40: =H56 -> 0 | L40: =Q56 -> 9 | M40: =AA56 -> 19 | O40: intercept | P40: slope | Q40: intercept | R40: slope | T40: =K40 -> 0 | U40: =L40 -> 9 | V40: =M40 -> 19 | X40: 1st | Y40: 2nd
F41: NO BRT | G41: =G8 -> Car | K41: ='IF Factors'!K233 -> 0 | L41: ='IF Factors'!L233 -> 0 | M41: ='IF Factors'!M233 -> 0 | O41: =INTERCEPT(K41:L41,$K$7:$L$7) -> 0 | P41: =SLOPE(K41:L41,$K$7:$L$7) -> 0 | Q41: =INTERCEPT(L41:M41,$L$7:$M$7) -> 0 | R41: =SLOPE(L41:M41,$L$7:$M$7) -> 0 | T41: =IF(K41<>0,0,1) -> 1 | U41: =IF(L41<>0,0,1) -> 1 | V41: =IF(M41<>0,0,1) -> 1 | X41: =IF(T41+U41=1,1,0) -> 0 | Y41: =IF(U41+V41=1,1,0) -> 0
G42: 2-wheeler | K42: ='IF Factors'!K234 -> 0 | L42: ='IF Factors'!L234 -> 0 | M42: ='IF Factors'!M234 -> 0 | O42: =INTERCEPT(K42:L42,$K$7:$L$7) -> 0 | P42: =SLOPE(K42:L42,$K$7:$L$7) -> 0 | Q42: =INTERCEPT(L42:M42,$L$7:$M$7) -> 0 | R42: =SLOPE(L42:M42,$L$7:$M$7) -> 0 | T42: =IF(K42<>0,0,1) -> 1 | U42: 1 | V42: 1 | X42: =IF(T42+U42=1,1,0) -> 0 | Y42: 0
G43: Taxi | K43: ='IF Factors'!K235 -> 0 | L43: ='IF Factors'!L235 -> 0 | M43: ='IF Factors'!M235 -> 0 | O43: 0 | P43: 0 | Q43: 0 | R43: 0 | T43: 1 | U43: 1 | V43: 1 | X43: 0 | Y43: 0
K44: ='IF Factors'!K236 -> 0 | L44: ='IF Factors'!L236 -> 0 | M44: ='IF Factors'!M236 -> 0 | O44: 0 | P44: 0 | Q44: 0 | R44: 0 | T44: 1 | U44: 1 | V44: 1 | X44: 0 | Y44: 0
K45: ='IF Factors'!K237 -> 0 | L45: ='IF Factors'!L237 -> 0 | M45: ='IF Factors'!M237 -> 0 | O45: 0 | P45: 0 | Q45: 0 | R45: 0 | T45: 1 | U45: 1 | V45: 1 | X45: 0 | Y45: 0
G46: 3-wheeler | K46: ='IF Factors'!K238 -> 0 | L46: ='IF Factors'!L238 -> 0 | M46: ='IF Factors'!M238 -> 0 | O46: 0 | P46: 0 | Q46: 0 | R46: 0 | T46: 1 | U46: 1 | V46: 1 | X46: 0 | Y46: 0
G47: Bus | K47: ='IF Factors'!K239 -> 0 | L47: ='IF Factors'!L239 -> 0 | M47: ='IF Factors'!M239 -> 0 | O47: 0 | P47: 0 | Q47: 0 | R47: 0 | T47: 1 | U47: 1 | V47: 1 | X47: 0 | Y47: 0
G48: Mini-bus | K48: ='IF Factors'!K240 -> 0 | L48: ='IF Factors'!L240 -> 0 | M48: ='IF Factors'!M240 -> 0 | O48: 0 | P48: 0 | Q48: 0 | R48: 0 | T48: 1 | U48: 1 | V48: 1 | X48: 0 | Y48: 0
K49: ='IF Factors'!K241 -> 0 | L49: ='IF Factors'!L241 -> 0 | M49: ='IF Factors'!M241 -> 0 | O49: 0 | P49: 0 | Q49: 0 | R49: 0 | T49: 1 | U49: 1 | V49: 1 | X49: 0 | Y49: 0
K50: ='IF Factors'!K242 -> 0 | L50: ='IF Factors'!L242 -> 0 | M50: ='IF Factors'!M242 -> 0 | O50: 0 | P50: 0 | Q50: 0 | R50: 0 | T50: 1 | U50: 1 | V50: 1 | X50: 0 | Y50: 0
G51: BRT | K51: ='IF Factors'!K243 -> 0 | L51: ='IF Factors'!L243 -> 0 | M51: ='IF Factors'!M243 -> 0 | O51: 0 | P51: 0 | Q51: 0 | R51: 0 | T51: 1 | U51: 1 | V51: 1 | X51: 0 | Y51: 0
H56: =H23 -> 0 | I56: =I23 -> 1 | J56: 2 | K56: 3 | L56: 4 | M56: 5 | N56: 6 | O56: 7 | P56: 8 | Q56: 9 | R56: 10 | S56: 11 | T56: 12 | U56: 13 | V56: 14 | W56: 15 | X56: 16 | Y56: 17 | Z56: 18 | AA56: 19
F57: NO BRT | G57: ='IF Factors'!D233 -> Cars | H57: =K41 -> 0 | I57: =(I$23*$P41)+$O41 -> 0 | J57: =(J$23*$P41)+$O41 -> 0 | K57: 0 | L57: 0 | M57: 0 | N57: 0 | O57: 0 | P57: 0 | Q57: =L41 -> 0 | R57: =(R$23*$R41)+$Q41 -> 0 | S57: =(S$23*$R41)+$Q41 -> 0 | T57: 0 | U57: 0 | V57: 0 | W57: 0 | X57: 0 | Y57: 0 | Z57: 0 | AA57: =M41 -> 0
G58: =Full!F187 -> 2-wheeler | H58: =K42 -> 0 | I58: =(I$23*$P42)+$O42 -> 0 | J58: 0 | K58: 0 | L58: 0 | M58: 0 | N58: 0 | O58: 0 | P58: 0 | Q58: =L42 -> 0 | R58: =(R$23*$R42)+$Q42 -> 0 | S58: 0 | T58: 0 | U58: 0 | V58: 0 | W58: 0 | X58: 0 | Y58: 0 | Z58: 0 | AA58: =M42 -> 0
G59: =Full!F188 -> Taxi | H59: 0 | I59: 0 | J59: 0 | K59: 0 | L59: 0 | M59: 0 | N59: 0 | O59: 0 | P59: 0 | Q59: 0 | R59: 0 | S59: 0 | T59: 0 | U59: 0 | V59: 0 | W59: 0 | X59: 0 | Y59: 0 | Z59: 0 | AA59: 0
G60: =Full!F189 ->  | H60: 0 | I60: 0 | J60: 0 | K60: 0 | L60: 0 | M60: 0 | N60: 0 | O60: 0 | P60: 0 | Q60: 0 | R60: 0 | S60: 0 | T60: 0 | U60: 0 | V60: 0 | W60: 0 | X60: 0 | Y60: 0 | Z60: 0 | AA60: 0
G61: =Full!F190 ->  | H61: 0 | I61: 0 | J61: 0 | K61: 0 | L61: 0 | M61: 0 | N61: 0 | O61: 0 | P61: 0 | Q61: 0 | R61: 0 | S61: 0 | T61: 0 | U61: 0 | V61: 0 | W61: 0 | X61: 0 | Y61: 0 | Z61: 0 | AA61: 0
G62: =Full!F191 -> 3-wheeler | H62: 0 | I62: 0 | J62: 0 | K62: 0 | L62: 0 | M62: 0 | N62: 0 | O62: 0 | P62: 0 | Q62: 0 | R62: 0 | S62: 0 | T62: 0 | U62: 0 | V62: 0 | W62: 0 | X62: 0 | Y62: 0 | Z62: 0 | AA62: 0
G63: =Full!F192 -> Bus | H63: 0 | I63: 0 | J63: 0 | K63: 0 | L63: 0 | M63: 0 | N63: 0 | O63: 0 | P63: 0 | Q63: 0 | R63: 0 | S63: 0 | T63: 0 | U63: 0 | V63: 0 | W63: 0 | X63: 0 | Y63: 0 | Z63: 0 | AA63: 0
G64: =Full!F193 -> Mini-bus | H64: 0 | I64: 0 | J64: 0 | K64: 0 | L64: 0 | M64: 0 | N64: 0 | O64: 0 | P64: 0 | Q64: 0 | R64: 0 | S64: 0 | T64: 0 | U64: 0 | V64: 0 | W64: 0 | X64: 0 | Y64: 0 | Z64: 0 | AA64: 0
G65: =Full!F194 ->  | H65: 0 | I65: 0 | J65: 0 | K65: 0 | L65: 0 | M65: 0 | N65: 0 | O65: 0 | P65: 0 | Q65: 0 | R65: 0 | S65: 0 | T65: 0 | U65: 0 | V65: 0 | W65: 0 | X65: 0 | Y65: 0 | Z65: 0 | AA65: 0
G66: =Full!F195 ->  | H66: 0 | I66: 0 | J66: 0 | K66: 0 | L66: 0 | M66: 0 | N66: 0 | O66: 0 | P66: 0 | Q66: 0 | R66: 0 | S66: 0 | T66: 0 | U66: 0 | V66: 0 | W66: 0 | X66: 0 | Y66: 0 | Z66: 0 | AA66: 0
G67: BRT | H67: 0 | I67: 0 | J67: 0 | K67: 0 | L67: 0 | M67: 0 | N67: 0 | O67: 0 | P67: 0 | Q67: 0 | R67: 0 | S67: 0 | T67: 0 | U67: 0 | V67: 0 | W67: 0 | X67: 0 | Y67: 0 | Z67: 0 | AA67: 0
G72: Average Occupancy | O72: 1st | Q72: 2nd
K73: =H89 -> 0 | L73: =Q89 -> 9 | M73: =AA89 -> 19 | O73: intercept | P73: slope | Q73: intercept | R73: slope | T73: =K73 -> 0 | U73: =L73 -> 9 | V73: =M73 -> 19 | X73: 1st | Y73: 2nd
F74: NO BRT | G74: =G41 -> Car | K74: ='IF Factors'!H233 -> 0 | L74: ='IF Factors'!I233 -> 0 | M74: ='IF Factors'!J233 -> 0 | O74: =INTERCEPT(K74:L74,$K$7:$L$7) -> 0 | P74: =SLOPE(K74:L74,$K$7:$L$7) -> 0 | Q74: =INTERCEPT(L74:M74,$L$7:$M$7) -> 0 | R74: =SLOPE(L74:M74,$L$7:$M$7) -> 0 | T74: =IF(K74<>0,0,1) -> 1 | U74: =IF(L74<>0,0,1) -> 1 | V74: =IF(M74<>0,0,1) -> 1 | X74: =IF(T74+U74=1,1,0) -> 0 | Y74: =IF(U74+V74=1,1,0) -> 0
G75: =G42 -> 2-wheeler | K75: ='IF Factors'!H234 -> 0 | L75: ='IF Factors'!I234 -> 0 | M75: ='IF Factors'!J234 -> 0 | O75: =INTERCEPT(K75:L75,$K$7:$L$7) -> 0 | P75: =SLOPE(K75:L75,$K$7:$L$7) -> 0 | Q75: =INTERCEPT(L75:M75,$L$7:$M$7) -> 0 | R75: =SLOPE(L75:M75,$L$7:$M$7) -> 0 | T75: =IF(K75<>0,0,1) -> 1 | U75: 1 | V75: 1 | X75: =IF(T75+U75=1,1,0) -> 0 | Y75: 0
G76: Taxi | K76: ='IF Factors'!H235 -> 0 | L76: ='IF Factors'!I235 -> 0 | M76: ='IF Factors'!J235 -> 0 | O76: 0 | P76: 0 | Q76: 0 | R76: 0 | T76: 1 | U76: 1 | V76: 1 | X76: 0 | Y76: 0
K77: ='IF Factors'!H236 -> 0 | L77: ='IF Factors'!I236 -> 0 | M77: ='IF Factors'!J236 -> 0 | O77: 0 | P77: 0 | Q77: 0 | R77: 0 | T77: 1 | U77: 1 | V77: 1 | X77: 0 | Y77: 0
K78: ='IF Factors'!H237 -> 0 | L78: ='IF Factors'!I237 -> 0 | M78: ='IF Factors'!J237 -> 0 | O78: 0 | P78: 0 | Q78: 0 | R78: 0 | T78: 1 | U78: 1 | V78: 1 | X78: 0 | Y78: 0
G79: 3-wheeler | K79: ='IF Factors'!H238 -> 0 | L79: ='IF Factors'!I238 -> 0 | M79: ='IF Factors'!J238 -> 0 | O79: 0 | P79: 0 | Q79: 0 | R79: 0 | T79: 1 | U79: 1 | V79: 1 | X79: 0 | Y79: 0
G80: Bus | K80: ='IF Factors'!H239 -> 0 | L80: ='IF Factors'!I239 -> 0 | M80: ='IF Factors'!J239 -> 0 | O80: 0 | P80: 0 | Q80: 0 | R80: 0 | T80: 1 | U80: 1 | V80: 1 | X80: 0 | Y80: 0
G81: Mini-bus | K81: ='IF Factors'!H240 -> 0 | L81: ='IF Factors'!I240 -> 0 | M81: ='IF Factors'!J240 -> 0 | O81: 0 | P81: 0 | Q81: 0 | R81: 0 | T81: 1 | U81: 1 | V81: 1 | X81: 0 | Y81: 0
K82: ='IF Factors'!H241 -> 0 | L82: ='IF Factors'!I241 -> 0 | M82: ='IF Factors'!J241 -> 0 | O82: 0 | P82: 0 | Q82: 0 | R82: 0 | T82: 1 | U82: 1 | V82: 1 | X82: 0 | Y82: 0
K83: ='IF Factors'!H242 -> 0 | L83: ='IF Factors'!I242 -> 0 | M83: ='IF Factors'!J242 -> 0 | O83: 0 | P83: 0 | Q83: 0 | R83: 0 | T83: 1 | U83: 1 | V83: 1 | X83: 0 | Y83: 0
G84: BRT | K84: ='IF Factors'!H243 -> 0 | L84: ='IF Factors'!I243 -> 0 | M84: ='IF Factors'!J243 -> 0 | O84: 0 | P84: 0 | Q84: 0 | R84: 0 | T84: 1 | U84: 1 | V84: 1 | X84: 0 | Y84: 0
H89: =H56 -> 0 | I89: =I56 -> 1 | J89: 2 | K89: 3 | L89: 4 | M89: 5 | N89: 6 | O89: 7 | P89: 8 | Q89: 9 | R89: 10 | S89: 11 | T89: 12 | U89: 13 | V89: 14 | W89: 15 | X89: 16 | Y89: 17 | Z89: 18 | AA89: 19
F90: NO BRT | G90: =G57 -> Cars | H90: =K74 -> 0 | I90: =(I$23*$P74)+$O74 -> 0 | J90: =(J$23*$P74)+$O74 -> 0 | K90: 0 | L90: 0 | M90: 0 | N90: 0 | O90: 0 | P90: 0 | Q90: =L74 -> 0 | R90: =(R$23*$R74)+$Q74 -> 0 | S90: =(S$23*$R74)+$Q74 -> 0 | T90: 0 | U90: 0 | V90: 0 | W90: 0 | X90: 0 | Y90: 0 | Z90: 0 | AA90: =M74 -> 0
G91: =G58 -> 2-wheeler | H91: =K75 -> 0 | I91: =(I$23*$P75)+$O75 -> 0 | J91: 0 | K91: 0 | L91: 0 | M91: 0 | N91: 0 | O91: 0 | P91: 0 | Q91: =L75 -> 0 | R91: =(R$23*$R75)+$Q75 -> 0 | S91: 0 | T91: 0 | U91: 0 | V91: 0 | W91: 0 | X91: 0 | Y91: 0 | Z91: 0 | AA91: =M75 -> 0
G92: Taxi | H92: 0 | I92: 0 | J92: 0 | K92: 0 | L92: 0 | M92: 0 | N92: 0 | O92: 0 | P92: 0 | Q92: 0 | R92: 0 | S92: 0 | T92: 0 | U92: 0 | V92: 0 | W92: 0 | X92: 0 | Y92: 0 | Z92: 0 | AA92: 0
H93: 0 | I93: 0 | J93: 0 | K93: 0 | L93: 0 | M93: 0 | N93: 0 | O93: 0 | P93: 0 | Q93: 0 | R93: 0 | S93: 0 | T93: 0 | U93: 0 | V93: 0 | W93: 0 | X93: 0 | Y93: 0 | Z93: 0 | AA93: 0
H94: 0 | I94: 0 | J94: 0 | K94: 0 | L94: 0 | M94: 0 | N94: 0 | O94: 0 | P94: 0 | Q94: 0 | R94: 0 | S94: 0 | T94: 0 | U94: 0 | V94: 0 | W94: 0 | X94: 0 | Y94: 0 | Z94: 0 | AA94: 0
G95: 3-wheeler | H95: 0 | I95: 0 | J95: 0 | K95: 0 | L95: 0 | M95: 0 | N95: 0 | O95: 0 | P95: 0 | Q95: 0 | R95: 0 | S95: 0 | T95: 0 | U95: 0 | V95: 0 | W95: 0 | X95: 0 | Y95: 0 | Z95: 0 | AA95: 0
G96: Bus | H96: 0 | I96: 0 | J96: 0 | K96: 0 | L96: 0 | M96: 0 | N96: 0 | O96: 0 | P96: 0 | Q96: 0 | R96: 0 | S96: 0 | T96: 0 | U96: 0 | V96: 0 | W96: 0 | X96: 0 | Y96: 0 | Z96: 0 | AA96: 0
G97: Mini-bus | H97: 0 | I97: 0 | J97: 0 | K97: 0 | L97: 0 | M97: 0 | N97: 0 | O97: 0 | P97: 0 | Q97: 0 | R97: 0 | S97: 0 | T97: 0 | U97: 0 | V97: 0 | W97: 0 | X97: 0 | Y97: 0 | Z97: 0 | AA97: 0
H98: 0 | I98: 0 | J98: 0 | K98: 0 | L98: 0 | M98: 0 | N98: 0 | O98: 0 | P98: 0 | Q98: 0 | R98: 0 | S98: 0 | T98: 0 | U98: 0 | V98: 0 | W98: 0 | X98: 0 | Y98: 0 | Z98: 0 | AA98: 0
H99: 0 | I99: 0 | J99: 0 | K99: 0 | L99: 0 | M99: 0 | N99: 0 | O99: 0 | P99: 0 | Q99: 0 | R99: 0 | S99: 0 | T99: 0 | U99: 0 | V99: 0 | W99: 0 | X99: 0 | Y99: 0 | Z99: 0 | AA99: 0
G100: BRT | H100: 0 | I100: 0 | J100: 0 | K100: 0 | L100: 0 | M100: 0 | N100: 0 | O100: 0 | P100: 0 | Q100: 0 | R100: 0 | S100: 0 | T100: 0 | U100: 0 | V100: 0 | W100: 0 | X100: 0 | Y100: 0 | Z100: 0 | AA100: 0
G105: VKT/Day
F107: NO BRT | G107: =G74 -> Car
G108: =G75 -> 2-wheeler
G109: Taxi
G112: 3-wheeler
G113: Bus
G114: Mini-bus
G117: BRT
G120: Land Use Impact Factor | H120: =Full!G332 -> 1
H122: =H89 -> 0 | I122: =I89 -> 1 | J122: 2 | K122: 3 | L122: 4 | M122: 5 | N122: 6 | O122: 7 | P122: 8 | Q122: 9 | R122: 10 | S122: 11 | T122: 12 | U122: 13 | V122: 14 | W122: 15 | X122: 16 | Y122: 17 | Z122: 18 | AA122: 19
F123: NO BRT | G123: =G90 -> Cars | H123: =IF(ISERROR(H24*H57/H90*$H$120),0,(H24*H57/H90*$H$120)) -> 0 | I123: =IF(ISERROR(I24*I57/I90*$H$120),0,(I24*I57/I90*$H$120)) -> 0 | J123: 0 | K123: 0 | L123: 0 | M123: 0 | N123: 0 | O123: 0 | P123: 0 | Q123: 0 | R123: 0 | S123: 0 | T123: 0 | U123: 0 | V123: 0 | W123: 0 | X123: 0 | Y123: 0 | Z123: 0 | AA123: 0 | AC123: =SUM(H123:AA123) -> 0
G124: =G91 -> 2-wheeler | H124: =IF(ISERROR(H25*H58/H91*$H$120),0,(H25*H58/H91*$H$120)) -> 0 | I124: 0 | J124: 0 | K124: 0 | L124: 0 | M124: 0 | N124: 0 | O124: 0 | P124: 0 | Q124: 0 | R124: 0 | S124: 0 | T124: 0 | U124: 0 | V124: 0 | W124: 0 | X124: 0 | Y124: 0 | Z124: 0 | AA124: 0 | AC124: =SUM(H124:AA124) -> 0
G125: Taxi | H125: =IF(ISERROR(H26*H59/H92*$H$120),0,(H26*H59/H92*$H$120)) -> 0 | I125: 0 | J125: 0 | K125: 0 | L125: 0 | M125: 0 | N125: 0 | O125: 0 | P125: 0 | Q125: 0 | R125: 0 | S125: 0 | T125: 0 | U125: 0 | V125: 0 | W125: 0 | X125: 0 | Y125: 0 | Z125: 0 | AA125: 0 | AC125: great
H126: =IF(ISERROR(H27*H60/H93*$H$120),0,(H27*H60/H93*$H$120)) -> 0 | I126: 0 | J126: 0 | K126: 0 | L126: 0 | M126: 0 | N126: 0 | O126: 0 | P126: 0 | Q126: 0 | R126: 0 | S126: 0 | T126: 0 | U126: 0 | V126: 0 | W126: 0 | X126: 0 | Y126: 0 | Z126: 0 | AA126: 0 | AC126: 0
H127: =IF(ISERROR(H28*H61/H94*$H$120),0,(H28*H61/H94*$H$120)) -> 0 | I127: 0 | J127: 0 | K127: 0 | L127: 0 | M127: 0 | N127: 0 | O127: 0 | P127: 0 | Q127: 0 | R127: 0 | S127: 0 | T127: 0 | U127: 0 | V127: 0 | W127: 0 | X127: 0 | Y127: 0 | Z127: 0 | AA127: 0 | AC127: 0
G128: 3-wheeler | H128: =IF(ISERROR(H29*H62/H95*$H$120),0,(H29*H62/H95*$H$120)) -> 0 | I128: 0 | J128: 0 | K128: 0 | L128: 0 | M128: 0 | N128: 0 | O128: 0 | P128: 0 | Q128: 0 | R128: 0 | S128: 0 | T128: 0 | U128: 0 | V128: 0 | W128: 0 | X128: 0 | Y128: 0 | Z128: 0 | AA128: 0 | AC128: 0
G129: Bus | H129: =IF(ISERROR(H30*H63/H96*$H$120),0,(H30*H63/H96*$H$120)) -> 0 | I129: 0 | J129: 0 | K129: 0 | L129: 0 | M129: 0 | N129: 0 | O129: 0 | P129: 0 | Q129: 0 | R129: 0 | S129: 0 | T129: 0 | U129: 0 | V129: 0 | W129: 0 | X129: 0 | Y129: 0 | Z129: 0 | AA129: 0 | AC129: 0
G130: Mini-bus | H130: =IF(ISERROR(H31*H64/H97*$H$120),0,(H31*H64/H97*$H$120)) -> 0 | I130: 0 | J130: 0 | K130: 0 | L130: 0 | M130: 0 | N130: 0 | O130: 0 | P130: 0 | Q130: 0 | R130: 0 | S130: 0 | T130: 0 | U130: 0 | V130: 0 | W130: 0 | X130: 0 | Y130: 0 | Z130: 0 | AA130: 0 | AC130: 0
H131: =IF(ISERROR(H32*H65/H98*$H$120),0,(H32*H65/H98*$H$120)) -> 0 | I131: 0 | J131: 0 | K131: 0 | L131: 0 | M131: 0 | N131: 0 | O131: 0 | P131: 0 | Q131: 0 | R131: 0 | S131: 0 | T131: 0 | U131: 0 | V131: 0 | W131: 0 | X131: 0 | Y131: 0 | Z131: 0 | AA131: 0 | AC131: 0
H132: =IF(ISERROR(H33*H66/H99*$H$120),0,(H33*H66/H99*$H$120)) -> 0 | I132: 0 | J132: 0 | K132: 0 | L132: 0 | M132: 0 | N132: 0 | O132: 0 | P132: 0 | Q132: 0 | R132: 0 | S132: 0 | T132: 0 | U132: 0 | V132: 0 | W132: 0 | X132: 0 | Y132: 0 | Z132: 0 | AA132: 0 | AC132: 0
G133: BRT | H133: =IF(ISERROR(H34*H67/H100),0,(H34*H67/H100)) -> 0 | I133: =IF(ISERROR(I34*I67/I100),0,(I34*I67/I100)) -> 0 | J133: 0 | K133: 0 | L133: 0 | M133: 0 | N133: 0 | O133: 0 | P133: 0 | Q133: 0 | R133: 0 | S133: 0 | T133: 0 | U133: 0 | V133: 0 | W133: 0 | X133: 0 | Y133: 0 | Z133: 0 | AA133: 0 | AC133: 0
G138: PKT/Day
F140: NO BRT | G140: =G107 -> Car
G141: =G108 -> 2-wheeler
G142: Taxi
G145: 3-wheeler
G146: Bus
G147: Mini-bus
G150: BRT
H155: =H122 -> 0 | I155: =I122 -> 1 | J155: 2 | K155: 3 | L155: 4 | M155: 5 | N155: 6 | O155: 7 | P155: 8 | Q155: 9 | R155: 10 | S155: 11 | T155: 12 | U155: 13 | V155: 14 | W155: 15 | X155: 16 | Y155: 17 | Z155: 18 | AA155: 19
F156: NO BRT | G156: =G123 -> Cars | H156: =H123*H90 -> 0 | I156: =I123*I90 -> 0 | J156: 0 | K156: 0 | L156: 0 | M156: 0 | N156: 0 | O156: 0 | P156: 0 | Q156: 0 | R156: 0 | S156: 0 | T156: 0 | U156: 0 | V156: 0 | W156: 0 | X156: 0 | Y156: 0 | Z156: 0 | AA156: 0
G157: =G124 -> 2-wheeler | H157: =H124*H91 -> 0 | I157: 0 | J157: 0 | K157: 0 | L157: 0 | M157: 0 | N157: 0 | O157: 0 | P157: 0 | Q157: 0 | R157: 0 | S157: 0 | T157: 0 | U157: 0 | V157: 0 | W157: 0 | X157: 0 | Y157: 0 | Z157: 0 | AA157: 0
G158: Taxi | H158: 0 | I158: 0 | J158: 0 | K158: 0 | L158: 0 | M158: 0 | N158: 0 | O158: 0 | P158: 0 | Q158: 0 | R158: 0 | S158: 0 | T158: 0 | U158: 0 | V158: 0 | W158: 0 | X158: 0 | Y158: 0 | Z158: 0 | AA158: 0
H159: 0 | I159: 0 | J159: 0 | K159: 0 | L159: 0 | M159: 0 | N159: 0 | O159: 0 | P159: 0 | Q159: 0 | R159: 0 | S159: 0 | T159: 0 | U159: 0 | V159: 0 | W159: 0 | X159: 0 | Y159: 0 | Z159: 0 | AA159: 0
H160: 0 | I160: 0 | J160: 0 | K160: 0 | L160: 0 | M160: 0 | N160: 0 | O160: 0 | P160: 0 | Q160: 0 | R160: 0 | S160: 0 | T160: 0 | U160: 0 | V160: 0 | W160: 0 | X160: 0 | Y160: 0 | Z160: 0 | AA160: 0
G161: 3-wheeler | H161: 0 | I161: 0 | J161: 0 | K161: 0 | L161: 0 | M161: 0 | N161: 0 | O161: 0 | P161: 0 | Q161: 0 | R161: 0 | S161: 0 | T161: 0 | U161: 0 | V161: 0 | W161: 0 | X161: 0 | Y161: 0 | Z161: 0 | AA161: 0
G162: Bus | H162: 0 | I162: 0 | J162: 0 | K162: 0 | L162: 0 | M162: 0 | N162: 0 | O162: 0 | P162: 0 | Q162: 0 | R162: 0 | S162: 0 | T162: 0 | U162: 0 | V162: 0 | W162: 0 | X162: 0 | Y162: 0 | Z162: 0 | AA162: 0
G163: Mini-bus | H163: 0 | I163: 0 | J163: 0 | K163: 0 | L163: 0 | M163: 0 | N163: 0 | O163: 0 | P163: 0 | Q163: 0 | R163: 0 | S163: 0 | T163: 0 | U163: 0 | V163: 0 | W163: 0 | X163: 0 | Y163: 0 | Z163: 0 | AA163: 0
H164: 0 | I164: 0 | J164: 0 | K164: 0 | L164: 0 | M164: 0 | N164: 0 | O164: 0 | P164: 0 | Q164: 0 | R164: 0 | S164: 0 | T164: 0 | U164: 0 | V164: 0 | W164: 0 | X164: 0 | Y164: 0 | Z164: 0 | AA164: 0
H165: 0 | I165: 0 | J165: 0 | K165: 0 | L165: 0 | M165: 0 | N165: 0 | O165: 0 | P165: 0 | Q165: 0 | R165: 0 | S165: 0 | T165: 0 | U165: 0 | V165: 0 | W165: 0 | X165: 0 | Y165: 0 | Z165: 0 | AA165: 0
G166: BRT | H166: =H133*H100 -> 0 | I166: 0 | J166: 0 | K166: 0 | L166: 0 | M166: 0 | N166: 0 | O166: 0 | P166: 0 | Q166: 0 | R166: 0 | S166: 0 | T166: 0 | U166: 0 | V166: 0 | W166: 0 | X166: 0 | Y166: 0 | Z166: 0 | AA166: 0
G169: Gasoline VKT
K170: Fuel Split
K171: Column | L171: 7 | M171: 14 | O171: 1st | Q171: 2nd
K172: =H188 -> 0 | L172: =Q188 -> 9 | M172: =AA188 -> 19 | O172: intercept | P172: slope | Q172: intercept | R172: slope | T172: =K172 -> 0 | U172: =L172 -> 9 | V172: =M172 -> 19 | X172: 1st | Y172: 2nd
F173: NO BRT | G173: =G140 -> Car | K173: ='IF Factors'!E9 -> 0 | L173: =OFFSET('IF Factors'!E9,0,$L$171) -> 0 | M173: =OFFSET('IF Factors'!E9,0,$M$171) -> 0 | O173: =INTERCEPT(K173:L173,$K$7:$L$7) -> 0 | P173: =SLOPE(K173:L173,$K$7:$L$7) -> 0 | Q173: =INTERCEPT(L173:M173,$L$7:$M$7) -> 0 | R173: =SLOPE(L173:M173,$L$7:$M$7) -> 0 | T173: =IF(K173<>0,0,1) -> 1 | U173: =IF(L173<>0,0,1) -> 1 | V173: =IF(M173<>0,0,1) -> 1 | X173: =IF(T173+U173=1,1,0) -> 0 | Y173: =IF(U173+V173=1,1,0) -> 0
G174: =G141 -> 2-wheeler | K174: ='IF Factors'!E10 -> 0 | L174: =OFFSET('IF Factors'!E10,0,$L$171) -> 0 | M174: =OFFSET('IF Factors'!E10,0,$M$171) -> 0 | O174: =INTERCEPT(K174:L174,$K$7:$L$7) -> 0 | P174: =SLOPE(K174:L174,$K$7:$L$7) -> 0 | Q174: =INTERCEPT(L174:M174,$L$7:$M$7) -> 0 | R174: =SLOPE(L174:M174,$L$7:$M$7) -> 0 | T174: =IF(K174<>0,0,1) -> 1 | U174: 1 | V174: 1 | X174: =IF(T174+U174=1,1,0) -> 0 | Y174: 0
G175: Taxi | K175: ='IF Factors'!E11 -> 0 | L175: =OFFSET('IF Factors'!E11,0,$L$171) -> 0 | M175: =OFFSET('IF Factors'!E11,0,$M$171) -> 0 | O175: 0 | P175: 0 | Q175: 0 | R175: 0 | T175: 1 | U175: 1 | V175: 1 | X175: 0 | Y175: 0
K176: ='IF Factors'!E12 -> 0 | L176: =OFFSET('IF Factors'!E12,0,$L$171) -> 0 | M176: =OFFSET('IF Factors'!E12,0,$M$171) -> 0 | O176: 0 | P176: 0 | Q176: 0 | R176: 0 | T176: 1 | U176: 1 | V176: 1 | X176: 0 | Y176: 0
K177: ='IF Factors'!E13 -> 0 | L177: =OFFSET('IF Factors'!E13,0,$L$171) -> 0 | M177: =OFFSET('IF Factors'!E13,0,$M$171) -> 0 | O177: 0 | P177: 0 | Q177: 0 | R177: 0 | T177: 1 | U177: 1 | V177: 1 | X177: 0 | Y177: 0
G178: 3-wheeler | K178: ='IF Factors'!E14 -> 0 | L178: =OFFSET('IF Factors'!E14,0,$L$171) -> 0 | M178: =OFFSET('IF Factors'!E14,0,$M$171) -> 0 | O178: 0 | P178: 0 | Q178: 0 | R178: 0 | T178: 1 | U178: 1 | V178: 1 | X178: 0 | Y178: 0
G179: Bus | K179: ='IF Factors'!E15 -> 0 | L179: =OFFSET('IF Factors'!E15,0,$L$171) -> 0 | M179: =OFFSET('IF Factors'!E15,0,$M$171) -> 0 | O179: 0 | P179: 0 | Q179: 0 | R179: 0 | T179: 1 | U179: 1 | V179: 1 | X179: 0 | Y179: 0
G180: Mini-bus | K180: ='IF Factors'!E16 -> 0 | L180: =OFFSET('IF Factors'!E16,0,$L$171) -> 0 | M180: =OFFSET('IF Factors'!E16,0,$M$171) -> 0 | O180: 0 | P180: 0 | Q180: 0 | R180: 0 | T180: 1 | U180: 1 | V180: 1 | X180: 0 | Y180: 0
K181: ='IF Factors'!E17 -> 0 | L181: =OFFSET('IF Factors'!E17,0,$L$171) -> 0 | M181: =OFFSET('IF Factors'!E17,0,$M$171) -> 0 | O181: 0 | P181: 0 | Q181: 0 | R181: 0 | T181: 1 | U181: 1 | V181: 1 | X181: 0 | Y181: 0
K182: ='IF Factors'!E18 -> 0 | L182: =OFFSET('IF Factors'!E18,0,$L$171) -> 0 | M182: =OFFSET('IF Factors'!E18,0,$M$171) -> 0 | O182: 0 | P182: 0 | Q182: 0 | R182: 0 | T182: 1 | U182: 1 | V182: 1 | X182: 0 | Y182: 0
G183: BRT | K183: ='IF Factors'!E19 -> 0 | L183: =OFFSET('IF Factors'!E19,0,$L$171) -> 0 | M183: =OFFSET('IF Factors'!E19,0,$M$171) -> 0 | O183: 0 | P183: 0 | Q183: 0 | R183: 0 | T183: 1 | U183: 1 | V183: 1 | X183: 0 | Y183: 0
G187: %
H188: =H155 -> 0 | I188: =I155 -> 1 | J188: 2 | K188: 3 | L188: 4 | M188: 5 | N188: 6 | O188: 7 | P188: 8 | Q188: 9 | R188: 10 | S188: 11 | T188: 12 | U188: 13 | V188: 14 | W188: 15 | X188: 16 | Y188: 17 | Z188: 18 | AA188: 19
F189: NO BRT | G189: =G156 -> Cars | H189: =K173 -> 0 | I189: =(I$23*$P173)+$O173 -> 0 | J189: =(J$23*$P173)+$O173 -> 0 | K189: 0 | L189: 0 | M189: 0 | N189: 0 | O189: 0 | P189: 0 | Q189: =L173 -> 0 | R189: =(R$23*$R173)+$Q173 -> 0 | S189: =(S$23*$R173)+$Q173 -> 0 | T189: 0 | U189: 0 | V189: 0 | W189: 0 | X189: 0 | Y189: 0 | Z189: 0 | AA189: =M173 -> 0
G190: =G157 -> 2-wheeler | H190: =K174 -> 0 | I190: =(I$23*$P174)+$O174 -> 0 | J190: 0 | K190: 0 | L190: 0 | M190: 0 | N190: 0 | O190: 0 | P190: 0 | Q190: =L174 -> 0 | R190: =(R$23*$R174)+$Q174 -> 0 | S190: 0 | T190: 0 | U190: 0 | V190: 0 | W190: 0 | X190: 0 | Y190: 0 | Z190: 0 | AA190: =M174 -> 0
G191: Taxi | H191: 0 | I191: 0 | J191: 0 | K191: 0 | L191: 0 | M191: 0 | N191: 0 | O191: 0 | P191: 0 | Q191: 0 | R191: 0 | S191: 0 | T191: 0 | U191: 0 | V191: 0 | W191: 0 | X191: 0 | Y191: 0 | Z191: 0 | AA191: 0
H192: 0 | I192: 0 | J192: 0 | K192: 0 | L192: 0 | M192: 0 | N192: 0 | O192: 0 | P192: 0 | Q192: 0 | R192: 0 | S192: 0 | T192: 0 | U192: 0 | V192: 0 | W192: 0 | X192: 0 | Y192: 0 | Z192: 0 | AA192: 0
H193: 0 | I193: 0 | J193: 0 | K193: 0 | L193: 0 | M193: 0 | N193: 0 | O193: 0 | P193: 0 | Q193: 0 | R193: 0 | S193: 0 | T193: 0 | U193: 0 | V193: 0 | W193: 0 | X193: 0 | Y193: 0 | Z193: 0 | AA193: 0
G194: 3-wheeler | H194: 0 | I194: 0 | J194: 0 | K194: 0 | L194: 0 | M194: 0 | N194: 0 | O194: 0 | P194: 0 | Q194: 0 | R194: 0 | S194: 0 | T194: 0 | U194: 0 | V194: 0 | W194: 0 | X194: 0 | Y194: 0 | Z194: 0 | AA194: 0
G195: Bus | H195: 0 | I195: 0 | J195: 0 | K195: 0 | L195: 0 | M195: 0 | N195: 0 | O195: 0 | P195: 0 | Q195: 0 | R195: 0 | S195: 0 | T195: 0 | U195: 0 | V195: 0 | W195: 0 | X195: 0 | Y195: 0 | Z195: 0 | AA195: 0
G196: Mini-bus | H196: 0 | I196: 0 | J196: 0 | K196: 0 | L196: 0 | M196: 0 | N196: 0 | O196: 0 | P196: 0 | Q196: 0 | R196: 0 | S196: 0 | T196: 0 | U196: 0 | V196: 0 | W196: 0 | X196: 0 | Y196: 0 | Z196: 0 | AA196: 0
H197: 0 | I197: 0 | J197: 0 | K197: 0 | L197: 0 | M197: 0 | N197: 0 | O197: 0 | P197: 0 | Q197: 0 | R197: 0 | S197: 0 | T197: 0 | U197: 0 | V197: 0 | W197: 0 | X197: 0 | Y197: 0 | Z197: 0 | AA197: 0
H198: 0 | I198: 0 | J198: 0 | K198: 0 | L198: 0 | M198: 0 | N198: 0 | O198: 0 | P198: 0 | Q198: 0 | R198: 0 | S198: 0 | T198: 0 | U198: 0 | V198: 0 | W198: 0 | X198: 0 | Y198: 0 | Z198: 0 | AA198: 0
G199: BRT | H199: 0 | I199: 0 | J199: 0 | K199: 0 | L199: 0 | M199: 0 | N199: 0 | O199: 0 | P199: 0 | Q199: 0 | R199: 0 | S199: 0 | T199: 0 | U199: 0 | V199: 0 | W199: 0 | X199: 0 | Y199: 0 | Z199: 0 | AA199: 0
G201: Gasoline VKT
H202: =H188 -> 0 | I202: =I188 -> 1 | J202: 2 | K202: 3 | L202: 4 | M202: 5 | N202: 6 | O202: 7 | P202: 8 | Q202: 9 | R202: 10 | S202: 11 | T202: 12 | U202: 13 | V202: 14 | W202: 15 | X202: 16 | Y202: 17 | Z202: 18 | AA202: 19
F203: NO BRT | G203: =G189 -> Cars | H203: =H123*H189 -> 0 | I203: =I123*I189 -> 0 | J203: 0 | K203: 0 | L203: 0 | M203: 0 | N203: 0 | O203: 0 | P203: 0 | Q203: 0 | R203: 0 | S203: 0 | T203: 0 | U203: 0 | V203: 0 | W203: 0 | X203: 0 | Y203: 0 | Z203: 0 | AA203: 0
G204: =G190 -> 2-wheeler | H204: =H124*H190 -> 0 | I204: 0 | J204: 0 | K204: 0 | L204: 0 | M204: 0 | N204: 0 | O204: 0 | P204: 0 | Q204: 0 | R204: 0 | S204: 0 | T204: 0 | U204: 0 | V204: 0 | W204: 0 | X204: 0 | Y204: 0 | Z204: 0 | AA204: 0
G205: Taxi | H205: 0 | I205: 0 | J205: 0 | K205: 0 | L205: 0 | M205: 0 | N205: 0 | O205: 0 | P205: 0 | Q205: 0 | R205: 0 | S205: 0 | T205: 0 | U205: 0 | V205: 0 | W205: 0 | X205: 0 | Y205: 0 | Z205: 0 | AA205: 0
H206: 0 | I206: 0 | J206: 0 | K206: 0 | L206: 0 | M206: 0 | N206: 0 | O206: 0 | P206: 0 | Q206: 0 | R206: 0 | S206: 0 | T206: 0 | U206: 0 | V206: 0 | W206: 0 | X206: 0 | Y206: 0 | Z206: 0 | AA206: 0
H207: 0 | I207: 0 | J207: 0 | K207: 0 | L207: 0 | M207: 0 | N207: 0 | O207: 0 | P207: 0 | Q207: 0 | R207: 0 | S207: 0 | T207: 0 | U207: 0 | V207: 0 | W207: 0 | X207: 0 | Y207: 0 | Z207: 0 | AA207: 0
G208: 3-wheeler | H208: 0 | I208: 0 | J208: 0 | K208: 0 | L208: 0 | M208: 0 | N208: 0 | O208: 0 | P208: 0 | Q208: 0 | R208: 0 | S208: 0 | T208: 0 | U208: 0 | V208: 0 | W208: 0 | X208: 0 | Y208: 0 | Z208: 0 | AA208: 0
G209: Bus | H209: 0 | I209: 0 | J209: 0 | K209: 0 | L209: 0 | M209: 0 | N209: 0 | O209: 0 | P209: 0 | Q209: 0 | R209: 0 | S209: 0 | T209: 0 | U209: 0 | V209: 0 | W209: 0 | X209: 0 | Y209: 0 | Z209: 0 | AA209: 0
G210: Mini-bus | H210: 0 | I210: 0 | J210: 0 | K210: 0 | L210: 0 | M210: 0 | N210: 0 | O210: 0 | P210: 0 | Q210: 0 | R210: 0 | S210: 0 | T210: 0 | U210: 0 | V210: 0 | W210: 0 | X210: 0 | Y210: 0 | Z210: 0 | AA210: 0
H211: 0 | I211: 0 | J211: 0 | K211: 0 | L211: 0 | M211: 0 | N211: 0 | O211: 0 | P211: 0 | Q211: 0 | R211: 0 | S211: 0 | T211: 0 | U211: 0 | V211: 0 | W211: 0 | X211: 0 | Y211: 0 | Z211: 0 | AA211: 0
H212: 0 | I212: 0 | J212: 0 | K212: 0 | L212: 0 | M212: 0 | N212: 0 | O212: 0 | P212: 0 | Q212: 0 | R212: 0 | S212: 0 | T212: 0 | U212: 0 | V212: 0 | W212: 0 | X212: 0 | Y212: 0 | Z212: 0 | AA212: 0
G213: BRT | H213: 0 | I213: 0 | J213: 0 | K213: 0 | L213: 0 | M213: 0 | N213: 0 | O213: 0 | P213: 0 | Q213: 0 | R213: 0 | S213: 0 | T213: 0 | U213: 0 | V213: 0 | W213: 0 | X213: 0 | Y213: 0 | Z213: 0 | AA213: 0
G216: Diesel VKT
K217: Fuel Split
K218: Column | L218: 7 | M218: 14 | O218: 1st | Q218: 2nd
K219: =H235 -> 0 | L219: =Q235 -> 9 | M219: =AA235 -> 19 | O219: intercept | P219: slope | Q219: intercept | R219: slope | T219: =K219 -> 0 | U219: =L219 -> 9 | V219: =M219 -> 19 | X219: 1st | Y219: 2nd
F220: NO BRT | G220: =G173 -> Car | K220: ='IF Factors'!F9 -> 0 | L220: =OFFSET('IF Factors'!F9,0,$L$171) -> 0 | M220: =OFFSET('IF Factors'!F9,0,$M$171) -> 0 | O220: =INTERCEPT(K220:L220,$K$7:$L$7) -> 0 | P220: =SLOPE(K220:L220,$K$7:$L$7) -> 0 | Q220: =INTERCEPT(L220:M220,$L$7:$M$7) -> 0 | R220: =SLOPE(L220:M220,$L$7:$M$7) -> 0 | T220: =IF(K220<>0,0,1) -> 1 | U220: =IF(L220<>0,0,1) -> 1 | V220: =IF(M220<>0,0,1) -> 1 | X220: =IF(T220+U220=1,1,0) -> 0 | Y220: =IF(U220+V220=1,1,0) -> 0
G221: =G174 -> 2-wheeler | K221: ='IF Factors'!F10 -> 0 | L221: =OFFSET('IF Factors'!F10,0,$L$171) -> 0 | M221: =OFFSET('IF Factors'!F10,0,$M$171) -> 0 | O221: =INTERCEPT(K221:L221,$K$7:$L$7) -> 0 | P221: =SLOPE(K221:L221,$K$7:$L$7) -> 0 | Q221: =INTERCEPT(L221:M221,$L$7:$M$7) -> 0 | R221: =SLOPE(L221:M221,$L$7:$M$7) -> 0 | T221: =IF(K221<>0,0,1) -> 1 | U221: 1 | V221: 1 | X221: =IF(T221+U221=1,1,0) -> 0 | Y221: 0
G222: Taxi | K222: ='IF Factors'!F11 -> 0 | L222: =OFFSET('IF Factors'!F11,0,$L$171) -> 0 | M222: =OFFSET('IF Factors'!F11,0,$M$171) -> 0 | O222: 0 | P222: 0 | Q222: 0 | R222: 0 | T222: 1 | U222: 1 | V222: 1 | X222: 0 | Y222: 0
K223: ='IF Factors'!F12 -> 0 | L223: =OFFSET('IF Factors'!F12,0,$L$171) -> 0 | M223: =OFFSET('IF Factors'!F12,0,$M$171) -> 0 | O223: 0 | P223: 0 | Q223: 0 | R223: 0 | T223: 1 | U223: 1 | V223: 1 | X223: 0 | Y223: 0
K224: ='IF Factors'!F13 -> 0 | L224: =OFFSET('IF Factors'!F13,0,$L$171) -> 0 | M224: =OFFSET('IF Factors'!F13,0,$M$171) -> 0 | O224: 0 | P224: 0 | Q224: 0 | R224: 0 | T224: 1 | U224: 1 | V224: 1 | X224: 0 | Y224: 0
G225: 3-wheeler | K225: ='IF Factors'!F14 -> 0 | L225: =OFFSET('IF Factors'!F14,0,$L$171) -> 0 | M225: =OFFSET('IF Factors'!F14,0,$M$171) -> 0 | O225: 0 | P225: 0 | Q225: 0 | R225: 0 | T225: 1 | U225: 1 | V225: 1 | X225: 0 | Y225: 0
G226: Bus | K226: ='IF Factors'!F15 -> 0 | L226: =OFFSET('IF Factors'!F15,0,$L$171) -> 0 | M226: =OFFSET('IF Factors'!F15,0,$M$171) -> 0 | O226: 0 | P226: 0 | Q226: 0 | R226: 0 | T226: 1 | U226: 1 | V226: 1 | X226: 0 | Y226: 0
G227: Mini-bus | K227: ='IF Factors'!F16 -> 0 | L227: =OFFSET('IF Factors'!F16,0,$L$171) -> 0 | M227: =OFFSET('IF Factors'!F16,0,$M$171) -> 0 | O227: 0 | P227: 0 | Q227: 0 | R227: 0 | T227: 1 | U227: 1 | V227: 1 | X227: 0 | Y227: 0
K228: ='IF Factors'!F17 -> 0 | L228: =OFFSET('IF Factors'!F17,0,$L$171) -> 0 | M228: =OFFSET('IF Factors'!F17,0,$M$171) -> 0 | O228: 0 | P228: 0 | Q228: 0 | R228: 0 | T228: 1 | U228: 1 | V228: 1 | X228: 0 | Y228: 0
K229: ='IF Factors'!F18 -> 0 | L229: =OFFSET('IF Factors'!F18,0,$L$171) -> 0 | M229: =OFFSET('IF Factors'!F18,0,$M$171) -> 0 | O229: 0 | P229: 0 | Q229: 0 | R229: 0 | T229: 1 | U229: 1 | V229: 1 | X229: 0 | Y229: 0
G230: BRT | K230: ='IF Factors'!F19 -> 0 | L230: =OFFSET('IF Factors'!F19,0,$L$171) -> 0 | M230: =OFFSET('IF Factors'!F19,0,$M$171) -> 0 | O230: 0 | P230: 0 | Q230: 0 | R230: 0 | T230: 1 | U230: 1 | V230: 1 | X230: 0 | Y230: 0
G234: %
H235: =H202 -> 0 | I235: =I202 -> 1 | J235: 2 | K235: 3 | L235: 4 | M235: 5 | N235: 6 | O235: 7 | P235: 8 | Q235: 9 | R235: 10 | S235: 11 | T235: 12 | U235: 13 | V235: 14 | W235: 15 | X235: 16 | Y235: 17 | Z235: 18 | AA235: 19
F236: NO BRT | G236: =G203 -> Cars | H236: =K220 -> 0 | I236: =(I$23*$P220)+$O220 -> 0 | J236: =(J$23*$P220)+$O220 -> 0 | K236: 0 | L236: 0 | M236: 0 | N236: 0 | O236: 0 | P236: 0 | Q236: =L220 -> 0 | R236: =(R$23*$R220)+$Q220 -> 0 | S236: =(S$23*$R220)+$Q220 -> 0 | T236: 0 | U236: 0 | V236: 0 | W236: 0 | X236: 0 | Y236: 0 | Z236: 0 | AA236: =M220 -> 0
G237: =G204 -> 2-wheeler | H237: =K221 -> 0 | I237: =(I$23*$P221)+$O221 -> 0 | J237: 0 | K237: 0 | L237: 0 | M237: 0 | N237: 0 | O237: 0 | P237: 0 | Q237: =L221 -> 0 | R237: =(R$23*$R221)+$Q221 -> 0 | S237: 0 | T237: 0 | U237: 0 | V237: 0 | W237: 0 | X237: 0 | Y237: 0 | Z237: 0 | AA237: =M221 -> 0
G238: Taxi | H238: 0 | I238: 0 | J238: 0 | K238: 0 | L238: 0 | M238: 0 | N238: 0 | O238: 0 | P238: 0 | Q238: 0 | R238: 0 | S238: 0 | T238: 0 | U238: 0 | V238: 0 | W238: 0 | X238: 0 | Y238: 0 | Z238: 0 | AA238: 0
H239: 0 | I239: 0 | J239: 0 | K239: 0 | L239: 0 | M239: 0 | N239: 0 | O239: 0 | P239: 0 | Q239: 0 | R239: 0 | S239: 0 | T239: 0 | U239: 0 | V239: 0 | W239: 0 | X239: 0 | Y239: 0 | Z239: 0 | AA239: 0
H240: 0 | I240: 0 | J240: 0 | K240: 0 | L240: 0 | M240: 0 | N240: 0 | O240: 0 | P240: 0 | Q240: 0 | R240: 0 | S240: 0 | T240: 0 | U240: 0 | V240: 0 | W240: 0 | X240: 0 | Y240: 0 | Z240: 0 | AA240: 0
G241: 3-wheeler | H241: 0 | I241: 0 | J241: 0 | K241: 0 | L241: 0 | M241: 0 | N241: 0 | O241: 0 | P241: 0 | Q241: 0 | R241: 0 | S241: 0 | T241: 0 | U241: 0 | V241: 0 | W241: 0 | X241: 0 | Y241: 0 | Z241: 0 | AA241: 0
G242: Bus | H242: 0 | I242: 0 | J242: 0 | K242: 0 | L242: 0 | M242: 0 | N242: 0 | O242: 0 | P242: 0 | Q242: 0 | R242: 0 | S242: 0 | T242: 0 | U242: 0 | V242: 0 | W242: 0 | X242: 0 | Y242: 0 | Z242: 0 | AA242: 0
G243: Mini-bus | H243: 0 | I243: 0 | J243: 0 | K243: 0 | L243: 0 | M243: 0 | N243: 0 | O243: 0 | P243: 0 | Q243: 0 | R243: 0 | S243: 0 | T243: 0 | U243: 0 | V243: 0 | W243: 0 | X243: 0 | Y243: 0 | Z243: 0 | AA243: 0
H244: 0 | I244: 0 | J244: 0 | K244: 0 | L244: 0 | M244: 0 | N244: 0 | O244: 0 | P244: 0 | Q244: 0 | R244: 0 | S244: 0 | T244: 0 | U244: 0 | V244: 0 | W244: 0 | X244: 0 | Y244: 0 | Z244: 0 | AA244: 0
H245: 0 | I245: 0 | J245: 0 | K245: 0 | L245: 0 | M245: 0 | N245: 0 | O245: 0 | P245: 0 | Q245: 0 | R245: 0 | S245: 0 | T245: 0 | U245: 0 | V245: 0 | W245: 0 | X245: 0 | Y245: 0 | Z245: 0 | AA245: 0
G246: BRT | H246: 0 | I246: 0 | J246: 0 | K246: 0 | L246: 0 | M246: 0 | N246: 0 | O246: 0 | P246: 0 | Q246: 0 | R246: 0 | S246: 0 | T246: 0 | U246: 0 | V246: 0 | W246: 0 | X246: 0 | Y246: 0 | Z246: 0 | AA246: 0
G248: Diesel VKT
H249: =H235 -> 0 | I249: =I235 -> 1 | J249: 2 | K249: 3 | L249: 4 | M249: 5 | N249: 6 | O249: 7 | P249: 8 | Q249: 9 | R249: 10 | S249: 11 | T249: 12 | U249: 13 | V249: 14 | W249: 15 | X249: 16 | Y249: 17 | Z249: 18 | AA249: 19
F250: NO BRT | G250: =G236 -> Cars | H250: =H123*H236 -> 0 | I250: =I123*I236 -> 0 | J250: 0 | K250: 0 | L250: 0 | M250: 0 | N250: 0 | O250: 0 | P250: 0 | Q250: 0 | R250: 0 | S250: 0 | T250: 0 | U250: 0 | V250: 0 | W250: 0 | X250: 0 | Y250: 0 | Z250: 0 | AA250: 0
G251: =G237 -> 2-wheeler | H251: =H124*H237 -> 0 | I251: 0 | J251: 0 | K251: 0 | L251: 0 | M251: 0 | N251: 0 | O251: 0 | P251: 0 | Q251: 0 | R251: 0 | S251: 0 | T251: 0 | U251: 0 | V251: 0 | W251: 0 | X251: 0 | Y251: 0 | Z251: 0 | AA251: 0
G252: Taxi | H252: 0 | I252: 0 | J252: 0 | K252: 0 | L252: 0 | M252: 0 | N252: 0 | O252: 0 | P252: 0 | Q252: 0 | R252: 0 | S252: 0 | T252: 0 | U252: 0 | V252: 0 | W252: 0 | X252: 0 | Y252: 0 | Z252: 0 | AA252: 0
H253: 0 | I253: 0 | J253: 0 | K253: 0 | L253: 0 | M253: 0 | N253: 0 | O253: 0 | P253: 0 | Q253: 0 | R253: 0 | S253: 0 | T253: 0 | U253: 0 | V253: 0 | W253: 0 | X253: 0 | Y253: 0 | Z253: 0 | AA253: 0
H254: 0 | I254: 0 | J254: 0 | K254: 0 | L254: 0 | M254: 0 | N254: 0 | O254: 0 | P254: 0 | Q254: 0 | R254: 0 | S254: 0 | T254: 0 | U254: 0 | V254: 0 | W254: 0 | X254: 0 | Y254: 0 | Z254: 0 | AA254: 0
G255: 3-wheeler | H255: 0 | I255: 0 | J255: 0 | K255: 0 | L255: 0 | M255: 0 | N255: 0 | O255: 0 | P255: 0 | Q255: 0 | R255: 0 | S255: 0 | T255: 0 | U255: 0 | V255: 0 | W255: 0 | X255: 0 | Y255: 0 | Z255: 0 | AA255: 0
G256: Bus | H256: 0 | I256: 0 | J256: 0 | K256: 0 | L256: 0 | M256: 0 | N256: 0 | O256: 0 | P256: 0 | Q256: 0 | R256: 0 | S256: 0 | T256: 0 | U256: 0 | V256: 0 | W256: 0 | X256: 0 | Y256: 0 | Z256: 0 | AA256: 0
G257: Mini-bus | H257: 0 | I257: 0 | J257: 0 | K257: 0 | L257: 0 | M257: 0 | N257: 0 | O257: 0 | P257: 0 | Q257: 0 | R257: 0 | S257: 0 | T257: 0 | U257: 0 | V257: 0 | W257: 0 | X257: 0 | Y257: 0 | Z257: 0 | AA257: 0
H258: 0 | I258: 0 | J258: 0 | K258: 0 | L258: 0 | M258: 0 | N258: 0 | O258: 0 | P258: 0 | Q258: 0 | R258: 0 | S258: 0 | T258: 0 | U258: 0 | V258: 0 | W258: 0 | X258: 0 | Y258: 0 | Z258: 0 | AA258: 0
H259: 0 | I259: 0 | J259: 0 | K259: 0 | L259: 0 | M259: 0 | N259: 0 | O259: 0 | P259: 0 | Q259: 0 | R259: 0 | S259: 0 | T259: 0 | U259: 0 | V259: 0 | W259: 0 | X259: 0 | Y259: 0 | Z259: 0 | AA259: 0
G260: BRT | H260: 0 | I260: 0 | J260: 0 | K260: 0 | L260: 0 | M260: 0 | N260: 0 | O260: 0 | P260: 0 | Q260: 0 | R260: 0 | S260: 0 | T260: 0 | U260: 0 | V260: 0 | W260: 0 | X260: 0 | Y260: 0 | Z260: 0 | AA260: 0
G263: LPG VKT
K264: Fuel Split
K265: Column | L265: 7 | M265: 14 | O265: 1st | Q265: 2nd
K266: =H282 -> 0 | L266: =Q282 -> 9 | M266: =AA282 -> 19 | O266: intercept | P266: slope | Q266: intercept | R266: slope | T266: =K266 -> 0 | U266: =L266 -> 9 | V266: =M266 -> 19 | X266: 1st | Y266: 2nd
... 1599 more rows

Sheet Summary
C3: =Full!F8 -> 0
C4: =Full!F9 -> 0 | I4: *analysis does not consider land use impacts
C6: Ridership/day (thousands) | F6: Total Emission Impact in tons
C7: =Full!F7 -> 0 | D7: =Full!G171 -> 0 | F7: =IF($X$240<0,"PM increase (tons)","PM reduction (tons)") -> PM reduction (tons) | G7: =X240 -> 0
C8: =Full!F8 -> 0 | D8: =Full!H171 -> 0 | F8: =IF($X$241<0,"NOx increase (tons)","NOx reduction (tons)") -> NOx reduction (tons) | G8: =X241 -> 0
C9: =Full!F9 -> 0 | D9: =Full!I171 -> 0 | F9: =IF($X$239<0,"CO2 increase (tons)","CO2 reduction (tons)") -> CO2 reduction (tons) | G9: =X239-SUM(Calculations!H2112:J2112) -> 0
C11: Ridership/year (millions) | F11: Annual Emission Impact in tons
C12: =Full!F12 -> 0 | D12: =Full!G171*Full!$F$16/10^6 -> 0 | F12: =IF($X$240<0,"PM increase (tons/yr)","PM reduction (tons/yr)") -> PM reduction (tons/yr) | G12: =G7/($C$14-$C$12+1) -> 0
C13: =Full!F13 -> 9 | D13: =Full!H171*Full!$F$16/10^6 -> 0 | F13: =IF($X$241<0,"NOx increase (tons/yr)","NOx reduction (tons/yr)") -> NOx reduction (tons/yr) | G13: =G8/($C$14-$C$12+1) -> 0
C14: =Full!F14 -> 19 | D14: =Full!I171*Full!$F$16/10^6 -> 0 | F14: =IF($X$239<0,"CO2 increase (tons/yr)","CO2 reduction (tons/yr)") -> CO2 reduction (tons/yr) | G14: =G9/($C$14-$C$12+1) -> 0
C16: Financial Indicators | F16: Total Impact in tons per BRT km
C17: EIRR | D17: =D301 ->  | F17: =IF($X$240<0,"PM increase (tons/km)","PM reduction (tons/km)") -> PM reduction (tons/km) | G17: =G7/Full!$I$43 -> 
C18: NPV (million USD) | D18: =D302/10^6 ->  | F18: =IF($X$241<0,"NOx increase (tons/km)","NOx reduction (tons/km)") -> NOx reduction (tons/km) | G18: =G8/Full!$I$43 -> 
C19: Project Cost (million USD) | D19: =Full!G283/1000000 -> 0 | F19: =IF($X$239<0,"CO2 increase (tons/km)","CO2 reduction (tons/km)") -> CO2 reduction (tons/km) | G19: =G9/Full!$I$43 -> 
C21: Co-benefits | F21: Annual Impact in tons per BRT km
C22: VKT Saved (millions) | D22: =SUM(D244:W244) -> 0 | F22: =IF($X$240<0,"PM increase (tons/yr/km)","PM reduction (tons/yr/km)") -> PM reduction (tons/yr/km) | G22: =G7/Full!$I$43 -> 
C23: Time travel savings ('000s hours) | D23: =X253 ->  | F23: =IF($X$241<0,"NOx increase (tons/yr/km)","NOx reduction (tons/yr/km)") -> NOx reduction (tons/yr/km) | G23: =G8/Full!$I$43 -> 
C24: No. of fatalities reduced | D24: =X246 ->  | F24: =IF($X$239<0,"CO2 increase (tons/yr/km)","CO2 reduction (tons/yr/km)") -> CO2 reduction (tons/yr/km) | G24: =G9/Full!$I$43 -> 
C25: No. of injuries reduced | D25: =X247 -> 
C26: Fuel Savings ('000 USD) | D26: =X284/1000 -> 0 | F26: Annual Impact in tons per BRT daily passenger demand
C27: Emissions reduction ('000 USD) | D27: =(SUM(X308:X310)-X317)/1000 -> 0 | F27: =IF($X$240<0,"PM increase (tons/yr/pax)","PM reduction (tons/yr/pax)") -> PM reduction (tons/yr/pax) | G27: =G7/($C$14-$C$12)/avg_ridership -> 
F28: =IF($X$241<0,"NOx increase (tons/yr/pax)","NOx reduction (tons/yr/pax)") -> NOx reduction (tons/yr/pax) | G28: =G8/($C$14-$C$12)/avg_ridership -> 
F29: =IF($X$239<0,"CO2 increase (tons/yr/pax)","CO2 reduction (tons/yr/pax)") -> CO2 reduction (tons/yr/pax) | G29: =G9/($C$14-$C$12)/avg_ridership -> 
C236: Final Calculations
N237: =N239/56 -> 0
D238: =Calculations!H23 -> 0 | E238: =Calculations!I23 -> 1 | F238: =Calculations!J23 -> 2 | G238: =Calculations!K23 -> 3 | H238: =Calculations!L23 -> 4 | I238: =Calculations!M23 -> 5 | J238: =Calculations!N23 -> 6 | K238: =Calculations!O23 -> 7 | L238: =Calculations!P23 -> 8 | M238: =Calculations!Q23 -> 9 | N238: =Calculations!R23 -> 10 | O238: =Calculations!S23 -> 11 | P238: =Calculations!T23 -> 12 | Q238: =Calculations!U23 -> 13 | R238: =Calculations!V23 -> 14 | S238: =Calculations!W23 -> 15 | T238: =Calculations!X23 -> 16 | U238: =Calculations!Y23 -> 17 | V238: =Calculations!Z23 -> 18 | W238: =Calculations!AA23 -> 19 | X238: Total
C239: CO2 savings or increase (tons) | D239: =Calculations!H2098 -> 0 | E239: =Calculations!I2098 -> 0 | F239: =Calculations!J2098 -> 0 | G239: =Calculations!K2098 -> 0 | H239: =Calculations!L2098 -> 0 | I239: =Calculations!M2098 -> 0 | J239: =Calculations!N2098 -> 0 | K239: =Calculations!O2098 -> 0 | L239: =Calculations!P2098 -> 0 | M239: =Calculations!Q2098 -> 0 | N239: =Calculations!R2098 -> 0 | O239: =Calculations!S2098 -> 0 | P239: =Calculations!T2098 -> 0 | Q239: =Calculations!U2098 -> 0 | R239: =Calculations!V2098 -> 0 | S239: =Calculations!W2098 -> 0 | T239: =Calculations!X2098 -> 0 | U239: =Calculations!Y2098 -> 0 | V239: =Calculations!Z2098 -> 0 | W239: =Calculations!AA2098 -> 0 | X239: =SUM(D239:W239) -> 0
C240: PM savings or increase (tons) | D240: =Calculations!H2084 -> 0 | E240: =Calculations!I2084 -> 0 | F240: =Calculations!J2084 -> 0 | G240: =Calculations!K2084 -> 0 | H240: =Calculations!L2084 -> 0 | I240: =Calculations!M2084 -> 0 | J240: =Calculations!N2084 -> 0 | K240: =Calculations!O2084 -> 0 | L240: =Calculations!P2084 -> 0 | M240: =Calculations!Q2084 -> 0 | N240: =Calculations!R2084 -> 0 | O240: =Calculations!S2084 -> 0 | P240: =Calculations!T2084 -> 0 | Q240: =Calculations!U2084 -> 0 | R240: =Calculations!V2084 -> 0 | S240: =Calculations!W2084 -> 0 | T240: =Calculations!X2084 -> 0 | U240: =Calculations!Y2084 -> 0 | V240: =Calculations!Z2084 -> 0 | W240: =Calculations!AA2084 -> 0 | X240: =SUM(D240:W240) -> 0
C241: NOx savings or increase (tons) | D241: =Calculations!H2091 -> 0 | E241: =Calculations!I2091 -> 0 | F241: =Calculations!J2091 -> 0 | G241: =Calculations!K2091 -> 0 | H241: =Calculations!L2091 -> 0 | I241: =Calculations!M2091 -> 0 | J241: =Calculations!N2091 -> 0 | K241: =Calculations!O2091 -> 0 | L241: =Calculations!P2091 -> 0 | M241: =Calculations!Q2091 -> 0 | N241: =Calculations!R2091 -> 0 | O241: =Calculations!S2091 -> 0 | P241: =Calculations!T2091 -> 0 | Q241: =Calculations!U2091 -> 0 | R241: =Calculations!V2091 -> 0 | S241: =Calculations!W2091 -> 0 | T241: =Calculations!X2091 -> 0 | U241: =Calculations!Y2091 -> 0 | V241: =Calculations!Z2091 -> 0 | W241: =Calculations!AA2091 -> 0 | X241: 0
C242: Construction CO2 (tons) | D242: =Calculations!H2112 -> 0 | N242: =Calculations!I2112 -> 0 | W242: =Calculations!J2112 -> 0 | X242: 0
C244: VKT savings (millions/year) | D244: =(SUM(Calculations!H123:H132)-Calculations!H133)*Full!$F$16/10^6 -> 0 | E244: =(SUM(Calculations!I123:I132)-Calculations!I133)*Full!$F$16/10^6 -> 0 | F244: =(SUM(Calculations!J123:J132)-Calculations!J133)*Full!$F$16/10^6 -> 0 | G244: =(SUM(Calculations!K123:K132)-Calculations!K133)*Full!$F$16/10^6 -> 0 | H244: =(SUM(Calculations!L123:L132)-Calculations!L133)*Full!$F$16/10^6 -> 0 | I244: =(SUM(Calculations!M123:M132)-Calculations!M133)*Full!$F$16/10^6 -> 0 | J244: =(SUM(Calculations!N123:N132)-Calculations!N133)*Full!$F$16/10^6 -> 0 | K244: =(SUM(Calculations!O123:O132)-Calculations!O133)*Full!$F$16/10^6 -> 0 | L244: =(SUM(Calculations!P123:P132)-Calculations!P133)*Full!$F$16/10^6 -> 0 | M244: =(SUM(Calculations!Q123:Q132)-Calculations!Q133)*Full!$F$16/10^6 -> 0 | N244: =(SUM(Calculations!R123:R132)-Calculations!R133)*Full!$F$16/10^6 -> 0 | O244: =(SUM(Calculations!S123:S132)-Calculations!S133)*Full!$F$16/10^6 -> 0 | P244: =(SUM(Calculations!T123:T132)-Calculations!T133)*Full!$F$16/10^6 -> 0 | Q244: =(SUM(Calculations!U123:U132)-Calculations!U133)*Full!$F$16/10^6 -> 0 | R244: =(SUM(Calculations!V123:V132)-Calculations!V133)*Full!$F$16/10^6 -> 0 | S244: =(SUM(Calculations!W123:W132)-Calculations!W133)*Full!$F$16/10^6 -> 0 | T244: =(SUM(Calculations!X123:X132)-Calculations!X133)*Full!$F$16/10^6 -> 0 | U244: =(SUM(Calculations!Y123:Y132)-Calculations!Y133)*Full!$F$16/10^6 -> 0 | V244: =(SUM(Calculations!Z123:Z132)-Calculations!Z133)*Full!$F$16/10^6 -> 0 | W244: =(SUM(Calculations!AA123:AA132)-Calculations!AA133)*Full!$F$16/10^6 -> 0 | X244: =SUM(D244:W244) -> 0
C245: Projected fatality rates (fatalities/billion VKM) | D245: =HLOOKUP(D238,D333:BB334,2,FALSE) ->  | M245: =HLOOKUP(M238,M333:BK334,2,FALSE) -> 
C246: No. of fatalities reduced | D246: =(D244/1000)*D245 ->  | E246: =(E244/1000)*E245 ->  | M246: =(M244/1000)*M245 -> 
C247: No. of injuries reduced | D247: =D246*15 ->  | E247: =E246*15 -> 
C249: Average Speed of Modes other than BRT | D249: =Calculations!H680 ->  | E249: =Calculations!I680 ->  | F249: =Calculations!J680 ->  | G249: =Calculations!K680 ->  | H249: =Calculations!L680 ->  | I249: =Calculations!M680 ->  | J249: =Calculations!N680 ->  | K249: =Calculations!O680 ->  | L249: =Calculations!P680 ->  | M249: =Calculations!Q680 ->  | N249: =Calculations!R680 ->  | O249: =Calculations!S680 ->  | P249: =Calculations!T680 ->  | Q249: =Calculations!U680 ->  | R249: =Calculations!V680 ->  | S249: =Calculations!W680 ->  | T249: =Calculations!X680 ->  | U249: =Calculations!Y680 ->  | V249: =Calculations!Z680 ->  | W249: =Calculations!AA680 -> 
C250: Average Speed of BRT | D250: =Calculations!H679 -> 0 | E250: =Calculations!I679 -> 0 | F250: =Calculations!J679 -> 0 | G250: =Calculations!K679 -> 0 | H250: =Calculations!L679 -> 0 | I250: =Calculations!M679 -> 0 | J250: =Calculations!N679 -> 0 | K250: =Calculations!O679 -> 0 | L250: =Calculations!P679 -> 0 | M250: =Calculations!Q679 -> 0 | N250: =Calculations!R679 -> 0 | O250: =Calculations!S679 -> 0 | P250: =Calculations!T679 -> 0 | Q250: =Calculations!U679 -> 0 | R250: =Calculations!V679 -> 0 | S250: =Calculations!W679 -> 0 | T250: =Calculations!X679 -> 0 | U250: =Calculations!Y679 -> 0 | V250: =Calculations!Z679 -> 0 | W250: =Calculations!AA679 -> 0
C251: Difference in Speed | D251: =D250-D249 ->  | E251: =E250-E249 -> 
C252: PKT (millions) | D252: =(Full!$F$16*Calculations!H166)/10^6 -> 0 | E252: =(Full!$F$16*Calculations!I166)/10^6 -> 0 | F252: =(Full!$F$16*Calculations!J166)/10^6 -> 0 | G252: =(Full!$F$16*Calculations!K166)/10^6 -> 0 | H252: =(Full!$F$16*Calculations!L166)/10^6 -> 0 | I252: =(Full!$F$16*Calculations!M166)/10^6 -> 0 | J252: =(Full!$F$16*Calculations!N166)/10^6 -> 0 | K252: =(Full!$F$16*Calculations!O166)/10^6 -> 0 | L252: =(Full!$F$16*Calculations!P166)/10^6 -> 0 | M252: =(Full!$F$16*Calculations!Q166)/10^6 -> 0 | N252: =(Full!$F$16*Calculations!R166)/10^6 -> 0 | O252: =(Full!$F$16*Calculations!S166)/10^6 -> 0 | P252: =(Full!$F$16*Calculations!T166)/10^6 -> 0 | Q252: =(Full!$F$16*Calculations!U166)/10^6 -> 0 | R252: =(Full!$F$16*Calculations!V166)/10^6 -> 0 | S252: =(Full!$F$16*Calculations!W166)/10^6 -> 0 | T252: =(Full!$F$16*Calculations!X166)/10^6 -> 0 | U252: =(Full!$F$16*Calculations!Y166)/10^6 -> 0 | V252: =(Full!$F$16*Calculations!Z166)/10^6 -> 0 | W252: =(Full!$F$16*Calculations!AA166)/10^6 -> 0 | X252: =SUM(D252:W252) -> 0
C253: Time travel savings('000s hours) | D253: =((D252/D249)-(D252/D250))*1000 ->  | E253: =((E252/E249)-(E252/E250))*1000 -> 
C255: Fuel Consumption
C256: =CONCATENATE('IF Factors'!$E$8," ","(",'IF Factors'!$E$22,")"," -no BRT") -> Petrol (liter) -no BRT | D256: =SUM(Calculations!H831:H840)*Full!$F$16 -> 0 | E256: =SUM(Calculations!I831:I840)*Full!$F$16 -> 0 | F256: =SUM(Calculations!J831:J840)*Full!$F$16 -> 0 | G256: =SUM(Calculations!K831:K840)*Full!$F$16 -> 0 | H256: =SUM(Calculations!L831:L840)*Full!$F$16 -> 0 | I256: =SUM(Calculations!M831:M840)*Full!$F$16 -> 0 | J256: =SUM(Calculations!N831:N840)*Full!$F$16 -> 0 | K256: =SUM(Calculations!O831:O840)*Full!$F$16 -> 0 | L256: =SUM(Calculations!P831:P840)*Full!$F$16 -> 0 | M256: =SUM(Calculations!Q831:Q840)*Full!$F$16 -> 0 | N256: =SUM(Calculations!R831:R840)*Full!$F$16 -> 0 | O256: =SUM(Calculations!S831:S840)*Full!$F$16 -> 0 | P256: =SUM(Calculations!T831:T840)*Full!$F$16 -> 0 | Q256: =SUM(Calculations!U831:U840)*Full!$F$16 -> 0 | R256: =SUM(Calculations!V831:V840)*Full!$F$16 -> 0 | S256: =SUM(Calculations!W831:W840)*Full!$F$16 -> 0 | T256: =SUM(Calculations!X831:X840)*Full!$F$16 -> 0 | U256: =SUM(Calculations!Y831:Y840)*Full!$F$16 -> 0 | V256: =SUM(Calculations!Z831:Z840)*Full!$F$16 -> 0 | W256: =SUM(Calculations!AA831:AA840)*Full!$F$16 -> 0
C257: =CONCATENATE('IF Factors'!$E$8," ","(",'IF Factors'!$E$22,")"," -BRT") -> Petrol (liter) -BRT | D257: =Calculations!H841*Full!$F$16 -> 0 | E257: =Calculations!I841*Full!$F$16 -> 0 | F257: =Calculations!J841*Full!$F$16 -> 0 | G257: =Calculations!K841*Full!$F$16 -> 0 | H257: =Calculations!L841*Full!$F$16 -> 0 | I257: =Calculations!M841*Full!$F$16 -> 0 | J257: =Calculations!N841*Full!$F$16 -> 0 | K257: =Calculations!O841*Full!$F$16 -> 0 | L257: =Calculations!P841*Full!$F$16 -> 0 | M257: =Calculations!Q841*Full!$F$16 -> 0 | N257: =Calculations!R841*Full!$F$16 -> 0 | O257: =Calculations!S841*Full!$F$16 -> 0 | P257: =Calculations!T841*Full!$F$16 -> 0 | Q257: =Calculations!U841*Full!$F$16 -> 0 | R257: =Calculations!V841*Full!$F$16 -> 0 | S257: =Calculations!W841*Full!$F$16 -> 0 | T257: =Calculations!X841*Full!$F$16 -> 0 | U257: =Calculations!Y841*Full!$F$16 -> 0 | V257: =Calculations!Z841*Full!$F$16 -> 0 | W257: =Calculations!AA841*Full!$F$16 -> 0
C258: =CONCATENATE('IF Factors'!$F$8," ","(",'IF Factors'!$F$22,")"," -no BRT") -> Diesel (liter) -no BRT | D258: =SUM(Calculations!H846:H855)*Full!$F$16 -> 0 | E258: =SUM(Calculations!I846:I855)*Full!$F$16 -> 0 | F258: =SUM(Calculations!J846:J855)*Full!$F$16 -> 0 | G258: =SUM(Calculations!K846:K855)*Full!$F$16 -> 0 | H258: =SUM(Calculations!L846:L855)*Full!$F$16 -> 0 | I258: =SUM(Calculations!M846:M855)*Full!$F$16 -> 0 | J258: =SUM(Calculations!N846:N855)*Full!$F$16 -> 0 | K258: =SUM(Calculations!O846:O855)*Full!$F$16 -> 0 | L258: =SUM(Calculations!P846:P855)*Full!$F$16 -> 0 | M258: =SUM(Calculations!Q846:Q855)*Full!$F$16 -> 0 | N258: =SUM(Calculations!R846:R855)*Full!$F$16 -> 0 | O258: =SUM(Calculations!S846:S855)*Full!$F$16 -> 0 | P258: =SUM(Calculations!T846:T855)*Full!$F$16 -> 0 | Q258: =SUM(Calculations!U846:U855)*Full!$F$16 -> 0 | R258: =SUM(Calculations!V846:V855)*Full!$F$16 -> 0 | S258: =SUM(Calculations!W846:W855)*Full!$F$16 -> 0 | T258: =SUM(Calculations!X846:X855)*Full!$F$16 -> 0 | U258: =SUM(Calculations!Y846:Y855)*Full!$F$16 -> 0 | V258: =SUM(Calculations!Z846:Z855)*Full!$F$16 -> 0 | W258: =SUM(Calculations!AA846:AA855)*Full!$F$16 -> 0
C259: =CONCATENATE('IF Factors'!$F$8," ","(",'IF Factors'!$F$22,")"," -BRT") -> Diesel (liter) -BRT | D259: =Calculations!H856*Full!$F$16 -> 0 | E259: =Calculations!I856*Full!$F$16 -> 0 | F259: =Calculations!J856*Full!$F$16 -> 0 | G259: =Calculations!K856*Full!$F$16 -> 0 | H259: =Calculations!L856*Full!$F$16 -> 0 | I259: =Calculations!M856*Full!$F$16 -> 0 | J259: =Calculations!N856*Full!$F$16 -> 0 | K259: =Calculations!O856*Full!$F$16 -> 0 | L259: =Calculations!P856*Full!$F$16 -> 0 | M259: =Calculations!Q856*Full!$F$16 -> 0 | N259: =Calculations!R856*Full!$F$16 -> 0 | O259: =Calculations!S856*Full!$F$16 -> 0 | P259: =Calculations!T856*Full!$F$16 -> 0 | Q259: =Calculations!U856*Full!$F$16 -> 0 | R259: =Calculations!V856*Full!$F$16 -> 0 | S259: =Calculations!W856*Full!$F$16 -> 0 | T259: =Calculations!X856*Full!$F$16 -> 0 | U259: =Calculations!Y856*Full!$F$16 -> 0 | V259: =Calculations!Z856*Full!$F$16 -> 0 | W259: =Calculations!AA856*Full!$F$16 -> 0
C260: =CONCATENATE('IF Factors'!$G$8," ","(",'IF Factors'!$G$22,")"," -no BRT") -> LPG (liter) -no BRT | D260: =SUM(Calculations!H861:H870)*Full!$F$16 -> 0 | E260: =SUM(Calculations!I861:I870)*Full!$F$16 -> 0 | F260: =SUM(Calculations!J861:J870)*Full!$F$16 -> 0 | G260: =SUM(Calculations!K861:K870)*Full!$F$16 -> 0 | H260: =SUM(Calculations!L861:L870)*Full!$F$16 -> 0 | I260: =SUM(Calculations!M861:M870)*Full!$F$16 -> 0 | J260: =SUM(Calculations!N861:N870)*Full!$F$16 -> 0 | K260: =SUM(Calculations!O861:O870)*Full!$F$16 -> 0 | L260: =SUM(Calculations!P861:P870)*Full!$F$16 -> 0 | M260: =SUM(Calculations!Q861:Q870)*Full!$F$16 -> 0 | N260: =SUM(Calculations!R861:R870)*Full!$F$16 -> 0 | O260: =SUM(Calculations!S861:S870)*Full!$F$16 -> 0 | P260: =SUM(Calculations!T861:T870)*Full!$F$16 -> 0 | Q260: =SUM(Calculations!U861:U870)*Full!$F$16 -> 0 | R260: =SUM(Calculations!V861:V870)*Full!$F$16 -> 0 | S260: =SUM(Calculations!W861:W870)*Full!$F$16 -> 0 | T260: =SUM(Calculations!X861:X870)*Full!$F$16 -> 0 | U260: =SUM(Calculations!Y861:Y870)*Full!$F$16 -> 0 | V260: =SUM(Calculations!Z861:Z870)*Full!$F$16 -> 0 | W260: =SUM(Calculations!AA861:AA870)*Full!$F$16 -> 0
C261: =CONCATENATE('IF Factors'!$G$8," ","(",'IF Factors'!$G$22,")"," -BRT") -> LPG (liter) -BRT | D261: =Calculations!H871*Full!$F$16 -> 0 | E261: =Calculations!I871*Full!$F$16 -> 0 | F261: =Calculations!J871*Full!$F$16 -> 0 | G261: =Calculations!K871*Full!$F$16 -> 0 | H261: =Calculations!L871*Full!$F$16 -> 0 | I261: =Calculations!M871*Full!$F$16 -> 0 | J261: =Calculations!N871*Full!$F$16 -> 0 | K261: =Calculations!O871*Full!$F$16 -> 0 | L261: =Calculations!P871*Full!$F$16 -> 0 | M261: =Calculations!Q871*Full!$F$16 -> 0 | N261: =Calculations!R871*Full!$F$16 -> 0 | O261: =Calculations!S871*Full!$F$16 -> 0 | P261: =Calculations!T871*Full!$F$16 -> 0 | Q261: =Calculations!U871*Full!$F$16 -> 0 | R261: =Calculations!V871*Full!$F$16 -> 0 | S261: =Calculations!W871*Full!$F$16 -> 0 | T261: =Calculations!X871*Full!$F$16 -> 0 | U261: =Calculations!Y871*Full!$F$16 -> 0 | V261: =Calculations!Z871*Full!$F$16 -> 0 | W261: =Calculations!AA871*Full!$F$16 -> 0
C262: =CONCATENATE('IF Factors'!$H$8," ","(",'IF Factors'!$H$22,")"," -no BRT") -> CNG (kg) -no BRT | D262: =SUM(Calculations!H876:H885)*Full!$F$16 -> 0 | E262: =SUM(Calculations!I876:I885)*Full!$F$16 -> 0 | F262: =SUM(Calculations!J876:J885)*Full!$F$16 -> 0 | G262: =SUM(Calculations!K876:K885)*Full!$F$16 -> 0 | H262: =SUM(Calculations!L876:L885)*Full!$F$16 -> 0 | I262: =SUM(Calculations!M876:M885)*Full!$F$16 -> 0 | J262: =SUM(Calculations!N876:N885)*Full!$F$16 -> 0 | K262: =SUM(Calculations!O876:O885)*Full!$F$16 -> 0 | L262: =SUM(Calculations!P876:P885)*Full!$F$16 -> 0 | M262: =SUM(Calculations!Q876:Q885)*Full!$F$16 -> 0 | N262: =SUM(Calculations!R876:R885)*Full!$F$16 -> 0 | O262: =SUM(Calculations!S876:S885)*Full!$F$16 -> 0 | P262: =SUM(Calculations!T876:T885)*Full!$F$16 -> 0 | Q262: =SUM(Calculations!U876:U885)*Full!$F$16 -> 0 | R262: =SUM(Calculations!V876:V885)*Full!$F$16 -> 0 | S262: =SUM(Calculations!W876:W885)*Full!$F$16 -> 0 | T262: =SUM(Calculations!X876:X885)*Full!$F$16 -> 0 | U262: =SUM(Calculations!Y876:Y885)*Full!$F$16 -> 0 | V262: =SUM(Calculations!Z876:Z885)*Full!$F$16 -> 0 | W262: =SUM(Calculations!AA876:AA885)*Full!$F$16 -> 0
C263: =CONCATENATE('IF Factors'!$H$8," ","(",'IF Factors'!$H$22,")"," -BRT") -> CNG (kg) -BRT | D263: =Calculations!H886*Full!$F$16 -> 0 | E263: =Calculations!I886*Full!$F$16 -> 0 | F263: =Calculations!J886*Full!$F$16 -> 0 | G263: =Calculations!K886*Full!$F$16 -> 0 | H263: =Calculations!L886*Full!$F$16 -> 0 | I263: =Calculations!M886*Full!$F$16 -> 0 | J263: =Calculations!N886*Full!$F$16 -> 0 | K263: =Calculations!O886*Full!$F$16 -> 0 | L263: =Calculations!P886*Full!$F$16 -> 0 | M263: =Calculations!Q886*Full!$F$16 -> 0 | N263: =Calculations!R886*Full!$F$16 -> 0 | O263: =Calculations!S886*Full!$F$16 -> 0 | P263: =Calculations!T886*Full!$F$16 -> 0 | Q263: =Calculations!U886*Full!$F$16 -> 0 | R263: =Calculations!V886*Full!$F$16 -> 0 | S263: =Calculations!W886*Full!$F$16 -> 0 | T263: =Calculations!X886*Full!$F$16 -> 0 | U263: =Calculations!Y886*Full!$F$16 -> 0 | V263: =Calculations!Z886*Full!$F$16 -> 0 | W263: =Calculations!AA886*Full!$F$16 -> 0
C264: =CONCATENATE('IF Factors'!$I$8," ","(",'IF Factors'!$I$22,")"," -no BRT") -> Electric (kwh) -no BRT | D264: =SUM(Calculations!H891:H900)*Full!$F$16 -> 0 | E264: =SUM(Calculations!I891:I900)*Full!$F$16 -> 0 | F264: =SUM(Calculations!J891:J900)*Full!$F$16 -> 0 | G264: =SUM(Calculations!K891:K900)*Full!$F$16 -> 0 | H264: =SUM(Calculations!L891:L900)*Full!$F$16 -> 0 | I264: =SUM(Calculations!M891:M900)*Full!$F$16 -> 0 | J264: =SUM(Calculations!N891:N900)*Full!$F$16 -> 0 | K264: =SUM(Calculations!O891:O900)*Full!$F$16 -> 0 | L264: =SUM(Calculations!P891:P900)*Full!$F$16 -> 0 | M264: =SUM(Calculations!Q891:Q900)*Full!$F$16 -> 0 | N264: =SUM(Calculations!R891:R900)*Full!$F$16 -> 0 | O264: =SUM(Calculations!S891:S900)*Full!$F$16 -> 0 | P264: =SUM(Calculations!T891:T900)*Full!$F$16 -> 0 | Q264: =SUM(Calculations!U891:U900)*Full!$F$16 -> 0 | R264: =SUM(Calculations!V891:V900)*Full!$F$16 -> 0 | S264: =SUM(Calculations!W891:W900)*Full!$F$16 -> 0 | T264: =SUM(Calculations!X891:X900)*Full!$F$16 -> 0 | U264: =SUM(Calculations!Y891:Y900)*Full!$F$16 -> 0 | V264: =SUM(Calculations!Z891:Z900)*Full!$F$16 -> 0 | W264: =SUM(Calculations!AA891:AA900)*Full!$F$16 -> 0
C265: =CONCATENATE('IF Factors'!$I$8," ","(",'IF Factors'!$I$22,")"," -BRT") -> Electric (kwh) -BRT | D265: =Calculations!H901*Full!$F$16 -> 0 | E265: =Calculations!I901*Full!$F$16 -> 0 | F265: =Calculations!J901*Full!$F$16 -> 0 | G265: =Calculations!K901*Full!$F$16 -> 0 | H265: =Calculations!L901*Full!$F$16 -> 0 | I265: =Calculations!M901*Full!$F$16 -> 0 | J265: =Calculations!N901*Full!$F$16 -> 0 | K265: =Calculations!O901*Full!$F$16 -> 0 | L265: =Calculations!P901*Full!$F$16 -> 0 | M265: =Calculations!Q901*Full!$F$16 -> 0 | N265: =Calculations!R901*Full!$F$16 -> 0 | O265: =Calculations!S901*Full!$F$16 -> 0 | P265: =Calculations!T901*Full!$F$16 -> 0 | Q265: =Calculations!U901*Full!$F$16 -> 0 | R265: =Calculations!V901*Full!$F$16 -> 0 | S265: =Calculations!W901*Full!$F$16 -> 0 | T265: =Calculations!X901*Full!$F$16 -> 0 | U265: =Calculations!Y901*Full!$F$16 -> 0 | V265: =Calculations!Z901*Full!$F$16 -> 0 | W265: =Calculations!AA901*Full!$F$16 -> 0
C266: =IF('IF Factors'!J8="","",CONCATENATE('IF Factors'!$J$8," ","(",'IF Factors'!$J$22,")"," -no BRT")) -> Ethanol (liter) -no BRT | D266: =SUM(Calculations!H906:H915)*Full!$F$16 -> 0 | E266: =SUM(Calculations!I906:I915)*Full!$F$16 -> 0 | F266: =SUM(Calculations!J906:J915)*Full!$F$16 -> 0 | G266: =SUM(Calculations!K906:K915)*Full!$F$16 -> 0 | H266: =SUM(Calculations!L906:L915)*Full!$F$16 -> 0 | I266: =SUM(Calculations!M906:M915)*Full!$F$16 -> 0 | J266: =SUM(Calculations!N906:N915)*Full!$F$16 -> 0 | K266: =SUM(Calculations!O906:O915)*Full!$F$16 -> 0 | L266: =SUM(Calculations!P906:P915)*Full!$F$16 -> 0 | M266: =SUM(Calculations!Q906:Q915)*Full!$F$16 -> 0 | N266: =SUM(Calculations!R906:R915)*Full!$F$16 -> 0 | O266: =SUM(Calculations!S906:S915)*Full!$F$16 -> 0 | P266: =SUM(Calculations!T906:T915)*Full!$F$16 -> 0 | Q266: =SUM(Calculations!U906:U915)*Full!$F$16 -> 0 | R266: =SUM(Calculations!V906:V915)*Full!$F$16 -> 0 | S266: =SUM(Calculations!W906:W915)*Full!$F$16 -> 0 | T266: =SUM(Calculations!X906:X915)*Full!$F$16 -> 0 | U266: =SUM(Calculations!Y906:Y915)*Full!$F$16 -> 0 | V266: =SUM(Calculations!Z906:Z915)*Full!$F$16 -> 0 | W266: =SUM(Calculations!AA906:AA915)*Full!$F$16 -> 0
C267: =IF('IF Factors'!J9="","",CONCATENATE('IF Factors'!$J$8," ","(",'IF Factors'!$J$22,")"," -BRT")) ->  | D267: =Calculations!H916*Full!$F$16 -> 0 | E267: =Calculations!I916*Full!$F$16 -> 0 | F267: =Calculations!J916*Full!$F$16 -> 0 | G267: =Calculations!K916*Full!$F$16 -> 0 | H267: =Calculations!L916*Full!$F$16 -> 0 | I267: =Calculations!M916*Full!$F$16 -> 0 | J267: =Calculations!N916*Full!$F$16 -> 0 | K267: =Calculations!O916*Full!$F$16 -> 0 | L267: =Calculations!P916*Full!$F$16 -> 0 | M267: =Calculations!Q916*Full!$F$16 -> 0 | N267: =Calculations!R916*Full!$F$16 -> 0 | O267: =Calculations!S916*Full!$F$16 -> 0 | P267: =Calculations!T916*Full!$F$16 -> 0 | Q267: =Calculations!U916*Full!$F$16 -> 0 | R267: =Calculations!V916*Full!$F$16 -> 0 | S267: =Calculations!W916*Full!$F$16 -> 0 | T267: =Calculations!X916*Full!$F$16 -> 0 | U267: =Calculations!Y916*Full!$F$16 -> 0 | V267: =Calculations!Z916*Full!$F$16 -> 0 | W267: =Calculations!AA916*Full!$F$16 -> 0
C269: Fuel Savings
C270: =CONCATENATE('IF Factors'!E8," - ",'IF Factors'!E22) -> Petrol - liter | D270: =D256-D257 -> 0 | E270: =E256-E257 -> 0 | F270: 0 | G270: 0 | H270: 0 | I270: 0 | J270: 0 | K270: 0 | L270: 0 | M270: 0 | N270: 0 | O270: 0 | P270: 0 | Q270: 0 | R270: 0 | S270: 0 | T270: 0 | U270: 0 | V270: 0 | W270: 0 | X270: =SUM(D270:W270) -> 0
C271: =CONCATENATE('IF Factors'!F8," - ",'IF Factors'!F22) -> Diesel - liter | D271: =D258-D259 -> 0 | E271: =E258-E259 -> 0 | F271: 0 | G271: 0 | H271: 0 | I271: 0 | J271: 0 | K271: 0 | L271: 0 | M271: 0 | N271: 0 | O271: 0 | P271: 0 | Q271: 0 | R271: 0 | S271: 0 | T271: 0 | U271: 0 | V271: 0 | W271: 0 | X271: 0
C272: =CONCATENATE('IF Factors'!G8," - ",'IF Factors'!G22) -> LPG - liter | D272: =D260-D261 -> 0 | E272: =E260-E261 -> 0 | F272: 0 | G272: 0 | H272: 0 | I272: 0 | J272: 0 | K272: 0 | L272: 0 | M272: 0 | N272: 0 | O272: 0 | P272: 0 | Q272: 0 | R272: 0 | S272: 0 | T272: 0 | U272: 0 | V272: 0 | W272: 0 | X272: 0
C273: =CONCATENATE('IF Factors'!H8," - ",'IF Factors'!H22) -> CNG - kg | D273: =D262-D263 -> 0 | E273: =E262-E263 -> 0 | F273: 0 | G273: 0 | H273: 0 | I273: 0 | J273: 0 | K273: 0 | L273: 0 | M273: 0 | N273: 0 | O273: 0 | P273: 0 | Q273: 0 | R273: 0 | S273: 0 | T273: 0 | U273: 0 | V273: 0 | W273: 0 | X273: 0
C274: =CONCATENATE('IF Factors'!I8," - ",'IF Factors'!I22) -> Electric - kwh | D274: =D264-D265 -> 0 | E274: =E264-E265 -> 0 | F274: 0 | G274: 0 | H274: 0 | I274: 0 | J274: 0 | K274: 0 | L274: 0 | M274: 0 | N274: 0 | O274: 0 | P274: 0 | Q274: 0 | R274: 0 | S274: 0 | T274: 0 | U274: 0 | V274: 0 | W274: 0 | X274: 0
C275: =CONCATENATE('IF Factors'!J8," - ",'IF Factors'!J22) -> Ethanol - liter | D275: =D266-D267 -> 0 | E275: =E266-E267 -> 0 | F275: 0 | G275: 0 | H275: 0 | I275: 0 | J275: 0 | K275: 0 | L275: 0 | M275: 0 | N275: 0 | O275: 0 | P275: 0 | Q275: 0 | R275: 0 | S275: 0 | T275: 0 | U275: 0 | V275: 0 | W275: 0 | X275: 0
C277: Fuel Savings (USD)
C278: ='IF Factors'!$E$8 -> Petrol | D278: =D270*Full!$G$281*D$286 -> 0 | E278: =E270*Full!$G$281*E$286 -> 0 | F278: =F270*Full!$G$281*F$286 -> 0 | G278: =G270*Full!$G$281*G$286 -> 0 | H278: =H270*Full!$G$281*H$286 -> 0 | I278: =I270*Full!$G$281*I$286 -> 0 | J278: =J270*Full!$G$281*J$286 -> 0 | K278: =K270*Full!$G$281*K$286 -> 0 | L278: =L270*Full!$G$281*L$286 -> 0 | M278: =M270*Full!$G$281*M$286 -> 0 | N278: =N270*Full!$G$281*N$286 -> 0 | O278: =O270*Full!$G$281*O$286 -> 0 | P278: =P270*Full!$G$281*P$286 -> 0 | Q278: =Q270*Full!$G$281*Q$286 -> 0 | R278: =R270*Full!$G$281*R$286 -> 0 | S278: =S270*Full!$G$281*S$286 -> 0 | T278: =T270*Full!$G$281*T$286 -> 0 | U278: =U270*Full!$G$281*U$286 -> 0 | V278: =V270*Full!$G$281*V$286 -> 0 | W278: =W270*Full!$G$281*W$286 -> 0 | X278: =SUM(D278:W278) -> 0
C279: ='IF Factors'!$F$8 -> Diesel | D279: =D271*Full!$H$281*D$286 -> 0 | E279: =E271*Full!$H$281*E$286 -> 0 | F279: =F271*Full!$H$281*F$286 -> 0 | G279: =G271*Full!$H$281*G$286 -> 0 | H279: =H271*Full!$H$281*H$286 -> 0 | I279: =I271*Full!$H$281*I$286 -> 0 | J279: =J271*Full!$H$281*J$286 -> 0 | K279: =K271*Full!$H$281*K$286 -> 0 | L279: =L271*Full!$H$281*L$286 -> 0 | M279: =M271*Full!$H$281*M$286 -> 0 | N279: =N271*Full!$H$281*N$286 -> 0 | O279: =O271*Full!$H$281*O$286 -> 0 | P279: =P271*Full!$H$281*P$286 -> 0 | Q279: =Q271*Full!$H$281*Q$286 -> 0 | R279: =R271*Full!$H$281*R$286 -> 0 | S279: =S271*Full!$H$281*S$286 -> 0 | T279: =T271*Full!$H$281*T$286 -> 0 | U279: =U271*Full!$H$281*U$286 -> 0 | V279: =V271*Full!$H$281*V$286 -> 0 | W279: =W271*Full!$H$281*W$286 -> 0 | X279: 0
C280: ='IF Factors'!$G$8 -> LPG | D280: =D272*Full!$I$281*D$286 -> 0 | E280: =E272*Full!$I$281*E$286 -> 0 | F280: =F272*Full!$I$281*F$286 -> 0 | G280: =G272*Full!$I$281*G$286 -> 0 | H280: =H272*Full!$I$281*H$286 -> 0 | I280: =I272*Full!$I$281*I$286 -> 0 | J280: =J272*Full!$I$281*J$286 -> 0 | K280: =K272*Full!$I$281*K$286 -> 0 | L280: =L272*Full!$I$281*L$286 -> 0 | M280: =M272*Full!$I$281*M$286 -> 0 | N280: =N272*Full!$I$281*N$286 -> 0 | O280: =O272*Full!$I$281*O$286 -> 0 | P280: =P272*Full!$I$281*P$286 -> 0 | Q280: =Q272*Full!$I$281*Q$286 -> 0 | R280: =R272*Full!$I$281*R$286 -> 0 | S280: =S272*Full!$I$281*S$286 -> 0 | T280: =T272*Full!$I$281*T$286 -> 0 | U280: =U272*Full!$I$281*U$286 -> 0 | V280: =V272*Full!$I$281*V$286 -> 0 | W280: =W272*Full!$I$281*W$286 -> 0 | X280: 0
C281: ='IF Factors'!$H$8 -> CNG | D281: =D273*Full!$J$281*D$286 -> 0 | E281: =E273*Full!$J$281*E$286 -> 0 | F281: =F273*Full!$J$281*F$286 -> 0 | G281: =G273*Full!$J$281*G$286 -> 0 | H281: =H273*Full!$J$281*H$286 -> 0 | I281: =I273*Full!$J$281*I$286 -> 0 | J281: =J273*Full!$J$281*J$286 -> 0 | K281: =K273*Full!$J$281*K$286 -> 0 | L281: =L273*Full!$J$281*L$286 -> 0 | M281: =M273*Full!$J$281*M$286 -> 0 | N281: =N273*Full!$J$281*N$286 -> 0 | O281: =O273*Full!$J$281*O$286 -> 0 | P281: =P273*Full!$J$281*P$286 -> 0 | Q281: =Q273*Full!$J$281*Q$286 -> 0 | R281: =R273*Full!$J$281*R$286 -> 0 | S281: =S273*Full!$J$281*S$286 -> 0 | T281: =T273*Full!$J$281*T$286 -> 0 | U281: =U273*Full!$J$281*U$286 -> 0 | V281: =V273*Full!$J$281*V$286 -> 0 | W281: =W273*Full!$J$281*W$286 -> 0 | X281: 0
C282: ='IF Factors'!$I$8 -> Electric | D282: =D274*Full!$K$281*D$286 -> 0 | E282: =E274*Full!$K$281*E$286 -> 0 | F282: =F274*Full!$K$281*F$286 -> 0 | G282: =G274*Full!$K$281*G$286 -> 0 | H282: =H274*Full!$K$281*H$286 -> 0 | I282: =I274*Full!$K$281*I$286 -> 0 | J282: =J274*Full!$K$281*J$286 -> 0 | K282: =K274*Full!$K$281*K$286 -> 0 | L282: =L274*Full!$K$281*L$286 -> 0 | M282: =M274*Full!$K$281*M$286 -> 0 | N282: =N274*Full!$K$281*N$286 -> 0 | O282: =O274*Full!$K$281*O$286 -> 0 | P282: =P274*Full!$K$281*P$286 -> 0 | Q282: =Q274*Full!$K$281*Q$286 -> 0 | R282: =R274*Full!$K$281*R$286 -> 0 | S282: =S274*Full!$K$281*S$286 -> 0 | T282: =T274*Full!$K$281*T$286 -> 0 | U282: =U274*Full!$K$281*U$286 -> 0 | V282: =V274*Full!$K$281*V$286 -> 0 | W282: =W274*Full!$K$281*W$286 -> 0 | X282: 0
C283: =IF('IF Factors'!$J$8="","",'IF Factors'!$J$8) -> Ethanol | D283: =D275*Full!$L$281*D$286 -> 0 | E283: =E275*Full!$L$281*E$286 -> 0 | F283: =F275*Full!$L$281*F$286 -> 0 | G283: =G275*Full!$L$281*G$286 -> 0 | H283: =H275*Full!$L$281*H$286 -> 0 | I283: =I275*Full!$L$281*I$286 -> 0 | J283: =J275*Full!$L$281*J$286 -> 0 | K283: =K275*Full!$L$281*K$286 -> 0 | L283: =L275*Full!$L$281*L$286 -> 0 | M283: =M275*Full!$L$281*M$286 -> 0 | N283: =N275*Full!$L$281*N$286 -> 0 | O283: =O275*Full!$L$281*O$286 -> 0 | P283: =P275*Full!$L$281*P$286 -> 0 | Q283: =Q275*Full!$L$281*Q$286 -> 0 | R283: =R275*Full!$L$281*R$286 -> 0 | S283: =S275*Full!$L$281*S$286 -> 0 | T283: =T275*Full!$L$281*T$286 -> 0 | U283: =U275*Full!$L$281*U$286 -> 0 | V283: =V275*Full!$L$281*V$286 -> 0 | W283: =W275*Full!$L$281*W$286 -> 0 | X283: 0
C284: Total | D284: =SUM(D278:D283) -> 0 | E284: =SUM(E278:E283) -> 0 | F284: 0 | G284: 0 | H284: 0 | I284: 0 | J284: 0 | K284: 0 | L284: 0 | M284: 0 | N284: 0 | O284: 0 | P284: 0 | Q284: 0 | R284: 0 | S284: 0 | T284: 0 | U284: 0 | V284: 0 | W284: 0 | X284: 0
C286: Inflation | D286: 1 | E286: =D286+(D286*Full!$G$290) -> 1 | F286: =E286+(E286*Full!$G$290) -> 1 | G286: =F286+(F286*Full!$G$290) -> 1 | H286: =G286+(G286*Full!$G$290) -> 1 | I286: =H286+(H286*Full!$G$290) -> 1 | J286: =I286+(I286*Full!$G$290) -> 1 | K286: =J286+(J286*Full!$G$290) -> 1 | L286: =K286+(K286*Full!$G$290) -> 1 | M286: =L286+(L286*Full!$G$290) -> 1 | N286: =M286+(M286*Full!$G$290) -> 1 | O286: =N286+(N286*Full!$G$290) -> 1 | P286: =O286+(O286*Full!$G$290) -> 1 | Q286: =P286+(P286*Full!$G$290) -> 1 | R286: =Q286+(Q286*Full!$G$290) -> 1 | S286: =R286+(R286*Full!$G$290) -> 1 | T286: =S286+(S286*Full!$G$290) -> 1 | U286: =T286+(T286*Full!$G$290) -> 1 | V286: =U286+(U286*Full!$G$290) -> 1 | W286: =V286+(V286*Full!$G$290) -> 1
C288: Economic Analysis
C289: CO2 | D289: =D239*Full!$G$284 -> 0 | E289: =E239*Full!$G$284 -> 0 | F289: =F239*Full!$G$284 -> 0 | G289: =G239*Full!$G$284 -> 0 | H289: =H239*Full!$G$284 -> 0 | I289: =I239*Full!$G$284 -> 0 | J289: =J239*Full!$G$284 -> 0 | K289: =K239*Full!$G$284 -> 0 | L289: =L239*Full!$G$284 -> 0 | M289: =M239*Full!$G$284 -> 0 | N289: =N239*Full!$G$284 -> 0 | O289: =O239*Full!$G$284 -> 0 | P289: =P239*Full!$G$284 -> 0 | Q289: =Q239*Full!$G$284 -> 0 | R289: =R239*Full!$G$284 -> 0 | S289: =S239*Full!$G$284 -> 0 | T289: =T239*Full!$G$284 -> 0 | U289: =U239*Full!$G$284 -> 0 | V289: =V239*Full!$G$284 -> 0 | W289: =W239*Full!$G$284 -> 0 | X289: =SUM(D289:W289) -> 0
C290: PM | D290: =D240*Full!$G$285 -> 0 | E290: =E240*Full!$G$285 -> 0 | F290: =F240*Full!$G$285 -> 0 | G290: =G240*Full!$G$285 -> 0 | H290: =H240*Full!$G$285 -> 0 | I290: =I240*Full!$G$285 -> 0 | J290: =J240*Full!$G$285 -> 0 | K290: =K240*Full!$G$285 -> 0 | L290: =L240*Full!$G$285 -> 0 | M290: =M240*Full!$G$285 -> 0 | N290: =N240*Full!$G$285 -> 0 | O290: =O240*Full!$G$285 -> 0 | P290: =P240*Full!$G$285 -> 0 | Q290: =Q240*Full!$G$285 -> 0 | R290: =R240*Full!$G$285 -> 0 | S290: =S240*Full!$G$285 -> 0 | T290: =T240*Full!$G$285 -> 0 | U290: =U240*Full!$G$285 -> 0 | V290: =V240*Full!$G$285 -> 0 | W290: =W240*Full!$G$285 -> 0 | X290: =SUM(D290:W290) -> 0
C291: Nox | D291: =D241*Full!$G$286 -> 0 | E291: =E241*Full!$G$286 -> 0 | F291: =F241*Full!$G$286 -> 0 | G291: =G241*Full!$G$286 -> 0 | H291: =H241*Full!$G$286 -> 0 | I291: =I241*Full!$G$286 -> 0 | J291: =J241*Full!$G$286 -> 0 | K291: =K241*Full!$G$286 -> 0 | L291: =L241*Full!$G$286 -> 0 | M291: =M241*Full!$G$286 -> 0 | N291: =N241*Full!$G$286 -> 0 | O291: =O241*Full!$G$286 -> 0 | P291: =P241*Full!$G$286 -> 0 | Q291: =Q241*Full!$G$286 -> 0 | R291: =R241*Full!$G$286 -> 0 | S291: =S241*Full!$G$286 -> 0 | T291: =T241*Full!$G$286 -> 0 | U291: =U241*Full!$G$286 -> 0 | V291: =V241*Full!$G$286 -> 0 | W291: =W241*Full!$G$286 -> 0 | X291: 0
C292: Fatalities | D292: =D246*Full!$G$288 ->  | E292: =E246*Full!$G$288 ->  | F292: =F246*Full!$G$288 ->  | G292: =G246*Full!$G$288 ->  | H292: =H246*Full!$G$288 ->  | I292: =I246*Full!$G$288 ->  | J292: =J246*Full!$G$288 ->  | K292: =K246*Full!$G$288 ->  | L292: =L246*Full!$G$288 ->  | M292: =M246*Full!$G$288 ->  | N292: =N246*Full!$G$288 ->  | O292: =O246*Full!$G$288 ->  | P292: =P246*Full!$G$288 ->  | Q292: =Q246*Full!$G$288 ->  | R292: =R246*Full!$G$288 ->  | S292: =S246*Full!$G$288 ->  | T292: =T246*Full!$G$288 ->  | U292: =U246*Full!$G$288 ->  | V292: =V246*Full!$G$288 ->  | W292: =W246*Full!$G$288 -> 
C293: Injuries | D293: =D247*Full!$G$289 ->  | E293: =E247*Full!$G$289 ->  | F293: =F247*Full!$G$289 ->  | G293: =G247*Full!$G$289 ->  | H293: =H247*Full!$G$289 ->  | I293: =I247*Full!$G$289 ->  | J293: =J247*Full!$G$289 ->  | K293: =K247*Full!$G$289 ->  | L293: =L247*Full!$G$289 ->  | M293: =M247*Full!$G$289 ->  | N293: =N247*Full!$G$289 ->  | O293: =O247*Full!$G$289 ->  | P293: =P247*Full!$G$289 ->  | Q293: =Q247*Full!$G$289 ->  | R293: =R247*Full!$G$289 ->  | S293: =S247*Full!$G$289 ->  | T293: =T247*Full!$G$289 ->  | U293: =U247*Full!$G$289 ->  | V293: =V247*Full!$G$289 ->  | W293: =W247*Full!$G$289 -> 
C294: Travel Time | D294: =Summary!D253*1000*Full!$G$287 ->  | E294: =Summary!E253*1000*Full!$G$287 ->  | F294: =Summary!F253*1000*Full!$G$287 ->  | G294: =Summary!G253*1000*Full!$G$287 ->  | H294: =Summary!H253*1000*Full!$G$287 ->  | I294: =Summary!I253*1000*Full!$G$287 ->  | J294: =Summary!J253*1000*Full!$G$287 ->  | K294: =Summary!K253*1000*Full!$G$287 ->  | L294: =Summary!L253*1000*Full!$G$287 ->  | M294: =Summary!M253*1000*Full!$G$287 ->  | N294: =Summary!N253*1000*Full!$G$287 ->  | O294: =Summary!O253*1000*Full!$G$287 ->  | P294: =Summary!P253*1000*Full!$G$287 ->  | Q294: =Summary!Q253*1000*Full!$G$287 ->  | R294: =Summary!R253*1000*Full!$G$287 ->  | S294: =Summary!S253*1000*Full!$G$287 ->  | T294: =Summary!T253*1000*Full!$G$287 ->  | U294: =Summary!U253*1000*Full!$G$287 ->  | V294: =Summary!V253*1000*Full!$G$287 ->  | W294: =Summary!W253*1000*Full!$G$287 -> 
C295: Fuel | D295: =D284 -> 0 | E295: =E284 -> 0 | F295: 0 | G295: 0 | H295: 0 | I295: 0 | J295: 0 | K295: 0 | L295: 0 | M295: 0 | N295: 0 | O295: 0 | P295: 0 | Q295: 0 | R295: 0 | S295: 0 | T295: 0 | U295: 0 | V295: 0 | W295: 0 | X295: 0
C296: Maintenance | D296: =-(Full!$G$283*Full!$G$292) -> 0 | E296: =-(Full!$G$283*Full!$G$292) -> 0 | F296: =-(Full!$G$283*Full!$G$292) -> 0 | G296: =-(Full!$G$283*Full!$G$292) -> 0 | H296: =-(Full!$G$283*Full!$G$292) -> 0 | I296: =-(Full!$G$283*Full!$G$292) -> 0 | J296: =-(Full!$G$283*Full!$G$292) -> 0 | K296: =-(Full!$G$283*Full!$G$292) -> 0 | L296: =-(Full!$G$283*Full!$G$292) -> 0 | M296: =-(Full!$G$283*Full!$G$292) -> 0 | N296: =-(Full!$G$283*Full!$G$292) -> 0 | O296: =-(Full!$G$283*Full!$G$292) -> 0 | P296: =-(Full!$G$283*Full!$G$292) -> 0 | Q296: =-(Full!$G$283*Full!$G$292) -> 0 | R296: =-(Full!$G$283*Full!$G$292) -> 0 | S296: =-(Full!$G$283*Full!$G$292) -> 0 | T296: =-(Full!$G$283*Full!$G$292) -> 0 | U296: =-(Full!$G$283*Full!$G$292) -> 0 | V296: =-(Full!$G$283*Full!$G$292) -> 0 | W296: =-(Full!$G$283*Full!$G$292) -> 0 | X296: =SUM(D296:W296) -> 0
C297: Construction | X297: =-Full!G283 -> 0
C298: Construction CO2 | X298: =-SUM(Calculations!H2112:J2112)*Full!G284 -> 0
C299: =X297+X298 -> 0 | D299: =SUM(D289:D297) ->  | X299: =SUM(X289:X298) -> 
C301: EIRR | D301: =IRR(C299:W299) -> 
C302: NPV | D302: =NPV(Full!G291,C299:W299) -> 
C304: Total Costs vs Savings | D304: =C299+D299 ->  | E304: =D304+E299 ->  | F304: =E304+F299 -> 
C306: Costs vs Savings
D307: =D238 -> 0 | E307: =E238 -> 1 | F307: 2 | G307: 3 | H307: 4 | I307: 5 | J307: 6 | K307: 7 | L307: 8 | M307: 9 | N307: 10 | O307: 11 | P307: 12 | Q307: 13 | R307: 14 | S307: 15 | T307: 16 | U307: 17 | V307: 18 | W307: 19 | X307: Total
C308: CO2 | D308: =D289 -> 0 | E308: =E289 -> 0 | F308: 0 | G308: 0 | H308: 0 | I308: 0 | J308: 0 | K308: 0 | L308: 0 | M308: 0 | N308: 0 | O308: 0 | P308: 0 | Q308: 0 | R308: 0 | S308: 0 | T308: 0 | U308: 0 | V308: 0 | W308: 0 | X308: 0
C309: PM | D309: =D290 -> 0 | E309: 0 | F309: 0 | G309: 0 | H309: 0 | I309: 0 | J309: 0 | K309: 0 | L309: 0 | M309: 0 | N309: 0 | O309: 0 | P309: 0 | Q309: 0 | R309: 0 | S309: 0 | T309: 0 | U309: 0 | V309: 0 | W309: 0 | X309: 0
C310: Nox | D310: =D291 -> 0 | E310: 0 | F310: 0 | G310: 0 | H310: 0 | I310: 0 | J310: 0 | K310: 0 | L310: 0 | M310: 0 | N310: 0 | O310: 0 | P310: 0 | Q310: 0 | R310: 0 | S310: 0 | T310: 0 | U310: 0 | V310: 0 | W310: 0 | X310: 0
C311: Fatalities | D311: =D292 -> 
C312: Injuries | D312: =D293 -> 
C313: Travel Time | D313: =D294 -> 
C314: Fuel | D314: =D295 -> 0 | E314: 0 | F314: 0 | G314: 0 | H314: 0 | I314: 0 | J314: 0 | K314: 0 | L314: 0 | M314: 0 | N314: 0 | O314: 0 | P314: 0 | Q314: 0 | R314: 0 | S314: 0 | T314: 0 | U314: 0 | V314: 0 | W314: 0 | X314: 0
C315: Maintenance | D315: =D296 -> 0 | E315: 0 | F315: 0 | G315: 0 | H315: 0 | I315: 0 | J315: 0 | K315: 0 | L315: 0 | M315: 0 | N315: 0 | O315: 0 | P315: 0 | Q315: 0 | R315: 0 | S315: 0 | T315: 0 | U315: 0 | V315: 0 | W315: 0 | X315: 0
C316: Construction | D316: =X297 -> 0 | E316: =E297 -> 0 | F316: 0 | G316: 0 | H316: 0 | I316: 0 | J316: 0 | K316: 0 | L316: 0 | M316: 0 | N316: 0 | O316: 0 | P316: 0 | Q316: 0 | R316: 0 | S316: 0 | T316: 0 | U316: 0 | V316: 0 | W316: 0 | X316: 0
C317: Construction CO2 | D317: =X298 -> 0 | E317: =E298 -> 0 | F317: 0 | G317: 0 | H317: 0 | I317: 0 | J317: 0 | K317: 0 | L317: 0 | M317: 0 | N317: 0 | O317: 0 | P317: 0 | Q317: 0 | R317: 0 | S317: 0 | T317: 0 | U317: 0 | V317: 0 | W317: 0 | X317: 0
D318: =D299 -> 
C323: Factors used for the calculation of savings from fatality reduction
C324: Source: Koornstra Reference Model as proposed in SMP
C325: Traffic Fatality rates (per billion km) | D325: =Full!G555 -> 2000 | E325: =Full!H555 -> 2010 | F325: =Full!I555 -> 2020 | G325: =Full!J555 -> 2030 | H325: =Full!K555 -> 2040 | I325: =Full!L555 -> 2050
C326: OECD Regions - Reference Case | D326: =Full!G556 -> 19.6 | E326: =Full!H556 -> 12.3 | F326: =Full!I556 -> 7.5 | G326: =Full!J556 -> 4.6 | H326: =Full!K556 -> 2.8 | I326: =Full!L556 -> 1.7
C327: Non OECD Regions - Reference Case | D327: =Full!G557 -> 251.4 | E327: =Full!H557 -> 193.6 | F327: =Full!I557 -> 141.2 | G327: =Full!J557 -> 99.6 | H327: =Full!K557 -> 66.6 | I327: =Full!L557 -> 44
C328: City Traffic Fatality rates (per billion vehicle km) | D328: =Full!G558 -> 251.4 | E328: =Full!H558 -> 193.6 | F328: =Full!I558 -> 141.2 | G328: =Full!J558 -> 99.6 | H328: =Full!K558 -> 66.6 | I328: =Full!L558 -> 44
C329: Growth rate | D329: =Full!G559 -> 0 | E329: =Full!H559 -> -2.578680391 | F329: =Full!I559 -> -3.106881389 | G329: =Full!J559 -> -3.429948242 | H329: =Full!K559 -> -3.94466542 | I329: =Full!L559 -> -4.060412968
C330: Growth rate % | D330: =Full!G560 -> 0 | E330: =Full!H560 -> -0.02578680391 | F330: =Full!I560 -> -0.03106881389 | G330: =Full!J560 -> -0.03429948242 | H330: =Full!K560 -> -0.0394466542 | I330: =Full!L560 -> -0.04060412968
D333: =D325 -> 2000 | E333: =D333+1 -> 2001 | F333: =E333+1 -> 2002 | G333: 2003 | H333: 2004 | I333: 2005 | J333: 2006 | K333: 2007 | L333: 2008 | M333: 2009 | N333: 2010 | O333: 2011 | P333: 2012 | Q333: 2013 | R333: 2014 | S333: 2015 | T333: 2016 | U333: 2017 | V333: 2018 | W333: 2019 | X333: 2020 | Y333: 2021 | Z333: 2022 | AA333: 2023 | AB333: 2024 | AC333: 2025 | AD333: 2026 | AE333: 2027 | AF333: 2028 | AG333: 2029 | AH333: 2030 | AI333: 2031 | AJ333: 2032 | AK333: 2033 | AL333: 2034 | AM333: 2035 | AN333: 2036 | AO333: 2037 | AP333: 2038 | AQ333: 2039 | AR333: 2040 | AS333: 2041 | AT333: 2042 | AU333: 2043 | AV333: 2044 | AW333: 2045 | AX333: 2046 | AY333: 2047 | AZ333: 2048 | BA333: 2049 | BB333: 2050
C334: City Traffic fatality rates/billion pkm | D334: =D328 -> 251.4 | E334: =D334+(D334*$E$330) -> 244.9171975 | F334: =E334+(E334*$E$330) -> 238.6015658 | G334: 232.448794 | H334: 226.4546825 | I334: 220.61514 | J334: 214.9261807 | K334: 209.3839214 | L334: 203.9845793 | M334: 198.7244689 | N334: =E328 -> 193.6 | O334: =N334+(N334*$F$330) -> 187.5850776 | P334: =O334+(O334*$F$330) -> 181.7570318 | Q334: 176.1100564 | R334: 170.6385258 | S334: 165.3369892 | T334: 160.2001651 | U334: 155.2229359 | V334: 150.4003434 | W334: 145.7275832 | X334: =F328 -> 141.2 | Y334: =X334+(X334*$G$330) -> 136.3569131 | Z334: =Y334+(Y334*$G$330) -> 131.6799415 | AA334: 127.1633877 | AB334: 122.8017493 | AC334: 118.5897129 | AD334: 114.5221471 | AE334: 110.5940967 | AF334: 106.8007765 | AG334: 103.1375651 | AH334: =G328 -> 99.6 | AI334: =AH334+(AH334*$H$330) -> 95.67111324 | AJ334: =AI334+(AI334*$H$330) -> 91.89720792 | AK334: 88.27217054 | AL334: 84.79012875 | AM334: 81.44544186 | AN334: 78.23269168 | AO334: 75.14667374 | AP334: 72.18238889 | AQ334: 69.33503516 | AR334: =H328 -> 66.6 | AS334: =AR334+(AR334*$I$330) -> 63.89576496 | AT334: =AS334+(AS334*$I$330) -> 61.30133304 | AU334: 58.81224576 | AV334: 56.42422571 | AW334: 54.13316913 | AX334: 51.93513891 | AY334: 49.82635779 | AZ334: 47.8032019 | BA334: 45.86219449 | BB334: =I328 -> 44

Sheet Summary2
C3: =Full!F8 -> 0
C4: =Full!F9 -> 0 | I4: *analysis considers land use impact
C6: Ridership/year (millions) | F6: Emissions Savings
C7: =Full!F12 -> 0 | D7: =Full!G171*Full!$F$16/10^6 -> 0 | F7: =IF($X$238<0,"PM increase (tons)","PM reduction (tons)") -> PM reduction (tons) | G7: =X238 -> 0
C8: =Full!F13 -> 9 | D8: =Full!H171*Full!$F$16/10^6 -> 0 | F8: =IF($X$239<0,"NOx increase (tons)","NOx reduction (tons)") -> NOx reduction (tons) | G8: =X239 -> 0
C9: =Full!F14 -> 19 | D9: =Full!I171*Full!$F$16/10^6 -> 0 | F9: =IF($X$237<0,"CO2 increase (tons)","CO2 reduction (tons)") -> CO2 reduction (tons) | G9: =X237-SUM(Calculations2!H2112:J2112) -> 0
C11: Financial Indicators
C12: EIRR | D12: =D299 ->  | F12: =IF($X$238<0,"PM increase (tons/km)","PM reduction (tons/km)") -> PM reduction (tons/km) | G12: =G7/Full!$I$43 -> 
C13: NPV (million USD) | D13: =D300/10^6 ->  | F13: =IF($X$239<0,"NOx increase (tons/km)","NOx reduction (tons/km)") -> NOx reduction (tons/km) | G13: =G8/Full!$I$43 -> 
C14: Project Cost (million USD) | D14: =Full!G283/1000000 -> 0 | F14: =IF($X$237<0,"CO2 increase (tons/km)","CO2 reduction (tons/km)") -> CO2 reduction (tons/km) | G14: =G9/Full!$I$43 -> 
C16: Co-benefits
C17: VKT Saved (millions) | D17: =SUM(D242:W242) -> 0 | F17: =IF($X$238<0,"PM increase (tons/km/yr)","PM reduction (tons/km/yr)") -> PM reduction (tons/km/yr) | G17: =G12/($C$9-$C$7+1) -> 
C18: Time travel savings ('000s hours) | D18: =X251 ->  | F18: =IF($X$239<0,"NOx increase (tons/km/yr)","NOx reduction (tons/km/yr)") -> NOx reduction (tons/km/yr) | G18: =G13/($C$9-$C$7+1) -> 
C19: No. of fatalities reduced | D19: =X244 ->  | F19: =IF($X$237<0,"CO2 increase (tons/km/yr)","CO2 reduction (tons/km/yr)") -> CO2 reduction (tons/km/yr) | G19: =G14/($C$9-$C$7+1) -> 
C20: No. of injuries reduced | D20: =X245 -> 
C21: Fuel Savings ('000 USD) | D21: =X282/1000 -> 0
C22: Emissions reduction ('000 USD) | D22: =(SUM(X306:X308)-X315)/1000 -> 0
C234: Final Calculations2
M235: =M237/56 -> 0 | AA235: % Reduction for Buses | AB235: Mode Shift | AD235: Bus Tech
D236: =Calculations2!H23 -> 0 | E236: =Calculations2!I23 -> 1 | F236: =Calculations2!J23 -> 2 | G236: =Calculations2!K23 -> 3 | H236: =Calculations2!L23 -> 4 | I236: =Calculations2!M23 -> 5 | J236: =Calculations2!N23 -> 6 | K236: =Calculations2!O23 -> 7 | L236: =Calculations2!P23 -> 8 | M236: =Calculations2!Q23 -> 9 | N236: =Calculations2!R23 -> 10 | O236: =Calculations2!S23 -> 11 | P236: =Calculations2!T23 -> 12 | Q236: =Calculations2!U23 -> 13 | R236: =Calculations2!V23 -> 14 | S236: =Calculations2!W23 -> 15 | T236: =Calculations2!X23 -> 16 | U236: =Calculations2!Y23 -> 17 | V236: =Calculations2!Z23 -> 18 | W236: =Calculations2!AA23 -> 19 | X236: Total | Z236: 20yr Avg | AB236: % | AC236: # | AD236: % | AE236: #
C237: CO2 savings or increase (tons) | D237: =Calculations2!H2098 -> 0 | E237: =Calculations2!I2098 -> 0 | F237: =Calculations2!J2098 -> 0 | G237: =Calculations2!K2098 -> 0 | H237: =Calculations2!L2098 -> 0 | I237: =Calculations2!M2098 -> 0 | J237: =Calculations2!N2098 -> 0 | K237: =Calculations2!O2098 -> 0 | L237: =Calculations2!P2098 -> 0 | M237: =Calculations2!Q2098 -> 0 | N237: =Calculations2!R2098 -> 0 | O237: =Calculations2!S2098 -> 0 | P237: =Calculations2!T2098 -> 0 | Q237: =Calculations2!U2098 -> 0 | R237: =Calculations2!V2098 -> 0 | S237: =Calculations2!W2098 -> 0 | T237: =Calculations2!X2098 -> 0 | U237: =Calculations2!Y2098 -> 0 | V237: =Calculations2!Z2098 -> 0 | W237: =Calculations2!AA2098 -> 0 | X237: =SUM(D237:W237) -> 0 | Z237: =X237/20 -> 0 | AA237: =1-(Calculations2!AC2077/SUM(Calculations2!AC2073:AC2074)) ->  | AB237: =1-AD237 ->  | AC237: =Z237*AB237 ->  | AD237: =(SUM(Calculations2!AC2073:AC2074)-Calculations2!AC2077)/(SUM(Calculations2!AC2067:AC2074)-Calculations2!AC2077) ->  | AE237: =Z237*AD237 -> 
C238: PM savings or increase (tons) | D238: =Calculations2!H2084 -> 0 | E238: =Calculations2!I2084 -> 0 | F238: =Calculations2!J2084 -> 0 | G238: =Calculations2!K2084 -> 0 | H238: =Calculations2!L2084 -> 0 | I238: =Calculations2!M2084 -> 0 | J238: =Calculations2!N2084 -> 0 | K238: =Calculations2!O2084 -> 0 | L238: =Calculations2!P2084 -> 0 | M238: =Calculations2!Q2084 -> 0 | N238: =Calculations2!R2084 -> 0 | O238: =Calculations2!S2084 -> 0 | P238: =Calculations2!T2084 -> 0 | Q238: =Calculations2!U2084 -> 0 | R238: =Calculations2!V2084 -> 0 | S238: =Calculations2!W2084 -> 0 | T238: =Calculations2!X2084 -> 0 | U238: =Calculations2!Y2084 -> 0 | V238: =Calculations2!Z2084 -> 0 | W238: =Calculations2!AA2084 -> 0 | X238: =SUM(D238:W238) -> 0 | Z238: =X238/20 -> 0 | AA238: =1-(Calculations2!AC2049/SUM(Calculations2!AC2045:AC2046)) ->  | AB238: =1-AD238 ->  | AC238: =Z238*AB238 ->  | AD238: =(SUM(Calculations2!AC2045:AC2046)-Calculations2!AC2049)/(SUM(Calculations2!AC2039:AC2046)-Calculations2!AC2049) ->  | AE238: =Z238*AD238 -> 
C239: NOx savings or increase (tons) | D239: =Calculations2!H2091 -> 0 | E239: =Calculations2!I2091 -> 0 | F239: =Calculations2!J2091 -> 0 | G239: =Calculations2!K2091 -> 0 | H239: =Calculations2!L2091 -> 0 | I239: =Calculations2!M2091 -> 0 | J239: =Calculations2!N2091 -> 0 | K239: =Calculations2!O2091 -> 0 | L239: =Calculations2!P2091 -> 0 | M239: =Calculations2!Q2091 -> 0 | N239: =Calculations2!R2091 -> 0 | O239: =Calculations2!S2091 -> 0 | P239: =Calculations2!T2091 -> 0 | Q239: =Calculations2!U2091 -> 0 | R239: =Calculations2!V2091 -> 0 | S239: =Calculations2!W2091 -> 0 | T239: =Calculations2!X2091 -> 0 | U239: =Calculations2!Y2091 -> 0 | V239: =Calculations2!Z2091 -> 0 | W239: =Calculations2!AA2091 -> 0 | X239: 0 | Z239: =X239/20 -> 0 | AA239: =1-(Calculations2!AC2063/SUM(Calculations2!AC2059:AC2060)) ->  | AB239: =1-AD239 ->  | AC239: =Z239*AB239 ->  | AD239: =(SUM(Calculations2!AC2059:AC2060)-Calculations2!AC2063)/(SUM(Calculations2!AC2053:AC2060)-Calculations2!AC2063) ->  | AE239: =Z239*AD239 -> 
C240: Construction CO2 (tons) | D240: =Calculations2!H2112 -> 0 | N240: =Calculations2!I2112 -> 0 | W240: =Calculations2!J2112 -> 0 | X240: 0 | AA240: =1-SUM(Calculations2!H34:AA34)/SUM(Calculations2!H30:AA31) -> 
C242: VKT savings (millions/year) | D242: =(SUM(Calculations2!H123:H132)-Calculations2!H133)*Full!$F$16/10^6 -> 0 | E242: =(SUM(Calculations2!I123:I132)-Calculations2!I133)*Full!$F$16/10^6 -> 0 | F242: =(SUM(Calculations2!J123:J132)-Calculations2!J133)*Full!$F$16/10^6 -> 0 | G242: =(SUM(Calculations2!K123:K132)-Calculations2!K133)*Full!$F$16/10^6 -> 0 | H242: =(SUM(Calculations2!L123:L132)-Calculations2!L133)*Full!$F$16/10^6 -> 0 | I242: =(SUM(Calculations2!M123:M132)-Calculations2!M133)*Full!$F$16/10^6 -> 0 | J242: =(SUM(Calculations2!N123:N132)-Calculations2!N133)*Full!$F$16/10^6 -> 0 | K242: =(SUM(Calculations2!O123:O132)-Calculations2!O133)*Full!$F$16/10^6 -> 0 | L242: =(SUM(Calculations2!P123:P132)-Calculations2!P133)*Full!$F$16/10^6 -> 0 | M242: =(SUM(Calculations2!Q123:Q132)-Calculations2!Q133)*Full!$F$16/10^6 -> 0 | N242: =(SUM(Calculations2!R123:R132)-Calculations2!R133)*Full!$F$16/10^6 -> 0 | O242: =(SUM(Calculations2!S123:S132)-Calculations2!S133)*Full!$F$16/10^6 -> 0 | P242: =(SUM(Calculations2!T123:T132)-Calculations2!T133)*Full!$F$16/10^6 -> 0 | Q242: =(SUM(Calculations2!U123:U132)-Calculations2!U133)*Full!$F$16/10^6 -> 0 | R242: =(SUM(Calculations2!V123:V132)-Calculations2!V133)*Full!$F$16/10^6 -> 0 | S242: =(SUM(Calculations2!W123:W132)-Calculations2!W133)*Full!$F$16/10^6 -> 0 | T242: =(SUM(Calculations2!X123:X132)-Calculations2!X133)*Full!$F$16/10^6 -> 0 | U242: =(SUM(Calculations2!Y123:Y132)-Calculations2!Y133)*Full!$F$16/10^6 -> 0 | V242: =(SUM(Calculations2!Z123:Z132)-Calculations2!Z133)*Full!$F$16/10^6 -> 0 | W242: =(SUM(Calculations2!AA123:AA132)-Calculations2!AA133)*Full!$F$16/10^6 -> 0 | X242: =SUM(D242:W242) -> 0 | Z242: =X242/20 -> 0 | AA242: =1-(Calculations2!AC133/SUM(Calculations2!AC129:AC130)) ->  | AB242: =1-AD242 ->  | AC242: =Z242*AB242 ->  | AD242: =(SUM(Calculations2!AC129:AC130)-Calculations2!AC133)/(SUM(Calculations2!AC123:AC130)-Calculations2!AC133) ->  | AE242: =Z242*AD242 -> 
C243: Projected fatality rates (fatalities/billion VKM) | D243: =HLOOKUP(D236,D331:BB332,2,FALSE) ->  | M243: =HLOOKUP(M236,M331:BK332,2,FALSE) -> 
C244: No. of fatalities reduced | D244: =(D242/1000)*D243 ->  | E244: =(E242/1000)*E243 ->  | M244: =(M242/1000)*M243 ->  | Z244: =X244/20 ->  | AA244: =1-(SUM(Calculations2!H133:AA133)/SUM(Calculations2!H123:AA132)) -> 
C245: No. of injuries reduced | D245: =D244*15 ->  | E245: =E244*15 ->  | Z245: =X245/20 ->  | AA245: =1-(SUM(Calculations2!H133:AA133)/SUM(Calculations2!H123:AA132)) -> 
C247: Average Speed of Modes other than BRT | D247: =Calculations2!H680 ->  | E247: =Calculations2!I680 ->  | F247: =Calculations2!J680 ->  | G247: =Calculations2!K680 ->  | H247: =Calculations2!L680 ->  | I247: =Calculations2!M680 ->  | J247: =Calculations2!N680 ->  | K247: =Calculations2!O680 ->  | L247: =Calculations2!P680 ->  | M247: =Calculations2!Q680 ->  | N247: =Calculations2!R680 ->  | O247: =Calculations2!S680 ->  | P247: =Calculations2!T680 ->  | Q247: =Calculations2!U680 ->  | R247: =Calculations2!V680 ->  | S247: =Calculations2!W680 ->  | T247: =Calculations2!X680 ->  | U247: =Calculations2!Y680 ->  | V247: =Calculations2!Z680 ->  | W247: =Calculations2!AA680 -> 
C248: Average Speed of BRT | D248: =Calculations2!H679 -> 0 | E248: =Calculations2!I679 -> 0 | F248: =Calculations2!J679 -> 0 | G248: =Calculations2!K679 -> 0 | H248: =Calculations2!L679 -> 0 | I248: =Calculations2!M679 -> 0 | J248: =Calculations2!N679 -> 0 | K248: =Calculations2!O679 -> 0 | L248: =Calculations2!P679 -> 0 | M248: =Calculations2!Q679 -> 0 | N248: =Calculations2!R679 -> 0 | O248: =Calculations2!S679 -> 0 | P248: =Calculations2!T679 -> 0 | Q248: =Calculations2!U679 -> 0 | R248: =Calculations2!V679 -> 0 | S248: =Calculations2!W679 -> 0 | T248: =Calculations2!X679 -> 0 | U248: =Calculations2!Y679 -> 0 | V248: =Calculations2!Z679 -> 0 | W248: =Calculations2!AA679 -> 0
C249: Difference in Speed | D249: =D248-D247 ->  | E249: =E248-E247 -> 
C250: PKT (millions) | D250: =(Full!$F$16*Calculations2!H166)/10^6 -> 0 | E250: =(Full!$F$16*Calculations2!I166)/10^6 -> 0 | F250: =(Full!$F$16*Calculations2!J166)/10^6 -> 0 | G250: =(Full!$F$16*Calculations2!K166)/10^6 -> 0 | H250: =(Full!$F$16*Calculations2!L166)/10^6 -> 0 | I250: =(Full!$F$16*Calculations2!M166)/10^6 -> 0 | J250: =(Full!$F$16*Calculations2!N166)/10^6 -> 0 | K250: =(Full!$F$16*Calculations2!O166)/10^6 -> 0 | L250: =(Full!$F$16*Calculations2!P166)/10^6 -> 0 | M250: =(Full!$F$16*Calculations2!Q166)/10^6 -> 0 | N250: =(Full!$F$16*Calculations2!R166)/10^6 -> 0 | O250: =(Full!$F$16*Calculations2!S166)/10^6 -> 0 | P250: =(Full!$F$16*Calculations2!T166)/10^6 -> 0 | Q250: =(Full!$F$16*Calculations2!U166)/10^6 -> 0 | R250: =(Full!$F$16*Calculations2!V166)/10^6 -> 0 | S250: =(Full!$F$16*Calculations2!W166)/10^6 -> 0 | T250: =(Full!$F$16*Calculations2!X166)/10^6 -> 0 | U250: =(Full!$F$16*Calculations2!Y166)/10^6 -> 0 | V250: =(Full!$F$16*Calculations2!Z166)/10^6 -> 0 | W250: =(Full!$F$16*Calculations2!AA166)/10^6 -> 0 | X250: =SUM(D250:W250) -> 0 | Z250: =X250/20 -> 0
C251: Time travel savings('000s hours) | D251: =((D250/D247)-(D250/D248))*1000 ->  | E251: =((E250/E247)-(E250/E248))*1000 ->  | Z251: =X251/20 -> 
C253: Fuel Consumption
C254: =CONCATENATE('IF Factors'!$E$8," ","(",'IF Factors'!$E$22,")"," -no BRT") -> Petrol (liter) -no BRT | D254: =SUM(Calculations2!H831:H840)*Full!$F$16 -> 0 | E254: =SUM(Calculations2!I831:I840)*Full!$F$16 -> 0 | F254: =SUM(Calculations2!J831:J840)*Full!$F$16 -> 0 | G254: =SUM(Calculations2!K831:K840)*Full!$F$16 -> 0 | H254: =SUM(Calculations2!L831:L840)*Full!$F$16 -> 0 | I254: =SUM(Calculations2!M831:M840)*Full!$F$16 -> 0 | J254: =SUM(Calculations2!N831:N840)*Full!$F$16 -> 0 | K254: =SUM(Calculations2!O831:O840)*Full!$F$16 -> 0 | L254: =SUM(Calculations2!P831:P840)*Full!$F$16 -> 0 | M254: =SUM(Calculations2!Q831:Q840)*Full!$F$16 -> 0 | N254: =SUM(Calculations2!R831:R840)*Full!$F$16 -> 0 | O254: =SUM(Calculations2!S831:S840)*Full!$F$16 -> 0 | P254: =SUM(Calculations2!T831:T840)*Full!$F$16 -> 0 | Q254: =SUM(Calculations2!U831:U840)*Full!$F$16 -> 0 | R254: =SUM(Calculations2!V831:V840)*Full!$F$16 -> 0 | S254: =SUM(Calculations2!W831:W840)*Full!$F$16 -> 0 | T254: =SUM(Calculations2!X831:X840)*Full!$F$16 -> 0 | U254: =SUM(Calculations2!Y831:Y840)*Full!$F$16 -> 0 | V254: =SUM(Calculations2!Z831:Z840)*Full!$F$16 -> 0 | W254: =SUM(Calculations2!AA831:AA840)*Full!$F$16 -> 0
C255: =CONCATENATE('IF Factors'!$E$8," ","(",'IF Factors'!$E$22,")"," -BRT") -> Petrol (liter) -BRT | D255: =Calculations2!H841*Full!$F$16 -> 0 | E255: =Calculations2!I841*Full!$F$16 -> 0 | F255: =Calculations2!J841*Full!$F$16 -> 0 | G255: =Calculations2!K841*Full!$F$16 -> 0 | H255: =Calculations2!L841*Full!$F$16 -> 0 | I255: =Calculations2!M841*Full!$F$16 -> 0 | J255: =Calculations2!N841*Full!$F$16 -> 0 | K255: =Calculations2!O841*Full!$F$16 -> 0 | L255: =Calculations2!P841*Full!$F$16 -> 0 | M255: =Calculations2!Q841*Full!$F$16 -> 0 | N255: =Calculations2!R841*Full!$F$16 -> 0 | O255: =Calculations2!S841*Full!$F$16 -> 0 | P255: =Calculations2!T841*Full!$F$16 -> 0 | Q255: =Calculations2!U841*Full!$F$16 -> 0 | R255: =Calculations2!V841*Full!$F$16 -> 0 | S255: =Calculations2!W841*Full!$F$16 -> 0 | T255: =Calculations2!X841*Full!$F$16 -> 0 | U255: =Calculations2!Y841*Full!$F$16 -> 0 | V255: =Calculations2!Z841*Full!$F$16 -> 0 | W255: =Calculations2!AA841*Full!$F$16 -> 0
C256: =CONCATENATE('IF Factors'!$F$8," ","(",'IF Factors'!$F$22,")"," -no BRT") -> Diesel (liter) -no BRT | D256: =SUM(Calculations2!H846:H855)*Full!$F$16 -> 0 | E256: =SUM(Calculations2!I846:I855)*Full!$F$16 -> 0 | F256: =SUM(Calculations2!J846:J855)*Full!$F$16 -> 0 | G256: =SUM(Calculations2!K846:K855)*Full!$F$16 -> 0 | H256: =SUM(Calculations2!L846:L855)*Full!$F$16 -> 0 | I256: =SUM(Calculations2!M846:M855)*Full!$F$16 -> 0 | J256: =SUM(Calculations2!N846:N855)*Full!$F$16 -> 0 | K256: =SUM(Calculations2!O846:O855)*Full!$F$16 -> 0 | L256: =SUM(Calculations2!P846:P855)*Full!$F$16 -> 0 | M256: =SUM(Calculations2!Q846:Q855)*Full!$F$16 -> 0 | N256: =SUM(Calculations2!R846:R855)*Full!$F$16 -> 0 | O256: =SUM(Calculations2!S846:S855)*Full!$F$16 -> 0 | P256: =SUM(Calculations2!T846:T855)*Full!$F$16 -> 0 | Q256: =SUM(Calculations2!U846:U855)*Full!$F$16 -> 0 | R256: =SUM(Calculations2!V846:V855)*Full!$F$16 -> 0 | S256: =SUM(Calculations2!W846:W855)*Full!$F$16 -> 0 | T256: =SUM(Calculations2!X846:X855)*Full!$F$16 -> 0 | U256: =SUM(Calculations2!Y846:Y855)*Full!$F$16 -> 0 | V256: =SUM(Calculations2!Z846:Z855)*Full!$F$16 -> 0 | W256: =SUM(Calculations2!AA846:AA855)*Full!$F$16 -> 0
C257: =CONCATENATE('IF Factors'!$F$8," ","(",'IF Factors'!$F$22,")"," -BRT") -> Diesel (liter) -BRT | D257: =Calculations2!H856*Full!$F$16 -> 0 | E257: =Calculations2!I856*Full!$F$16 -> 0 | F257: =Calculations2!J856*Full!$F$16 -> 0 | G257: =Calculations2!K856*Full!$F$16 -> 0 | H257: =Calculations2!L856*Full!$F$16 -> 0 | I257: =Calculations2!M856*Full!$F$16 -> 0 | J257: =Calculations2!N856*Full!$F$16 -> 0 | K257: =Calculations2!O856*Full!$F$16 -> 0 | L257: =Calculations2!P856*Full!$F$16 -> 0 | M257: =Calculations2!Q856*Full!$F$16 -> 0 | N257: =Calculations2!R856*Full!$F$16 -> 0 | O257: =Calculations2!S856*Full!$F$16 -> 0 | P257: =Calculations2!T856*Full!$F$16 -> 0 | Q257: =Calculations2!U856*Full!$F$16 -> 0 | R257: =Calculations2!V856*Full!$F$16 -> 0 | S257: =Calculations2!W856*Full!$F$16 -> 0 | T257: =Calculations2!X856*Full!$F$16 -> 0 | U257: =Calculations2!Y856*Full!$F$16 -> 0 | V257: =Calculations2!Z856*Full!$F$16 -> 0 | W257: =Calculations2!AA856*Full!$F$16 -> 0
C258: =CONCATENATE('IF Factors'!$G$8," ","(",'IF Factors'!$G$22,")"," -no BRT") -> LPG (liter) -no BRT | D258: =SUM(Calculations2!H861:H870)*Full!$F$16 -> 0 | E258: =SUM(Calculations2!I861:I870)*Full!$F$16 -> 0 | F258: =SUM(Calculations2!J861:J870)*Full!$F$16 -> 0 | G258: =SUM(Calculations2!K861:K870)*Full!$F$16 -> 0 | H258: =SUM(Calculations2!L861:L870)*Full!$F$16 -> 0 | I258: =SUM(Calculations2!M861:M870)*Full!$F$16 -> 0 | J258: =SUM(Calculations2!N861:N870)*Full!$F$16 -> 0 | K258: =SUM(Calculations2!O861:O870)*Full!$F$16 -> 0 | L258: =SUM(Calculations2!P861:P870)*Full!$F$16 -> 0 | M258: =SUM(Calculations2!Q861:Q870)*Full!$F$16 -> 0 | N258: =SUM(Calculations2!R861:R870)*Full!$F$16 -> 0 | O258: =SUM(Calculations2!S861:S870)*Full!$F$16 -> 0 | P258: =SUM(Calculations2!T861:T870)*Full!$F$16 -> 0 | Q258: =SUM(Calculations2!U861:U870)*Full!$F$16 -> 0 | R258: =SUM(Calculations2!V861:V870)*Full!$F$16 -> 0 | S258: =SUM(Calculations2!W861:W870)*Full!$F$16 -> 0 | T258: =SUM(Calculations2!X861:X870)*Full!$F$16 -> 0 | U258: =SUM(Calculations2!Y861:Y870)*Full!$F$16 -> 0 | V258: =SUM(Calculations2!Z861:Z870)*Full!$F$16 -> 0 | W258: =SUM(Calculations2!AA861:AA870)*Full!$F$16 -> 0
C259: =CONCATENATE('IF Factors'!$G$8," ","(",'IF Factors'!$G$22,")"," -BRT") -> LPG (liter) -BRT | D259: =Calculations2!H871*Full!$F$16 -> 0 | E259: =Calculations2!I871*Full!$F$16 -> 0 | F259: =Calculations2!J871*Full!$F$16 -> 0 | G259: =Calculations2!K871*Full!$F$16 -> 0 | H259: =Calculations2!L871*Full!$F$16 -> 0 | I259: =Calculations2!M871*Full!$F$16 -> 0 | J259: =Calculations2!N871*Full!$F$16 -> 0 | K259: =Calculations2!O871*Full!$F$16 -> 0 | L259: =Calculations2!P871*Full!$F$16 -> 0 | M259: =Calculations2!Q871*Full!$F$16 -> 0 | N259: =Calculations2!R871*Full!$F$16 -> 0 | O259: =Calculations2!S871*Full!$F$16 -> 0 | P259: =Calculations2!T871*Full!$F$16 -> 0 | Q259: =Calculations2!U871*Full!$F$16 -> 0 | R259: =Calculations2!V871*Full!$F$16 -> 0 | S259: =Calculations2!W871*Full!$F$16 -> 0 | T259: =Calculations2!X871*Full!$F$16 -> 0 | U259: =Calculations2!Y871*Full!$F$16 -> 0 | V259: =Calculations2!Z871*Full!$F$16 -> 0 | W259: =Calculations2!AA871*Full!$F$16 -> 0
C260: =CONCATENATE('IF Factors'!$H$8," ","(",'IF Factors'!$H$22,")"," -no BRT") -> CNG (kg) -no BRT | D260: =SUM(Calculations2!H876:H885)*Full!$F$16 -> 0 | E260: =SUM(Calculations2!I876:I885)*Full!$F$16 -> 0 | F260: =SUM(Calculations2!J876:J885)*Full!$F$16 -> 0 | G260: =SUM(Calculations2!K876:K885)*Full!$F$16 -> 0 | H260: =SUM(Calculations2!L876:L885)*Full!$F$16 -> 0 | I260: =SUM(Calculations2!M876:M885)*Full!$F$16 -> 0 | J260: =SUM(Calculations2!N876:N885)*Full!$F$16 -> 0 | K260: =SUM(Calculations2!O876:O885)*Full!$F$16 -> 0 | L260: =SUM(Calculations2!P876:P885)*Full!$F$16 -> 0 | M260: =SUM(Calculations2!Q876:Q885)*Full!$F$16 -> 0 | N260: =SUM(Calculations2!R876:R885)*Full!$F$16 -> 0 | O260: =SUM(Calculations2!S876:S885)*Full!$F$16 -> 0 | P260: =SUM(Calculations2!T876:T885)*Full!$F$16 -> 0 | Q260: =SUM(Calculations2!U876:U885)*Full!$F$16 -> 0 | R260: =SUM(Calculations2!V876:V885)*Full!$F$16 -> 0 | S260: =SUM(Calculations2!W876:W885)*Full!$F$16 -> 0 | T260: =SUM(Calculations2!X876:X885)*Full!$F$16 -> 0 | U260: =SUM(Calculations2!Y876:Y885)*Full!$F$16 -> 0 | V260: =SUM(Calculations2!Z876:Z885)*Full!$F$16 -> 0 | W260: =SUM(Calculations2!AA876:AA885)*Full!$F$16 -> 0
C261: =CONCATENATE('IF Factors'!$H$8," ","(",'IF Factors'!$H$22,")"," -BRT") -> CNG (kg) -BRT | D261: =Calculations2!H886*Full!$F$16 -> 0 | E261: =Calculations2!I886*Full!$F$16 -> 0 | F261: =Calculations2!J886*Full!$F$16 -> 0 | G261: =Calculations2!K886*Full!$F$16 -> 0 | H261: =Calculations2!L886*Full!$F$16 -> 0 | I261: =Calculations2!M886*Full!$F$16 -> 0 | J261: =Calculations2!N886*Full!$F$16 -> 0 | K261: =Calculations2!O886*Full!$F$16 -> 0 | L261: =Calculations2!P886*Full!$F$16 -> 0 | M261: =Calculations2!Q886*Full!$F$16 -> 0 | N261: =Calculations2!R886*Full!$F$16 -> 0 | O261: =Calculations2!S886*Full!$F$16 -> 0 | P261: =Calculations2!T886*Full!$F$16 -> 0 | Q261: =Calculations2!U886*Full!$F$16 -> 0 | R261: =Calculations2!V886*Full!$F$16 -> 0 | S261: =Calculations2!W886*Full!$F$16 -> 0 | T261: =Calculations2!X886*Full!$F$16 -> 0 | U261: =Calculations2!Y886*Full!$F$16 -> 0 | V261: =Calculations2!Z886*Full!$F$16 -> 0 | W261: =Calculations2!AA886*Full!$F$16 -> 0
C262: =CONCATENATE('IF Factors'!$I$8," ","(",'IF Factors'!$I$22,")"," -no BRT") -> Electric (kwh) -no BRT | D262: =SUM(Calculations2!H891:H900)*Full!$F$16 -> 0 | E262: =SUM(Calculations2!I891:I900)*Full!$F$16 -> 0 | F262: =SUM(Calculations2!J891:J900)*Full!$F$16 -> 0 | G262: =SUM(Calculations2!K891:K900)*Full!$F$16 -> 0 | H262: =SUM(Calculations2!L891:L900)*Full!$F$16 -> 0 | I262: =SUM(Calculations2!M891:M900)*Full!$F$16 -> 0 | J262: =SUM(Calculations2!N891:N900)*Full!$F$16 -> 0 | K262: =SUM(Calculations2!O891:O900)*Full!$F$16 -> 0 | L262: =SUM(Calculations2!P891:P900)*Full!$F$16 -> 0 | M262: =SUM(Calculations2!Q891:Q900)*Full!$F$16 -> 0 | N262: =SUM(Calculations2!R891:R900)*Full!$F$16 -> 0 | O262: =SUM(Calculations2!S891:S900)*Full!$F$16 -> 0 | P262: =SUM(Calculations2!T891:T900)*Full!$F$16 -> 0 | Q262: =SUM(Calculations2!U891:U900)*Full!$F$16 -> 0 | R262: =SUM(Calculations2!V891:V900)*Full!$F$16 -> 0 | S262: =SUM(Calculations2!W891:W900)*Full!$F$16 -> 0 | T262: =SUM(Calculations2!X891:X900)*Full!$F$16 -> 0 | U262: =SUM(Calculations2!Y891:Y900)*Full!$F$16 -> 0 | V262: =SUM(Calculations2!Z891:Z900)*Full!$F$16 -> 0 | W262: =SUM(Calculations2!AA891:AA900)*Full!$F$16 -> 0
C263: =CONCATENATE('IF Factors'!$I$8," ","(",'IF Factors'!$I$22,")"," -BRT") -> Electric (kwh) -BRT | D263: =Calculations2!H901*Full!$F$16 -> 0 | E263: =Calculations2!I901*Full!$F$16 -> 0 | F263: =Calculations2!J901*Full!$F$16 -> 0 | G263: =Calculations2!K901*Full!$F$16 -> 0 | H263: =Calculations2!L901*Full!$F$16 -> 0 | I263: =Calculations2!M901*Full!$F$16 -> 0 | J263: =Calculations2!N901*Full!$F$16 -> 0 | K263: =Calculations2!O901*Full!$F$16 -> 0 | L263: =Calculations2!P901*Full!$F$16 -> 0 | M263: =Calculations2!Q901*Full!$F$16 -> 0 | N263: =Calculations2!R901*Full!$F$16 -> 0 | O263: =Calculations2!S901*Full!$F$16 -> 0 | P263: =Calculations2!T901*Full!$F$16 -> 0 | Q263: =Calculations2!U901*Full!$F$16 -> 0 | R263: =Calculations2!V901*Full!$F$16 -> 0 | S263: =Calculations2!W901*Full!$F$16 -> 0 | T263: =Calculations2!X901*Full!$F$16 -> 0 | U263: =Calculations2!Y901*Full!$F$16 -> 0 | V263: =Calculations2!Z901*Full!$F$16 -> 0 | W263: =Calculations2!AA901*Full!$F$16 -> 0
C264: =IF('IF Factors'!J8="","",CONCATENATE('IF Factors'!$J$8," ","(",'IF Factors'!$J$22,")"," -no BRT")) -> Ethanol (liter) -no BRT | D264: =SUM(Calculations2!H906:H915)*Full!$F$16 -> 0 | E264: =SUM(Calculations2!I906:I915)*Full!$F$16 -> 0 | F264: =SUM(Calculations2!J906:J915)*Full!$F$16 -> 0 | G264: =SUM(Calculations2!K906:K915)*Full!$F$16 -> 0 | H264: =SUM(Calculations2!L906:L915)*Full!$F$16 -> 0 | I264: =SUM(Calculations2!M906:M915)*Full!$F$16 -> 0 | J264: =SUM(Calculations2!N906:N915)*Full!$F$16 -> 0 | K264: =SUM(Calculations2!O906:O915)*Full!$F$16 -> 0 | L264: =SUM(Calculations2!P906:P915)*Full!$F$16 -> 0 | M264: =SUM(Calculations2!Q906:Q915)*Full!$F$16 -> 0 | N264: =SUM(Calculations2!R906:R915)*Full!$F$16 -> 0 | O264: =SUM(Calculations2!S906:S915)*Full!$F$16 -> 0 | P264: =SUM(Calculations2!T906:T915)*Full!$F$16 -> 0 | Q264: =SUM(Calculations2!U906:U915)*Full!$F$16 -> 0 | R264: =SUM(Calculations2!V906:V915)*Full!$F$16 -> 0 | S264: =SUM(Calculations2!W906:W915)*Full!$F$16 -> 0 | T264: =SUM(Calculations2!X906:X915)*Full!$F$16 -> 0 | U264: =SUM(Calculations2!Y906:Y915)*Full!$F$16 -> 0 | V264: =SUM(Calculations2!Z906:Z915)*Full!$F$16 -> 0 | W264: =SUM(Calculations2!AA906:AA915)*Full!$F$16 -> 0
C265: =IF('IF Factors'!J9="","",CONCATENATE('IF Factors'!$J$8," ","(",'IF Factors'!$J$22,")"," -BRT")) ->  | D265: =Calculations2!H916*Full!$F$16 -> 0 | E265: =Calculations2!I916*Full!$F$16 -> 0 | F265: =Calculations2!J916*Full!$F$16 -> 0 | G265: =Calculations2!K916*Full!$F$16 -> 0 | H265: =Calculations2!L916*Full!$F$16 -> 0 | I265: =Calculations2!M916*Full!$F$16 -> 0 | J265: =Calculations2!N916*Full!$F$16 -> 0 | K265: =Calculations2!O916*Full!$F$16 -> 0 | L265: =Calculations2!P916*Full!$F$16 -> 0 | M265: =Calculations2!Q916*Full!$F$16 -> 0 | N265: =Calculations2!R916*Full!$F$16 -> 0 | O265: =Calculations2!S916*Full!$F$16 -> 0 | P265: =Calculations2!T916*Full!$F$16 -> 0 | Q265: =Calculations2!U916*Full!$F$16 -> 0 | R265: =Calculations2!V916*Full!$F$16 -> 0 | S265: =Calculations2!W916*Full!$F$16 -> 0 | T265: =Calculations2!X916*Full!$F$16 -> 0 | U265: =Calculations2!Y916*Full!$F$16 -> 0 | V265: =Calculations2!Z916*Full!$F$16 -> 0 | W265: =Calculations2!AA916*Full!$F$16 -> 0
C267: Fuel Savings
C268: =CONCATENATE('IF Factors'!E8," - ",'IF Factors'!E22) -> Petrol - liter | D268: =D254-D255 -> 0 | E268: =E254-E255 -> 0 | F268: 0 | G268: 0 | H268: 0 | I268: 0 | J268: 0 | K268: 0 | L268: 0 | M268: 0 | N268: 0 | O268: 0 | P268: 0 | Q268: 0 | R268: 0 | S268: 0 | T268: 0 | U268: 0 | V268: 0 | W268: 0 | X268: =SUM(D268:W268) -> 0 | Z268: =X268/20 -> 0
C269: =CONCATENATE('IF Factors'!F8," - ",'IF Factors'!F22) -> Diesel - liter | D269: =D256-D257 -> 0 | E269: =E256-E257 -> 0 | F269: 0 | G269: 0 | H269: 0 | I269: 0 | J269: 0 | K269: 0 | L269: 0 | M269: 0 | N269: 0 | O269: 0 | P269: 0 | Q269: 0 | R269: 0 | S269: 0 | T269: 0 | U269: 0 | V269: 0 | W269: 0 | X269: 0 | Z269: =X269/20 -> 0
C270: =CONCATENATE('IF Factors'!G8," - ",'IF Factors'!G22) -> LPG - liter | D270: =D258-D259 -> 0 | E270: =E258-E259 -> 0 | F270: 0 | G270: 0 | H270: 0 | I270: 0 | J270: 0 | K270: 0 | L270: 0 | M270: 0 | N270: 0 | O270: 0 | P270: 0 | Q270: 0 | R270: 0 | S270: 0 | T270: 0 | U270: 0 | V270: 0 | W270: 0 | X270: 0
C271: =CONCATENATE('IF Factors'!H8," - ",'IF Factors'!H22) -> CNG - kg | D271: =D260-D261 -> 0 | E271: =E260-E261 -> 0 | F271: 0 | G271: 0 | H271: 0 | I271: 0 | J271: 0 | K271: 0 | L271: 0 | M271: 0 | N271: 0 | O271: 0 | P271: 0 | Q271: 0 | R271: 0 | S271: 0 | T271: 0 | U271: 0 | V271: 0 | W271: 0 | X271: 0
C272: =CONCATENATE('IF Factors'!I8," - ",'IF Factors'!I22) -> Electric - kwh | D272: =D262-D263 -> 0 | E272: =E262-E263 -> 0 | F272: 0 | G272: 0 | H272: 0 | I272: 0 | J272: 0 | K272: 0 | L272: 0 | M272: 0 | N272: 0 | O272: 0 | P272: 0 | Q272: 0 | R272: 0 | S272: 0 | T272: 0 | U272: 0 | V272: 0 | W272: 0 | X272: 0
C273: =CONCATENATE('IF Factors'!J8," - ",'IF Factors'!J22) -> Ethanol - liter | D273: =D264-D265 -> 0 | E273: =E264-E265 -> 0 | F273: 0 | G273: 0 | H273: 0 | I273: 0 | J273: 0 | K273: 0 | L273: 0 | M273: 0 | N273: 0 | O273: 0 | P273: 0 | Q273: 0 | R273: 0 | S273: 0 | T273: 0 | U273: 0 | V273: 0 | W273: 0 | X273: 0
C275: Fuel Savings (USD)
C276: ='IF Factors'!$E$8 -> Petrol | D276: =D268*Full!$G$281*D$284 -> 0 | E276: =E268*Full!$G$281*E$284 -> 0 | F276: =F268*Full!$G$281*F$284 -> 0 | G276: =G268*Full!$G$281*G$284 -> 0 | H276: =H268*Full!$G$281*H$284 -> 0 | I276: =I268*Full!$G$281*I$284 -> 0 | J276: =J268*Full!$G$281*J$284 -> 0 | K276: =K268*Full!$G$281*K$284 -> 0 | L276: =L268*Full!$G$281*L$284 -> 0 | M276: =M268*Full!$G$281*M$284 -> 0 | N276: =N268*Full!$G$281*N$284 -> 0 | O276: =O268*Full!$G$281*O$284 -> 0 | P276: =P268*Full!$G$281*P$284 -> 0 | Q276: =Q268*Full!$G$281*Q$284 -> 0 | R276: =R268*Full!$G$281*R$284 -> 0 | S276: =S268*Full!$G$281*S$284 -> 0 | T276: =T268*Full!$G$281*T$284 -> 0 | U276: =U268*Full!$G$281*U$284 -> 0 | V276: =V268*Full!$G$281*V$284 -> 0 | W276: =W268*Full!$G$281*W$284 -> 0 | X276: =SUM(D276:W276) -> 0
C277: ='IF Factors'!$F$8 -> Diesel | D277: =D269*Full!$H$281*D$284 -> 0 | E277: =E269*Full!$H$281*E$284 -> 0 | F277: =F269*Full!$H$281*F$284 -> 0 | G277: =G269*Full!$H$281*G$284 -> 0 | H277: =H269*Full!$H$281*H$284 -> 0 | I277: =I269*Full!$H$281*I$284 -> 0 | J277: =J269*Full!$H$281*J$284 -> 0 | K277: =K269*Full!$H$281*K$284 -> 0 | L277: =L269*Full!$H$281*L$284 -> 0 | M277: =M269*Full!$H$281*M$284 -> 0 | N277: =N269*Full!$H$281*N$284 -> 0 | O277: =O269*Full!$H$281*O$284 -> 0 | P277: =P269*Full!$H$281*P$284 -> 0 | Q277: =Q269*Full!$H$281*Q$284 -> 0 | R277: =R269*Full!$H$281*R$284 -> 0 | S277: =S269*Full!$H$281*S$284 -> 0 | T277: =T269*Full!$H$281*T$284 -> 0 | U277: =U269*Full!$H$281*U$284 -> 0 | V277: =V269*Full!$H$281*V$284 -> 0 | W277: =W269*Full!$H$281*W$284 -> 0 | X277: 0
C278: ='IF Factors'!$G$8 -> LPG | D278: =D270*Full!$I$281*D$284 -> 0 | E278: =E270*Full!$I$281*E$284 -> 0 | F278: =F270*Full!$I$281*F$284 -> 0 | G278: =G270*Full!$I$281*G$284 -> 0 | H278: =H270*Full!$I$281*H$284 -> 0 | I278: =I270*Full!$I$281*I$284 -> 0 | J278: =J270*Full!$I$281*J$284 -> 0 | K278: =K270*Full!$I$281*K$284 -> 0 | L278: =L270*Full!$I$281*L$284 -> 0 | M278: =M270*Full!$I$281*M$284 -> 0 | N278: =N270*Full!$I$281*N$284 -> 0 | O278: =O270*Full!$I$281*O$284 -> 0 | P278: =P270*Full!$I$281*P$284 -> 0 | Q278: =Q270*Full!$I$281*Q$284 -> 0 | R278: =R270*Full!$I$281*R$284 -> 0 | S278: =S270*Full!$I$281*S$284 -> 0 | T278: =T270*Full!$I$281*T$284 -> 0 | U278: =U270*Full!$I$281*U$284 -> 0 | V278: =V270*Full!$I$281*V$284 -> 0 | W278: =W270*Full!$I$281*W$284 -> 0 | X278: 0
C279: ='IF Factors'!$H$8 -> CNG | D279: =D271*Full!$J$281*D$284 -> 0 | E279: =E271*Full!$J$281*E$284 -> 0 | F279: =F271*Full!$J$281*F$284 -> 0 | G279: =G271*Full!$J$281*G$284 -> 0 | H279: =H271*Full!$J$281*H$284 -> 0 | I279: =I271*Full!$J$281*I$284 -> 0 | J279: =J271*Full!$J$281*J$284 -> 0 | K279: =K271*Full!$J$281*K$284 -> 0 | L279: =L271*Full!$J$281*L$284 -> 0 | M279: =M271*Full!$J$281*M$284 -> 0 | N279: =N271*Full!$J$281*N$284 -> 0 | O279: =O271*Full!$J$281*O$284 -> 0 | P279: =P271*Full!$J$281*P$284 -> 0 | Q279: =Q271*Full!$J$281*Q$284 -> 0 | R279: =R271*Full!$J$281*R$284 -> 0 | S279: =S271*Full!$J$281*S$284 -> 0 | T279: =T271*Full!$J$281*T$284 -> 0 | U279: =U271*Full!$J$281*U$284 -> 0 | V279: =V271*Full!$J$281*V$284 -> 0 | W279: =W271*Full!$J$281*W$284 -> 0 | X279: 0
C280: ='IF Factors'!$I$8 -> Electric | D280: =D272*Full!$K$281*D$284 -> 0 | E280: =E272*Full!$K$281*E$284 -> 0 | F280: =F272*Full!$K$281*F$284 -> 0 | G280: =G272*Full!$K$281*G$284 -> 0 | H280: =H272*Full!$K$281*H$284 -> 0 | I280: =I272*Full!$K$281*I$284 -> 0 | J280: =J272*Full!$K$281*J$284 -> 0 | K280: =K272*Full!$K$281*K$284 -> 0 | L280: =L272*Full!$K$281*L$284 -> 0 | M280: =M272*Full!$K$281*M$284 -> 0 | N280: =N272*Full!$K$281*N$284 -> 0 | O280: =O272*Full!$K$281*O$284 -> 0 | P280: =P272*Full!$K$281*P$284 -> 0 | Q280: =Q272*Full!$K$281*Q$284 -> 0 | R280: =R272*Full!$K$281*R$284 -> 0 | S280: =S272*Full!$K$281*S$284 -> 0 | T280: =T272*Full!$K$281*T$284 -> 0 | U280: =U272*Full!$K$281*U$284 -> 0 | V280: =V272*Full!$K$281*V$284 -> 0 | W280: =W272*Full!$K$281*W$284 -> 0 | X280: 0
C281: =IF('IF Factors'!$J$8="","",'IF Factors'!$J$8) -> Ethanol | D281: =D273*Full!$L$281*D$284 -> 0 | E281: =E273*Full!$L$281*E$284 -> 0 | F281: =F273*Full!$L$281*F$284 -> 0 | G281: =G273*Full!$L$281*G$284 -> 0 | H281: =H273*Full!$L$281*H$284 -> 0 | I281: =I273*Full!$L$281*I$284 -> 0 | J281: =J273*Full!$L$281*J$284 -> 0 | K281: =K273*Full!$L$281*K$284 -> 0 | L281: =L273*Full!$L$281*L$284 -> 0 | M281: =M273*Full!$L$281*M$284 -> 0 | N281: =N273*Full!$L$281*N$284 -> 0 | O281: =O273*Full!$L$281*O$284 -> 0 | P281: =P273*Full!$L$281*P$284 -> 0 | Q281: =Q273*Full!$L$281*Q$284 -> 0 | R281: =R273*Full!$L$281*R$284 -> 0 | S281: =S273*Full!$L$281*S$284 -> 0 | T281: =T273*Full!$L$281*T$284 -> 0 | U281: =U273*Full!$L$281*U$284 -> 0 | V281: =V273*Full!$L$281*V$284 -> 0 | W281: =W273*Full!$L$281*W$284 -> 0 | X281: 0
C282: Total | D282: =SUM(D276:D281) -> 0 | E282: =SUM(E276:E281) -> 0 | F282: 0 | G282: 0 | H282: 0 | I282: 0 | J282: 0 | K282: 0 | L282: 0 | M282: 0 | N282: 0 | O282: 0 | P282: 0 | Q282: 0 | R282: 0 | S282: 0 | T282: 0 | U282: 0 | V282: 0 | W282: 0 | X282: 0 | Z282: =X282/20 -> 0
C284: Inflation | D284: 1 | E284: =D284+(D284*Full!$G$290) -> 1 | F284: =E284+(E284*Full!$G$290) -> 1 | G284: =F284+(F284*Full!$G$290) -> 1 | H284: =G284+(G284*Full!$G$290) -> 1 | I284: =H284+(H284*Full!$G$290) -> 1 | J284: =I284+(I284*Full!$G$290) -> 1 | K284: =J284+(J284*Full!$G$290) -> 1 | L284: =K284+(K284*Full!$G$290) -> 1 | M284: =L284+(L284*Full!$G$290) -> 1 | N284: =M284+(M284*Full!$G$290) -> 1 | O284: =N284+(N284*Full!$G$290) -> 1 | P284: =O284+(O284*Full!$G$290) -> 1 | Q284: =P284+(P284*Full!$G$290) -> 1 | R284: =Q284+(Q284*Full!$G$290) -> 1 | S284: =R284+(R284*Full!$G$290) -> 1 | T284: =S284+(S284*Full!$G$290) -> 1 | U284: =T284+(T284*Full!$G$290) -> 1 | V284: =U284+(U284*Full!$G$290) -> 1 | W284: =V284+(V284*Full!$G$290) -> 1
C286: Economic Analysis
C287: CO2 | D287: =D237*Full!$G$284 -> 0 | E287: =E237*Full!$G$284 -> 0 | F287: =F237*Full!$G$284 -> 0 | G287: =G237*Full!$G$284 -> 0 | H287: =H237*Full!$G$284 -> 0 | I287: =I237*Full!$G$284 -> 0 | J287: =J237*Full!$G$284 -> 0 | K287: =K237*Full!$G$284 -> 0 | L287: =L237*Full!$G$284 -> 0 | M287: =M237*Full!$G$284 -> 0 | N287: =N237*Full!$G$284 -> 0 | O287: =O237*Full!$G$284 -> 0 | P287: =P237*Full!$G$284 -> 0 | Q287: =Q237*Full!$G$284 -> 0 | R287: =R237*Full!$G$284 -> 0 | S287: =S237*Full!$G$284 -> 0 | T287: =T237*Full!$G$284 -> 0 | U287: =U237*Full!$G$284 -> 0 | V287: =V237*Full!$G$284 -> 0 | W287: =W237*Full!$G$284 -> 0 | X287: =SUM(D287:W287) -> 0
C288: PM | D288: =D238*Full!$G$285 -> 0 | E288: =E238*Full!$G$285 -> 0 | F288: =F238*Full!$G$285 -> 0 | G288: =G238*Full!$G$285 -> 0 | H288: =H238*Full!$G$285 -> 0 | I288: =I238*Full!$G$285 -> 0 | J288: =J238*Full!$G$285 -> 0 | K288: =K238*Full!$G$285 -> 0 | L288: =L238*Full!$G$285 -> 0 | M288: =M238*Full!$G$285 -> 0 | N288: =N238*Full!$G$285 -> 0 | O288: =O238*Full!$G$285 -> 0 | P288: =P238*Full!$G$285 -> 0 | Q288: =Q238*Full!$G$285 -> 0 | R288: =R238*Full!$G$285 -> 0 | S288: =S238*Full!$G$285 -> 0 | T288: =T238*Full!$G$285 -> 0 | U288: =U238*Full!$G$285 -> 0 | V288: =V238*Full!$G$285 -> 0 | W288: =W238*Full!$G$285 -> 0 | X288: =SUM(D288:W288) -> 0
C289: Nox | D289: =D239*Full!$G$286 -> 0 | E289: =E239*Full!$G$286 -> 0 | F289: =F239*Full!$G$286 -> 0 | G289: =G239*Full!$G$286 -> 0 | H289: =H239*Full!$G$286 -> 0 | I289: =I239*Full!$G$286 -> 0 | J289: =J239*Full!$G$286 -> 0 | K289: =K239*Full!$G$286 -> 0 | L289: =L239*Full!$G$286 -> 0 | M289: =M239*Full!$G$286 -> 0 | N289: =N239*Full!$G$286 -> 0 | O289: =O239*Full!$G$286 -> 0 | P289: =P239*Full!$G$286 -> 0 | Q289: =Q239*Full!$G$286 -> 0 | R289: =R239*Full!$G$286 -> 0 | S289: =S239*Full!$G$286 -> 0 | T289: =T239*Full!$G$286 -> 0 | U289: =U239*Full!$G$286 -> 0 | V289: =V239*Full!$G$286 -> 0 | W289: =W239*Full!$G$286 -> 0 | X289: 0
C290: Fatalities | D290: =D244*Full!$G$288 ->  | E290: =E244*Full!$G$288 ->  | F290: =F244*Full!$G$288 ->  | G290: =G244*Full!$G$288 ->  | H290: =H244*Full!$G$288 ->  | I290: =I244*Full!$G$288 ->  | J290: =J244*Full!$G$288 ->  | K290: =K244*Full!$G$288 ->  | L290: =L244*Full!$G$288 ->  | M290: =M244*Full!$G$288 ->  | N290: =N244*Full!$G$288 ->  | O290: =O244*Full!$G$288 ->  | P290: =P244*Full!$G$288 ->  | Q290: =Q244*Full!$G$288 ->  | R290: =R244*Full!$G$288 ->  | S290: =S244*Full!$G$288 ->  | T290: =T244*Full!$G$288 ->  | U290: =U244*Full!$G$288 ->  | V290: =V244*Full!$G$288 ->  | W290: =W244*Full!$G$288 -> 
C291: Injuries | D291: =D245*Full!$G$289 ->  | E291: =E245*Full!$G$289 ->  | F291: =F245*Full!$G$289 ->  | G291: =G245*Full!$G$289 ->  | H291: =H245*Full!$G$289 ->  | I291: =I245*Full!$G$289 ->  | J291: =J245*Full!$G$289 ->  | K291: =K245*Full!$G$289 ->  | L291: =L245*Full!$G$289 ->  | M291: =M245*Full!$G$289 ->  | N291: =N245*Full!$G$289 ->  | O291: =O245*Full!$G$289 ->  | P291: =P245*Full!$G$289 ->  | Q291: =Q245*Full!$G$289 ->  | R291: =R245*Full!$G$289 ->  | S291: =S245*Full!$G$289 ->  | T291: =T245*Full!$G$289 ->  | U291: =U245*Full!$G$289 ->  | V291: =V245*Full!$G$289 ->  | W291: =W245*Full!$G$289 -> 
C292: Travel Time | D292: =Summary2!D251*1000*Full!$G$287 ->  | E292: =Summary2!E251*1000*Full!$G$287 ->  | F292: =Summary2!F251*1000*Full!$G$287 ->  | G292: =Summary2!G251*1000*Full!$G$287 ->  | H292: =Summary2!H251*1000*Full!$G$287 ->  | I292: =Summary2!I251*1000*Full!$G$287 ->  | J292: =Summary2!J251*1000*Full!$G$287 ->  | K292: =Summary2!K251*1000*Full!$G$287 ->  | L292: =Summary2!L251*1000*Full!$G$287 ->  | M292: =Summary2!M251*1000*Full!$G$287 ->  | N292: =Summary2!N251*1000*Full!$G$287 ->  | O292: =Summary2!O251*1000*Full!$G$287 ->  | P292: =Summary2!P251*1000*Full!$G$287 ->  | Q292: =Summary2!Q251*1000*Full!$G$287 ->  | R292: =Summary2!R251*1000*Full!$G$287 ->  | S292: =Summary2!S251*1000*Full!$G$287 ->  | T292: =Summary2!T251*1000*Full!$G$287 ->  | U292: =Summary2!U251*1000*Full!$G$287 ->  | V292: =Summary2!V251*1000*Full!$G$287 ->  | W292: =Summary2!W251*1000*Full!$G$287 -> 
C293: Fuel | D293: =D282 -> 0 | E293: =E282 -> 0 | F293: 0 | G293: 0 | H293: 0 | I293: 0 | J293: 0 | K293: 0 | L293: 0 | M293: 0 | N293: 0 | O293: 0 | P293: 0 | Q293: 0 | R293: 0 | S293: 0 | T293: 0 | U293: 0 | V293: 0 | W293: 0 | X293: 0
C294: Maintenance | D294: =-(Full!$G$283*Full!$G$292) -> 0 | E294: =-(Full!$G$283*Full!$G$292) -> 0 | F294: =-(Full!$G$283*Full!$G$292) -> 0 | G294: =-(Full!$G$283*Full!$G$292) -> 0 | H294: =-(Full!$G$283*Full!$G$292) -> 0 | I294: =-(Full!$G$283*Full!$G$292) -> 0 | J294: =-(Full!$G$283*Full!$G$292) -> 0 | K294: =-(Full!$G$283*Full!$G$292) -> 0 | L294: =-(Full!$G$283*Full!$G$292) -> 0 | M294: =-(Full!$G$283*Full!$G$292) -> 0 | N294: =-(Full!$G$283*Full!$G$292) -> 0 | O294: =-(Full!$G$283*Full!$G$292) -> 0 | P294: =-(Full!$G$283*Full!$G$292) -> 0 | Q294: =-(Full!$G$283*Full!$G$292) -> 0 | R294: =-(Full!$G$283*Full!$G$292) -> 0 | S294: =-(Full!$G$283*Full!$G$292) -> 0 | T294: =-(Full!$G$283*Full!$G$292) -> 0 | U294: =-(Full!$G$283*Full!$G$292) -> 0 | V294: =-(Full!$G$283*Full!$G$292) -> 0 | W294: =-(Full!$G$283*Full!$G$292) -> 0 | X294: =SUM(D294:W294) -> 0
C295: Construction | X295: =-Full!G283 -> 0
C296: Construction CO2 | X296: =-SUM(Calculations2!H2112:J2112)*Full!G284 -> 0
C297: =X295+X296 -> 0 | D297: =SUM(D287:D295) ->  | X297: =SUM(X287:X296) ->  | Z297: =X297/20 -> 
C299: EIRR | D299: =IRR(C297:W297) -> 
C300: NPV | D300: =NPV(Full!G291,C297:W297) -> 
C302: Total Costs vs Savings | D302: =C297+D297 ->  | E302: =D302+E297 ->  | F302: =E302+F297 -> 
C304: Costs vs Savings
D305: =D236 -> 0 | E305: =E236 -> 1 | F305: 2 | G305: 3 | H305: 4 | I305: 5 | J305: 6 | K305: 7 | L305: 8 | M305: 9 | N305: 10 | O305: 11 | P305: 12 | Q305: 13 | R305: 14 | S305: 15 | T305: 16 | U305: 17 | V305: 18 | W305: 19 | X305: Total
C306: CO2 | D306: =D287 -> 0 | E306: =E287 -> 0 | F306: 0 | G306: 0 | H306: 0 | I306: 0 | J306: 0 | K306: 0 | L306: 0 | M306: 0 | N306: 0 | O306: 0 | P306: 0 | Q306: 0 | R306: 0 | S306: 0 | T306: 0 | U306: 0 | V306: 0 | W306: 0 | X306: 0
C307: PM | D307: =D288 -> 0 | E307: 0 | F307: 0 | G307: 0 | H307: 0 | I307: 0 | J307: 0 | K307: 0 | L307: 0 | M307: 0 | N307: 0 | O307: 0 | P307: 0 | Q307: 0 | R307: 0 | S307: 0 | T307: 0 | U307: 0 | V307: 0 | W307: 0 | X307: 0
C308: Nox | D308: 0 | E308: 0 | F308: 0 | G308: 0 | H308: 0 | I308: 0 | J308: 0 | K308: 0 | L308: 0 | M308: 0 | N308: 0 | O308: 0 | P308: 0 | Q308: 0 | R308: 0 | S308: 0 | T308: 0 | U308: 0 | V308: 0 | W308: 0 | X308: 0
C309: Fatalities
C310: Injuries
C311: Travel Time
C312: Fuel | D312: 0 | E312: 0 | F312: 0 | G312: 0 | H312: 0 | I312: 0 | J312: 0 | K312: 0 | L312: 0 | M312: 0 | N312: 0 | O312: 0 | P312: 0 | Q312: 0 | R312: 0 | S312: 0 | T312: 0 | U312: 0 | V312: 0 | W312: 0 | X312: 0
C313: Maintenance | D313: 0 | E313: 0 | F313: 0 | G313: 0 | H313: 0 | I313: 0 | J313: 0 | K313: 0 | L313: 0 | M313: 0 | N313: 0 | O313: 0 | P313: 0 | Q313: 0 | R313: 0 | S313: 0 | T313: 0 | U313: 0 | V313: 0 | W313: 0 | X313: 0
C314: Construction | D314: =X295 -> 0 | E314: 0 | F314: 0 | G314: 0 | H314: 0 | I314: 0 | J314: 0 | K314: 0 | L314: 0 | M314: 0 | N314: 0 | O314: 0 | P314: 0 | Q314: 0 | R314: 0 | S314: 0 | T314: 0 | U314: 0 | V314: 0 | W314: 0 | X314: 0
C315: Construction CO2 | D315: =X296 -> 0 | E315: 0 | F315: 0 | G315: 0 | H315: 0 | I315: 0 | J315: 0 | K315: 0 | L315: 0 | M315: 0 | N315: 0 | O315: 0 | P315: 0 | Q315: 0 | R315: 0 | S315: 0 | T315: 0 | U315: 0 | V315: 0 | W315: 0 | X315: 0
D316: =D297 -> 
C321: Factors used for the calculation of savings from fatality reduction
C322: Source: Koornstra Reference Model as proposed in SMP
C323: Traffic Fatality rates (per billion km) | D323: =Full!G555 -> 2000 | E323: =Full!H555 -> 2010 | F323: =Full!I555 -> 2020 | G323: =Full!J555 -> 2030 | H323: =Full!K555 -> 2040 | I323: =Full!L555 -> 2050
C324: OECD Regions - Reference Case | D324: =Full!G556 -> 19.6 | E324: =Full!H556 -> 12.3 | F324: =Full!I556 -> 7.5 | G324: =Full!J556 -> 4.6 | H324: =Full!K556 -> 2.8 | I324: =Full!L556 -> 1.7
C325: Non OECD Regions - Reference Case | D325: =Full!G557 -> 251.4 | E325: =Full!H557 -> 193.6 | F325: =Full!I557 -> 141.2 | G325: =Full!J557 -> 99.6 | H325: =Full!K557 -> 66.6 | I325: =Full!L557 -> 44
C326: City Traffic Fatality rates (per billion vehicle km) | D326: =Full!G558 -> 251.4 | E326: =Full!H558 -> 193.6 | F326: =Full!I558 -> 141.2 | G326: =Full!J558 -> 99.6 | H326: =Full!K558 -> 66.6 | I326: =Full!L558 -> 44
C327: Growth rate | D327: =Full!G559 -> 0 | E327: =Full!H559 -> -2.578680391 | F327: =Full!I559 -> -3.106881389 | G327: =Full!J559 -> -3.429948242 | H327: =Full!K559 -> -3.94466542 | I327: =Full!L559 -> -4.060412968
C328: Growth rate % | D328: =Full!G560 -> 0 | E328: =Full!H560 -> -0.02578680391 | F328: =Full!I560 -> -0.03106881389 | G328: =Full!J560 -> -0.03429948242 | H328: =Full!K560 -> -0.0394466542 | I328: =Full!L560 -> -0.04060412968
D331: =D323 -> 2000 | E331: =D331+1 -> 2001 | F331: =E331+1 -> 2002 | G331: 2003 | H331: 2004 | I331: 2005 | J331: 2006 | K331: 2007 | L331: 2008 | M331: 2009 | N331: 2010 | O331: 2011 | P331: 2012 | Q331: 2013 | R331: 2014 | S331: 2015 | T331: 2016 | U331: 2017 | V331: 2018 | W331: 2019 | X331: 2020 | Y331: 2021 | Z331: 2022 | AA331: 2023 | AB331: 2024 | AC331: 2025 | AD331: 2026 | AE331: 2027 | AF331: 2028 | AG331: 2029 | AH331: 2030 | AI331: 2031 | AJ331: 2032 | AK331: 2033 | AL331: 2034 | AM331: 2035 | AN331: 2036 | AO331: 2037 | AP331: 2038 | AQ331: 2039 | AR331: 2040 | AS331: 2041 | AT331: 2042 | AU331: 2043 | AV331: 2044 | AW331: 2045 | AX331: 2046 | AY331: 2047 | AZ331: 2048 | BA331: 2049 | BB331: 2050
C332: City Traffic fatality rates/billion pkm | D332: =D326 -> 251.4 | E332: =D332+(D332*$E$328) -> 244.9171975 | F332: =E332+(E332*$E$328) -> 238.6015658 | G332: 232.448794 | H332: 226.4546825 | I332: 220.61514 | J332: 214.9261807 | K332: 209.3839214 | L332: 203.9845793 | M332: 198.7244689 | N332: =E326 -> 193.6 | O332: =N332+(N332*$F$328) -> 187.5850776 | P332: =O332+(O332*$F$328) -> 181.7570318 | Q332: 176.1100564 | R332: 170.6385258 | S332: 165.3369892 | T332: 160.2001651 | U332: 155.2229359 | V332: 150.4003434 | W332: 145.7275832 | X332: =F326 -> 141.2 | Y332: =X332+(X332*$G$328) -> 136.3569131 | Z332: =Y332+(Y332*$G$328) -> 131.6799415 | AA332: 127.1633877 | AB332: 122.8017493 | AC332: 118.5897129 | AD332: 114.5221471 | AE332: 110.5940967 | AF332: 106.8007765 | AG332: 103.1375651 | AH332: =G326 -> 99.6 | AI332: =AH332+(AH332*$H$328) -> 95.67111324 | AJ332: =AI332+(AI332*$H$328) -> 91.89720792 | AK332: 88.27217054 | AL332: 84.79012875 | AM332: 81.44544186 | AN332: 78.23269168 | AO332: 75.14667374 | AP332: 72.18238889 | AQ332: 69.33503516 | AR332: =H326 -> 66.6 | AS332: =AR332+(AR332*$I$328) -> 63.89576496 | AT332: =AS332+(AS332*$I$328) -> 61.30133304 | AU332: 58.81224576 | AV332: 56.42422571 | AW332: 54.13316913 | AX332: 51.93513891 | AY332: 49.82635779 | AZ332: 47.8032019 | BA332: 45.86219449 | BB332: =I326 -> 44

Sheet Color Coding
B2: Basic Color Coding Guide
B5: Sheets
B7: Sheets with green tabs are input sheets for project parameters
B11: Sheets with blue tabs would give you the results of the model
B14: Sheets with clear tabs are guide and/or calculation sheets not to be edited
B17: Sheets with black tabs are supposed to be hidden sheets which are not to be edited as well
B22: Cells*
B24: The guide below on cell colors only appply to cells in the INPUT SHEETS
C26: These cells are not supposed to be edited
C28: These are the input cells, put the needed values here
C30: These are input cells as well, but with default values which can be used if the user does not have project specifc values. You can change the values and they will turn green to indicate that these have been edited
C32: These are input cells as well, with no values inputted (please check whether you need to input values in these cells)
C34: These cells indicate that the sum should be 100%
C36: This icon will lead you to suggested "Default" values that you can use in case you don't have any data
C38: Cells with this icon contain some explanation on the required parameters. Click on the cell to view the explanation.

Sheet Dissemination Rate (hidden)
A1: Dissemination Rate
C2: Phase I | D2: End diss | E2: multiplier
A3: Curitiba | C3: =V12 -> 46.2 | D3: =V45 -> 206.28 | E3: =D3/C3 -> 4.464935065
A4: TransMilenio | C4: =F37+F38 -> 42 | D4: =X45 -> 737.85 | E4: =D4/C4 -> 17.56785714
A5: Quito | C5: =G31 -> 16.2 | D5: =W45 -> 53.9 | E5: =D5/C5 -> 3.327160494
A6: Avg for gold Standard | E6: =SUM(E3:E5)/3 -> 8.453317567
A8: BRT History
B9: Mexico | C9: China | D9: India | E9: Indonesia | F9: Colombia | G9: Ecuador | H9: Guatemala | I9: S. Africa | J9: USA | K9: Brazil | L9: Chile | M9: Korea | N9: Taiwan | O9: Australia | P9: Japan | Q9: Europe | R9: Turkey | S9: Other | T9: Total | U9: Global KM BRT | V9: Curitiba | W9: Quito | X9: TransMilenio | Y9: Others | Z9: Total
A10: 1974 | B10: 0 | C10: 0 | D10: 0 | E10: 0 | F10: 0 | G10: 0 | H10: 0 | I10: 0 | J10: 0 | K10: 26.2 | L10: 0 | M10: 0 | N10: 0 | O10: 0 | P10: 0 | Q10: 0 | R10: 0 | S10: 0 | T10: 26.2 | U10: 26.2 | V10: 26.2 | W10: 0 | X10: 0 | Y10: 0 | Z10: 26.2
A11: 1975 | B11: 0 | C11: 0 | D11: 0 | E11: 0 | F11: 0 | G11: 0 | H11: 0 | I11: 0 | J11: 0 | K11: 15 | L11: 0 | M11: 0 | N11: 0 | O11: 0 | P11: 0 | Q11: 0 | R11: 0 | S11: 0 | T11: 15 | U11: 41.2 | V11: 41.2 | W11: 0 | X11: 0 | Y11: 0 | Z11: 41.2
A12: 1976 | B12: 0 | C12: 0 | D12: 0 | E12: 0 | F12: 0 | G12: 0 | H12: 0 | I12: 0 | J12: 0 | K12: 5 | L12: 0 | M12: 0 | N12: 0 | O12: 0 | P12: 0 | Q12: 0 | R12: 0 | S12: 0 | T12: 5 | U12: 46.2 | V12: 46.2 | W12: 0 | X12: 0 | Y12: 0 | Z12: 46.2
A13: 1977 | B13: 0 | C13: 0 | D13: 0 | E13: 0 | F13: 0 | G13: 0 | H13: 0 | I13: 0 | J13: 0 | K13: 22.63 | L13: 0 | M13: 0 | N13: 0 | O13: 0 | P13: 0 | Q13: 0 | R13: 0 | S13: 0 | T13: 22.63 | U13: 68.83 | V13: 68.83 | W13: 0 | X13: 0 | Y13: 0 | Z13: 68.83
A14: 1978 | B14: 0 | C14: 0 | D14: 0 | E14: 0 | F14: 0 | G14: 0 | H14: 0 | I14: 0 | J14: 0 | K14: 0 | L14: 0 | M14: 0 | N14: 0 | O14: 0 | P14: 0 | Q14: 0 | R14: 0 | S14: 0 | T14: 0 | U14: 68.83 | V14: 68.83 | W14: 0 | X14: 0 | Y14: 0 | Z14: 68.83
A15: 1979 | B15: 0 | C15: 0 | D15: 0 | E15: 0 | F15: 0 | G15: 0 | H15: 0 | I15: 0 | J15: 0 | K15: 12.18 | L15: 0 | M15: 0 | N15: 0 | O15: 0 | P15: 0 | Q15: 0 | R15: 0 | S15: 0 | T15: 12.18 | U15: 81.01 | V15: 81.01 | W15: 0 | X15: 0 | Y15: 0 | Z15: 81.01
A16: 1980 | B16: 0 | C16: 0 | D16: 0 | E16: 0 | F16: 0 | G16: 0 | H16: 0 | I16: 0 | J16: 0 | K16: 10.4 | L16: 0 | M16: 0 | N16: 0 | O16: 0 | P16: 0 | Q16: 0 | R16: 0 | S16: 0 | T16: 10.4 | U16: 91.41 | V16: 91.41 | W16: 0 | X16: 0 | Y16: 0 | Z16: 91.41
A17: 1981 | B17: 0 | C17: 0 | D17: 0 | E17: 0 | F17: 0 | G17: 0 | H17: 0 | I17: 0 | J17: 0 | K17: 40.07 | L17: 0 | M17: 0 | N17: 0 | O17: 0 | P17: 0 | Q17: 0 | R17: 0 | S17: 0 | T17: 40.07 | U17: 131.48 | V17: 131.48 | W17: 0 | X17: 0 | Y17: 0 | Z17: 131.48
A18: 1982 | B18: 0 | C18: 0 | D18: 0 | E18: 0 | F18: 0 | G18: 0 | H18: 0 | I18: 0 | J18: 0 | K18: 23 | L18: 0 | M18: 0 | N18: 0 | O18: 0 | P18: 0 | Q18: 0 | R18: 0 | S18: 0 | T18: 23 | U18: 154.48 | V18: 154.48 | W18: 0 | X18: 0 | Y18: 0 | Z18: 154.48
A19: 1983 | B19: 0 | C19: 0 | D19: 0 | E19: 0 | F19: 0 | G19: 0 | H19: 0 | I19: 0 | J19: 0 | K19: 29.3 | L19: 0 | M19: 0 | N19: 0 | O19: 0 | P19: 0 | Q19: 0 | R19: 0 | S19: 0 | T19: 29.3 | U19: 183.78 | V19: 183.78 | W19: 0 | X19: 0 | Y19: 0 | Z19: 183.78
A20: 1984 | B20: 0 | C20: 0 | D20: 0 | E20: 0 | F20: 0 | G20: 0 | H20: 0 | I20: 0 | J20: 0 | K20: 11.5 | L20: 0 | M20: 0 | N20: 0 | O20: 0 | P20: 0 | Q20: 0 | R20: 0 | S20: 0 | T20: 11.5 | U20: 195.28 | V20: 195.28 | W20: 0 | X20: 0 | Y20: 0 | Z20: 195.28
A21: 1985 | B21: 0 | C21: 0 | D21: 0 | E21: 0 | F21: 0 | G21: 0 | H21: 0 | I21: 0 | J21: 0 | K21: 11 | L21: 0 | M21: 0 | N21: 0 | O21: 0 | P21: 0 | Q21: 0 | R21: 0 | S21: 0 | T21: 11 | U21: 206.28 | V21: 206.28 | W21: 0 | X21: 0 | Y21: 0 | Z21: 206.28
A22: 1986 | B22: 0 | C22: 0 | D22: 0 | E22: 0 | F22: 0 | G22: 0 | H22: 0 | I22: 0 | J22: 0 | K22: 0 | L22: 0 | M22: 0 | N22: 0 | O22: 12 | P22: 0 | Q22: 0 | R22: 0 | S22: 0 | T22: 12 | U22: 218.28 | V22: 218.28 | W22: 0 | X22: 0 | Y22: 0 | Z22: 218.28
A23: 1987 | B23: 0 | C23: 0 | D23: 0 | E23: 0 | F23: 0 | G23: 0 | H23: 0 | I23: 0 | J23: 0 | K23: 0 | L23: 0 | M23: 0 | N23: 0 | O23: 0 | P23: 0 | Q23: 0 | R23: 0 | S23: 0 | T23: 0 | U23: 218.28 | V23: 218.28 | W23: 0 | X23: 0 | Y23: 0 | Z23: 218.28
A24: 1988 | B24: 0 | C24: 0 | D24: 0 | E24: 0 | F24: 0 | G24: 0 | H24: 0 | I24: 0 | J24: 0 | K24: 0 | L24: 0 | M24: 0 | N24: 0 | O24: 0 | P24: 0 | Q24: 0 | R24: 0 | S24: 0 | T24: 0 | U24: 218.28 | V24: 218.28 | W24: 0 | X24: 0 | Y24: 0 | Z24: 218.28
A25: 1989 | B25: 0 | C25: 0 | D25: 0 | E25: 0 | F25: 0 | G25: 0 | H25: 0 | I25: 0 | J25: 0 | K25: 0 | L25: 0 | M25: 0 | N25: 0 | O25: 0 | P25: 0 | Q25: 0 | R25: 0 | S25: 0 | T25: 0 | U25: 218.28 | V25: 218.28 | W25: 0 | X25: 0 | Y25: 0 | Z25: 218.28
A26: 1990 | B26: 0 | C26: 0 | D26: 0 | E26: 0 | F26: 0 | G26: 0 | H26: 0 | I26: 0 | J26: 0 | K26: 0 | L26: 0 | M26: 0 | N26: 0 | O26: 0 | P26: 0 | Q26: 0 | R26: 0 | S26: 0 | T26: 0 | U26: 218.28 | V26: 218.28 | W26: 0 | X26: 0 | Y26: 0 | Z26: 218.28
A27: 1991 | B27: 0 | C27: 0 | D27: 0 | E27: 0 | F27: 0 | G27: 0 | H27: 0 | I27: 0 | J27: 0 | K27: 0 | L27: 0 | M27: 0 | N27: 0 | O27: 0 | P27: 0 | Q27: 0 | R27: 0 | S27: 0 | T27: 0 | U27: 218.28 | V27: 218.28 | W27: 0 | X27: 0 | Y27: 0 | Z27: 218.28
A28: 1992 | B28: 0 | C28: 0 | D28: 0 | E28: 0 | F28: 0 | G28: 0 | H28: 0 | I28: 0 | J28: 0 | K28: 0 | L28: 0 | M28: 0 | N28: 0 | O28: 0 | P28: 0 | Q28: 0 | R28: 0 | S28: 0 | T28: 0 | U28: 218.28 | V28: 218.28 | W28: 0 | X28: 0 | Y28: 0 | Z28: 218.28
A29: 1993 | B29: 0 | C29: 0 | D29: 0 | E29: 0 | F29: 0 | G29: 0 | H29: 0 | I29: 0 | J29: 0 | K29: 0 | L29: 0 | M29: 0 | N29: 0 | O29: 0 | P29: 0 | Q29: 12.5 | R29: 0 | S29: 0 | T29: 12.5 | U29: 230.78 | V29: 230.78 | W29: 0 | X29: 0 | Y29: 0 | Z29: 230.78
A30: 1994 | B30: 0 | C30: 0 | D30: 0 | E30: 0 | F30: 0 | G30: 0 | H30: 0 | I30: 0 | J30: 0 | K30: 0 | L30: 0 | M30: 0 | N30: 0 | O30: 0 | P30: 0 | Q30: 0 | R30: 0 | S30: 0 | T30: 0 | U30: 230.78 | V30: 230.78 | W30: 0 | X30: 0 | Y30: 0 | Z30: 230.78
A31: 1995 | B31: 0 | C31: 0 | D31: 0 | E31: 0 | F31: 0 | G31: 16.2 | H31: 0 | I31: 0 | J31: 0 | K31: 0 | L31: 0 | M31: 0 | N31: 0 | O31: 0 | P31: 0 | Q31: 0 | R31: 0 | S31: 0 | T31: 16.2 | U31: 246.98 | V31: 206.28 | W31: 16.2 | X31: 0 | Y31: 0 | Z31: 222.48
A32: 1996 | B32: 0 | C32: 0 | D32: 0 | E32: 0 | F32: 0 | G32: 0 | H32: 0 | I32: 0 | J32: 0 | K32: 0 | L32: 0 | M32: 0 | N32: 0 | O32: 0 | P32: 0 | Q32: 0 | R32: 0 | S32: 0 | T32: 0 | U32: 246.98 | V32: 206.28 | W32: 16.2 | X32: 0 | Y32: 0 | Z32: 222.48
A33: 1997 | B33: 0 | C33: 0 | D33: 0 | E33: 0 | F33: 0 | G33: 0 | H33: 0 | I33: 0 | J33: 0 | K33: 0 | L33: 0 | M33: 0 | N33: 0 | O33: 0 | P33: 0 | Q33: 0 | R33: 0 | S33: 0 | T33: 0 | U33: 246.98 | V33: 206.28 | W33: 16.2 | X33: 0 | Y33: 0 | Z33: 222.48
A34: 1998 | B34: 0 | C34: 12 | D34: 0 | E34: 0 | F34: 0 | G34: 0 | H34: 0 | I34: 0 | J34: 0 | K34: 0 | L34: 0 | M34: 0 | N34: 20 | O34: 0 | P34: 0 | Q34: 0 | R34: 0 | S34: 0 | T34: 32 | U34: 278.98 | V34: 206.28 | W34: 16.2 | X34: 0 | Y34: 32 | Z34: 254.48
A35: 1999 | B35: 0 | C35: 0 | D35: 0 | E35: 0 | F35: 0 | G35: 0 | H35: 0 | I35: 0 | J35: 0 | K35: 0 | L35: 0 | M35: 0 | N35: 0 | O35: 0 | P35: 0 | Q35: 0 | R35: 0 | S35: 0 | T35: 0 | U35: 278.98 | V35: 206.28 | W35: 16.2 | X35: 0 | Y35: 32 | Z35: 254.48
A36: 2000 | B36: 0 | C36: 0 | D36: 0 | E36: 0 | F36: 0 | G36: 0 | H36: 0 | I36: 0 | J36: 0 | K36: 12 | L36: 0 | M36: 0 | N36: 20 | O36: 0 | P36: 0 | Q36: 0 | R36: 0 | S36: 0 | T36: 32 | U36: 310.98 | V36: 206.28 | W36: 16.2 | X36: 0 | Y36: 32 | Z36: 254.48
A37: 2001 | B37: 0 | C37: 0 | D37: 0 | E37: 0 | F37: =E139 -> 32 | G37: 9.4 | H37: 0 | I37: 0 | J37: 0 | K37: 0 | L37: 0 | M37: 0 | N37: 0 | O37: 16.5 | P37: 6.8 | Q37: 26 | R37: 0 | S37: 0 | T37: 58.7 | U37: 369.68 | V37: 206.28 | W37: 25.6 | X37: =F37 -> 32 | Y37: 81.3 | Z37: 313.18
A38: 2002 | B38: =E50 -> 26 | C38: 0 | D38: 0 | E38: 0 | F38: 10 | G38: 0 | H38: 0 | I38: 0 | J38: 7.7 | K38: 0 | L38: 0 | M38: 20 | N38: 20 | O38: 0 | P38: 0 | Q38: 45.7 | R38: 0 | S38: 0 | T38: 129.4 | U38: 499.08 | V38: 206.28 | W38: 25.6 | X38: 56 | Y38: 154.7 | Z38: 442.58
A39: 2003 | B39: =E51 -> 0 | C39: 0 | D39: 0 | E39: 0 | F39: 0 | G39: 0 | H39: 0 | I39: 0 | J39: 11.3 | K39: 0 | L39: 0 | M39: 20 | N39: 0 | O39: 2.8 | P39: 0 | Q39: 36 | R39: 0 | S39: 0 | T39: 70.1 | U39: 569.18 | V39: 206.28 | W39: 25.6 | X39: 76 | Y39: 204.8 | Z39: 512.68
A40: 2004 | B40: 0 | C40: 5 | D40: 0 | E40: 12.9 | F40: 0 | G40: 12.8 | H40: 0 | I40: 0 | J40: 22.7 | K40: 59 | L40: 0 | M40: 20 | N40: 0 | O40: 0 | P40: 0 | Q40: 0 | R40: 0 | S40: 0 | T40: 132.4 | U40: 701.58 | V40: 206.28 | W40: 38.4 | X40: 113.9 | Y40: 286.5 | Z40: 645.08
A41: 2005 | B41: 20 | C41: 31 | D41: 0 | E41: 0 | F41: 13 | G41: 0 | H41: 0 | I41: 0 | J41: 6.44 | K41: 0 | L41: 0 | M41: 0 | N41: 8 | O41: 0 | P41: 0 | Q41: 0 | R41: 0 | S41: 0 | T41: 78.44 | U41: 780.02 | V41: 206.28 | W41: 38.4 | X41: 177.9 | Y41: 300.94 | Z41: 723.52
A42: 2006 | B42: 0 | C42: 27 | D42: 13 | E42: 33 | F42: 19 | G42: 15.5 | H42: 0 | I42: 0 | J42: 0 | K42: 0 | L42: 0 | M42: 26 | N42: 0 | O42: 0 | P42: 0 | Q42: 11 | R42: 0 | S42: 0 | T42: 144.5 | U42: 924.52 | V42: 206.28 | W42: 53.9 | X42: 295.9 | Y42: 311.94 | Z42: 868.02
A43: 2007 | B43: 0 | C43: 0 | D43: 0 | E43: 51.45 | F43: 26 | G43: 0 | H43: 0 | I43: 0 | J43: 10.88 | K43: 8 | L43: 50 | M43: 0 | N43: 0 | O43: 0 | P43: 0 | Q43: 0 | R43: 11 | S43: 0 | T43: 157.33 | U43: 1081.85 | V43: 206.28 | W43: 53.9 | X43: 384.35 | Y43: 361.94 | Z43: 1006.47
A44: 2008 | B44: 28.5 | C44: 156 | D44: 5.6 | E44: 0 | F44: 0 | G44: 0 | H44: 0 | I44: 0 | J44: 0 | K44: 0 | L44: 28 | M44: 0 | N44: 0 | O44: 0 | P44: 0 | Q44: 8 | R44: 7.3 | S44: 0 | T44: 233.4 | U44: 1315.25 | V44: 206.28 | W44: 53.9 | X44: 581.75 | Y44: 422.82 | Z44: 1264.75
A45: 2009 | B45: 16 | C45: 78.9 | D45: 12.5 | E45: 22.2 | F45: 1 | G45: 0 | H45: 0 | I45: 25.5 | J45: 0 | K45: 0 | L45: 0 | M45: 0 | N45: 0 | O45: 0 | P45: 0 | Q45: 0 | R45: 0 | S45: 0 | T45: 156.1 | U45: 1471.35 | V45: 206.28 | W45: 53.9 | X45: 737.85 | Y45: 422.82 | Z45: 1420.85
A46: 2010 Proj | B46: 0 | C46: 23 | D46: 12 | F46: 36
A49: Mexico | B49: Mexico City | C49: Leon | D49: Guadalajara | E49: Total
A50: 2002 | B50: 0 | C50: 26 | D50: 0 | E50: 26
A51: 2003 | B51: 0 | C51: 0 | D51: 0 | E51: 0
A52: 2004 | B52: 0 | C52: 0 | D52: 0 | E52: 0
A53: 2005 | B53: 20 | C53: 0 | D53: 0 | E53: 20
A54: 2006 | B54: 0 | C54: 0 | D54: 0 | E54: 0
A55: 2007 | B55: 0 | C55: 0 | D55: 0 | E55: 0
A56: 2008 | B56: 28.5 | C56: 0 | D56: 0 | E56: 28.5
A57: 2009 | B57: 0 | C57: 0 | D57: 16 | E57: 16
A59: China BRT trend line
B60: Beijing | E60: Hangzhou | G60: Changzhou | I60: Dalian | J60: Chongqing | K60: Jinan | N60: Hefei | O60: Xiamen | P60: Kunming | Q60: Zhengzhou | R60: Guangzhou | S60: Harbin | T60: Lanzhou | U60: TOTAL KM
B61: Line 1 | C61: Line 2 | D61: Line 3 | E61: Line 1 | F61: Line 2 | G61: Line 1 | H61: Line 2 | K61: Line 1 | L61: Line 2 | M61: Line 4
A62: 1998 | B62: 0 | C62: 0 | D62: 0 | E62: 0 | F62: 0 | G62: 0 | H62: 0 | I62: 0 | J62: 0 | K62: 0 | L62: 0 | M62: 0 | N62: 0 | O62: 0 | P62: 12 | Q62: 0 | R62: 0 | S62: 0 | T62: 0 | U62: 12
A63: 1999 | B63: 0 | C63: 0 | D63: 0 | E63: 0 | F63: 0 | G63: 0 | H63: 0 | I63: 0 | J63: 0 | K63: 0 | L63: 0 | M63: 0 | N63: 0 | O63: 0 | P63: 0 | Q63: 0 | R63: 0 | S63: 0 | T63: 0 | U63: 0
A64: 2000 | B64: 0 | C64: 0 | D64: 0 | E64: 0 | F64: 0 | G64: 0 | H64: 0 | I64: 0 | J64: 0 | K64: 0 | L64: 0 | M64: 0 | N64: 0 | O64: 0 | P64: 0 | Q64: 0 | R64: 0 | S64: 0 | T64: 0 | U64: 0
A65: 2001 | B65: 0 | C65: 0 | D65: 0 | E65: 0 | F65: 0 | G65: 0 | H65: 0 | I65: 0 | J65: 0 | K65: 0 | L65: 0 | M65: 0 | N65: 0 | O65: 0 | P65: 0 | Q65: 0 | R65: 0 | S65: 0 | T65: 0 | U65: 0
A66: 2002 | B66: 0 | C66: 0 | D66: 0 | E66: 0 | F66: 0 | G66: 0 | H66: 0 | I66: 0 | J66: 0 | K66: 0 | L66: 0 | M66: 0 | N66: 0 | O66: 0 | P66: 0 | Q66: 0 | R66: 0 | S66: 0 | T66: 0 | U66: 0
A67: 2003 | B67: 0 | C67: 0 | D67: 0 | E67: 0 | F67: 0 | G67: 0 | H67: 0 | I67: 0 | J67: 0 | K67: 0 | L67: 0 | M67: 0 | N67: 0 | O67: 0 | P67: 0 | Q67: 0 | R67: 0 | S67: 0 | T67: 0 | U67: 0
A68: 2004 | B68: 5 | C68: 0 | D68: 0 | E68: 0 | F68: 0 | G68: 0 | H68: 0 | I68: 0 | J68: 0 | K68: 0 | L68: 0 | M68: 0 | N68: 0 | O68: 0 | P68: 0 | Q68: 0 | R68: 0 | S68: 0 | T68: 0 | U68: 5
A69: 2005 | B69: 11 | C69: 0 | D69: 0 | E69: 0 | F69: 0 | G69: 0 | H69: 0 | I69: 0 | J69: 0 | K69: 0 | L69: 0 | M69: 0 | N69: 0 | O69: 0 | P69: 20 | Q69: 0 | R69: 0 | S69: 0 | T69: 0 | U69: 31
A70: 2006 | B70: 0 | C70: 0 | D70: 0 | E70: 27 | F70: 0 | G70: 0 | H70: 0 | I70: 0 | J70: 0 | K70: 0 | L70: 0 | M70: 0 | N70: 0 | O70: 0 | P70: 0 | Q70: 0 | R70: 0 | S70: 0 | T70: 0 | U70: 27
A71: 2007 | B71: 0 | C71: 0 | D71: 0 | E71: 0 | F71: 0 | G71: 0 | H71: 0 | I71: 0 | J71: 0 | K71: 0 | L71: 0 | M71: 0 | N71: 0 | O71: 0 | P71: 0 | Q71: 0 | R71: 0 | S71: 0 | T71: 0 | U71: 0
A72: 2008 | B72: 0 | C72: 15 | D72: 23 | E72: 0 | F72: 6 | G72: 24.5 | H72: 0 | I72: 13 | J72: 6 | K72: 11 | L72: 3 | M72: 0 | N72: 0 | O72: 40 | P72: 14.5 | Q72: 0 | R72: 0 | S72: 0 | T72: 0 | U72: 156
A73: 2009 | B73: 0 | C73: 0 | D73: 0 | E73: 0 | F73: 0 | G73: 0 | H73: 21.5 | I73: 0 | J73: 0 | K73: 0 | L73: 0 | M73: 7.9 | N73: 18.5 | O73: 0 | P73: 0 | Q73: 31 | R73: 0 | S73: 0 | T73: 0 | U73: 78.9
A74: 2010 | B74: 0 | C74: 0 | D74: 0 | E74: 0 | F74: 0 | G74: 0 | H74: 0 | I74: 0 | J74: 0 | K74: 0 | L74: 0 | M74: 0 | N74: 0 | O74: 0 | P74: 0 | Q74: 0 | R74: 23 | S74: 0 | T74: 0 | U74: 23
A75: 2011 | B75: 0 | C75: 0 | D75: 0 | E75: 0 | F75: 0 | G75: 0 | H75: 0 | I75: 0 | J75: 0 | K75: 0 | L75: 0 | M75: 0 | N75: 0 | O75: 0 | P75: 0 | Q75: 0 | R75: 0 | S75: 0 | T75: 13 | U75: 13
S76: 27.4
A78: India | B78: Pune | C78: Delhi | D78: Ahmedabad | E78: Total
A79: 2002 | B79: 0 | C79: 0 | D79: 0 | E79: 0
A80: 2003 | B80: 0 | C80: 0 | D80: 0 | E80: 0
A81: 2004 | B81: 0 | C81: 0 | D81: 0 | E81: 0
A82: 2005 | B82: 0 | C82: 0 | D82: 0 | E82: 0
A83: 2006 | B83: 13 | C83: 0 | D83: 0 | E83: 13
A84: 2007 | B84: 0 | C84: 0 | D84: 0 | E84: 0
A85: 2008 | B85: 0 | C85: 5.6 | D85: 0 | E85: 5.6
A86: 2009 | B86: 0 | C86: 0 | D86: 12.5 | E86: 12.5
A87: 2010 | B87: 0 | C87: 0 | D87: 12 | E87: 12
A89: Indonesia | B89: Jakarta | C89: Yogyakarta | D89: Total
A90: 2002 | B90: 0 | C90: 0 | D90: 0
A91: 2003 | B91: 0 | C91: 0 | D91: 0
A92: 2004 | B92: 12.9 | C92: 0 | D92: 12.9
A93: 2005 | B93: 0 | C93: 0 | D93: 0
A94: 2006 | B94: 33 | C94: 0 | D94: 33
A95: 2007 | B95: 51.45 | C95: 0 | D95: 51.45
A96: 2008 | B96: 0 | C96: 0 | D96: 0
A97: 2009 | B97: 22.2 | C97: 0 | D97: 22.2
A98: 2010
A100: USA Canada
B101: Pittsburgh | C101: LA | D101: Boston | E101: Eugene | F101: Cleveland | G101: Total
A102: 1977 | B102: 6.9 | C102: 0 | D102: 0 | E102: 0 | F102: 0 | G102: 6.9
A103: 1978 | B103: 0 | C103: 0 | D103: 0 | E103: 0 | F103: 0 | G103: 0
A104: 1979 | B104: 0 | C104: 0 | D104: 0 | E104: 0 | F104: 0 | G104: 0
A105: 1980 | B105: 0 | C105: 0 | D105: 0 | E105: 0 | F105: 0 | G105: 0
A106: 1981 | B106: 0 | C106: 0 | D106: 0 | E106: 0 | F106: 0 | G106: 0
A107: 1982 | B107: 0 | C107: 0 | D107: 0 | E107: 0 | F107: 0 | G107: 0
A108: 1983 | B108: 7 | C108: 0 | D108: 0 | E108: 0 | F108: 0 | G108: 7
A109: 1984 | B109: 0 | C109: 0 | D109: 0 | E109: 0 | F109: 0 | G109: 0
A110: 1985 | B110: 0 | C110: 0 | D110: 0 | E110: 0 | F110: 0 | G110: 0
A111: 1986 | B111: 0 | C111: 0 | D111: 0 | E111: 0 | F111: 0 | G111: 0
A112: 1987 | B112: 0 | C112: 0 | D112: 0 | E112: 0 | F112: 0 | G112: 0
A113: 1988 | B113: 0 | C113: 0 | D113: 0 | E113: 0 | F113: 0 | G113: 0
A114: 1989 | B114: 0 | C114: 0 | D114: 0 | E114: 0 | F114: 0 | G114: 0
A115: 1990 | B115: 0 | C115: 0 | D115: 0 | E115: 0 | F115: 0 | G115: 0
A116: 1991 | B116: 0 | C116: 0 | D116: 0 | E116: 0 | F116: 0 | G116: 0
A117: 1992 | B117: 0 | C117: 0 | D117: 0 | E117: 0 | F117: 0 | G117: 0
A118: 1993 | B118: 0 | C118: 0 | D118: 0 | E118: 0 | F118: 0 | G118: 0
A119: 1994 | B119: 0 | C119: 0 | D119: 0 | E119: 0 | F119: 0 | G119: 0
A120: 1995 | B120: 0 | C120: 0 | D120: 0 | E120: 0 | F120: 0 | G120: 0
A121: 1996 | B121: 0 | C121: 0 | D121: 0 | E121: 0 | F121: 0 | G121: 0
A122: 1997 | B122: 4.8 | C122: 0 | D122: 0 | E122: 0 | F122: 0 | G122: 4.8
A123: 1998 | B123: 0 | C123: 0 | D123: 0 | E123: 0 | F123: 0 | G123: 0
A124: 1999 | B124: 0 | C124: 0 | D124: 0 | E124: 0 | F124: 0 | G124: 0
A125: 2000 | B125: 8.1 | C125: 0 | D125: 0 | E125: 0 | F125: 0 | G125: 8.1
A126: 2001 | B126: 0 | C126: 0 | D126: 0 | E126: 0 | F126: 0 | G126: 0
A127: 2002 | B127: 0 | C127: 0 | D127: 0 | E127: 0 | F127: 0 | G127: 0
A128: 2003 | B128: 7.7 | C128: 0 | D128: 0 | E128: 0 | F128: 0 | G128: 7.7
A129: 2004 | B129: 0 | C129: 0 | D129: 11.3 | E129: 0 | F129: 0 | G129: 11.3
A130: 2005 | B130: 0 | C130: 22.7 | D130: 0 | E130: 0 | F130: 0 | G130: 22.7
A131: 2006 | B131: 0 | C131: 0 | D131: 0 | E131: 6.44 | F131: 0 | G131: 6.44
A132: 2007 | B132: 0 | C132: 0 | D132: 0 | E132: 0 | F132: 0 | G132: 0
A133: 2008 | B133: 0 | C133: 0 | D133: 0 | E133: 0 | F133: 10.88 | G133: 10.88
A134: 2009 | B134: 0 | C134: 0 | D134: 0 | E134: 0 | F134: 0 | G134: 0
A137: Colombia | B137: Transmilenio | C137: Megabus | D137: MIO
B138: Bogotá | C138: Pereira | D138: Cali | E138: Total
A139: 2000 | B139: 32 | E139: 32
A140: 2001 | B140: 10 | E140: 10
A141: 2002 | E141: 0
A142: 2003 | E142: 0
A143: 2004 | B143: 13 | E143: 13
A144: 2005 | B144: 19 | E144: 19
A145: 2006 | B145: 10 | C145: 16 | E145: 26
A146: 2007 | E146: 0
A147: 2008 | C147: 1 | E147: 1
A148: 2009 | D148: 36 | E148: 36
A149: 2010 | B149: 21.5 | C149: 1 | E149: 22.5
A151: Brazil | B151: S. Paulo | C151: Curitiba | J151: Porto Alegre | K151: Belo Horizonte | L151: Goiania | M151: Total
C152: Corridor Norte Sul | D152: Corredor Boquierrao | E152: Linha Direita | F152: Circular Sur | G152: L'est Oeste | I152: Linha Verde
A153: 1974 | C153: 26.2 | M153: 26.2
A154: 1975 | B154: 10 | L154: 5 | M154: 15
A155: 1976 | L155: 5 | M155: 5
A156: 1977 | D156: 10.63 | J156: 7 | L156: 5 | M156: 22.63 | T156: 3.6 | U156: Multiplier
A157: 1978 | M157: 0 | T157: 38.38 | U157: control
A158: 1979 | G158: 12.18 | M158: 12.18
A159: 1980 | J159: 5.4 | L159: 5 | M159: 10.4
A160: 1981 | B160: 10 | G160: 8.27 | J160: 4.8 | K160: 12 | L160: 5 | M160: 40.07
A161: 1982 | B161: 10 | J161: 5 | K161: 3 | L161: 5 | M161: 23
A162: 1983 | B162: 10 | J162: 5.3 | K162: 9 | L162: 5 | M162: 29.3
A163: 1984 | B163: 11.5 | M163: 11.5
A164: 1985 | B164: 11 | M164: 11
A165: 1986 | M165: 0
A166: 1987 | M166: 0
A167: 1988 | M167: 0
A168: 1989 | M168: 0
A169: 1990 | M169: 0
A170: 1991 | M170: 0
A171: 1992 | M171: 0
A172: 1993 | M172: 0
A173: 1994 | M173: 0
A174: 1995 | M174: 0
A175: 1996 | M175: 0
A176: 1997 | M176: 0
A177: 1998 | M177: 0
A178: 1999 | M178: 0
A179: 2000 | F179: 12 | M179: 12
A180: 2001 | M180: 0
A181: 2002 | M181: 0
A182: 2001 | L182: 0 | M182: 0
A183: 2003 | B183: 59 | C183: 0 | D183: 0 | E183: 0 | F183: 0 | M183: 59
A184: 2004 | B184: 0 | C184: 0 | D184: 0 | E184: 0 | F184: 0 | M184: 0
A185: 2005 | B185: 0 | C185: 0 | D185: 0 | E185: 0 | F185: 0 | M185: 0
A186: 2006 | B186: 8 | C186: 0 | D186: 0 | E186: 0 | F186: 0 | M186: 8
A187: 2007 | B187: 0 | C187: 0 | D187: 0 | E187: 0 | F187: 0 | M187: 0
A188: 2008 | B188: 0 | C188: 0 | D188: 0 | E188: 0 | F188: 0 | M188: 0
A189: 2009 | B189: 0 | C189: 0 | D189: 0 | E189: 0 | F189: 0 | M189: 0
A190: Total | B190: 129.5 | C190: 26.2 | D190: 10.63 | E190: 0 | F190: 12 | G190: 20.45 | I190: 0 | J190: 27.5 | K190: 24 | L190: 35 | M190: 285.28
A191: Sources:
A192: FTA BRT Case studies, 2003 (Brazilian systems except Curitiba: Curitiba is from URBS web site. Colombia data from the BRT authorities)
A193: Sao Paulo and Goiania data is cooked
A195: European BRT
B196: Caen | C196: Lyon | D196: Nantes | E196: Rouen | F196: Paris | G196: Amsterdam | H196: Eindhoven | I196: Crawley | J196: Total
A197: 1974 | B197: 0 | C197: 0 | D197: 0 | E197: 0 | F197: 0 | G197: 0 | H197: 0 | I197: 0 | J197: 0
A198: 1975 | B198: 0 | C198: 0 | D198: 0 | E198: 0 | F198: 0 | G198: 0 | H198: 0 | I198: 0 | J198: 0
A199: 1976 | B199: 0 | C199: 0 | D199: 0 | E199: 0 | F199: 0 | G199: 0 | H199: 0 | I199: 0 | J199: 0
A200: 1977 | B200: 0 | C200: 0 | D200: 0 | E200: 0 | F200: 0 | G200: 0 | H200: 0 | I200: 0 | J200: 0
A201: 1978 | B201: 0 | C201: 0 | D201: 0 | E201: 0 | F201: 0 | G201: 0 | H201: 0 | I201: 0 | J201: 0
A202: 1979 | B202: 0 | C202: 0 | D202: 0 | E202: 0 | F202: 0 | G202: 0 | H202: 0 | I202: 0 | J202: 0
A203: 1980 | B203: 0 | C203: 0 | D203: 0 | E203: 0 | F203: 0 | G203: 0 | H203: 0 | I203: 0 | J203: 0
A204: 1981 | B204: 0 | C204: 0 | D204: 0 | E204: 0 | F204: 0 | G204: 0 | H204: 0 | I204: 0 | J204: 0
A205: 1982 | B205: 0 | C205: 0 | D205: 0 | E205: 0 | F205: 0 | G205: 0 | H205: 0 | I205: 0 | J205: 0
A206: 1983 | B206: 0 | C206: 0 | D206: 0 | E206: 0 | F206: 0 | G206: 0 | H206: 0 | I206: 0 | J206: 0
A207: 1984 | B207: 0 | C207: 0 | D207: 0 | E207: 0 | F207: 0 | G207: 0 | H207: 0 | I207: 0 | J207: 0
A208: 1985 | B208: 0 | C208: 0 | D208: 0 | E208: 0 | F208: 0 | G208: 0 | H208: 0 | I208: 0 | J208: 0
A209: 1986 | B209: 0 | C209: 0 | D209: 0 | E209: 0 | F209: 0 | G209: 0 | H209: 0 | I209: 0 | J209: 0
A210: 1987 | B210: 0 | C210: 0 | D210: 0 | E210: 0 | F210: 0 | G210: 0 | H210: 0 | I210: 0 | J210: 0
A211: 1988 | B211: 0 | C211: 0 | D211: 0 | E211: 0 | F211: 0 | G211: 0 | H211: 0 | I211: 0 | J211: 0
... 22 more rows

Sheet Default
C1: Default Values
C3: *The values below are suggested values if the user does not have data. The values are meant to be reasonable placeholders in the absence of local/real data Click on the + arrows on the left panel to view the default values
C8: Factors relating to Vehicles
C11: Fuel Efficiency@50 kmph
C12: Vehicle | D12: Petrol (km/liter) | E12: Diesel (km/liter) | F12: LPG (km/liter) | G12: CNG (km/kg) | H12: Electric (km/kwh)
C13: Car | D13: =100/8 -> 12.5 | E13: =100/7 -> 14.28571429 | F13: =D13 -> 12.5
C14: 2-wheeler | D14: =100/1.8 -> 55.55555556 | H14: 20
C15: Taxi | D15: =D13 -> 12.5 | E15: =E13 -> 14.28571429 | F15: =D15 -> 12.5
C16: 3-wheeler | D16: 25
C17: Bus | E17: =100/28 -> 3.571428571
C18: Mini-bus
C22: Occupancy
C23: Vehicle | D23: Occupants | E23: Occupants (Brasil)
C24: Car | D24: 2.38 | E24: 2.38
C25: 2-wheeler | D25: 1.26 | E25: 1.26
C26: Taxi | D26: 2.38 | E26: 2.38
C27: 3-wheeler | D27: 1.92 | E27: 1.92
C28: Bus | D28: 41.34 | E28: 41.34
C29: Mini-bus
C31: Trip Length (km)
C32: Vehicle | D32: km
C33: Car | D33: 9.9
C34: 2-wheeler | D34: 6.7
C35: Taxi | D35: 9.9
C36: 3-wheeler | D36: 7.3
C37: Bus | D37: 10.5
C38: Mini-bus
C41: EMISSION FACTORS
C43: CO2 Emission Factor
C44: ='IF Factors'!E8 -> Petrol | D44: 2.416 | E44: kg/liter
C45: ='IF Factors'!F8 -> Diesel | D45: 2.582 | E45: kg/liter
C46: ='IF Factors'!G8 -> LPG | D46: 1.5 | E46: kg/liter
C47: ='IF Factors'!H8 -> CNG | E47: kg/kg
C51: Emission Factor (g/vkm) - Gasoline
D52: PM Emission Factor | L52: NOx Emission Factor
C53: Vehicle Type | D53: Pre-Euro | E53: Euro I/1 | F53: Euro II/2 | G53: Euro III/3 | H53: Euro IV/4 | I53: Euro V/5 | J53: Euro VI/6 | L53: Pre-Euro | M53: Euro I/1 | N53: Euro II/2 | O53: Euro III/3 | P53: Euro IV/4 | Q53: Euro V/5 | R53: Euro VI/6
C54: Car | D54: 0.008 | E54: 0.005963232281 | F54: 0.00369656013 | G54: 0.003188731542 | H54: 0.003075060137 | I54: 0.003075060137 | J54: 0.003075060137 | L54: 0.95 | M54: 0.1971968304 | N54: 0.07967979985 | O54: 0.04153153911 | P54: 0.02835433174 | Q54: 0.01683538447 | R54: 0.01683538447
C55: 2-wheeler | D55: 0.02 | E55: 0.05 | F55: 0.0225 | G55: 0.0085 | L55: 0.05 | M55: 0.05677851342 | N55: 0.05410166753 | O55: 0.0267751284
C56: Taxi | D56: =D54 -> 0.008 | E56: =E54 -> 0.005963232281 | F56: =F54 -> 0.00369656013 | G56: 0.003188731542 | H56: 0.003075060137 | I56: 0.003075060137 | J56: =J54 -> 0.003075060137 | L56: =L54 -> 0.95 | M56: 0.1971968304 | N56: 0.07967979985 | O56: 0.04153153911 | P56: 0.02835433174 | Q56: 0.01683538447 | R56: 0.01683538447
C57: 3-wheeler | D57: 0.045 | E57: 0.015 | L57: 0.2 | M57: 0.53
C58: Bus
C59: Mini-bus
C61: Emission Factor (g/vkm) - Diesel
D62: PM Emission Factor | L62: NOx Emission Factor
C63: Vehicle Type | D63: Pre-Euro | E63: Euro I/1 | F63: Euro II/2 | G63: Euro III/3 | H63: Euro IV/4 | I63: Euro V/5 | J63: Euro VI/6 | L63: Pre-Euro | M63: Euro I/1 | N63: Euro II/2 | O63: Euro III/3 | P63: Euro IV/4 | Q63: Euro V/5 | R63: Euro VI/6
C64: Car | D64: 0.145 | E64: 0.05754535577 | F64: 0.04358351477 | G64: 0.03023896456 | H64: 0.01291974823 | I64: 0.0005 | J64: 0.0005 | L64: 1.456875299 | M64: 0.6660841829 | N64: 0.7206662838 | O64: 0.5010504712 | P64: 0.279370248 | Q64: 0.1885749174 | R64: 0.08381107439
C65: 2-wheeler
C66: Taxi | D66: 0.2670448659 | E66: 0.1026441271 | F66: 0.1094674198 | G66: 0.0472879967 | H66: 0.02837279802 | I66: 0.0005 | J66: 0.0005 | L66: 1.644024352 | M66: 1.145508338 | N66: 1.251408137 | O66: 0.7404103516 | P66: 0.3702051758 | Q66: 0.2491765607 | R66: 0.111239536
C67: 3-wheeler
C68: Bus | D68: 1.213 | E68: 0.7792315878 | F68: 0.3471958611 | G68: 0.2910089525 | H68: 0.08566993564 | I68: 0.06278632457 | J68: 0.006278792642 | L68: 11.45884579 | M68: 7.206578224 | N68: 7.535606804 | O68: 5.937033221 | P68: 3.708153181 | Q68: 2.194868009 | R68: 0.4389736019
C69: Mini-bus | D69: 0.4717823679 | E69: 0.3594245181 | F69: 0.1678405576 | G69: 0.1712036231 | H69: 0.03225825291 | I69: 0.0331496264 | J69: 0.003323751356 | L69: 10.99078249 | M69: 8.237294018 | N69: 8.968251628 | O69: 7.267820598 | P69: 4.428278389 | Q69: 2.657417084 | R69: 0.5314834167
C71: Emission Factor (g/vkm) - LPG
D72: PM Emission Factor | L72: NOx Emission Factor
D73: Pre-Euro | E73: Euro I/1 | F73: Euro II/2 | G73: Euro III/3 | H73: Euro IV/4 | I73: Euro V/5 | J73: Euro VI/6 | L73: Pre-Euro | M73: Euro I/1 | N73: Euro II/2 | O73: Euro III/3 | P73: Euro IV/4 | Q73: Euro V/5 | R73: Euro VI/6
C74: Car | E74: 0.002741794283 | F74: 0.001440882881 | G74: 0.001440882881 | H74: 0.001440882881 | I74: 0.001440882881 | J74: 0.001440882881 | M74: 0.2243914715 | N74: 0.115665707 | O74: 0.3161255169 | P74: 0.1686002757 | Q74: 0.1264502068 | R74: 0.1264502068
C75: 2-wheeler
C76: Taxi
C77: 3-wheeler
C78: Bus
C79: Mini-bus
C81: Emission Factor (g/vkm) - CNG
D82: PM Emission Factor | L82: NOx Emission Factor
D83: Pre-Euro | E83: Euro I/1 | F83: Euro II/2 | G83: Euro III/3 | H83: Euro IV/4 | I83: Euro V/5 | J83: Euro VI/6 | L83: Pre-Euro | M83: Euro I/1 | N83: Euro II/2 | O83: Euro III/3 | P83: Euro IV/4 | Q83: Euro V/5 | R83: Euro VI/6
C84: Car
C85: 2-wheeler
C86: Taxi
C87: 3-wheeler
C88: Bus
C89: Mini-bus
C92: Construction - related factors
C95: (tonCO2/ ton of material)
C96: Cement | D96: 0.99
C97: Bitumen | D97: 0.03
C98: Steel | D98: 2.5
C101: Cost-related factors
C104: Project Construction Cost (USD) | D104: 50000000
C105: Cost of CO2 (USD)/Ton | D105: 20
C106: Cost of PM (USD)/ton | D106: 15000
C107: Cost of Nox (USD)/ton | D107: 3500
C108: Cost of Time (USD/hour) | D108: 0.3
C109: Cost of fatality (USD/person) | D109: 100000
C110: Cost of Injury (USD/person) | D110: 40000
C111: Annual Maintenance (% of construction) | D111: 0.001

Sheet Writeup

Sheet Impact of Speed
C2: Fuel Consumption | D2: Fuel Consumption | E2: Fuel Consumption | F2: Fuel Consumption | G2: Fuel Consumption | H2: Fuel Consumption | M2: PM | N2: PM | O2: PM | P2: PM | Q2: PM | R2: PM | U2: NOx | V2: NOx | W2: NOx | X2: NOx | Y2: NOx | Z2: NOx
C3: Bus | D3: 3W | E3: Car | F3: 2w | G3: Light-duty truck | H3: Heavy-duty truck | J3: car | M3: Bus | N3: 3W | O3: Car | P3: 2w | Q3: Light-duty truck | R3: Heavy-duty truck | U3: Bus | V3: 3W | W3: Car | X3: 2w | Y3: Light-duty truck | Z3: Heavy-duty truck
B4: 1 | C4: 45.72941152 | D4: 157.0006911 | E4: 53.03399758 | F4: 64.13018654 | G4: 307.6510399 | H4: 350.045553 | L4: 1 | M4: 0.254 | N4: 0.7626316651 | O4: 0.7626316651 | P4: 0.7626316651 | Q4: 0.254 | R4: 0.8328442742 | T4: 1 | U4: 0.7905600443 | V4: 0.8010169022 | W4: 0.8010169022 | X4: 0.8010169022 | Y4: 0.72652672 | Z4: 0.6814166996
B5: 5 | C5: 45.72941152 | D5: 157.0006911 | E5: 53.03399758 | F5: 56.32718133 | G5: 307.6510399 | H5: 350.045553 | L5: 5 | M5: 0.254 | N5: 0.7626316651 | O5: 0.7626316651 | P5: 0.7626316651 | Q5: 0.254 | R5: 0.8328442742 | T5: 5 | U5: 0.7905600443 | V5: 0.8010169022 | W5: 0.8010169022 | X5: 0.8010169022 | Y5: 0.72652672 | Z5: 0.6814166996
B6: 6 | C6: 45.72941152 | D6: 141.6661676 | E6: 53.03399758 | F6: 54.21963069 | G6: 264.283407 | H6: 304.6485352 | L6: 6 | M6: 0.2540590447 | N6: 0.7130151451 | O6: 0.7130151451 | P6: 0.7130151451 | Q6: 0.2540590447 | R6: 0.8038532432 | T6: 6 | U6: 0.7647507498 | V6: 0.7529214825 | W6: 0.7529214825 | X6: 0.7529214825 | Y6: 0.6824519906 | Z6: 0.6552168246
B7: 7 | C7: 45.72941152 | D7: 126.3316441 | E7: 53.03399758 | F7: 52.05762717 | G7: 220.9157741 | H7: 259.2515173 | L7: 7 | M7: 0.2541180894 | N7: 0.6633986251 | O7: 0.6633986251 | P7: 0.6633986251 | Q7: 0.2541180894 | R7: 0.7748622123 | T7: 7 | U7: 0.7389414553 | V7: 0.7048260627 | W7: 0.7048260627 | X7: 0.7048260627 | Y7: 0.6383772613 | Z7: 0.6290169496
B8: 8 | C8: 45.72941152 | D8: 110.9971206 | E8: 53.03399758 | F8: 49.84681387 | G8: 177.5481412 | H8: 213.8544995 | L8: 8 | M8: 0.2541771341 | N8: 0.613782105 | O8: 0.613782105 | P8: 0.613782105 | Q8: 0.2541771341 | R8: 0.7458711813 | T8: 8 | U8: 0.7131321608 | V8: 0.656730643 | W8: 0.656730643 | X8: 0.656730643 | Y8: 0.5943025319 | Z8: 0.6028170746
B9: 9 | C9: 45.72941152 | D9: 95.66259712 | E9: 53.03399758 | F9: 47.59370734 | G9: 134.1805083 | H9: 168.4574817 | L9: 9 | M9: 0.2542361788 | N9: 0.564165585 | O9: 0.564165585 | P9: 0.564165585 | Q9: 0.2542361788 | R9: 0.7168801504 | T9: 9 | U9: 0.6873228663 | V9: 0.6086352232 | W9: 0.6086352232 | X9: 0.6086352232 | Y9: 0.5502278025 | Z9: 0.5766171996
B10: 10 | C10: 45.72941152 | D10: 80.32807363 | E10: 53.03399758 | F10: 45.30567351 | G10: 90.81287535 | H10: 123.0604638 | L10: 10 | M10: 0.2542952235 | N10: 0.514549065 | O10: 0.514549065 | P10: 0.514549065 | Q10: 0.2542952235 | R10: 0.6878891194 | T10: 10 | U10: 0.6615135718 | V10: 0.5605398035 | W10: 0.5605398035 | X10: 0.5605398035 | Y10: 0.5061530732 | Z10: 0.5504173246
B11: 11 | C11: 45.72941152 | D11: 78.16679153 | E11: 51.03808187 | F11: 42.99087992 | G11: 86.39769216 | H11: 117.2640366 | L11: 11 | M11: 0.2450562772 | N11: 0.4969070572 | O11: 0.4969070572 | P11: 0.4969070572 | Q11: 0.2450562772 | R11: 0.6709464151 | T11: 11 | U11: 0.6412063331 | V11: 0.5337167059 | W11: 0.5337167059 | X11: 0.5337167059 | Y11: 0.4751212822 | Z11: 0.5292146157
B12: 12 | C12: 43.98932457 | D12: 76.00550943 | E12: 49.07471283 | F12: 40.65822286 | G12: 81.98250897 | H12: 111.4676093 | L12: 12 | M12: 0.2358173309 | N12: 0.4792650494 | O12: 0.4792650494 | P12: 0.4792650494 | Q12: 0.2358173309 | R12: 0.6540037109 | T12: 12 | U12: 0.6208990944 | V12: 0.5068936084 | W12: 0.5068936084 | X12: 0.5068936084 | Y12: 0.4440894913 | Z12: 0.5080119068
B13: 13 | C13: 42.27804527 | D13: 73.84422733 | E13: 47.14403843 | F13: 38.3172294 | G13: 77.56732578 | H13: 105.671182 | L13: 13 | M13: 0.2265783846 | N13: 0.4616230416 | O13: 0.4616230416 | P13: 0.4616230416 | Q13: 0.2265783846 | R13: 0.6370610066 | T13: 13 | U13: 0.6005918557 | V13: 0.4800705108 | W13: 0.4800705108 | X13: 0.4800705108 | Y13: 0.4130577004 | Z13: 0.4868091979
B14: 14 | C14: 40.5934542 | D14: 71.68294523 | E14: 45.24621769 | F14: 35.97793499 | G14: 73.15214259 | H14: 99.87475478 | L14: 14 | M14: 0.2173394383 | N14: 0.4439810338 | O14: 0.4439810338 | P14: 0.4439810338 | Q14: 0.2173394383 | R14: 0.6201183023 | T14: 14 | U14: 0.5802846171 | V14: 0.4532474133 | W14: 0.4532474133 | X14: 0.4532474133 | Y14: 0.3820259094 | Z14: 0.465606489
B15: 15 | C15: 38.93406747 | D15: 69.52166313 | E15: 43.38141947 | F15: 33.65073916 | G15: 68.73695939 | H15: 94.07832752 | L15: 15 | M15: 0.208100492 | N15: 0.426339026 | O15: 0.426339026 | P15: 0.426339026 | Q15: 0.208100492 | R15: 0.6031755981 | T15: 15 | U15: 0.5599773784 | V15: 0.4264243157 | W15: 0.4264243157 | X15: 0.4264243157 | Y15: 0.3509941185 | Z15: 0.4444037801
B16: 16 | C16: 37.29891509 | D16: 64.23237187 | E16: 41.54982108 | F16: 31.34624269 | G16: 62.57076673 | H16: 85.46026739 | L16: 16 | M16: 0.1976412897 | N16: 0.3935266734 | O16: 0.3935266734 | P16: 0.3935266734 | Q16: 0.1976412897 | R16: 0.5919278557 | T16: 16 | U16: 0.5396701397 | V16: 0.4048387035 | W16: 0.4048387035 | X16: 0.4048387035 | Y16: 0.3270756 | Z16: 0.4283778885
B17: 17 | C17: 35.6874501 | D17: 58.9430806 | E17: 39.75160683 | F17: 29.07507103 | G17: 56.40457406 | H17: 76.84220725 | L17: 17 | M17: 0.1871820874 | N17: 0.3607143208 | O17: 0.3607143208 | P17: 0.3607143208 | Q17: 0.1871820874 | R17: 0.5806801133 | T17: 17 | U17: 0.519362901 | V17: 0.3832530913 | W17: 0.3832530913 | X17: 0.3832530913 | Y17: 0.3031570815 | Z17: 0.412351997
B18: 18 | C18: 34.0994782 | D18: 53.65378933 | E18: 37.98696643 | F18: 26.84768985 | G18: 50.2383814 | H18: 68.22414712 | L18: 18 | M18: 0.1767228852 | N18: 0.3279019682 | O18: 0.3279019682 | P18: 0.3279019682 | Q18: 0.1767228852 | R18: 0.569432371 | T18: 18 | U18: 0.4990556623 | V18: 0.3616674791 | W18: 0.3616674791 | X18: 0.3616674791 | Y18: 0.2792385629 | Z18: 0.3963261054
B19: 19 | C19: 32.53510158 | D19: 48.36449806 | E19: 36.2560933 | F19: 24.67421908 | G19: 44.07218873 | H19: 59.60608699 | L19: 19 | M19: 0.1662636829 | N19: 0.2950896156 | O19: 0.2950896156 | P19: 0.2950896156 | Q19: 0.1662636829 | R19: 0.5581846286 | T19: 19 | U19: 0.4787484236 | V19: 0.3400818669 | W19: 0.3400818669 | X19: 0.3400818669 | Y19: 0.2553200444 | Z19: 0.3803002138
B20: 20 | C20: 30.99467236 | D20: 43.07520679 | E20: 34.5591828 | F20: 22.56425251 | G20: 37.90599607 | H20: 50.98802685 | L20: 20 | M20: 0.1558044807 | N20: 0.262277263 | O20: 0.262277263 | P20: 0.262277263 | Q20: 0.1558044807 | R20: 0.5469368862 | T20: 20 | U20: 0.4584411849 | V20: 0.3184962547 | W20: 0.3184962547 | X20: 0.3184962547 | Y20: 0.2314015259 | Z20: 0.3642743222
B21: 21 | C21: 29.47875292 | D21: 39.68849778 | E21: 32.89643037 | F21: 20.52668941 | G21: 34.79915898 | H21: 48.66536062 | L21: 21 | M21: 0.1494718994 | N21: 0.2451234893 | O21: 0.2451234893 | P21: 0.2451234893 | Q21: 0.1494718994 | R21: 0.5268912994 | T21: 21 | U21: 0.4414867945 | V21: 0.3008060618 | W21: 0.3008060618 | X21: 0.3008060618 | Y21: 0.213312862 | Z21: 0.3479200431
B22: 22 | C22: 27.98808096 | D22: 36.30178877 | E22: 31.26802963 | F22: 18.56958491 | G22: 31.69232189 | H22: 46.34269439 | L22: 22 | M22: 0.1431393181 | N22: 0.2279697155 | O22: 0.2279697155 | P22: 0.2279697155 | Q22: 0.1431393181 | R22: 0.5068457126 | T22: 22 | U22: 0.4245324041 | V22: 0.2831158689 | W22: 0.2831158689 | X22: 0.2831158689 | Y22: 0.195224198 | Z22: 0.3315657641
B23: 23 | C23: 26.52353787 | D23: 32.91507976 | E23: 29.67417042 | F23: 16.70002411 | G23: 28.58548479 | H23: 44.02002815 | L23: 23 | M23: 0.1368067368 | N23: 0.2108159417 | O23: 0.2108159417 | P23: 0.2108159417 | Q23: 0.1368067368 | R23: 0.4868001258 | T23: 23 | U23: 0.4075780137 | V23: 0.265425676 | W23: 0.265425676 | X23: 0.265425676 | Y23: 0.177135534 | Z23: 0.3152114851
B24: 24 | C24: 25.08611949 | D24: 29.52837076 | E24: 28.11503683 | F24: 14.92402452 | G24: 25.4786477 | H24: 41.69736192 | L24: 24 | M24: 0.1304741555 | N24: 0.1936621679 | O24: 0.1936621679 | P24: 0.1936621679 | Q24: 0.1304741555 | R24: 0.466754539 | T24: 24 | U24: 0.3906236233 | V24: 0.2477354831 | W24: 0.2477354831 | X24: 0.2477354831 | Y24: 0.15904687 | Z24: 0.2988572061
B25: 25 | C25: 23.67690864 | D25: 26.14166175 | E25: 26.59080524 | F25: 13.2464692 | G25: 22.37181061 | H25: 39.37469568 | L25: 25 | M25: 0.1241415742 | N25: 0.1765083941 | O25: 0.1765083941 | P25: 0.1765083941 | Q25: 0.1241415742 | R25: 0.4467089522 | T25: 25 | U25: 0.3736692329 | V25: 0.2300452902 | W25: 0.2300452902 | X25: 0.2300452902 | Y25: 0.1409582061 | Z25: 0.282502927
B26: 26 | C26: 22.29704885 | D26: 25.09841701 | E26: 25.10164236 | F26: 11.67107216 | G26: 21.46635527 | H26: 36.18167159 | L26: 26 | M26: 0.1173154548 | N26: 0.1635230855 | O26: 0.1635230855 | P26: 0.1635230855 | Q26: 0.1173154548 | R26: 0.4268447059 | T26: 26 | U26: 0.3567148426 | V26: 0.2155664469 | W26: 0.2155664469 | X26: 0.2155664469 | Y26: 0.1278416149 | Z26: 0.2706027315
B27: 27 | C27: 20.94771922 | D27: 24.05517228 | E27: 23.64770332 | F27: 10.20037526 | G27: 20.56089992 | H27: 32.9886475 | L27: 27 | M27: 0.1104893353 | N27: 0.1505377768 | O27: 0.1505377768 | P27: 0.1505377768 | Q27: 0.1104893353 | R27: 0.4069804597 | T27: 27 | U27: 0.3397604522 | V27: 0.2010876035 | W27: 0.2010876035 | X27: 0.2010876035 | Y27: 0.1147250237 | Z27: 0.258702536
B28: 28 | C28: 19.63011014 | D28: 23.01192754 | E28: 22.22912979 | F28: 8.835775133 | G28: 19.65544458 | H28: 29.7956234 | L28: 28 | M28: 0.1036632159 | N28: 0.1375524682 | O28: 0.1375524682 | P28: 0.1375524682 | Q28: 0.1036632159 | R28: 0.3871162135 | T28: 28 | U28: 0.3228060618 | V28: 0.1866087602 | W28: 0.1866087602 | X28: 0.1866087602 | Y28: 0.1016084325 | Z28: 0.2468023404
B29: 29 | C29: 18.34539997 | D29: 21.96868281 | E29: 20.84604826 | F29: 7.577576934 | G29: 18.74998923 | H29: 26.60259931 | L29: 29 | M29: 0.0968370964 | N29: 0.1245671596 | O29: 0.1245671596 | P29: 0.1245671596 | Q29: 0.0968370964 | R29: 0.3672519672 | T29: 29 | U29: 0.3058516714 | V29: 0.1721299168 | W29: 0.1721299168 | X29: 0.1721299168 | Y29: 0.08849184126 | Z29: 0.2349021449
B30: 30 | C30: 17.09473267 | D30: 20.92543807 | E30: 19.49856835 | F30: 6.425070951 | G30: 17.84453389 | H30: 23.40957522 | L30: 30 | M30: 0.09001097695 | N30: 0.1115818509 | O30: 0.1115818509 | P30: 0.1115818509 | Q30: 0.09001097695 | R30: 0.347387721 | T30: 30 | U30: 0.288897281 | V30: 0.1576510735 | W30: 0.1576510735 | X30: 0.1576510735 | Y30: 0.07537525006 | Z30: 0.2230019493
B31: 31 | C31: 15.8791965 | D31: 18.17899221 | E31: 18.18678124 | F31: 5.376627595 | G31: 15.39179823 | H31: 21.82154568 | L31: 31 | M31: 0.08519188015 | N31: 0.1020210154 | O31: 0.1020210154 | P31: 0.1020210154 | Q31: 0.08519188015 | R31: 0.3279385531 | T31: 31 | U31: 0.2738290632 | V31: 0.1460144982 | W31: 0.1460144982 | X31: 0.1460144982 | Y31: 0.06655691321 | Z31: 0.2087485077
B32: 32 | C32: 14.69980395 | D32: 15.43254635 | E32: 16.91075827 | F32: 4.429805845 | G32: 12.93906257 | H32: 20.23351615 | L32: 32 | M32: 0.08037278335 | N32: 0.09246017981 | O32: 0.09246017981 | P32: 0.09246017981 | Q32: 0.08037278335 | R32: 0.3084893851 | T32: 32 | U32: 0.2587608454 | V32: 0.134377923 | W32: 0.134377923 | X32: 0.134377923 | Y32: 0.05773857636 | Z32: 0.1944950661
B33: 33 | C33: 13.55747312 | D33: 12.68610049 | E33: 15.67054969 | F33: 3.581470303 | G33: 10.48632692 | H33: 18.64548661 | L33: 33 | M33: 0.07555368655 | N33: 0.08289934425 | O33: 0.08289934425 | P33: 0.08289934425 | Q33: 0.07555368655 | R33: 0.2890402172 | T33: 33 | U33: 0.2436926276 | V33: 0.1227413477 | W33: 0.1227413477 | X33: 0.1227413477 | Y33: 0.04892023951 | Z33: 0.1802416245
B34: 34 | C34: 12.45301063 | D34: 9.939654624 | E34: 14.46618352 | F34: 2.827912255 | G34: 8.033591261 | H34: 17.05745707 | L34: 34 | M34: 0.07073458976 | N34: 0.0733385087 | O34: 0.0733385087 | P34: 0.0733385087 | Q34: 0.07073458976 | R34: 0.2695910493 | T34: 34 | U34: 0.2286244098 | V34: 0.1111047725 | W34: 0.1111047725 | X34: 0.1111047725 | Y34: 0.04010190265 | Z34: 0.1659881829
B35: 35 | C35: 11.38709629 | D35: 7.193208762 | E35: 13.29766463 | F35: 2.164970609 | G35: 5.580855604 | H35: 15.46942754 | L35: 35 | M35: 0.06591549296 | N35: 0.06377767314 | O35: 0.06377767314 | P35: 0.06377767314 | Q35: 0.06591549296 | R35: 0.2501418813 | T35: 35 | U35: 0.213556192 | V35: 0.09946819724 | W35: 0.09946819724 | X35: 0.09946819724 | Y35: 0.0312835658 | Z35: 0.1517347412
B36: 36 | C36: 10.36026972 | D36: 7.1885342 | E36: 12.164974 | F36: 1.588149147 | G36: 5.800825284 | H36: 14.10583101 | L36: 36 | M36: 0.06083424622 | N36: 0.057107505 | O36: 0.057107505 | P36: 0.057107505 | Q36: 0.06083424622 | R36: 0.231598988 | T36: 36 | U36: 0.1984879742 | V36: 0.09045226945 | W36: 0.09045226945 | X36: 0.09045226945 | Y36: 0.02617959986 | Z36: 0.1422417256
B37: 37 | C37: 9.372918987 | D37: 7.183859639 | E37: 11.06806809 | F37: 1.092727225 | G37: 6.020794964 | H37: 12.74223448 | L37: 37 | M37: 0.05575299948 | N37: 0.05043733686 | O37: 0.05043733686 | P37: 0.05043733686 | Q37: 0.05575299948 | R37: 0.2130560947 | T37: 37 | U37: 0.1834197564 | V37: 0.08143634166 | W37: 0.08143634166 | X37: 0.08143634166 | Y37: 0.02107563391 | Z37: 0.1327487099
B38: 38 | C38: 8.425271385 | D38: 7.179185077 | E38: 10.0068785 | F38: 0.6738617297 | G38: 6.240764643 | H38: 11.37863795 | L38: 38 | M38: 0.05067175274 | N38: 0.04376716873 | O38: 0.04376716873 | P38: 0.04376716873 | Q38: 0.05067175274 | R38: 0.1945132014 | T38: 38 | U38: 0.1683515386 | V38: 0.07242041386 | W38: 0.07242041386 | X38: 0.07242041386 | Y38: 0.01597166797 | Z38: 0.1232556942
B39: 39 | C39: 7.517386447 | D39: 7.174510516 | E39: 8.981311729 | F39: 0.3266787568 | G39: 6.460734323 | H39: 10.01504142 | L39: 39 | M39: 0.045590506 | N39: 0.03709700059 | O39: 0.03709700059 | P39: 0.03709700059 | Q39: 0.045590506 | R39: 0.1759703081 | T39: 39 | U39: 0.1532833208 | V39: 0.06340448607 | W39: 0.06340448607 | X39: 0.06340448607 | Y39: 0.01086770202 | Z39: 0.1137626786
B40: 40 | C40: 6.649151142 | D40: 7.169835954 | E40: 7.991249115 | F40: 0.04635412115 | G40: 6.680704003 | H40: 8.651444889 | L40: 40 | M40: 0.04050925926 | N40: 0.03042683245 | O40: 0.03042683245 | P40: 0.03042683245 | Q40: 0.04050925926 | R40: 0.1574274148 | T40: 40 | U40: 0.138215103 | V40: 0.05438855827 | W40: 0.05438855827 | X40: 0.05438855827 | Y40: 0.005763736074 | Z40: 0.1042696629
B41: 41 | C41: 5.8202773 | D41: 5.874004819 | E41: 7.036547013 | F41: -0.1718177049 | G41: 5.372573086 | H41: 7.589144143 | L41: 41 | M41: 0.03654207959 | N41: 0.02626555328 | O41: 0.02626555328 | P41: 0.02626555328 | Q41: 0.03654207959 | R41: 0.1404924079 | T41: 41 | U41: 0.1243935927 | V41: 0.04781794633 | W41: 0.04781794633 | X41: 0.04781794633 | Y41: 0.005379639815 | Z41: 0.09126632409
B42: 42 | C42: 5.030301144 | D42: 4.578173683 | E42: 6.117037065 | F42: -0.3323661576 | G42: 4.064442169 | H42: 6.526843397 | L42: 42 | M42: 0.03257489991 | N42: 0.02210427411 | O42: 0.02210427411 | P42: 0.02210427411 | Q42: 0.03257489991 | R42: 0.123557401 | T42: 42 | U42: 0.1105720824 | V42: 0.04124733439 | W42: 0.04124733439 | X42: 0.04124733439 | Y42: 0.004995543555 | Z42: 0.07826298526
B43: 43 | C43: 4.278584844 | D43: 3.282342548 | E43: 5.232526663 | F43: -0.4395982539 | G43: 2.756311251 | H43: 5.464542651 | L43: 43 | M43: 0.02860772024 | N43: 0.01794299494 | O43: 0.01794299494 | P43: 0.01794299494 | Q43: 0.02860772024 | R43: 0.1066223941 | T43: 43 | U43: 0.09675057208 | V43: 0.03467672245 | W43: 0.03467672245 | X43: 0.03467672245 | Y43: 0.004611447295 | Z43: 0.06525964643
B44: 44 | C44: 3.564319937 | D44: 1.986511412 | E44: 4.382799541 | F44: -0.4975627106 | G44: 1.448180334 | H44: 4.402241906 | L44: 44 | M44: 0.02464054057 | N44: 0.01378171577 | O44: 0.01378171577 | P44: 0.01378171577 | Q44: 0.02464054057 | R44: 0.08968738721 | T44: 44 | U44: 0.08292906178 | V44: 0.0281061105 | W44: 0.0281061105 | X44: 0.0281061105 | Y44: 0.004227351036 | Z44: 0.0522563076
B45: 45 | C45: 2.886532423 | D45: 0.6906802768 | E45: 3.567616503 | F45: -0.5100236817 | G45: 0.1400494167 | H45: 3.33994116 | L45: 45 | M45: 0.0206733609 | N45: 0.009620436596 | O45: 0.009620436596 | P45: 0.009620436596 | Q45: 0.0206733609 | R45: 0.07275238032 | T45: 45 | U45: 0.06910755149 | V45: 0.02153549856 | W45: 0.02153549856 | X45: 0.02153549856 | Y45: 0.003843254776 | Z45: 0.03925296878
B46: 46 | C46: 2.244089327 | D46: 0.5525442215 | E46: 2.786716268 | F46: -0.4804431798 | G46: 0.1120395333 | H46: 2.671952928 | L46: 46 | M46: 0.01653868872 | N46: 0.007696349277 | O46: 0.007696349277 | P46: 0.007696349277 | Q46: 0.01653868872 | R46: 0.05820190426 | T46: 46 | U46: 0.05528604119 | V46: 0.01722839885 | W46: 0.01722839885 | X46: 0.01722839885 | Y46: 0.003074603821 | Z46: 0.03140237502
B47: 47 | C47: 1.635706505 | D47: 0.4144081661 | E47: 2.039816412 | F47: -0.4119712048 | G47: 0.08402964999 | H47: 2.003964696 | L47: 47 | M47: 0.01240401654 | N47: 0.005772261958 | O47: 0.005772261958 | P47: 0.005772261958 | Q47: 0.01240401654 | R47: 0.04365142819 | T47: 47 | U47: 0.04146453089 | V47: 0.01292129914 | W47: 0.01292129914 | X47: 0.01292129914 | Y47: 0.002305952866 | Z47: 0.02355178127
B48: 48 | C48: 1.059957423 | D48: 0.2762721107 | E48: 1.326614405 | F48: -0.3074426048 | G48: 0.05601976666 | H48: 1.335976464 | L48: 48 | M48: 0.008269344359 | N48: 0.003848174639 | O48: 0.003848174639 | P48: 0.003848174639 | Q48: 0.008269344359 | R48: 0.02910095213 | T48: 48 | U48: 0.02764302059 | V48: 0.008614199424 | W48: 0.008614199424 | X48: 0.008614199424 | Y48: 0.00153730191 | Z48: 0.01570118751
B49: 49 | C49: 0.5152826806 | D49: 0.1381360554 | E49: 0.6467887205 | F49: -0.1693797302 | G49: 0.02800988333 | H49: 0.6679882319 | L49: 49 | M49: 0.00413467218 | N49: 0.001924087319 | O49: 0.001924087319 | P49: 0.001924087319 | Q49: 0.00413467218 | R49: 0.01455047606 | T49: 49 | U49: 0.0138215103 | V49: 0.004307099712 | W49: 0.004307099712 | X49: 0.004307099712 | Y49: 0.0007686509552 | Z49: 0.007850593755
B50: 50 | C50: 0 | D50: 0 | E50: 0 | F50: 0 | G50: 0 | H50: 0 | L50: 50 | M50: 0 | N50: 0 | O50: 0 | P50: 0 | Q50: 0 | R50: 0 | T50: 50 | U50: 0 | V50: 0 | W50: 0 | X50: 0 | Y50: 0 | Z50: 0
B51: 51 | C51: -0.4876855617 | D51: 0.09088957486 | E51: -0.6141077326 | F51: 0.1987724238 | G51: 0.2537183824 | H51: 0.3833202252 | L51: 51 | M51: 0.003435582822 | N51: 0.0001137873981 | O51: 0.0001137873981 | P51: 0.0001137873981 | Q51: 0.003435582822 | R51: 0.0114848971 | T51: 51 | U51: 0.01282204913 | V51: 0.002242920951 | W51: 0.002242920951 | X51: 0.002242920951 | Y51: 0.003003724896 | Z51: 0.01216604391
B52: 52 | C52: -0.9496714239 | D52: 0.1817791497 | E52: -1.195905827 | F52: 0.4252915812 | G52: 0.5074367648 | H52: 0.7666404504 | L52: 52 | M52: 0.006871165644 | N52: 0.0002275747962 | O52: 0.0002275747962 | P52: 0.0002275747962 | Q52: 0.006871165644 | R52: 0.0229697942 | T52: 52 | U52: 0.02564409826 | V52: 0.004485841903 | W52: 0.004485841903 | X52: 0.004485841903 | Y52: 0.006007449792 | Z52: 0.02433208782
B53: 53 | C53: -1.387947548 | D53: 0.2726687246 | E53: -1.745779745 | F53: 0.6781719205 | G53: 0.7611551472 | H53: 1.149960676 | L53: 53 | M53: 0.01030674847 | N53: 0.0003413621943 | O53: 0.0003413621943 | P53: 0.0003413621943 | Q53: 0.01030674847 | R53: 0.03445469129 | T53: 53 | U53: 0.03846614739 | V53: 0.006728762854 | W53: 0.006728762854 | X53: 0.006728762854 | Y53: 0.009011174688 | Z53: 0.03649813173
B54: 54 | C54: -1.80458697 | D54: 0.3635582994 | E54: -2.264127789 | F54: 0.9562683301 | G54: 1.01487353 | H54: 1.533280901 | L54: 54 | M54: 0.01374233129 | N54: 0.0004551495924 | O54: 0.0004551495924 | P54: 0.0004551495924 | Q54: 0.01374233129 | R54: 0.04593958839 | T54: 54 | U54: 0.05128819652 | V54: 0.008971683805 | W54: 0.008971683805 | X54: 0.008971683805 | Y54: 0.01201489958 | Z54: 0.04866417564
B55: 55 | C55: -2.201737003 | D55: 0.4544478743 | E55: -2.751359836 | F55: 1.258654488 | G55: 1.268591912 | H55: 1.916601126 | L55: 55 | M55: 0.01717791411 | N55: 0.0005689369904 | O55: 0.0005689369904 | P55: 0.0005689369904 | Q55: 0.01717791411 | R55: 0.05742448549 | T55: 55 | U55: 0.06411024566 | V55: 0.01121460476 | W55: 0.01121460476 | X55: 0.01121460476 | Y55: 0.01501862448 | Z55: 0.06083021955
B56: 56 | C56: -2.581611271 | D56: 0.4927975803 | E56: -3.20789609 | F56: 1.584599952 | G56: 1.689552021 | H56: 2.458438057 | L56: 56 | M56: 0.02073359221 | N56: 0.002558904668 | O56: 0.002558904668 | P56: 0.002558904668 | Q56: 0.02073359221 | R56: 0.06541466636 | T56: 56 | U56: 0.07693229479 | V56: 0.01159864857 | W56: 0.01159864857 | X56: 0.01159864857 | Y56: 0.01984203614 | Z56: 0.06743475742
B57: 57 | C57: -2.946482755 | D57: 0.5311472864 | E57: -3.634165848 | F57: 1.933546368 | G57: 2.110512129 | H57: 3.000274989 | L57: 57 | M57: 0.02428927031 | N57: 0.004548872346 | O57: 0.004548872346 | P57: 0.004548872346 | Q57: 0.02428927031 | R57: 0.07340484723 | T57: 57 | U57: 0.08975434392 | V57: 0.01198269238 | W57: 0.01198269238 | X57: 0.01198269238 | Y57: 0.02466544779 | Z57: 0.07403929529
B58: 58 | C58: -3.298677965 | D58: 0.5694969924 | E58: -4.030606306 | F58: 2.305083108 | G58: 2.531472238 | H58: 3.54211192 | L58: 58 | M58: 0.02784494842 | N58: 0.006538840024 | O58: 0.006538840024 | P58: 0.006538840024 | Q58: 0.02784494842 | R58: 0.0813950281 | T58: 58 | U58: 0.102576393 | V58: 0.0123667362 | W58: 0.0123667362 | X58: 0.0123667362 | Y58: 0.02948885945 | Z58: 0.08064383316
B59: 59 | C59: -3.640572385 | D59: 0.6078466985 | E59: -4.397661398 | F59: 2.698922636 | G59: 2.952432347 | H59: 4.083948852 | L59: 59 | M59: 0.03140062652 | N59: 0.008528807702 | O59: 0.008528807702 | P59: 0.008528807702 | Q59: 0.03140062652 | R59: 0.08938520897 | T59: 59 | U59: 0.1153984422 | V59: 0.01275078001 | W59: 0.01275078001 | X59: 0.01275078001 | Y59: 0.0343122711 | Z59: 0.08724837102
B60: 60 | C60: -3.974587284 | D60: 0.6461964045 | E60: -4.735780678 | F60: 3.11487585 | G60: 3.373392455 | H60: 4.625785783 | L60: 60 | M60: 0.03495630462 | N60: 0.01051877538 | O60: 0.01051877538 | P60: 0.01051877538 | Q60: 0.03495630462 | R60: 0.09737538984 | T60: 60 | U60: 0.1282204913 | V60: 0.01313482382 | W60: 0.01313482382 | X60: 0.01313482382 | Y60: 0.03913568276 | Z60: 0.09385290889
B61: 61 | C61: -4.303188002 | D61: 1.363962266 | E61: -5.04541825 | F61: 3.55282763 | G61: 4.082590059 | H61: 4.228641527 | L61: 61 | M61: 0.03495630462 | N61: 0.01423157166 | O61: 0.01423157166 | P61: 0.01423157166 | Q61: 0.03495630462 | R61: 0.101787717 | T61: 61 | U61: 0.1282204913 | V61: 0.01185710236 | W61: 0.01185710236 | X61: 0.01185710236 | Y61: 0.04540509508 | Z61: 0.0939730465
B62: 62 | C62: -4.628883798 | D62: 2.081728127 | E62: -5.327031748 | F62: 4.012712819 | G62: 4.791787662 | H62: 3.831497272 | L62: 62 | M62: 0.03495630462 | N62: 0.01794436795 | O62: 0.01794436795 | P62: 0.01794436795 | Q62: 0.03495630462 | R62: 0.1062000442 | T62: 62 | U62: 0.1282204913 | V62: 0.01057938089 | W62: 0.01057938089 | X62: 0.01057938089 | Y62: 0.05167450741 | Z62: 0.0940931841
B63: 63 | C63: -4.954229356 | D63: 2.799493989 | E63: -5.581081375 | F63: 4.494492838 | G63: 5.500985265 | H63: 3.434353016 | L63: 63 | M63: 0.03495630462 | N63: 0.02165716423 | O63: 0.02165716423 | P63: 0.02165716423 | Q63: 0.03495630462 | R63: 0.1106123714 | T63: 63 | U63: 0.1282204913 | V63: 0.009301659424 | W63: 0.009301659424 | X63: 0.009301659424 | Y63: 0.05794391973 | Z63: 0.09421332171
B64: 64 | C64: -5.281828036 | D64: 3.51725985 | E64: -5.80802899 | F64: 4.998133116 | G64: 6.210182869 | H64: 3.03720876 | L64: 64 | M64: 0.03495630462 | N64: 0.02536996051 | O64: 0.02536996051 | P64: 0.02536996051 | Q64: 0.03495630462 | R64: 0.1150246986 | T64: 64 | U64: 0.1282204913 | V64: 0.008023937959 | W64: 0.008023937959 | X64: 0.008023937959 | Y64: 0.06421333206 | Z64: 0.09433345932
B65: 65 | C65: -5.614336983 | D65: 4.235025711 | E65: -6.008337256 | F65: 5.523581552 | G65: 6.919380472 | H65: 2.640064505 | L65: 65 | M65: 0.03495630462 | N65: 0.0290827568 | O65: 0.0290827568 | P65: 0.0290827568 | Q65: 0.03495630462 | R65: 0.1194370258 | T65: 65 | U65: 0.1282204913 | V65: 0.006746216493 | W65: 0.006746216493 | X65: 0.006746216493 | Y65: 0.07048274439 | Z65: 0.09445359692
B66: 66 | C66: -5.954474194 | D66: 3.796826411 | E66: -6.182468847 | F66: 6.070748154 | G66: 5.980906861 | H66: 3.357654605 | L66: 66 | M66: 0.03495630462 | N66: 0.03435252859 | O66: 0.03435252859 | P66: 0.03435252859 | Q66: 0.03495630462 | R66: 0.1205397738 | T66: 66 | U66: 0.1282204913 | V66: 0.00680615298 | W66: 0.00680615298 | X66: 0.00680615298 | Y66: 0.0778667968 | Z66: 0.09433345932
B67: 67 | C67: -6.305027699 | D67: 3.358627111 | E67: -6.330885707 | F67: 6.639486066 | G67: 5.042433249 | H67: 4.075244705 | L67: 67 | M67: 0.03495630462 | N67: 0.03962230038 | O67: 0.03962230038 | P67: 0.03962230038 | Q67: 0.03495630462 | R67: 0.1216425219 | T67: 67 | U67: 0.1282204913 | V67: 0.006866089467 | W67: 0.006866089467 | X67: 0.006866089467 | Y67: 0.08525084922 | Z67: 0.09421332171
B68: 68 | C68: -6.668867005 | D68: 2.920427811 | E68: -6.454048369 | F68: 7.229574103 | G68: 4.103959638 | H68: 4.792834805 | L68: 68 | M68: 0.03495630462 | N68: 0.04489207217 | O68: 0.04489207217 | P68: 0.04489207217 | Q68: 0.03495630462 | R68: 0.12274527 | T68: 68 | U68: 0.1282204913 | V68: 0.006926025954 | W68: 0.006926025954 | X68: 0.006926025954 | Y68: 0.09263490163 | Z68: 0.0940931841
B69: 69 | C69: -7.04895702 | D69: 2.482228511 | E69: -6.552415326 | F69: 7.840700987 | G69: 3.165486026 | H69: 5.510424905 | L69: 69 | M69: 0.03495630462 | N69: 0.05016184396 | O69: 0.05016184396 | P69: 0.05016184396 | Q69: 0.03495630462 | R69: 0.1238480181 | T69: 69 | U69: 0.1282204913 | V69: 0.006985962441 | W69: 0.006985962441 | X69: 0.006985962441 | Y69: 0.100018954 | Z69: 0.0939730465
B70: 70 | C70: -7.448374703 | D70: 2.04402921 | E70: -6.626442461 | F70: 8.472451374 | G70: 2.227012415 | H70: 6.228015005 | L70: 70 | M70: 0.03495630462 | N70: 0.05543161575 | O70: 0.05543161575 | P70: 0.05543161575 | Q70: 0.03495630462 | R70: 0.1249507662 | T70: 70 | U70: 0.1282204913 | V70: 0.007045898928 | W70: 0.007045898928 | X70: 0.007045898928 | Y70: 0.1074030065 | Z70: 0.09385290889
B71: 71 | C71: -7.870328753 | D71: 4.002666972 | E71: -6.67658252 | F71: 9.124293813 | G71: 5.042363373 | H71: 5.079115603 | L71: 71 | M71: 0.02991388657 | N71: 0.06206919862 | O71: 0.06206919862 | P71: 0.06206919862 | Q71: 0.02991388657 | R71: 0.1232893482 | T71: 71 | U71: 0.1228756111 | V71: 0.01112186018 | W71: 0.01112186018 | X71: 0.01112186018 | Y71: 0.1156115274 | Z71: 0.08854072505
B72: 72 | C72: -8.318182729 | D72: 5.961304734 | E72: -6.703284646 | F72: 9.795570704 | G72: 7.857714332 | H72: 3.930216201 | L72: 72 | M72: 0.02487146852 | N72: 0.06870678149 | O72: 0.06870678149 | P72: 0.06870678149 | Q72: 0.02487146852 | R72: 0.1216279303 | T72: 72 | U72: 0.1175307309 | V72: 0.01519782143 | W72: 0.01519782143 | X72: 0.01519782143 | Y72: 0.1238200483 | Z72: 0.08322854121
B73: 73 | C73: -8.795482073 | D73: 7.919942495 | E73: -6.706993944 | F73: 10.48549033 | G73: 10.67306529 | H73: 2.781316799 | L73: 73 | M73: 0.01982905047 | N73: 0.07534436436 | O73: 0.07534436436 | P73: 0.07534436436 | Q73: 0.01982905047 | R73: 0.1199665124 | T73: 73 | U73: 0.1121858508 | V73: 0.01927378269 | W73: 0.01927378269 | X73: 0.01927378269 | Y73: 0.1320285693 | Z73: 0.07791635737
B74: 74 | C74: -9.305985649 | D74: 9.878580257 | E74: -6.688151112 | F74: 11.19312094 | G74: 13.48841625 | H74: 1.632417398 | L74: 74 | M74: 0.01478663242 | N74: 0.08198194723 | O74: 0.08198194723 | P74: 0.08198194723 | Q74: 0.01478663242 | R74: 0.1183050945 | T74: 74 | U74: 0.1068409706 | V74: 0.02334974394 | W74: 0.02334974394 | X74: 0.02334974394 | Y74: 0.1402370902 | Z74: 0.07260417353
B75: 75 | C75: -9.853702528 | D75: 11.83721802 | E75: -6.647192092 | F75: 11.91738696 | G75: 16.30376721 | H75: 0.4835179957 | L75: 75 | M75: 0.009744214373 | N75: 0.0886195301 | O75: 0.0886195301 | P75: 0.0886195301 | Q75: 0.009744214373 | R75: 0.1166436766 | T75: 75 | U75: 0.1014960904 | V75: 0.02742570519 | W75: 0.02742570519 | X75: 0.02742570519 | Y75: 0.1484456112 | Z75: 0.06729198969
